Workbook

Sheet portada
G3: Subsecretaría de Agricultura, Pesca y Alimentación.
G8: Subdirección General de Análisis, Coordinación y Estadística
G9: Servicio de Estadísticas Agrarias
C27: AVANCES DE SUPERFICIES Y PRODUCCIONES AGRÍCOLAS
C30: ESTIMACIONES DE JULIO
E40: 1. COMENTARIO
E42: 2. ÍNDICE
E44: 3. DISPONIBLE EN LA WEB DEL MAPA:
E45: http://www.mapa.es/
H68: FECHA: Madrid, 31/07/2025 | L68: =TODAY() -> 2025-11-18

Sheet índice
A3: ÍNDICE
A7: Resumen de cifras nacionales ....................................................................................................... páginas 6, 7 y 8
A9: Análisis provincial y autonómico ................................................................................................... páginas 9 y 232
D11: página: | I11: página:
A14: trigo de invierno s/r/t | D14: 9 | F14: cebada 2c de primavera s/r/t | I14: 41
A16: trigo de invierno | D16: 10 | F16: cebada 2c de primavera | I16: 42
A18: trigo duro de invierno s/r/t | D18: 11 | F18: cebada 6c de primavera s/r/t | I18: 43
A20: trigo duro de invierno | D20: 12 | F20: cebada 6c de primavera | I20: 44
A22: trigo blando y semi de invierno s/r/t | D22: 13 | F22: cebada total s/r/t | I22: 45
A24: trigo blando y semi de invierno | D24: 14 | F24: cebada total | I24: 46
A26: trigo de primavera s/r/t | D26: 15 | F26: cebada 2 carreras s/r/t | I26: 47
A28: trigo de primavera | D28: 16 | F28: cebada 2 carreras | I28: 48
A30: trigo duro de primavera s/r/t | D30: 17 | F30: cebada 6 carreras s/r/t | I30: 49
A32: trigo duro de primavera | D32: 18 | F32: cebada 6 carreras | I32: 50
A34: trigo blando y semi de primavera s/r/t | D34: 19 | F34: avena s/r/t | I34: 51
A36: trigo blando y semi de primavera | D36: 20 | F36: avena | I36: 52
A38: trigo. resumen general s/r/t | D38: 21 | F38: mezclas de granos distintos del tranquillón s/r/t | I38: 53
A40: trigo. resumen general | D40: 22 | F40: mezclas de granos distintos del tranquillón | I40: 54
A42: trigo duro s/r/t | D42: 23 | F42: avena y otras mezclas de cereales de primavera distintos del tranquillón s/r/t | I42: 55
A44: trigo duro | D44: 24 | F44: avena y otras mezclas de cereales de primavera distintos del tranquillón | I44: 56
A46: trigo semiduro y blando s/r/t | D46: 25 | F46: maíz grano (no incluye forrajero ni dulce) s/r/t | I46: 57
A48: trigo semiduro y blando | D48: 26 | F48: maíz grano (no incluye forrajero ni dulce) | I48: 58
A50: centeno s/r/t | D50: 27 | F50: triticale s/r/t | I50: 59
A52: centeno | D52: 28 | F52: triticale | I52: 60
A54: tranquillón (mezcla de trigo y centeno) s/r/t | D54: 29 | F54: sorgo s/r/t | I54: 61
A56: tranquillón (mezcla de trigo y centeno) | D56: 30 | F56: sorgo | I56: 62
A58: centeno y tranquillón s/r/t | D58: 31 | F58: quinoa s/r/t | I58: 63
A60: centeno y tranquillón | D60: 32 | F60: quinoa | I60: 64
A62: cebada de invierno s/r/t | D62: 33 | F62: arroz indica s/r/t | I62: 65
A64: cebada de invierno | D64: 34 | F64: arroz indica | I64: 66
A66: cebada 2c de invierno s/r/t | D66: 35 | F66: arroz japónica s/r/t | I66: 67
A68: cebada 2c de invierno | D68: 36 | F68: arroz japónica | I68: 68
A70: cebada 6c de invierno s/r/t | D70: 37 | F70: arroz (cáscara) s/r/t | I70: 69
A72: cebada 6c de invierno | D72: 38 | F72: arroz (cáscara) | I72: 70
A74: cebada de primavera s/r/t | D74: 39 | F74: judías secas s/r/t | I74: 71
A76: cebada de primavera | D76: 40 | F76: judías secas | I76: 72
D80: página: | I80: página:
A81: habas secas s/r/t | D81: 73 | F81: girasol | I81: 108
A83: habas secas | D83: 74 | F83: soja s/r/t | I83: 109
A85: lentejas s/r/t | D85: 75 | F85: soja | I85: 110
A87: lentejas | D87: 76 | F87: colza y nabo de invierno s/r/t | I87: 111
A89: garbanzos s/r/t | D89: 77 | F89: colza y nabo de invierno | I89: 112
A91: garbanzos | D91: 78 | F91: colza de invierno s/r/t | I91: 113
A93: guisantes secos s/r/t | D93: 79 | F93: colza de invierno | I93: 114
A95: guisantes secos | D95: 80 | F95: nabo de invierno s/r/t | I95: 115
A97: veza s/r/t | D97: 81 | F97: nabo de invierno | I97: 116
A99: veza | D99: 82 | F99: colza y nabo de primavera s/r/t | I99: 117
A101: altramuz dulce s/r/t | D101: 83 | F101: colza y nabo de primavera | I101: 118
A103: altramuz dulce | D103: 84 | F103: colza de primavera s/r/t | I103: 119
A105: yeros s/r/t | D105: 85 | F105: colza de primavera | I105: 120
A107: yeros | D107: 86 | F107: nabo de primavera s/r/t | I107: 121
A109: patata temprana s/r/t | D109: 87 | F109: nabo de primavera | I109: 122
A111: patata temprana | D111: 88 | F111: colza y nabo s/r/t | I111: 123
A113: patata media estación s/r/t | D113: 89 | F113: colza y nabo | I113: 124
A115: patata media estación | D115: 90 | F115: colza s/r/t | I115: 125
A117: patata tardía s/r/t | D117: 91 | F117: colza | I117: 126
A119: patata tardía | D119: 92 | F119: nabo s/r/t | I119: 127
A121: patata total s/r/t | D121: 93 | F121: nabo | I121: 128
A123: patata total | D123: 94 | F123: tabaco s/r/t | I123: 129
A125: remolacha azucarera (r. verano) s/r/t | D125: 95 | F125: tabaco | I125: 130
A127: remolacha azucarera (r. verano) | D127: 96 | F127: cereal de invierno para forraje s/r/t | I127: 131
A129: remolacha azucarera (r. invierno) s/r/t | D129: 97 | F129: cereal de invierno para forraje | I129: 132
A131: remolacha azucarera (r. invierno) | D131: 98 | F131: maíz forrajero s/r/t | I131: 133
A133: remolacha azucarera s/r/t | D133: 99 | F133: maíz forrajero | I133: 134
A135: remolacha azucarera | D135: 100 | F135: ballico s/r/t | I135: 135
A137: algodón ( bruto ) s/r/t | D137: 101 | F137: ballico | I137: 136
A139: algodón ( bruto ) | D139: 102 | F139: festuca s/r/t | I139: 137
A141: lino textil ( fibra ) s/r/t | D141: 103 | F141: festuca | I141: 138
A143: lino textil ( fibra ) | D143: 104 | F143: alfalfa s/r/t | I143: 139
A145: cáñamo textil ( fibra ) s/r/t | D145: 105 | F145: alfalfa | I145: 140
A147: cáñamo textil ( fibra ) | D147: 106 | F147: trébol s/r/t | I147: 141
A149: girasol s/r/t | D149: 107 | F149: trébol | I149: 142
D153: página: | I153: página:
A154: esparceta s/r/t | D154: 143 | F154: cebolla medio grano o liria | I154: 178
A156: esparceta | D156: 144 | F156: cebolla grano o valenciana s/r/t | I156: 179
A158: veza para forraje s/r/t | D158: 145 | F158: cebolla grano o valenciana | I158: 180
A160: veza para forraje | D160: 146 | F160: cebolla.- resumen general s/r/t | I160: 181
A162: espárrago s/r/t | D162: 147 | F162: cebolla.- resumen general | I162: 182
A164: espárrago | D164: 148 | F164: puerro s/r/t | I164: 183
A166: apio s/r/t | D166: 149 | F166: puerro | I166: 184
A168: apio | D168: 150 | F168: rábanos s/r/t | I168: 185
A170: grelo s/r/t | D170: 151 | F170: rábanos | I170: 186
A172: grelo | D172: 152 | F172: nabo s/r/t | I172: 187
A174: pepino s/r/t | D174: 153 | F174: nabo | I174: 188
A176: pepino | D176: 154 | F176: guisantes verdes. en grano (sin vaina) s/r/t | I176: 189
A178: pepino en invernadero s/r/t | D178: 155 | F178: guisantes verdes. en grano (sin vaina) | I178: 190
A180: pepino en invernadero | D180: 156 | F180: manzano mesa s/r/t | I180: 191
A182: pepinillo s/r/t | D182: 157 | F182: manzano mesa | I182: 192
A184: pepinillo | D184: 158 | F184: manzano total s/r/t | I184: 193
A186: tomate de recolección 1-i al 31 - v s/r/t | D186: 159 | F186: manzano total | I186: 194
A188: tomate de recolección 1-i al 31 - v | D188: 160 | F188: pera total s/r/t | I188: 195
A190: tomate de recolección 1-x al 31-xii s/r/t | D190: 161 | F190: pera total | I190: 196
A192: tomate de recolección 1-x al 31-xii | D192: 162 | F192: albaricoquero s/r/t | I192: 197
A194: tomate.- resumen general s/r/t | D194: 163 | F194: albaricoquero | I194: 198
A196: tomate.- resumen general | D196: 164 | F196: cerezo y guindo s/r/t | I196: 199
A198: tomate consumo en fresco s/r/t | D198: 165 | F198: cerezo y guindo | I198: 200
A200: tomate consumo en fresco | D200: 166 | F200: melocotonero s/r/t | I200: 201
A202: tomate de industría s/r/t | D202: 167 | F202: melocotonero | I202: 202
A204: tomate de industría | D204: 168 | F204: melocotonero para consumo en fresco s/r/t | I204: 203
A206: tomate en invernadero s/r/t | D206: 169 | F206: melocotonero para consumo en fresco | I206: 204
A208: tomate en invernadero | D208: 170 | F208: melocotonero para transformación s/r/t | I208: 205
A210: brócoli s/r/t | D210: 171 | F210: melocotonero para transformación | I210: 206
A212: brócoli | D212: 172 | F212: melocotoneros planos (paraguayo) s/r/t | I212: 207
A214: coliflor s/r/t | D214: 173 | F214: melocotoneros planos (paraguayo) | I214: 208
A216: coliflor | D216: 174 | F216: melocotonero planos (paraguayo) consumo en fresco s/r/t | I216: 209
A218: cebolla babosa s/r/t | D218: 175 | F218: melocotonero planos (paraguayo) consumo en fresco | I218: 210
A220: cebolla babosa | D220: 176 | F220: melocotonero planos (paraguayo) transformación s/r/t | I220: 211
A222: cebolla medio grano o liria s/r/t | D222: 177 | F222: melocotonero planos (paraguayo) transformación | I222: 212
D225: página:
A226: almendro (cáscara) s/r/t | D226: 213
A228: almendro (cáscara) | D228: 214
A230: nogal (cáscara) s/r/t | D230: 215
A232: nogal (cáscara) | D232: 216
A234: avellano (cáscara) s/r/t | D234: 217
A236: avellano (cáscara) | D236: 218
A238: castaño fruto s/r/t | D238: 219
A240: castaño fruto | D240: 220
A242: pistacho s/r/t | D242: 221
A244: pistacho | D244: 222
A246: algarrobo s/r/t | D246: 223
A248: algarrobo | D248: 224
A250: viñedo de uva de mesa s/r/t | D250: 225
A252: viñedo de uva de mesa | D252: 226
A254: viñedo de uva para vinificación s/r/t | D254: 227
A256: viñedo de uva para vinificación | D256: 228
A258: total viñedo s/r/t | D258: 229
A260: total viñedo | D260: 230
A262: total producto vitivinicolas (vino + mosto) s/r/t | D262: 231
A264: total producto vitivinicolas (vino + mosto) | D264: 232

Sheet resumen nacional
A2: RESUMEN DE LOS AVANCES DE SUPERFICIES Y PRODUCCIONES AGRÍCOLAS | J2: TOTALES NACIONALES | M2: JULIO 2025 | O2: RESUMEN DE LOS AVANCES DE SUPERFICIES Y PRODUCCIONES AGRÍCOLAS | X2: TOTALES NACIONALES | AA2: JULIO 2025 | AC2: RESUMEN DE LOS AVANCES DE SUPERFICIES Y PRODUCCIONES AGRÍCOLAS | AL2: TOTALES NACIONALES | AO2: JULIO 2025
D4: SUPERFICIES (Miles de Hectáreas) | J4: PRODUCCIONES (Miles de Toneladas) | R4: SUPERFICIES (Miles de Hectáreas) | X4: PRODUCCIONES (Miles de Toneladas) | AF4: SUPERFICIES (Miles de Hectáreas) | AL4: PRODUCCIONES (Miles de Toneladas)
A5: CULTIVOS | E5: DEFINITIVO | F5: DEFINITIVO | G5: AVANCE | H5: =G6 -> 2025 | K5: DEFINITIVO | L5: DEFINITIVO | M5: AVANCE | N5: =M6 -> 2025 | O5: CULTIVOS | S5: DEFINITIVO | T5: DEFINITIVO | U5: AVANCE | V5: =U6 -> 2025 | Y5: DEFINITIVO | Z5: DEFINITIVO | AA5: AVANCE | AB5: =AA6 -> 2025 | AC5: CULTIVOS | AG5: DEFINITIVO | AH5: DEFINITIVO | AI5: AVANCE | AJ5: =AI6 -> 2025 | AM5: DEFINITIVO | AN5: DEFINITIVO | AO5: AVANCE | AP5: =AO6 -> 2025
C6: TIPO SUPERFICIE(*) | D6: MES (1) | E6: =G6-2 -> 2023 | F6: =G6-1 -> 2024 | G6: 2025 | H6: =CONCATENATE(F6,"=100") -> 2024=100 | J6: MES (1) | K6: =M6-2 -> 2023 | L6: =M6-1 -> 2024 | M6: 2025 | N6: =CONCATENATE(L6,"=100") -> 2024=100 | Q6: TIPO SUPERFICIE(*) | R6: MES (1) | S6: =U6-2 -> 2023 | T6: =U6-1 -> 2024 | U6: 2025 | V6: =CONCATENATE(T6,"=100") -> 2024=100 | X6: MES (1) | Y6: =AA6-2 -> 2023 | Z6: =AA6-1 -> 2024 | AA6: 2025 | AB6: =CONCATENATE(Z6,"=100") -> 2024=100 | AE6: TIPO SUPERFICIE(*) | AF6: MES (1) | AG6: =AI6-2 -> 2023 | AH6: =AI6-1 -> 2024 | AI6: 2025 | AJ6: =CONCATENATE(AH6,"=100") -> 2024=100 | AL6: MES (1) | AM6: =AO6-2 -> 2023 | AN6: =AO6-1 -> 2024 | AO6: 2025 | AP6: =CONCATENATE(AN6,"=100") -> 2024=100
H7: =IF(AND(F7>0,G7>0),G7*100/F7,"") ->  | N7: =IF(AND(L7>0,M7>0),M7*100/L7,"") -> 
A8: CEREALES | O8: CULTIVOS FORRAJEROS | AC8: CÍTRICOS | AJ8: =IF(AND(AH8>0,AI8>0),AI8*100/AH8,"") -> 
A9: trigo de invierno | C9: cosechada | D9: 7 | E9: 1793.227 | F9: 1896.331 | G9: 1992.12607 | H9: 105.0516007 | J9: 7 | K9: 3832.51 | L9: 7048.859 | M9: 8380.744 | N9: 118.8950439 | O9: cereal de invierno para forraje | Q9: cosechada | R9: 7 | S9: 336.078 | T9: 274.225 | U9: 272.46531 | V9: =IF(AND(T9>0,U9>0),U9*100/T9,"") -> 99.35830431 | X9: 7 | Y9: 2840.937 | Z9: 3417.639 | AA9: 3903.647 | AB9: =IF(AND(Z9>0,AA9>0),AA9*100/Z9,"") -> 114.2205774 | AC9: naranja dulce | AE9: en producción | AF9: 6 | AG9: 132.801 | AH9: 134.719 | AI9: 133.829 | AJ9: 99.33936564 | AL9: 6 | AM9: 2709.55 | AN9: 2897.832 | AO9: 2734.832 | AP9: =IF(AND(AN9>0,AO9>0),AO9*100/AN9,"") -> 94.37510525
A10: trigo duro de invierno | C10: cosechada | D10: 7 | E10: 234.529 | F10: 230.305 | G10: 213.58243 | H10: 92.73894618 | J10: 7 | K10: 412.495 | L10: 722.199 | M10: 646.913 | N10: 89.57544943 | O10: maíz forrajero | Q10: cosechada | R10: 7 | S10: 113.516 | T10: 116.057 | U10: 134.83557 | V10: 116.1804717 | X10: 7 | Y10: 4032.385 | Z10: 4164.135 | AA10: 4925.982 | AB10: =IF(AND(Z10>0,AA10>0),AA10*100/Z10,"") -> 118.2954443 | AC10: naranja amargo | AE10: en producción | AF10: 6 | AG10: 0.293 | AH10: 0.301 | AI10: 0.301 | AJ10: 100 | AL10: 6 | AM10: 5.412 | AN10: 7.11 | AO10: 5.072 | AP10: 71.33614627
A11: trigo blando y semi de invierno | C11: cosechada | D11: 7 | E11: 1558.698 | F11: 1666.026 | G11: 1778.55064 | H11: 106.7540747 | J11: 7 | K11: 3420.015 | L11: 6326.66 | M11: 7733.894 | N11: 122.2429212 | O11: ballico | Q11: cosechada | R11: 7 | S11: 108.489 | T11: 119.715 | U11: 119.88077 | V11: 100.1384705 | X11: 7 | Y11: 2200.733 | Z11: 2647.184 | AA11: 2479.725 | AB11: 93.67407026 | AC11: satsuma | AE11: en producción | AF11: 6 | AG11: 4.899 | AH11: 4.802 | AI11: 4.542 | AJ11: 94.58558934 | AL11: 6 | AM11: 87.24 | AN11: 103.209 | AO11: 93.764 | AP11: 90.8486663
A12: trigo de primavera | C12: cosechada | D12: 7 | E12: 16.336 | F12: 15.249 | G12: 11.71843 | H12: 76.8472031 | J12: 7 | K12: 52.777 | L12: 48.648 | M12: 46.835 | N12: 96.27322809 | O12: festuca | Q12: cosechada | R12: 7 | S12: 11.804 | T12: 11.569 | U12: 19.01227 | V12: 164.3380586 | X12: 7 | Y12: 407.069 | Z12: 434.844 | AA12: 813.388 | AB12: 187.0528281 | AC12: clementinas | AE12: en producción | AF12: 6 | AG12: 49.204 | AH12: 48.599 | AI12: 46.572 | AJ12: 95.82913229 | AL12: 6 | AM12: 1056.173 | AN12: 851.956 | AO12: 917.623 | AP12: 107.7077924
A13: trigo duro de primavera | C13: cosechada | D13: 7 | E13: 2.398 | F13: 2.724 | G13: 2.21886 | H13: 81.45594714 | J13: 7 | K13: 6.494 | L13: 6.419 | M13: 6.261 | N13: 97.53855741 | O13: alfalfa | Q13: cosechada | R13: 7 | S13: 182.446 | T13: 199.927 | U13: 209.57949 | V13: 104.8280072 | X13: 7 | Y13: 6630.896 | Z13: 7908.462 | AA13: 8225.501 | AB13: 104.0088579 | AC13: otras mandarinas | AE13: en producción | AF13: 6 | AG13: 34.092 | AH13: 35.184 | AI13: 35.823 | AJ13: 101.8161664 | AL13: 6 | AM13: 718.889 | AN13: 860.349 | AO13: 727.548 | AP13: 84.56428728
A14: trigo blando y semi de primavera | C14: cosechada | D14: 7 | E14: 13.938 | F14: 12.525 | G14: 9.49957 | H14: 75.84487026 | J14: 7 | K14: 46.283 | L14: 42.229 | M14: 40.593 | N14: 96.12588506 | O14: trébol | Q14: cosechada | R14: 7 | S14: 2.213 | T14: 2.253 | U14: 2.56815 | V14: 113.988016 | X14: 7 | Y14: 35.417 | Z14: 36.975 | AA14: 29.465 | AB14: 79.68897904 | AC14: total mandarino | AF14: 6 | AG14: 88.193 | AH14: 88.25 | AI14: 86.937 | AJ14: 98.5121813 | AL14: 6 | AM14: 1862.302 | AN14: 1815.514 | AO14: 1738.90582 | AP14: 95.78035862
A15: trigo. resumen general | C15: cosechada | D15: 7 | E15: 1809.563 | F15: 1911.58 | G15: 2003.84451 | H15: 104.8266099 | J15: 7 | K15: 3885.287 | L15: 7097.507 | M15: 8427.643 | N15: 118.7408903 | O15: esparceta | Q15: cosechada | R15: 7 | S15: 18.185 | T15: 19.582 | U15: 27.4465 | V15: 140.1618834 | X15: 7 | Y15: 143.187 | Z15: 233.156 | AA15: 378.135 | AB15: 162.1811148 | AC15: limonero | AE15: en producción | AF15: 6 | AG15: 47.212 | AH15: 47.991 | AI15: 47.997 | AJ15: 100.0125023 | AL15: 6 | AM15: 1145.245 | AN15: 915.488 | AO15: 826.77 | AP15: 90.30921214
A16: trigo duro | C16: cosechada | D16: 7 | E16: 236.927 | F16: 233.029 | G16: 215.79329 | H16: 92.60362015 | J16: 7 | K16: 418.989 | L16: 728.618 | M16: 653.832 | N16: 89.735911 | O16: veza para forraje | Q16: cosechada | R16: 7 | S16: 164.793 | T16: 150.609 | U16: 168.35272 | V16: 111.7813145 | X16: 7 | Y16: 1077.238 | Z16: 2565.13 | AA16: 3101.047 | AB16: 120.8923914 | AC16: limero | AE16: en producción | AF16: 6 | AG16: 0.231 | AH16: 0.301 | AI16: 0.343 | AJ16: 113.9534884 | AL16: 6 | AM16: 3.627 | AN16: 4.025 | AO16: 3.947 | AP16: 98.0621118
A17: trigo semiduro y blando | C17: cosechada | D17: 7 | E17: 1572.636 | F17: 1678.551 | G17: 1788.05022 | H17: 106.5234372 | J17: 7 | K17: 3466.298 | L17: 6368.889 | M17: 7806.78 | N17: 122.5767948 | AC17: pomelo | AE17: en producción | AF17: 6 | AG17: 2.735 | AH17: 2.696 | AI17: 2.898 | AJ17: 107.4925816 | AL17: 6 | AM17: 85.287 | AN17: 85.006 | AO17: 100.942 | AP17: 118.746912
A18: centeno | C18: cosechada | D18: 7 | E18: 81.103 | F18: 95.945 | G18: 100.39716 | H18: 104.6403252 | J18: 7 | K18: 117.198 | L18: 223.309 | M18: 271.809 | N18: 121.7187843 | O18: HORTALIZAS
A19: tranquillón (mezcla de trigo y centeno) | C19: cosechada | D19: 7 | E19: 30.792 | F19: 37.474 | G19: 32.09235 | H19: 85.63897636 | J19: 7 | K19: 27.906 | L19: 107.889 | M19: 84.268 | N19: 78.10620174 | O19: col.- resumen general | Q19: sembrada | R19: 6 | S19: 5.884 | T19: 6.286 | U19: 6.398 | V19: =IF(AND(T19>0,U19>0),U19*100/T19,"") -> 101.7817372 | Y19: 194.1 | Z19: 198.9 | AB19: =IF(AND(Z19>0,AA19>0),AA19*100/Z19,"") ->  | AC19: FRUTALES
A20: centeno y tranquillón | C20: cosechada | D20: 7 | E20: 111.895 | F20: 133.419 | G20: 132.48951 | H20: 99.30333011 | J20: 7 | K20: 145.104 | L20: 331.198 | M20: 356.077 | N20: 107.5118207 | O20: espárrago | Q20: cosechada | R20: 7 | S20: 13.171 | T20: 12.896 | U20: 12.52554 | V20: 97.1273263 | X20: 7 | Y20: 44.144 | Z20: 56.487 | AA20: 62.696 | AB20: 110.9919096 | AC20: manzana sidra | AE20: en producción | AF20: 5 | AG20: 8.172 | AH20: 8.183 | AI20: 8.229 | AJ20: =IF(AND(AH20>0,AI20>0),AI20*100/AH20,"") -> 100.562141 | AL20: 5 | AM20: 88.25 | AN20: 70.453 | AO20: 163.715 | AP20: =IF(AND(AN20>0,AO20>0),AO20*100/AN20,"") -> 232.3747747
A21: cebada de invierno | C21: cosechada | D21: 7 | E21: 1964.062 | F21: 2044.487 | G21: 2147.56463 | H21: 105.0417357 | J21: 7 | K21: 3276.162 | L21: 6995.533 | M21: 8572.439 | N21: 122.5416133 | O21: apio | Q21: cosechada | R21: 5 | S21: 2.544 | T21: 2.526 | U21: 2.04 | V21: 80.76009501 | X21: 5 | Y21: 140.796 | Z21: 141.824 | AA21: 111.53 | AB21: 78.63972247 | AC21: manzano mesa | AE21: en producción | AF21: 7 | AG21: 17.755 | AH21: 17.624 | AI21: 17.974 | AJ21: 101.9859283 | AL21: 7 | AM21: 439.425 | AN21: 474.629 | AO21: 479.728 | AP21: 101.0743128
A22: cebada 2c de invierno | C22: cosechada | D22: 7 | E22: 1788.437 | F22: 1875.631 | G22: 1978.58003 | H22: 105.4887678 | J22: 7 | K22: 3051.516 | L22: 6494.072 | M22: 8028.808 | N22: 123.6328763 | O22: lechuga resumen general | Q22: cosechada | R22: 6 | S22: 33.083 | T22: 31.654 | U22: 32.98144 | V22: 104.1935932 | X22: 6 | Y22: 863.406 | Z22: 913.527 | AA22: 944.659 | AB22: 103.4078905 | AC22: manzano total | AE22: en producción | AF22: 7 | AG22: 25.927 | AH22: 25.807 | AI22: 26.203 | AJ22: 101.5344674 | AL22: 7 | AM22: 527.675 | AN22: 545.082 | AO22: 643.442 | AP22: 118.0449914
A23: cebada 6c de invierno | C23: cosechada | D23: 7 | E23: 175.625 | F23: 168.856 | G23: 168.98447 | H23: 100.0760826 | J23: 7 | K23: 224.646 | L23: 501.461 | M23: 543.724 | N23: 108.4279735 | O23: lechuga en campo | Q23: cosechada | R23: 6 | S23: 32.294 | T23: 30.785 | U23: 32.06349 | V23: 104.1529641 | X23: 6 | Y23: 836.146 | Z23: 890.799 | AA23: 920.576 | AB23: 103.3427294 | AC23: pera total | AE23: en producción | AF23: 7 | AG23: 16.436 | AH23: 16.1 | AI23: 16.06865 | AJ23: 99.8052795 | AL23: 7 | AM23: 288.029 | AN23: 222.023 | AO23: 256.019 | AP23: 115.3119271
A24: cebada de primavera | C24: cosechada | D24: 7 | E24: 125.488 | F24: 125.751 | G24: 141.49374 | H24: 112.518978 | J24: 7 | K24: 314.406 | L24: 354.814 | M24: 524.065 | N24: 147.7013308 | O24: lechuga en invernadero | Q24: cosechada | R24: 6 | S24: 0.789 | T24: 0.869 | U24: 0.98696 | V24: 113.5742232 | X24: 6 | Y24: 27.26 | Z24: 22.728 | AA24: 24.443 | AB24: 107.5457585 | AC24: albaricoquero | AE24: recolectada | AF24: 7 | AG24: 16.055 | AH24: 15.939 | AI24: 15.9471 | AJ24: 100.0508187 | AL24: 7 | AM24: 108.449 | AN24: 155.567 | AO24: 176.121 | AP24: =IF(AND(AN24>0,AO24>0),AO24*100/AN24,"") -> 113.2123137
A25: cebada 2c de primavera | C25: cosechada | D25: 7 | E25: 124.066 | F25: 125.004 | G25: 139.94825 | H25: 111.9550174 | J25: 7 | K25: 311.087 | L25: 352.696 | M25: 518.056 | N25: 146.8845691 | O25: escarola | Q25: cosechada | R25: 5 | S25: 2.106 | T25: 2.197 | U25: 1.846 | V25: 84.02366864 | X25: 5 | Y25: 56.369 | Z25: 54.857 | AA25: 54.857 | AB25: 100 | AC25: cerezo y guindo | AE25: recolectada | AF25: 7 | AG25: 24.435 | AH25: 25.721 | AI25: 25.88649 | AJ25: 100.6434042 | AL25: 7 | AM25: 104.663 | AN25: 121.429 | AO25: 139.593 | AP25: =IF(AND(AN25>0,AO25>0),AO25*100/AN25,"") -> 114.9585354
A26: cebada 6c de primavera | C26: cosechada | D26: 7 | E26: 1.422 | F26: 0.747 | G26: 1.54549 | H26: 206.892905 | J26: 7 | K26: 3.319 | L26: 2.118 | M26: 6.009 | N26: 283.7110482 | O26: espinaca | Q26: cultivada | R26: 6 | S26: 4.834 | T26: 4.854 | U26: 4.72383 | V26: =IF(AND(T26>0,U26>0),U26*100/T26,"") -> 97.31829419 | X26: 6 | Y26: 82 | Z26: 89.817 | AA26: 73.355 | AB26: =IF(AND(Z26>0,AA26>0),AA26*100/Z26,"") -> 81.67162119 | AC26: melocotonero | AE26: recolectada | AF26: 7 | AG26: 24.313 | AH26: 25.215 | AI26: 24.68194 | AJ26: 97.88594091 | AL26: 7 | AM26: 548.752 | AN26: 552.173 | AO26: 599.435 | AP26: 108.559274
A27: cebada total | C27: cosechada | D27: 7 | E27: 2089.55 | F27: 2170.238 | G27: 2289.05837 | H27: 105.4749926 | J27: 7 | K27: 3590.568 | L27: 7350.347 | M27: 9093.696 | N27: 123.7179143 | O27: grelo | Q27: cosechada | R27: 5 | S27: 5.401 | T27: 5.611 | U27: 5.591 | V27: =IF(AND(T27>0,U27>0),U27*100/T27,"") -> 99.6435573 | X27: 5 | Y27: 58.729 | Z27: 64.233 | AA27: 63.90619048 | AB27: 99.49121242 | AC27: melocotonero para consumo en fresco | AE27: recolectada | AF27: 7 | AG27: 21.434 | AH27: 22.932 | AI27: 22.56974 | AJ27: 98.42028606 | AL27: 7 | AM27: 475.466 | AN27: 482.949 | AO27: 543.002 | AP27: 112.4346463
A28: cebada 2 carreras | C28: cosechada | D28: 7 | E28: 1912.503 | F28: 2000.635 | G28: 2118.52829 | H28: 105.8927935 | J28: 7 | K28: 3362.603 | L28: 6846.768 | M28: 8543.92633 | N28: 124.7877295 | O28: endivias (7) (12) | Q28: cosechada | R28: 6 | S28: 25.8 | T28: 30 | U28: 28.845 | V28: =IF(AND(T28>0,U28>0),U28*100/T28,"") -> 96.15 | X28: 6 | Y28: 12.457 | Z28: 17.345 | AA28: 11.888 | AB28: =IF(AND(Z28>0,AA28>0),AA28*100/Z28,"") -> 68.53848371 | AC28: melocotonero para transformación | AE28: recolectada | AF28: 7 | AG28: 2.879 | AH28: 2.283 | AI28: 2.1116 | AJ28: 92.49233465 | AL28: 7 | AM28: 73.286 | AN28: 69.224 | AO28: 56.66 | AP28: 81.85022536
A29: cebada 6 carreras | C29: cosechada | D29: 7 | E29: 177.047 | F29: 169.603 | G29: 170.52996 | H29: 100.5465469 | J29: 7 | K29: 227.965 | L29: 503.579 | M29: 549.8635 | N29: 109.19111 | O29: para formar raíz endivia (7) | Q29: cosechada | R29: 6 | S29: 13.4 | T29: 27.9 | U29: 28.445 | V29: 101.953405 | X29: 6 | Y29: 4.833 | Z29: 9.094 | AA29: 9.241 | AB29: 101.6164504 | AC29: nectarina | AE29: recolectada | AF29: 6 | AG29: 23.259 | AH29: 22.944 | AI29: 22.5522 | AJ29: 98.29236402 | AL29: 6 | AM29: 520.48 | AN29: 525.778 | AO29: 521.606 | AP29: 99.20650921
A30: avena | C30: cosechada | D30: 7 | E30: 400.016 | F30: 485.274 | G30: 533.11433 | H30: 109.8584161 | J30: 7 | K30: 445.987 | L30: 1144.585 | M30: 1411.304 | N30: 123.3026818 | O30: sandía | Q30: cosechada | R30: 6 | S30: 21.444 | T30: 21.501 | U30: 22.93672 | V30: 106.6774569 | X30: 6 | Y30: 1168.933 | Z30: 1222.713 | AA30: 1306.446 | AB30: 106.848132 | AC30: nectarina para consumo en fresco | AE30: recolectada | AF30: 6 | AG30: 22.127 | AH30: 21.798 | AI30: 20.7752 | AJ30: 95.30782641 | AL30: 6 | AM30: 491.74 | AN30: 491.035 | AO30: 491.686 | AP30: 100.1325771
A31: mezclas de granos distintos del tranquillón | C31: cosechada | D31: 7 | E31: 3.364 | F31: 5.291 | G31: 4.65296 | H31: 87.94103194 | J31: 7 | K31: 3.744 | L31: 11.263 | M31: 11.343 | N31: 100.7102903 | O31: melón .- resumen general | Q31: cultivada | R31: 6 | S31: 16.542 | T31: 16.916 | U31: 17.17706 | V31: 101.5432726 | X31: 6 | Y31: 516.523 | Z31: 594.01 | AA31: 618.891 | AB31: 104.18865 | AC31: nectarina para transformación | AE31: recolectada | AF31: 6 | AG31: 1.132 | AH31: 1.146 | AI31: 1.777 | AJ31: 155.061082 | AL31: 6 | AM31: 28.74 | AN31: 34.743 | AO31: 29.7 | AP31: 85.48484587
A32: avena y otras mezclas de cereales de primavera distintos del tranquillón | C32: cosechada | D32: 7 | E32: 403.38 | F32: 490.565 | G32: 537.767291 | H32: 109.6220258 | J32: 7 | K32: 449.731 | L32: 1155.848 | M32: 1422.647 | N32: 123.0825333 | O32: calabaza | Q32: cosechada | R32: 6 | S32: 5.008 | T32: 6.495 | U32: 6.61105 | V32: 101.786759 | X32: 6 | Y32: 140.41 | Z32: 169.776 | AA32: 169.909 | AB32: 100.0783385 | AC32: melocotoneros planos (paraguayo) | AE32: recolectada | AF32: 7 | AG32: 11.601 | AH32: 11.405 | AI32: 11.38344 | AJ32: 99.81096011 | AL32: 7 | AM32: 294.367 | AN32: 280.522 | AO32: 270.306 | AP32: 96.35821789
A33: maíz grano (no incluye forrajero ni dulce) | C33: cultivada | D33: 7 | E33: 239.792 | F33: 288.809 | G33: 320.16757 | H33: 110.8578922 | J33: 7 | K33: 2835.364 | L33: 3542.481 | M33: 4146.347 | N33: 117.0464146 | O33: calabacín | R33: 6 | S33: 11.611 | T33: 11.1 | U33: 10.96363 | V33: 98.77144144 | X33: 6 | Y33: 566.47 | Z33: 600.994 | AA33: 639.162 | AB33: 106.3508122 | AC33: melocotonero planos (paraguayo) consumo en fresco | AE33: recolectada | AF33: 7 | AG33: 11.407 | AH33: 11.204 | AI33: 11.02644 | AJ33: 98.41520885 | AL33: 7 | AM33: 288.812 | AN33: 275.079 | AO33: 261.913 | AP33: 95.2137386
A34: triticale | C34: cosechada | D34: 7 | E34: 215.743 | F34: 241.147 | G34: 279.88818 | H34: 116.0653792 | J34: 7 | K34: 276.921 | L34: 617.828 | M34: 856.164 | N34: 138.5764323 | O34: calabacín en campo | Q34: cosechada | R34: 6 | S34: 2.501 | T34: 2.389 | U34: 2.21033 | V34: 92.52113855 | X34: 6 | Y34: 91.894 | Z34: 94.415 | AA34: 94.216 | AB34: 99.78922841 | AC34: melocotonero planos (paraguayo) transformación | AE34: recolectada | AF34: 7 | AG34: 0.194 | AH34: 0.201 | AI34: 0.357 | AJ34: 177.6119403 | AL34: 7 | AM34: 5.555 | AN34: 5.443 | AO34: 8.393 | AP34: 154.1980525
A35: sorgo | C35: cultivada | D35: 7 | E35: 6.456 | F35: 6.452 | G35: 7.26158 | H35: 112.5477371 | J35: 7 | K35: 30.663 | L35: 27.192 | M35: 26.75 | N35: 98.37452192 | O35: calabacín en invernadero | Q35: cosechada | R35: 6 | S35: 9.11 | T35: 8.711 | U35: 8.75365 | V35: 100.4896108 | X35: 6 | Y35: 474.577 | Z35: 506.579 | AA35: 545.012 | AB35: 107.5867732 | AC35: nectarinas planas (platerina) | AE35: recolectada | AF35: 6 | AG35: 0.879 | AH35: 0.95 | AI35: 0.88348 | AJ35: 92.99789474 | AL35: 6 | AM35: 18.177 | AN35: 18.426 | AO35: 22.841 | AP35: 123.9607077
A36: quinoa | C36: cosechada | D36: 7 | E36: 0.742 | F36: 2.369 | G36: 2.82312 | H36: 119.1692697 | J36: 7 | K36: 1.23 | L36: 3.418 | M36: 4.045 | N36: 118.3440609 | O36: pepino | R36: 7 | S36: 8.296 | T36: 8.602 | U36: 8.93087 | V36: 103.8231807 | X36: 7 | Y36: 722.146 | Z36: 757.641 | AA36: 803.64 | AB36: 106.0713451 | AC36: nectarinas planas (platerina) consumo en fresco | AE36: recolectada | AF36: 6 | AG36: 0.86 | AH36: 0.94 | AI36: 0.86448 | AJ36: 91.96595745 | AL36: 6 | AM36: 17.669 | AN36: 18.183 | AO36: 22.417 | AP36: 123.2854864
A37: arroz indica | C37: cultivada | D37: 7 | E37: 14.011 | F37: 35.604 | G37: 44.82509 | H37: 125.8990282 | J37: 7 | K37: 83.065 | L37: 262.694 | M37: 356.6332332 | N37: 135.7599463 | O37: pepino en campo | Q37: cosechada | R37: 6 | S37: 0.564 | T37: 0.463 | U37: 0.40487 | V37: 87.44492441 | X37: 6 | Y37: 15.418 | Z37: 13.828 | AA37: 10.957 | AB37: 79.23777842 | AC37: nectarinas planas (platerina) transformación | AE37: recolectada | AF37: 6 | AG37: 0.019 | AH37: 0.01 | AI37: 0.019 | AJ37: 190 | AL37: 6 | AM37: 0.508 | AN37: 0.243 | AO37: 0.464 | AP37: 190.9465021
A38: arroz japónica | C38: cultivada | D38: 7 | E38: 41.11 | F38: 50.336 | G38: 52.20841 | H38: 103.7198228 | J38: 7 | K38: 254.92 | L38: 349.108 | M38: 339.8917668 | N38: 97.36006244 | O38: pepino en invernadero | Q38: cultivada | R38: 7 | S38: 7.732 | T38: 8.148 | U38: 8.526 | V38: 104.6391753 | X38: 7 | Y38: 706.728 | Z38: 743.813 | AA38: 793.082 | AB38: 106.6238423 | AC38: ciruelo | AE38: en producción | AF38: 6 | AG38: 11.554 | AH38: 11.064 | AI38: 11.03175 | AJ38: 99.7085141 | AL38: 6 | AM38: 162.943 | AN38: 135.749 | AO38: 146.734 | AP38: 108.0921406
A39: arroz (cáscara) | C39: cultivada | D39: 7 | E39: 55.121 | F39: 85.94 | G39: 97.03371 | H39: 112.9086688 | J39: 7 | K39: 337.985 | L39: 611.802 | M39: 696.525 | N39: 113.8481077 | O39: pepinillo (7) | Q39: cultivada | R39: 7 | T39: 1.2 | U39: 1.3 | V39: 108.3333333 | X39: 7 | Z39: 0.149 | AA39: 0.145 | AB39: 97.31543624 | AC39: higuera | AE39: recolectada | AF39: 6 | AG39: 11.831 | AH39: 12.777 | AI39: 13.25253 | AJ39: 103.7217657 | AL39: 6 | AM39: 39.652 | AN39: 55.417 | AO39: 59.646 | AP39: 107.6312323
O40: berenjena | Q40: cosechada | R40: 6 | S40: 3.569 | T40: 3.589 | U40: 3.62599 | V40: 101.0306492 | X40: 6 | Y40: 260.406 | Z40: 297.664 | AA40: 288.354 | AB40: 96.87231241 | AC40: granado | AE40: en producción | AF40: 5 | AG40: 4.526 | AH40: 4.549 | AI40: 4.35634 | AJ40: 95.76478347 | AL40: 5 | AM40: 66.85 | AN40: 64.809 | AO40: 78.243 | AP40: 120.7286025
A41: LEGUMINOSAS GRANO | N41: =IF(AND(L41>0,M41>0),M41*100/L41,"") ->  | O41: tomate de recolección 1-i al 31 - v | Q41: cosechada | R41: 7 | S41: 9.825 | T41: 9.122 | U41: 8.90591 | V41: 97.6311116 | X41: 7 | Y41: 811.452 | Z41: 788.061 | AA41: 775.149 | AB41: 98.36154815 | AC41: aguacate | AE41: en producción | AF41: 5 | AG41: 16.897 | AH41: 17.756 | AI41: 18.446 | AJ41: 103.8860104 | AL41: 5 | AM41: 86.801 | AN41: 112.361 | AO41: 139.528 | AP41: 124.1783181
A42: judías secas | C42: cultivada | D42: 7 | E42: 9.631 | F42: 10.617 | G42: 11.35693 | H42: 106.9692945 | J42: 7 | K42: 19.061 | L42: 18.363 | M42: 27.894 | N42: 151.9032838 | O42: tomate de recolección 1-vi al 30 - ix | Q42: cosechada | R42: 6 | S42: 35.281 | T42: 41.206 | U42: 35.11015 | V42: 85.20640198 | X42: 6 | Y42: 2755.634 | Z42: 3350.114 | AA42: 2988.597 | AB42: 89.20881498 | AC42: platanera | AE42: recolectada | AF42: 5 | AG42: 8.458 | AH42: 8.468 | AI42: 8.478 | AJ42: 100.1180916 | AL42: 5 | AM42: 467.259 | AN42: 421.321 | AO42: 470.676 | AP42: 111.7143461
A43: habas secas | C43: cosechada | D43: 7 | E43: 27.302 | F43: 31.728 | G43: 29.75423 | H43: 93.77909102 | J43: 7 | K43: 26.945 | L43: 51.69 | M43: 32.592 | N43: 63.05281486 | O43: tomate de recolección 1-x al 31-xii | Q43: cultivada | R43: 7 | S43: 4.84 | T43: 4.998 | U43: 4.76375 | V43: 95.31312525 | X43: 7 | Y43: 401.372 | Z43: 436.107 | AA43: 415.39 | AB43: 95.24956031 | AC43: kiwi | AE43: en producción | AF43: 6 | AG43: 1.47 | AH43: 1.487 | AI43: 1.506 | AJ43: 101.2777404 | AL43: 6 | AM43: 28.953 | AN43: 29.644 | AO43: 28.441 | AP43: 95.94184321
A44: lentejas | C44: cosechada | D44: 7 | E44: 32.588 | F44: 29.836 | G44: 31.95172 | H44: 107.091165 | J44: 7 | K44: 12.824 | L44: 26.256 | M44: 29.08 | N44: 110.7556368 | O44: tomate.- resumen general | R44: 7 | S44: 49.946 | T44: 55.292 | U44: 48.7736 | V44: 88.21095276 | X44: 7 | Y44: 3968.458 | Z44: 4574.282 | AA44: 4178.893 | AB44: 91.35626094 | AC44: mango | AE44: en producción | AF44: 6 | AG44: 5.23 | AH44: 5.412 | AI44: 5.414 | AJ44: 100.0369549 | AL44: 6 | AM44: 26.451 | AN44: 27.057 | AO44: 33.642 | AP44: 124.3375097
A45: garbanzos | C45: cosechada | D45: 7 | E45: 63.268 | F45: 78.6 | G45: 63.26103 | H45: 80.48477099 | J45: 7 | K45: 49.722 | L45: 82.652 | M45: 56.09 | N45: 67.86284663 | O45: tomate consumo en fresco | Q45: cosechada | R45: 7 | S45: 21.185 | T45: 20.87 | U45: 19.96775 | V45: 95.67680882 | X45: 7 | Y45: 1608.147 | Z45: 1650.951 | AA45: 1601.963 | AB45: 97.03274052 | AC45: caqui | AE45: en producción | AF45: 5 | AG45: 15.568 | AH45: 15.129 | AI45: 15.449 | AJ45: 102.1151431 | AL45: 5 | AM45: 359.553 | AN45: 240.429 | AO45: 407.941 | AP45: 169.6721277
A46: guisantes secos | C46: cosechada | D46: 7 | E46: 207.456 | F46: 182.522 | G46: 174.26625 | H46: 95.47684663 | J46: 7 | K46: 149.664 | L46: 259.593 | M46: 286.744 | N46: 110.4590648 | O46: tomate de industría (5) | Q46: cosechada | R46: 7 | S46: 28.761 | T46: 34.422 | U46: 28.80708 | V46: 83.68799024 | X46: 7 | Y46: 2360.311 | Z46: 2923.331 | AA46: 2575.466 | AB46: 88.10038959 | AC46: grosellero | AE46: recolectada | AF46: 6 | AG46: 0.01 | AH46: 0.009 | AI46: 0.008 | AJ46: 88.88888889 | AL46: 6 | AM46: 0.034 | AN46: 0.031 | AO46: 0.028 | AP46: 90.32258065
A47: veza | C47: cosechada | D47: 7 | E47: 80.252 | F47: 68.81 | G47: 74.50017 | H47: 108.269394 | J47: 7 | K47: 44.064 | L47: 78.494 | M47: 84.772 | N47: 107.9980635 | O47: tomate en invernadero | Q47: cosechada | R47: 7 | S47: 16.795 | T47: 16.612 | U47: 16.08873 | V47: 96.85004816 | X47: 7 | Y47: 1442.858 | Z47: 1501.84 | AA47: 1426.831 | AB47: 95.00552655 | AC47: frambueso | AE47: recolectada | AF47: 6 | AG47: 2.082 | AH47: 1.665 | AI47: 1.793 | AJ47: 107.6876877 | AL47: 6 | AM47: 33.07 | AN47: 30.231 | AO47: 30.822 | AP47: 101.9549469
A48: altramuz dulce | C48: cosechada | D48: 7 | E48: 3.361 | F48: 2.368 | G48: 2.98756 | H48: 126.1638514 | J48: 7 | K48: 1.815 | L48: 2.066 | M48: 3.413 | N48: 165.1984511 | O48: pimiento (6) | R48: 6 | S48: 21.459 | T48: 23.224 | U48: 22.44767 | V48: 96.65720806 | X48: 6 | Y48: 1387.134 | Z48: 1514.419 | AA48: 1508.849 | AB48: 99.63220218 | AC48: arándano | AE48: recolectada | AF48: 6 | AG48: 4.442 | AH48: 4.749 | AI48: 5.078 | AJ48: 106.9277743 | AL48: 6 | AM48: 57.672 | AN48: 60.951 | AO48: 64.858 | AP48: 106.4100671
A49: yeros | C49: cosechada | D49: 7 | E49: 89.875 | F49: 81.343 | G49: 94.98842 | H49: 116.775162 | J49: 7 | K49: 36.414 | L49: 68.149 | M49: 86.791 | N49: 127.3547668 | O49: alcachofa | Q49: sembrada | R49: 6 | S49: 12.802 | T49: 11.884 | U49: 12.41044 | V49: 104.4298216 | Y49: 182.6 | Z49: 174.6 | AC49: almendro (cáscara) (8) | AE49: en producción | AF49: 7 | AG49: 646.737 | AH49: 663.181 | AI49: 663.86533 | AJ49: 100.103189 | AL49: 7 | AM49: 297.66 | AN49: 369.696 | AO49: 463.701 | AP49: 125.4276487
O50: brócoli | Q50: sembrada | R50: 7 | S50: 32.372 | T50: 33.363 | U50: 33.09001 | V50: 99.18175824 | Y50: 475.4 | Z50: 485.4 | AC50: nogal (cáscara) (8) | AE50: en producción | AF50: 7 | AG50: 10.541 | AH50: 10.757 | AI50: 10.57938 | AJ50: 98.34879613 | AL50: 7 | AM50: 17.339 | AN50: 20.056 | AO50: 19.366 | AP50: 96.55963303
A51: TUBÉRCULOS | F51: =IF(AND(D51>0,E51>0),E51*100/D51,"") ->  | O51: coliflor | Q51: sembrada | R51: 7 | S51: 6.864 | T51: 7.828 | U51: 7.28522 | V51: 93.06617271 | Y51: 153.1 | Z51: 178.7 | AC51: avellano (cáscara) (8) | AE51: en producción | AF51: 7 | AG51: 8.767 | AH51: 8.81 | AI51: 8.27478 | AJ51: 93.92485812 | AL51: 7 | AM51: 6.791 | AN51: 3.015 | AO51: 3.22 | AP51: 106.7993367
A52: patata extratemprana | C52: cosechada | D52: 5 | E52: 2.77 | F52: 2.123 | G52: 2.231 | H52: =IF(AND(F52>0,G52>0),G52*100/F52,"") -> 105.0871408 | J52: 5 | K52: 74.376 | L52: 55.09 | M52: 57.252 | N52: =IF(AND(L52>0,M52>0),M52*100/L52,"") -> 103.9244872 | O52: ajo | Q52: cosechada | R52: 6 | S52: 25.336 | T52: 22.691 | U52: 23.76937 | V52: 104.7524129 | X52: 6 | Y52: 194.341 | Z52: 245.697 | AA52: 237.784 | AB52: 96.77936646 | AC52: castaño fruto | AE52: en producción | AF52: 7 | AG52: 35.241 | AH52: 35.405 | AI52: 34.76 | AJ52: 98.17822341 | AL52: 7 | AM52: 174.094 | AN52: 181.806 | AO52: 173.235 | AP52: 95.28563414
A53: patata temprana | C53: cosechada | D53: 7 | E53: 11.727 | F53: 13.422 | G53: 14.60264 | H53: 108.7963046 | J53: 7 | K53: 373.684 | L53: 451.814 | M53: 413.456 | N53: =IF(AND(L53>0,M53>0),M53*100/L53,"") -> 91.51022323 | O53: cebolla babosa | Q53: cosechada | R53: 7 | S53: 4.112 | T53: 4.591 | U53: 3.91895 | V53: 85.361577 | X53: 7 | Y53: 187.451 | Z53: 230.782 | AA53: 151.165 | AB53: 65.50120893 | AC53: pistacho | AE53: en producción | AF53: 7 | AG53: 29.124 | AH53: 34.84 | AI53: 38.79301 | AJ53: 111.3461825 | AL53: 7 | AM53: 23.967 | AN53: 24.201 | AO53: 34.199 | AP53: 141.3123425
A54: patata media estación | C54: cosechada | D54: 7 | E54: 27.629 | F54: 27.69 | G54: 30.00681 | H54: 108.3669556 | J54: 7 | K54: 777.208 | L54: 778.467 | M54: 705.017 | N54: =IF(AND(L54>0,M54>0),M54*100/L54,"") -> 90.56478952 | O54: cebolla medio grano o liria | Q54: cosechada | R54: 7 | S54: 3.983 | T54: 3.555 | U54: 3.248 | V54: =IF(AND(T54>0,U54>0),U54*100/T54,"") -> 91.36427567 | X54: 7 | Y54: 218.284 | Z54: 199.294 | AA54: 178.614 | AB54: 89.6233705 | AC54: algarrobo | AE54: en producción | AF54: 7 | AG54: 36.439 | AH54: 36.107 | AI54: 36.126 | AJ54: 100.0526214 | AL54: 7 | AM54: 39.744 | AN54: 29.06 | AO54: 33.471 | AP54: 115.1789401
A55: patata tardía | C55: cultivada | D55: 7 | E55: 17.113 | F55: 18.115 | G55: 19.90567 | H55: 109.8850124 | J55: 7 | K55: 696.58 | L55: 685.8 | M55: 754.837 | N55: =IF(AND(L55>0,M55>0),M55*100/L55,"") -> 110.0666375 | O55: cebolla grano o valenciana | Q55: cultivada | R55: 7 | S55: 7.531 | T55: 8.935 | U55: 8.85257 | V55: 99.07744824 | X55: 7 | Y55: 480.706 | Z55: 578.513 | AA55: 566.637 | AB55: 97.94715071
A56: patata total | D56: 7 | E56: 59.219 | F56: 60.947 | G56: 66.74948 | H56: 109.5205342 | J56: 7 | K56: 1921.848 | L56: 1971.171 | M56: 1930.634 | N56: 97.94350668 | O56: otras cebollas | Q56: cultivada | R56: 6 | S56: 6.885 | T56: 7.971 | U56: 7.32207 | V56: 91.85886338 | X56: 6 | Y56: 304.767 | Z56: 367.439 | AA56: 341.348 | AB56: 92.89922953 | AC56: VIÑEDO
O57: cebolla.- resumen general | R57: 7 | S57: 22.479 | T57: 25.04 | U57: 23.34159 | V57: 93.21721246 | X57: 7 | Y57: 1191.208 | Z57: 1376.028 | AA57: 1237.738 | AB57: 89.95005916 | AC57: viñedo de uva de mesa | AE57: en producción | AF57: 7 | AG57: 14.175 | AH57: 14.46 | AI57: 14.34022 | AJ57: =IF(AND(AH57>0,AI57>0),AI57*100/AH57,"") -> 99.17164592 | AL57: 7 | AM57: 347.708 | AN57: 363.989 | AO57: 386.282 | AP57: =IF(AND(AN57>0,AO57>0),AO57*100/AN57,"") -> 106.1246356
A58: CULTIVOS INDUSTRIALES | O58: puerro | Q58: cosechada | R58: 3 | S58: 2.553 | T58: 2.601 | U58: 2.601 | V58: 100 | X58: 3 | Y58: 63.07 | Z58: 66.322 | AA58: 66.322 | AB58: 100 | AC58: viñedo de uva para vinificación (9) | AE58: en producción | AF58: 7 | AG58: 840.733 | AH58: 835.936 | AI58: 837.066 | AJ58: =IF(AND(AH58>0,AI58>0),AI58*100/AH58,"") -> 100.1351778 | AL58: 7 | AM58: 4474.368 | AN58: 5021.888 | AO58: 4741.449 | AP58: =IF(AND(AN58>0,AO58>0),AO58*100/AN58,"") -> 94.41566598
A59: remolacha azucarera (r. verano) | C59: cosechada | D59: 7 | E59: 7.765 | F59: 9.892 | G59: 6.02015 | H59: =IF(AND(F59>0,G59>0),G59*100/F59,"") -> 60.85877477 | J59: 7 | K59: 503.521 | L59: 767.581 | M59: 378.086 | N59: =IF(AND(L59>0,M59>0),M59*100/L59,"") -> 49.2568211 | O59: zanahoria | Q59: cosechada | R59: 6 | S59: 6.82 | T59: 7.488 | U59: 7.43617 | V59: =IF(AND(T59>0,U59>0),U59*100/T59,"") -> 99.30782585 | X59: 6 | Y59: 388.056 | Z59: 393.741 | AA59: 294.854 | AB59: 74.88526722 | AC59: viñedo de uva para pasificación (10) | AE59: en producción | AF59: 7 | AG59: 1.694 | AH59: 1.392 | AI59: 1.392 | AJ59: =IF(AND(AH59>0,AI59>0),AI59*100/AH59,"") -> 100 | AL59: 7 | AM59: 0.681 | AN59: 1.392 | AO59: 0.3545 | AP59: =IF(AND(AN59>0,AO59>0),AO59*100/AN59,"") -> 25.46695402
A60: remolacha azucarera (r. invierno) | C60: cultivada | D60: 7 | E60: 26.928 | F60: 35.801 | G60: 20.122 | H60: 56.20513393 | J60: 7 | K60: 2386.727 | L60: 2754.655 | M60: 1828.479 | N60: =IF(AND(L60>0,M60>0),M60*100/L60,"") -> 66.37778597 | O60: rábanos (7) | Q60: cosechada | R60: 6 | S60: 29.9 | T60: 18.7 | U60: 20.688 | V60: 110.631016 | X60: 6 | Y60: 5.133 | Z60: 3.216 | AA60: 3.298 | AB60: 102.5497512 | AC60: total viñedo | AE60: en producción | AF60: 7 | AG60: 856.602 | AH60: 851.788 | AI60: 852.783 | AJ60: =IF(AND(AH60>0,AI60>0),AI60*100/AH60,"") -> 100.1168131 | AL60: 7 | AM60: 4822.757 | AN60: 5387.27 | AO60: 5128.014 | AP60: =IF(AND(AN60>0,AO60>0),AO60*100/AN60,"") -> 95.18761822
A61: remolacha azucarera | D61: 7 | E61: 34.693 | F61: 45.676 | G61: 26.14215 | H61: 57.2338865 | J61: 7 | K61: 2890.248 | L61: 3522.236 | M61: 2206.565 | N61: =IF(AND(L61>0,M61>0),M61*100/L61,"") -> 62.64671078 | O61: nabo | Q61: cosechada | R61: 5 | S61: 0.338 | T61: 0.405 | U61: 0.277 | V61: 68.39506173 | X61: 5 | Y61: 7.299 | Z61: 8.011 | AA61: 5.204 | AB61: =IF(AND(Z61>0,AA61>0),AA61*100/Z61,"") -> 64.96067907 | AC61: total producto vitivinicolas (vino + mosto) (11) | AE61: en producción | AF61: 7 | AL61: 7 | AM61: 32396.818 | AN61: 36813.912 | AO61: 34063.765 | AP61: =IF(AND(AN61>0,AO61>0),AO61*100/AN61,"") -> 92.52959859
A62: algodón ( bruto ) (2) | C62: cultivada | D62: 7 | E62: 51.747 | F62: 51.076 | G62: 46.80984 | H62: 91.64742736 | J62: 7 | K62: 55.037 | L62: 112.348 | M62: 130.949 | N62: =IF(AND(L62>0,M62>0),M62*100/L62,"") -> 116.556592 | O62: judías verdes (con vaina) | Q62: cosechada | R62: 6 | S62: 6.307 | T62: 5.971 | U62: 6.09453 | V62: 102.0688327 | X62: 6 | Y62: 119.406 | Z62: 116.224 | AA62: 99.321 | AB62: =IF(AND(Z62>0,AA62>0),AA62*100/Z62,"") -> 85.45653221
A63: lino textil ( fibra ) | C63: cultivada | D63: 7 | E63: 0.007 | F63: 0.02 | G63: 0.022 | H63: 110 | J63: 7 | K63: 0.007 | L63: 0.072 | M63: 0.074 | N63: 102.7777778 | O63: guisantes verdes. en grano (sin vaina) | Q63: cosechada | R63: 7 | S63: 19.202 | T63: 13.649 | U63: 14.34878 | V63: 105.126969 | X63: 7 | Y63: 114.526 | Z63: 98 | AA63: 100.253 | AB63: 102.2989796 | AC63: OLIVAR
A64: cáñamo textil ( fibra ) | C64: cultivada | D64: 7 | E64: 0.186 | F64: 0.051 | G64: 0.033 | H64: 64.70588235 | J64: 7 | K64: 0.456 | L64: 0.147 | M64: 0.171 | N64: 116.3265306 | O64: habas verdes. en grano (sin vaina) | Q64: cosechada | R64: 6 | S64: 4.176 | T64: 3.584 | U64: 3.69731 | V64: 103.1615513 | X64: 6 | Y64: 30.105 | Z64: 28.539 | AA64: 28.255 | AB64: 99.00487053 | AC64: olivar de aceituna de mesa | AE64: en producción | AF64: 5 | AG64: 112.993 | AH64: 108.623 | AI64: 113.45963 | AJ64: =IF(AND(AH64>0,AI64>0),AI64*100/AH64,"") -> 104.4526758 | AL64: 5 | AM64: 290.684 | AN64: 304.14 | AO64: 332.827 | AP64: =IF(AND(AN64>0,AO64>0),AO64*100/AN64,"") -> 109.4321694
A65: girasol | C65: cultivada | D65: 7 | E65: 773.799 | F65: 752.648 | G65: 665.48892 | H65: 88.4196756 | J65: 7 | K65: 840.168 | L65: 832.702 | M65: 767.168 | N65: =IF(AND(L65>0,M65>0),M65*100/L65,"") -> 92.12995766 | O65: fresa y fresón | Q65: cosechada | R65: 6 | S65: 7.009 | T65: 6.92 | U65: 6.9816 | V65: 100.8901734 | X65: 6 | Y65: 329.275 | Z65: 323.541 | AA65: 321.104 | AB65: 99.24677243 | AC65: olivar de aceituna de almazara | AE65: en producción | AF65: 5 | AG65: 2168.082 | AH65: 2081.954 | AI65: 2090.24379 | AJ65: =IF(AND(AH65>0,AI65>0),AI65*100/AH65,"") -> 100.3981735 | AL65: 5 | AM65: 4246.653 | AN65: 7021.422 | AO65: 6536.432 | AP65: =IF(AND(AN65>0,AO65>0),AO65*100/AN65,"") -> 93.09270971
A66: soja | C66: cultivada | D66: 7 | E66: 2.441 | F66: 3.115 | G66: 2.78221 | H66: 89.31653291 | J66: 7 | K66: 7.496 | L66: 10.724 | M66: 8.753 | N66: =IF(AND(L66>0,M66>0),M66*100/L66,"") -> 81.62066393 | O66: fresas en campo | Q66: cosechada | R66: 6 | S66: 0.212 | T66: 0.216 | U66: 0.13024 | V66: 60.2962963 | X66: 6 | Y66: 7.45 | Z66: 4.07 | AA66: 2.6195 | AB66: 64.36117936 | AC66: olivar de doble aptitud | AE66: en producción | AF66: 5 | AG66: 263.028 | AH66: 354 | AI66: 357.026 | AJ66: =IF(AND(AH66>0,AI66>0),AI66*100/AH66,"") -> 100.8548023 | AL66: 5 | AM66: 563.672 | AN66: 1109.91 | AO66: 1129.64 | AP66: =IF(AND(AN66>0,AO66>0),AO66*100/AN66,"") -> 101.7776216
A67: colza y nabo de invierno | C67: cosechada | D67: 7 | E67: 104.335 | F67: 97.057 | G67: 97.05599 | H67: 99.99895937 | J67: 7 | K67: 169.459 | L67: 225.676 | M67: 268.228 | N67: =IF(AND(L67>0,M67>0),M67*100/L67,"") -> 118.8553501 | O67: fresas en invernadero | Q67: cosechada | R67: 6 | S67: 6.797 | T67: 6.704 | U67: 6.85336 | V67: 102.2279236 | X67: 6 | Y67: 321.825 | Z67: 319.471 | AA67: 318.5295 | AB67: 99.70529406 | AC67: total olivar | AE67: en producción | AF67: 5 | AG67: 2515.48 | AH67: 2514.618 | AI67: 2560.72942 | AJ67: =IF(AND(AH67>0,AI67>0),AI67*100/AH67,"") -> 101.8337346 | AL67: 5 | AM67: 5101.009 | AN67: 8435.472 | AO67: 7998.9 | AP67: =IF(AND(AN67>0,AO67>0),AO67*100/AN67,"") -> 94.82456939
A68: colza de invierno | C68: cosechada | D68: 7 | E68: 104.335 | F68: 97.057 | G68: 96.80621 | H68: 99.74160545 | J68: 7 | K68: 169.459 | L68: 225.676 | M68: 267.463 | N68: =IF(AND(L68>0,M68>0),M68*100/L68,"") -> 118.5163686 | O68: champiñon (7) | Q68: cosechada | R68: 6 | S68: 45.099 | T68: 45.071 | U68: 45.361 | V68: 100.6434293 | X68: 6 | Y68: 146.731 | Z68: 145.009 | AA68: 146.342 | AB68: 100.9192533 | AC68: aceite de oliva total | AF68: 5 | AL68: 5 | AM68: 843.371 | AN68: 1401.354 | AO68: 1382.963 | AP68: =IF(AND(AN68>0,AO68>0),AO68*100/AN68,"") -> 98.6876264
A69: nabo de invierno | C69: cosechada | D69: 7 | G69: 0.24978 | J69: 7 | M69: 0.764 | N69: =IF(AND(L69>0,M69>0),M69*100/L69,"") ->  | O69: otras setas (7) | Q69: cosechada | R69: 6 | S69: 9.735 | T69: 9.221 | U69: 9.497 | V69: 102.9931678 | X69: 6 | Y69: 17.19 | Z69: 16.89 | AA69: 17.252 | AB69: 102.14328
A70: colza y nabo de primavera | C70: cultivada | D70: 7 | E70: 0.379 | F70: 0.005 | G70: 0.005 | H70: 100 | AC70: RESUMEN DE LOS AVANCES DE SUPERFICIES Y PRODUCCIONES AGRÍCOLAS | AL70: TOTALES NACIONALES | AO70: AGOSTO 2025
A71: colza de primavera | C71: cultivada | D71: 7 | E71: 0.379 | F71: 0.005 | G71: 0.005 | H71: 100
A72: nabo de primavera | C72: cultivada | D72: 7 | O72: (4) Producción en verde
A73: colza y nabo | C73: cosechada | D73: 7 | E73: 104.714 | F73: 97.062 | G73: 97.05599 | H73: 99.99380808 | J73: 7 | K73: 169.905 | L73: 225.682 | M73: 268.228 | N73: =IF(AND(L73>0,M73>0),M73*100/L73,"") -> 118.8521902 | O73: (5) Incluido en el tomate "de verano" (rec. 1-vi/30-ix) | AC73: CULTIVOS | AF73: SUPERFICIES (Miles de Hectáreas) | AL73: PRODUCCIONES (Miles de Toneladas)
A74: colza | C74: cosechada | D74: 7 | E74: 104.714 | F74: 97.062 | G74: 96.81721 | H74: 99.74780038 | J74: 7 | K74: 169.905 | L74: 225.682 | M74: 267.463 | N74: =IF(AND(L74>0,M74>0),M74*100/L74,"") -> 118.5132177 | O74: (6) Incluye el de conserva | AG74: DEFINITIVO | AH74: PROVIS. | AI74: AVANCE | AJ74: =AI75 -> 2026 | AM74: DEFINITIVO | AN74: PROVIS. | AO74: AVANCE | AP74: =AO75 -> 2026
A75: nabo | C75: cosechada | D75: 7 | G75: 0.24978 | H75: =IF(AND(F75>0,G75>0),G75*100/F75,"") ->  | J75: 7 | M75: 0.764 | N75: =IF(AND(L75>0,M75>0),M75*100/L75,"") ->  | O75: (7) La superficie se expresa en miles de áreas | V75: =IF(AND(T75>0,U75>0),U75*100/T75,"") ->  | AB75: =IF(AND(Z75>0,AA75>0),AA75*100/Z75,"") ->  | AE75: TIPO SUPERFICIE(*) | AF75: MES (1) | AG75: =AI75-2 -> 2024 | AH75: =AI75-1 -> 2025 | AI75: 2026 | AJ75: =CONCATENATE(AH75,"=100") -> 2025=100 | AL75: MES (1) | AM75: =AO75-2 -> 2024 | AN75: =AO75-1 -> 2025 | AO75: 2026 | AP75: =CONCATENATE(AN75,"=100") -> 2025=100
A76: pimiento para pimentón | C76: cultivada | D76: 6 | E76: 2.112 | F76: 1.979 | G76: 2.035 | H76: =IF(AND(F76>0,G76>0),G76*100/F76,"") -> 102.829712 | J76: 6 | K76: 6.431 | L76: 6.625 | M76: 7.569 | N76: =IF(AND(L76>0,M76>0),M76*100/L76,"") -> 114.2490566 | O76: (8) Los datos se dan con cáscara, no en grano. Coeficientes de conversión, según variedades: Almendra y Nuez: 3´3 - 4 , Avellana: 2 - 2´3 | AJ76: =IF(AND(AH76>0,AI76>0),AI76*100/AH76,"") ->  | AP76: =IF(AND(AN76>0,AO76>0),AO76*100/AN76,"") -> 
A77: tabaco (3) | C77: cultivada | D77: 7 | E77: 5.781 | F77: 6.182 | G77: 6.491 | H77: =IF(AND(F77>0,G77>0),G77*100/F77,"") -> 104.9983824 | J77: 7 | K77: 12.378 | L77: 19.409 | M77: 20.098 | N77: =IF(AND(L77>0,M77>0),M77*100/L77,"") -> 103.5498995 | O77: (9) Datos de ccaa de uva de vinificación producida. | AC77: HORTALIZAS | AJ77: =IF(AND(AH77>0,AI77>0),AI77*100/AH77,"") ->  | AP77: =IF(AND(AN77>0,AO77>0),AO77*100/AN77,"") -> 
O78: (10) Producción de uva, no de pasa | AC78: apio | AE78: sembrada | AF78: 7 | AG78: 2.566 | AH78: 2.04 | AI78: 2.55165 | AJ78: =IF(AND(AH78>0,AI78>0),AI78*100/AH78,"") -> 125.0808824
O79: (11) Producción total de Vino y Mosto en miles de Hectolitros. Incluye a los pequeños productores (autoconsumo) y los mostos concentrados convertidos a mosto natural, | AC79: grelo | AE79: sembrada | AF79: 7 | AG79: 5.625 | AH79: 5.591 | AI79: 5.628 | AJ79: 100.6617779
A80: (1) Mes al que corresponde la última estimación | O80: con coeficiente 3´5 | AC80: puerro | AE80: sembrada | AF80: 7 | AG80: 2.603 | AH80: 2.603 | AI80: 2.73971 | AJ80: 105.2520169
A81: (2) Producción bruta para fibra | O81: (12) La superficie de endivia indica la superficie de raíz de endivia mientras que la producción de endivia recoge la endivia de hoja por lo que no tienen que estar ligadas. | AC81: rábanos (7) | AE81: sembrada | AF81: 7 | AG81: 19.7 | AH81: 20.688 | AI81: 24.623 | AJ81: 119.0206883
A82: (3) Tabaco seco no fermentado | O82: Nota: En leñosos, la producción total puede diferir en algunos casos del sumatorio de secano y regadío, al incluirse la producción estimada de árboles diseminados. | AC82: nabo | AE82: sembrada | AF82: 7 | AG82: 0.405 | AH82: 0.277 | AI82: 0.25956 | AJ82: 93.70397112
H210: =IF(AND(F210>0,G210>0),G210*100/F210,"") ->  | N210: =IF(AND(L210>0,M210>0),M210*100/L210,"") -> 

Sheet Tri0rno-SRT
A1: AVANCES DE SUPERFICIE Y PRODUCCIÓN
A2: TRIGO DE INVIERNO S/R/T | K2: 2025 JULIO
A3: SUPERFICIE COSECHADA(*)
A4: PROVINCIAS | B4: SUPERFICIES (HA) | E4: SUPERFICIES (HA) | H4: SUPERFICIES (HA) | L4: PRODUCCIONES (1000 TM) | O4: PRODUCCIONES (1000 TM) | R4: PRODUCCIONES (1000 TM)
A5: Y | B5: SECANO | E5: REGADIO | H5: TOTAL | L5: SECANO | O5: REGADIO | R5: TOTAL
A6: CC-AA | B6: =J6-2 -> 2023 | C6: =J6-1 -> 2024 | D6: =J6 -> 2025 | E6: =J6-2 -> 2023 | F6: =J6-1 -> 2024 | G6: =J6 -> 2025 | H6: =J6-2 -> 2023 | I6: =J6-1 -> 2024 | J6: 2025 | L6: =T6-2 -> 2023 | M6: =T6-1 -> 2024 | N6: =T6 -> 2025 | O6: =T6-2 -> 2023 | P6: =T6-1 -> 2024 | Q6: =T6 -> 2025 | R6: =T6-2 -> 2023 | S6: =T6-1 -> 2024 | T6: 2025
B7: DEFINITIVO | C7: DEFINITIVO | D7: PROVISIONAL | E7: DEFINITIVO | F7: DEFINITIVO | G7: PROVISIONAL | H7: DEFINITIVO | I7: DEFINITIVO | J7: PROVISIONAL | L7: DEFINITIVO | M7: DEFINITIVO | N7: PROVISIONAL | O7: DEFINITIVO | P7: DEFINITIVO | Q7: PROVISIONAL | R7: DEFINITIVO | S7: DEFINITIVO | T7: PROVISIONAL
A10: 15 Coruña (La) | B10: 986 | C10: 1016 | D10: 1872.38 | H10: 986 | I10: 1016 | J10: 1872.38 | L10: 2.997 | M10: 2.337 | N10: 6.866 | R10: 2.997 | S10: 2.336 | T10: 6.866
A11: 27 Lugo | B11: 2057 | C11: 1962 | D11: 2915.36 | H11: 2057 | I11: 1962 | J11: 2785.36 | L11: 5.101 | M11: 4.316 | N11: 9.427 | R11: 5.102 | S11: 4.316 | T11: 9.427
A12: 32 Orense | B12: 4997 | C12: 5136 | D12: 5226.63 | H12: 4997 | I12: 5136 | J12: 5226.63 | L12: 15.491 | M12: 15.408 | N12: 17.393 | R12: 15.491 | S12: 15.408 | T12: 17.393
A13: 36 Pontevedra | B13: 189 | C13: 175 | D13: 334.79 | H13: 189 | I13: 175 | J13: 334.79 | L13: 0.416 | M13: 0.394 | N13: 1.189 | R13: 0.416 | S13: 0.394 | T13: 1.189
A14: GALICIA | B14: 8229 | C14: 8289 | D14: 10349.16 | H14: 8229 | I14: 8289 | J14: 10219.16 | L14: 24.005 | M14: 22.455 | N14: 34.875 | R14: 24.006 | S14: 22.454 | T14: 34.875
A16: 33 P. DE ASTURIAS | D16: 61 | J16: 61 | N16: 0.11 | T16: 0.11
A18: 39 CANTABRIA | B18: 692 | C18: 733 | D18: 742 | E18: 142 | F18: 115 | G18: 120 | H18: 834 | I18: 848 | J18: 862 | L18: 1.522 | M18: 1.613 | N18: 1.632 | O18: 0.639 | P18: 0.518 | Q18: 0.54 | R18: 2.161 | S18: 2.131 | T18: 2.172
A20: 01 Alava | B20: 19290 | C20: 19717 | D20: 17819 | H20: 19290 | I20: 19717 | J20: 17819 | L20: 106.095 | M20: 138.019 | N20: 106.914 | R20: 106.095 | S20: 138.019 | T20: 106.914
A21: 20 Guipúzcoa | B21: 1 | C21: 1 | H21: 1 | I21: 1 | L21: 0.005 | M21: 0.006 | R21: 0.005 | S21: 0.006
A22: 48 Vizcaya
A23: PAIS VASCO | B23: 19291 | C23: 19718 | D23: 17819 | H23: 19291 | I23: 19718 | J23: 17819 | L23: 106.1 | M23: 138.025 | N23: 106.914 | R23: 106.1 | S23: 138.025 | T23: 106.914
A25: 31 NAVARRA | B25: 59254 | C25: 62619 | D25: 66691.77 | E25: 16025 | F25: 15151 | G25: 13585.33 | H25: 75279 | I25: 77770 | J25: 80277.1 | L25: 231.268 | M25: 325.055 | N25: 338.007 | O25: 89.484 | P25: 107.966 | Q25: 79.976 | R25: 320.741 | S25: 433.002 | T25: 417.982
A27: 26 LA RIOJA | B27: 16174 | C27: 16289 | D27: 16200 | E27: 8295 | F27: 7444 | G27: 7110 | H27: 24469 | I27: 23733 | J27: 23310 | L27: 37.944 | M27: 46.717 | N27: 96.069 | O27: 40.646 | P27: 32.009 | Q27: 42.848 | R27: 78.596 | S27: 78.726 | T27: 138.917
A29: 22 Huesca | B29: 41136 | C29: 55769 | D29: 56123.17 | E29: 19245 | F29: 23581 | G29: 19051.95 | H29: 60381 | I29: 79350 | J29: 75175.12 | L29: 73.345 | M29: 206.401 | N29: 223.794 | O29: 98.303 | P29: 139.057 | Q29: 89.84 | R29: 171.685 | S29: 345.437 | T29: 313.633
A30: 44 Teruel | B30: 20310 | C30: 30601 | D30: 33637 | E30: 3790 | F30: 4072 | G30: 3302 | H30: 24100 | I30: 34673 | J30: 36939 | L30: 16.167 | M30: 30.387 | N30: 100.129 | O30: 11.806 | P30: 12.367 | Q30: 16.365 | R30: 27.979 | S30: 42.744 | T30: 116.494
A31: 50 Zaragoza | B31: 44615 | C31: 72048 | D31: 68211 | E31: 31499 | F31: 30988 | G31: 29195.01 | H31: 76114 | I31: 103036 | J31: 97406.01 | L31: 34.71 | M31: 89.844 | N31: 162.218 | O31: 160.33 | P31: 157.791 | Q31: 156.752 | R31: 195.06 | S31: 247.633 | T31: 318.97
A32: ARAGON | B32: 106061 | C32: 158418 | D32: 157971.17 | E32: 54534 | F32: 58641 | G32: 51548.96 | H32: 160595 | I32: 217059 | J32: 209520.13 | L32: 124.222 | M32: 326.632 | N32: 486.141 | O32: 270.439 | P32: 309.215 | Q32: 262.957 | R32: 394.724 | S32: 635.814 | T32: 749.097
A34: 08 Barcelona | B34: 13814 | C34: 21430 | D34: 20918 | E34: 720 | F34: 370 | G34: 558 | H34: 14534 | I34: 21800 | J34: 21476 | L34: 14.173 | M34: 48.26 | N34: 99.541 | O34: 3.891 | P34: 2.017 | Q34: 3.279 | R34: 18.064 | S34: 50.278 | T34: 102.82
A35: 17 Girona | B35: 8940 | C35: 10050 | D35: 9307 | E35: 2849 | F35: 2693 | G35: 4291 | H35: 11789 | I35: 12743 | J35: 13598 | L35: 20.169 | M35: 23.899 | N35: 40.927 | O35: 8.638 | P35: 9.986 | Q35: 20.563 | R35: 28.805 | S35: 33.882 | T35: 61.49
A36: 25 Lleida | B36: 31281 | C36: 41616 | D36: 32463 | E36: 18611 | F36: 20748 | G36: 15648 | H36: 49892 | I36: 62364 | J36: 48111 | L36: 18.988 | M36: 83.274 | N36: 123.359 | O36: 86.169 | P36: 123.451 | Q36: 122.053 | R36: 105.16 | S36: 206.706 | T36: 245.412
A37: 43 Tarragona | B37: 5881 | C37: 6828 | D37: 6432 | E37: 84 | F37: 56 | G37: 69 | H37: 5965 | I37: 6884 | J37: 6501 | L37: 7.457 | M37: 8.194 | N37: 27.975 | O37: 0.133 | P37: 0.12 | Q37: 0.331 | R37: 7.585 | S37: 8.314 | T37: 28.306
A38: CATALUÑA | B38: 59916 | C38: 79924 | D38: 69120 | E38: 22264 | F38: 23867 | G38: 20566 | H38: 82180 | I38: 103791 | J38: 89686 | L38: 60.787 | M38: 163.627 | N38: 291.802 | O38: 98.831 | P38: 135.574 | Q38: 146.226 | R38: 159.614 | S38: 299.18 | T38: 438.028
A40: 07 BALEARES | B40: 4218 | C40: 3733 | D40: 3707 | H40: 4218 | I40: 3733 | J40: 3707 | L40: 7.888 | M40: 5.189 | N40: 5.252 | R40: 7.887 | S40: 5.189 | T40: 5.252
A42: 05 Avila | B42: 26236 | C42: 28655 | D42: 34778 | E42: 2938 | F42: 2332 | G42: 1592 | H42: 29174 | I42: 30987 | J42: 36370 | L42: 23.927 | M42: 54.616 | N42: 124.881 | O42: 14.702 | P42: 8.37 | Q42: 8.075 | R42: 38.629 | S42: 62.998 | T42: 132.956
A43: 09 Burgos | B43: 179425 | C43: 179988 | D43: 191823.04 | E43: 6245 | F43: 5941 | G43: 6516.25 | H43: 185670 | I43: 185929 | J43: 198339.29 | L43: 473.144 | M43: 965.096 | N43: 1020.3 | O43: 31.675 | P43: 42.318 | Q43: 46.114 | R43: 504.871 | S43: 1007.404 | T43: 1066.414
A44: 24 León | B44: 29553 | C44: 24023 | D44: 34895 | E44: 15880 | F44: 12194 | G44: 17329 | H44: 45433 | I44: 36217 | J44: 52224 | L44: 36.202 | M44: 83.576 | N44: 130.854 | O44: 102.966 | P44: 79.822 | Q44: 114.312 | R44: 139.173 | S44: 163.4 | T44: 245.166
A45: 34 Palencia | B45: 95429 | C45: 97617 | D45: 113201 | E45: 21109 | F45: 22666 | G45: 23202 | H45: 116538 | I45: 120283 | J45: 136403 | L45: 241.245 | M45: 434.786 | N45: 575.627 | O45: 109.703 | P45: 141.391 | Q45: 142.907 | R45: 350.99 | S45: 576.149 | T45: 718.534
A46: 37 Salamanca | B46: 51583 | C46: 61057 | D46: 62010 | E46: 5953 | F46: 7312 | G46: 7989 | H46: 57536 | I46: 68369 | J46: 69999 | L46: 118.641 | M46: 207.594 | N46: 260.117 | O46: 35.718 | P46: 42.41 | Q46: 46.329 | R46: 154.351 | S46: 249.992 | T46: 306.446
A47: 40 Segovia | B47: 60646 | C47: 60209 | D47: 75609 | E47: 3014 | F47: 2882 | G47: 3757 | H47: 63660 | I47: 63091 | J47: 79366 | L47: 94.972 | M47: 169.247 | N47: 306.795 | O47: 9.042 | P47: 14.355 | Q47: 19.078 | R47: 103.993 | S47: 183.594 | T47: 325.874
A48: 42 Soria | B48: 88419 | C48: 83858 | D48: 101953 | E48: 4210 | F48: 3858 | G48: 4951 | H48: 92629 | I48: 87716 | J48: 106904 | L48: 84.705 | M48: 319.247 | N48: 378.551 | O48: 13.051 | P48: 19.282 | Q48: 25.732 | R48: 97.756 | S48: 338.518 | T48: 404.283
A49: 47 Valladolid | B49: 89251 | C49: 101400 | D49: 102103 | E49: 16660 | F49: 20313 | G49: 21583 | H49: 105911 | I49: 121713 | J49: 123686 | L49: 142.534 | M49: 414.625 | N49: 542.645 | O49: 81.967 | P49: 135.325 | Q49: 157.263 | R49: 224.461 | S49: 549.945 | T49: 699.908
A50: 49 Zamora | B50: 46656 | C50: 48769 | D50: 60575 | E50: 9042 | F50: 9027 | G50: 9539 | H50: 55698 | I50: 57796 | J50: 70114 | L50: 74.323 | M50: 160.352 | N50: 281.504 | O50: 40.156 | P50: 46.354 | Q50: 66.773 | R50: 114.471 | S50: 206.696 | T50: 348.277
A51: CASTILLA Y LEON | B51: 667198 | C51: 685576 | D51: 776947.04 | E51: 85051 | F51: 86525 | G51: 96458.25 | H51: 752249 | I51: 772101 | J51: 873405.29 | L51: 1289.693 | M51: 2809.139 | N51: 3621.274 | O51: 438.98 | P51: 529.627 | Q51: 626.583 | R51: 1728.695 | S51: 3338.696 | T51: 4247.858
A53: 28 MADRID | B53: 23448 | C53: 17029 | D53: 13122 | E53: 2978 | F53: 2020 | G53: 2026 | H53: 26426 | I53: 19049 | J53: 15148 | L53: 31.983 | M53: 49.418 | N53: 40.985 | O53: 12.505 | P53: 9.124 | Q53: 6.721 | R53: 44.475 | S53: 58.541 | T53: 47.706
A55: 02 Albacete | B55: 29344 | C55: 40720 | D55: 41559 | E55: 14695 | F55: 11871 | G55: 12572 | H55: 44039 | I55: 52591 | J55: 54131 | L55: 9.537 | M55: 42.145 | N55: 94.547 | O55: 103.982 | P55: 85.946 | Q55: 96.176 | R55: 113.512 | S55: 128.081 | T55: 190.723
A56: 13 Ciudad Real | B56: 35828 | C56: 41209 | D56: 39743 | E56: 9483 | F56: 7795 | G56: 8407 | H56: 45311 | I56: 49004 | J56: 48150 | L56: 17.914 | M56: 90.454 | N56: 135.015 | O56: 26.913 | P56: 40.363 | Q56: 46.151 | R56: 44.844 | S56: 130.821 | T56: 181.166
A57: 16 Cuenca | B57: 37951 | C57: 45688 | D57: 57675 | E57: 2771 | F57: 3051 | G57: 3400 | H57: 40722 | I57: 48739 | J57: 61075 | L57: 30.361 | M57: 132.358 | N57: 171.2 | O57: 11.084 | P57: 15.853 | Q57: 16.977 | R57: 41.445 | S57: 148.223 | T57: 188.177
A58: 19 Guadalajara | B58: 68096 | C58: 65952 | D58: 65952 | E58: 1904 | F58: 2037 | G58: 2037 | H58: 70000 | I58: 67989 | J58: 67989 | L58: 122.505 | M58: 230.502 | N58: 250.51 | O58: 9.497 | P58: 12.183 | Q58: 11.191 | R58: 132.021 | S58: 242.655 | T58: 261.701
A59: 45 Toledo | B59: 47587 | C59: 48552 | D59: 55205 | E59: 5287 | F59: 4070 | G59: 5728 | H59: 52874 | I59: 52622 | J59: 60933 | L59: 18.035 | M59: 121.137 | N59: 193.218 | O59: 24.775 | P59: 18.677 | Q59: 27.494 | R59: 42.808 | S59: 139.793 | T59: 220.712
A60: CASTILLA-MANCHA | B60: 218806 | C60: 242121 | D60: 260134 | E60: 34140 | F60: 28824 | G60: 32144 | H60: 252946 | I60: 270945 | J60: 292278 | L60: 198.352 | M60: 616.596 | N60: 844.49 | O60: 176.251 | P60: 173.022 | Q60: 197.989 | R60: 374.63 | S60: 789.573 | T60: 1042.479
A62: 03 Alicante | B62: 1010 | C62: 737 | D62: 1171 | E62: 402 | F62: 351 | G62: 390 | H62: 1412 | I62: 1088 | J62: 1561 | L62: 0.293 | M62: 0.205 | N62: 2.128 | O62: 1.205 | P62: 0.735 | Q62: 2.044 | R62: 1.498 | S62: 0.94 | T62: 4.172
A63: 12 Castellón | B63: 275 | C63: 579 | D63: 674 | E63: 18 | F63: 17 | G63: 17 | H63: 293 | I63: 596 | J63: 691 | L63: 0.437 | M63: 0.087 | N63: 1.445 | O63: 0.086 | P63: 0.082 | Q63: 0.082 | R63: 0.524 | S63: 0.169 | T63: 1.527
A64: 46 Valencia | B64: 1065 | C64: 1084 | D64: 2394 | E64: 247 | F64: 213 | G64: 245 | H64: 1312 | I64: 1297 | J64: 2639 | L64: 0.853 | M64: 1.072 | N64: 6.943 | O64: 0.988 | P64: 0.98 | Q64: 1.073 | R64: 1.841 | S64: 2.052 | T64: 8.016
A65: C. VALENCIANA | B65: 2350 | C65: 2400 | D65: 4239 | E65: 667 | F65: 581 | G65: 652 | H65: 3017 | I65: 2981 | J65: 4891 | L65: 1.583 | M65: 1.364 | N65: 10.516 | O65: 2.279 | P65: 1.797 | Q65: 3.199 | R65: 3.863 | S65: 3.161 | T65: 13.715
A67: 30 R. DE MURCIA | B67: 5780 | C67: 6018 | D67: 6425 | E67: 1245 | F67: 694 | G67: 602 | H67: 7025 | I67: 6712 | J67: 7027 | L67: 2.428 | M67: 2.455 | N67: 0.433 | O67: 4.296 | P67: 2.404 | Q67: 3.741 | R67: 6.726 | S67: 4.858 | T67: 4.174
A69: 06 Badajoz | B69: 48847 | C69: 65215 | D69: 64922 | E69: 19693 | F69: 11381 | G69: 11331 | H69: 68540 | I69: 76596 | J69: 76253 | L69: 53.878 | M69: 205.753 | N69: 178.386 | O69: 56.657 | P69: 46.526 | Q69: 40.79 | R69: 110.541 | S69: 252.281 | T69: 219.176
A70: 10 Cáceres | B70: 1621 | C70: 2481 | D70: 1830 | E70: 3788 | F70: 1230 | G70: 1546 | H70: 5409 | I70: 3711 | J70: 3376 | L70: 1.305 | M70: 5.245 | N70: 3.883 | O70: 7.86 | P70: 3.426 | Q70: 4.274 | R70: 9.164 | S70: 8.671 | T70: 8.157
A71: EXTREMADURA | B71: 50468 | C71: 67696 | D71: 66752 | E71: 23481 | F71: 12611 | G71: 12877 | H71: 73949 | I71: 80307 | J71: 79629 | L71: 55.183 | M71: 210.998 | N71: 182.269 | O71: 64.517 | P71: 49.952 | Q71: 45.064 | R71: 119.705 | S71: 260.952 | T71: 227.333
A73: 04 Almería | B73: 210 | C73: 52 | D73: 1626 | E73: 99 | F73: 65 | G73: 24 | H73: 309 | I73: 117 | J73: 1650 | L73: 0.017 | M73: 0.016 | N73: 4.127 | O73: 0.269 | P73: 0.083 | Q73: 0.076 | R73: 0.286 | S73: 0.099 | T73: 4.203
A74: 11 Cádiz | B74: 49303 | C74: 50651 | D74: 50215 | E74: 5984 | F74: 5748 | G74: 4522.39 | H74: 55287 | I74: 56399 | J74: 54737.39 | L74: 65.474 | M74: 145.166 | N74: 143.862 | O74: 22.44 | P74: 20.681 | Q74: 13.312 | R74: 87.909 | S74: 165.82 | T74: 157.174
A75: 14 Córdoba | B75: 52018 | C75: 50225 | D75: 48080 | E75: 10688 | F75: 9951 | G75: 8790 | H75: 62706 | I75: 60176 | J75: 56870 | L75: 58.26 | M75: 181.061 | N75: 144.24 | O75: 39.546 | P75: 35.346 | Q75: 26.37 | R75: 97.788 | S75: 216.426 | T75: 170.61
A76: 18 Granada | B76: 8510 | C76: 5289 | D76: 8854 | E76: 2074 | F76: 1418 | G76: 1492 | H76: 10584 | I76: 6707 | J76: 10346 | L76: 3.957 | M76: 11.488 | N76: 18.542 | O76: 4.44 | P76: 5.807 | Q76: 7.115 | R76: 8.393 | S76: 17.292 | T76: 25.657
A77: 21 Huelva | B77: 12770 | C77: 12710 | D77: 13085 | E77: 1402 | F77: 950 | G77: 885 | H77: 14172 | I77: 13660 | J77: 13970 | L77: 21.62 | M77: 45.324 | N77: 46.802 | O77: 2.752 | P77: 3.982 | Q77: 3.928 | R77: 24.37 | S77: 49.3 | T77: 50.73
A78: 23 Jaén | B78: 4462 | C78: 5595 | D78: 4765 | E78: 2033 | F78: 1877 | G78: 2057 | H78: 6495 | I78: 7472 | J78: 6822 | L78: 3.436 | M78: 17.445 | N78: 13.901 | O78: 2.456 | P78: 7.508 | Q78: 8.166 | R78: 5.893 | S78: 24.952 | T78: 22.067
A79: 29 Málaga | B79: 11544 | C79: 13303 | D79: 14555 | E79: 2034 | F79: 1675 | G79: 1670 | H79: 13578 | I79: 14978 | J79: 16225 | L79: 9.235 | M79: 31.901 | N79: 32.287 | O79: 6.916 | P79: 7.8 | Q79: 9.682 | R79: 16.151 | S79: 39.702 | T79: 41.969
A80: 41 Sevilla | B80: 111899 | C80: 106130 | D80: 105050 | E80: 27260 | F80: 23430 | G80: 18390 | H80: 139159 | I80: 129560 | J80: 123440 | L80: 138.083 | M80: 371.349 | N80: 357.884 | O80: 81.426 | P80: 93.369 | Q80: 73.606 | R80: 219.559 | S80: 464.734 | T80: 431.49
A81: ANDALUCIA | B81: 250716 | C81: 243955 | D81: 246230 | E81: 51574 | F81: 45114 | G81: 37830.39 | H81: 302290 | I81: 289069 | J81: 284060.39 | L81: 300.082 | M81: 803.75 | N81: 761.645 | O81: 160.245 | P81: 174.576 | Q81: 142.255 | R81: 460.349 | S81: 978.325 | T81: 903.9
A83: 35 Palmas (Las) | B83: 93 | C83: 88 | D83: 88 | F83: 1 | G83: 1 | H83: 93 | I83: 89 | J83: 89 | L83: 0.093 | M83: 0.088 | N83: 0.088 | P83: 0.001 | Q83: 0.001 | R83: 0.093 | S83: 0.089 | T83: 0.089
A84: 38 S. C. Tenerife | B84: 113 | C84: 114 | D84: 114 | E84: 24 | F84: 23 | G84: 23 | H84: 137 | I84: 137 | J84: 137 | L84: 0.109 | M84: 0.108 | N84: 0.108 | O84: 0.036 | P84: 0.035 | Q84: 0.035 | R84: 0.145 | S84: 0.143 | T84: 0.143
A85: CANARIAS | B85: 206 | C85: 202 | D85: 202 | E85: 24 | F85: 24 | G85: 24 | H85: 230 | I85: 226 | J85: 226 | L85: 0.202 | M85: 0.196 | N85: 0.196 | O85: 0.036 | P85: 0.036 | Q85: 0.036 | R85: 0.238 | S85: 0.232 | T85: 0.232
A88: ESPAÑA | B88: 2985614 | C88: 1614720 | D88: 1716712.14 | E88: 300420 | F88: 281611 | G88: 275543.93 | H88: 1793227 | I88: 1896331 | J88: 1992126.07 | L88: 2473.242 | M88: 5523.229 | N88: 6822.61 | O88: 1359.148 | P88: 1525.82 | Q88: 1558.135 | R88: 3832.51 | S88: 7048.859 | T88: 8380.744
B96: 221 | C96: 231 | E96: 221 | F96: 231 | H96: 221 | I96: 231

Sheet Tri0rno
A1: AVANCES DE SUPERFICIE Y PRODUCCIÓN
A2: TRIGO DE INVIERNO | J2: 2025 JULIO
A3: SUPERFICIE COSECHADA(*)
A4: PROVINCIAS | C4: SUPERFICIES (HA) | H4: PRODUCCIONES (1000 TM)
A5: Y
A6: CC-AA | C6: =E6-2 -> 2023 | D6: =E6-1 -> 2024 | E6: 2025 | F6: =E6 -> 2025 | H6: =J6-2 -> 2023 | I6: =J6-1 -> 2024 | J6: 2025 | K6: =J6 -> 2025
C7: DEFINITIVO | D7: DEFINITIVO | E7: PROVISIONAL | F7: =CONCATENATE(D6,"=100") -> 2024=100 | H7: DEFINITIVO | I7: DEFINITIVO | J7: PROVISIONAL | K7: =CONCATENATE(I6,"=100") -> 2024=100
A10: 15 A Coruña | C10: 986 | D10: 1016 | E10: 1872.38 | H10: 2.997 | I10: 2.336 | J10: 6.866
A11: 27 Lugo | C11: 2057 | D11: 1962 | E11: 2785.36 | H11: 5.102 | I11: 4.316 | J11: 9.427
A12: 32 Ourense | C12: 4997 | D12: 5136 | E12: 5226.63 | H12: 15.491 | I12: 15.408 | J12: 17.393
A13: 36 Pontevedra | C13: 189 | D13: 175 | E13: 334.79 | H13: 0.416 | I13: 0.394 | J13: 1.189
A14: GALICIA | C14: 8229 | D14: 8289 | E14: 10219.16 | F14: 123.2858005 | H14: 24.006 | I14: 22.454 | J14: 34.875 | K14: 155.3175381
A16: 33 P. DE ASTURIAS | E16: 61 | J16: 0.11
A18: 39 CANTABRIA | C18: 834 | D18: 848 | E18: 862 | F18: 101.6509434 | H18: 2.161 | I18: 2.131 | J18: 2.172 | K18: 101.9239794
A20: 1 Álava | C20: 19290 | D20: 19717 | E20: 17819 | H20: 106.095 | I20: 138.019 | J20: 106.914
A21: 20 Guipúzcoa | C21: 1 | D21: 1 | H21: 0.005 | I21: 0.006
A22: 48 Vizcaya
A23: PAIS VASCO | C23: 19291 | D23: 19718 | E23: 17819 | F23: 90.3692058 | H23: 106.1 | I23: 138.025 | J23: 106.914 | K23: 77.45988046
A25: 31 NAVARRA | C25: 75279 | D25: 77770 | E25: 80277.1 | F25: 103.2237367 | H25: 320.741 | I25: 433.002 | J25: 417.982 | K25: 96.53119385
A27: 26 LA RIOJA | C27: 24469 | D27: 23733 | E27: 23310 | F27: 98.2176716 | H27: 78.596 | I27: 78.726 | J27: 138.917 | K27: 176.4563168
A29: 22 Huesca | C29: 60381 | D29: 79350 | E29: 75175.12 | H29: 171.685 | I29: 345.437 | J29: 313.633
A30: 44 Teruel | C30: 24100 | D30: 34673 | E30: 36939 | H30: 27.979 | I30: 42.744 | J30: 116.494
A31: 50 Zaragoza | C31: 76114 | D31: 103036 | E31: 97406.01 | H31: 195.06 | I31: 247.633 | J31: 318.97
A32: ARAGÓN | C32: 160595 | D32: 217059 | E32: 209520.13 | F32: 96.52681068 | H32: 394.724 | I32: 635.814 | J32: 749.097 | K32: 117.8170031
A34: 8 Barcelona | C34: 14534 | D34: 21800 | E34: 21476 | H34: 18.064 | I34: 50.278 | J34: 102.82
A35: 17 Girona | C35: 11789 | D35: 12743 | E35: 13598 | H35: 28.805 | I35: 33.882 | J35: 61.49
A36: 25 Lleida | C36: 49892 | D36: 62364 | E36: 48111 | H36: 105.16 | I36: 206.706 | J36: 245.412
A37: 43 Tarragona | C37: 5965 | D37: 6884 | E37: 6501 | H37: 7.585 | I37: 8.314 | J37: 28.306
A38: CATALUÑA | C38: 82180 | D38: 103791 | E38: 89686 | F38: 86.41018971 | H38: 159.614 | I38: 299.18 | J38: 438.028 | K38: 146.4095194
A40: 7 BALEARES | C40: 4218 | D40: 3733 | E40: 3707 | F40: 99.30350924 | H40: 7.887 | I40: 5.189 | J40: 5.252 | K40: 101.2141068
A42: 5 Ávila | C42: 29174 | D42: 30987 | E42: 36370 | H42: 38.629 | I42: 62.998 | J42: 132.956
A43: 9 Burgos | C43: 185670 | D43: 185929 | E43: 198339.29 | H43: 504.871 | I43: 1007.404 | J43: 1066.414
A44: 24 León | C44: 45433 | D44: 36217 | E44: 52224 | H44: 139.173 | I44: 163.4 | J44: 245.166
A45: 34 Palencia | C45: 116538 | D45: 120283 | E45: 136403 | H45: 350.99 | I45: 576.149 | J45: 718.534
A46: 37 Salamanca | C46: 57536 | D46: 68369 | E46: 69999 | H46: 154.351 | I46: 249.992 | J46: 306.446
A47: 40 Segovia | C47: 63660 | D47: 63091 | E47: 79366 | H47: 103.993 | I47: 183.594 | J47: 325.874
A48: 42 Soria | C48: 92629 | D48: 87716 | E48: 106904 | H48: 97.756 | I48: 338.518 | J48: 404.283
A49: 47 Valladolid | C49: 105911 | D49: 121713 | E49: 123686 | H49: 224.461 | I49: 549.945 | J49: 699.908
A50: 49 Zamora | C50: 55698 | D50: 57796 | E50: 70114 | H50: 114.471 | I50: 206.696 | J50: 348.277
A51: CASTILLA Y LEÓN | C51: 752249 | D51: 772101 | E51: 873405.29 | F51: 113.1206008 | H51: 1728.695 | I51: 3338.696 | J51: 4247.858 | K51: 127.2310507
A53: 28 MADRID | C53: 26426 | D53: 19049 | E53: 15148 | F53: 79.52123471 | H53: 44.475 | I53: 58.541 | J53: 47.706 | K53: 81.49160417
A55: 2 Albacete | C55: 44039 | D55: 52591 | E55: 54131 | H55: 113.512 | I55: 128.081 | J55: 190.723
A56: 13 Ciudad Real | C56: 45311 | D56: 49004 | E56: 48150 | H56: 44.844 | I56: 130.821 | J56: 181.166
A57: 16 Cuenca | C57: 40722 | D57: 48739 | E57: 61075 | H57: 41.445 | I57: 148.223 | J57: 188.177
A58: 19 Guadalajara | C58: 70000 | D58: 67989 | E58: 67989 | H58: 132.021 | I58: 242.655 | J58: 261.701
A59: 45 Toledo | C59: 52874 | D59: 52622 | E59: 60933 | H59: 42.808 | I59: 139.793 | J59: 220.712
A60: CASTILLA-MANCHA | C60: 252946 | D60: 270945 | E60: 292278 | F60: 107.8735537 | H60: 374.63 | I60: 789.573 | J60: 1042.479 | K60: 132.0307305
A62: 3 Alicante | C62: 1412 | D62: 1088 | E62: 1561 | H62: 1.498 | I62: 0.94 | J62: 4.172
A63: 12 Castellón | C63: 293 | D63: 596 | E63: 691 | H63: 0.524 | I63: 0.169 | J63: 1.527
A64: 46 Valencia | C64: 1312 | D64: 1297 | E64: 2639 | H64: 1.841 | I64: 2.052 | J64: 8.016
A65: C. VALENCIANA | C65: 3017 | D65: 2981 | E65: 4891 | F65: 164.0724589 | H65: 3.863 | I65: 3.161 | J65: 13.715 | K65: 433.881683
A67: 30 R. DE MURCIA | C67: 7025 | D67: 6712 | E67: 7027 | F67: 104.693087 | H67: 6.726 | I67: 4.858 | J67: 4.174 | K67: 85.92013174
A69: 6 Badajoz | C69: 68540 | D69: 76596 | E69: 76253 | H69: 110.541 | I69: 252.281 | J69: 219.176
A70: 10 Cáceres | C70: 5409 | D70: 3711 | E70: 3376 | H70: 9.164 | I70: 8.671 | J70: 8.157
A71: EXTREMADURA | C71: 73949 | D71: 80307 | E71: 79629 | F71: 99.15573985 | H71: 119.705 | I71: 260.952 | J71: 227.333 | K71: 87.11678776
A73: 4 Almería | C73: 309 | D73: 117 | E73: 1650 | H73: 0.286 | I73: 0.099 | J73: 4.203
A74: 11 Cádiz | C74: 55287 | D74: 56399 | E74: 54737.39 | H74: 87.909 | I74: 165.82 | J74: 157.174
A75: 14 Córdoba | C75: 62706 | D75: 60176 | E75: 56870 | H75: 97.788 | I75: 216.426 | J75: 170.61
A76: 18 Granada | C76: 10584 | D76: 6707 | E76: 10346 | H76: 8.393 | I76: 17.292 | J76: 25.657
A77: 21 Huelva | C77: 14172 | D77: 13660 | E77: 13970 | H77: 24.37 | I77: 49.3 | J77: 50.73
A78: 23 Jaén | C78: 6495 | D78: 7472 | E78: 6822 | H78: 5.893 | I78: 24.952 | J78: 22.067
A79: 29 Málaga | C79: 13578 | D79: 14978 | E79: 16225 | H79: 16.151 | I79: 39.702 | J79: 41.969
A80: 41 Sevilla | C80: 139159 | D80: 129560 | E80: 123440 | H80: 219.559 | I80: 464.734 | J80: 431.49
A81: ANDALUCÍA | C81: 302290 | D81: 289069 | E81: 284060.39 | F81: 98.26733064 | H81: 460.349 | I81: 978.325 | J81: 903.9 | K81: 92.39260982
A83: 35 Palmas (Las) | C83: 93 | D83: 89 | E83: 89 | H83: 0.093 | I83: 0.089 | J83: 0.089
A84: 38 S. C. Tenerife | C84: 137 | D84: 137 | E84: 137 | H84: 0.145 | I84: 0.143 | J84: 0.143
A85: CANARIAS | C85: 230 | D85: 226 | E85: 226 | F85: 100 | H85: 0.238 | I85: 0.232 | J85: 0.232 | K85: 100
A88: ESPAÑA | C88: 1793227 | D88: 1896331 | E88: 1992126.07 | F88: 105.0516007 | H88: 3832.51 | I88: 7048.859 | J88: 8380.744 | K88: 118.8950439
A91: (*)Tipo de Superficie de mes/año solicitado

Sheet Tri1rno-SRT
A1: AVANCES DE SUPERFICIE Y PRODUCCIÓN
A2: TRIGO DURO DE INVIERNO S/R/T | K2: 2025 JULIO
A3: SUPERFICIE COSECHADA(*)
A4: PROVINCIAS | B4: SUPERFICIES (HA) | E4: SUPERFICIES (HA) | H4: SUPERFICIES (HA) | L4: PRODUCCIONES (1000 TM) | O4: PRODUCCIONES (1000 TM) | R4: PRODUCCIONES (1000 TM)
A5: Y | B5: SECANO | E5: REGADIO | H5: TOTAL | L5: SECANO | O5: REGADIO | R5: TOTAL
A6: CC-AA | B6: =J6-2 -> 2023 | C6: =J6-1 -> 2024 | D6: =J6 -> 2025 | E6: =J6-2 -> 2023 | F6: =J6-1 -> 2024 | G6: =J6 -> 2025 | H6: =J6-2 -> 2023 | I6: =J6-1 -> 2024 | J6: 2025 | L6: =T6-2 -> 2023 | M6: =T6-1 -> 2024 | N6: =T6 -> 2025 | O6: =T6-2 -> 2023 | P6: =T6-1 -> 2024 | Q6: =T6 -> 2025 | R6: =T6-2 -> 2023 | S6: =T6-1 -> 2024 | T6: 2025
B7: DEFINITIVO | C7: DEFINITIVO | D7: PROVISIONAL | E7: DEFINITIVO | F7: DEFINITIVO | G7: PROVISIONAL | H7: DEFINITIVO | I7: DEFINITIVO | J7: PROVISIONAL | L7: DEFINITIVO | M7: DEFINITIVO | N7: PROVISIONAL | O7: DEFINITIVO | P7: DEFINITIVO | Q7: PROVISIONAL | R7: DEFINITIVO | S7: DEFINITIVO | T7: PROVISIONAL
A10: 15 Coruña (La) | B10: 5 | C10: 8 | D10: 8 | H10: 5 | I10: 8 | J10: 8 | L10: 0.015 | M10: 0.018 | N10: 0.018 | R10: 0.015 | S10: 0.018 | T10: 0.018
A11: 27 Lugo | B11: 135 | C11: 130 | H11: 135 | I11: 130 | L11: 0.335 | M11: 0.286 | N11: 0.286 | R11: 0.335 | S11: 0.286 | T11: 0.286
A12: 32 Orense | B12: 4 | C12: 8 | D12: 8 | H12: 4 | I12: 8 | J12: 8 | L12: 0.013 | M12: 0.024 | N12: 0.024 | R12: 0.013 | S12: 0.024 | T12: 0.024
A13: 36 Pontevedra | B13: 3 | C13: 3 | D13: 3 | H13: 3 | I13: 3 | J13: 3 | L13: 0.007 | M13: 0.007 | N13: 0.007 | R13: 0.007 | S13: 0.007 | T13: 0.007
A14: GALICIA | B14: 147 | C14: 149 | D14: 19 | H14: 147 | I14: 149 | J14: 19 | L14: 0.37 | M14: 0.335 | N14: 0.335 | R14: 0.37 | S14: 0.335 | T14: 0.335
A16: 33 P. DE ASTURIAS
A18: 39 CANTABRIA
A20: 01 Alava
A21: 20 Guipúzcoa
A22: 48 Vizcaya
A23: PAIS VASCO
A25: 31 NAVARRA | B25: 125 | C25: 775 | D25: 815.94 | E25: 324 | F25: 510 | G25: 404 | H25: 449 | I25: 1285 | J25: 1219.94 | L25: 0.115 | M25: 0.851 | N25: 2.04 | O25: 1.801 | P25: 3.399 | Q25: 2.206 | R25: 1.916 | S25: 4.25 | T25: 4.246
A27: 26 LA RIOJA | B27: 21 | G27: 10 | H27: 21 | J27: 10 | L27: 0.023 | Q27: 0.045 | R27: 0.023 | T27: 0.045
A29: 22 Huesca | B29: 789 | C29: 778 | D29: 656.64 | E29: 727 | F29: 692 | G29: 450.06 | H29: 1516 | I29: 1470 | J29: 1106.7 | L29: 0.71 | M29: 1.821 | N29: 2.482 | O29: 3.868 | P29: 3.065 | Q29: 2.039 | R29: 4.578 | S29: 4.886 | T29: 4.521
A30: 44 Teruel | B30: 562 | C30: 600 | D30: 652 | E30: 58 | F30: 92 | G30: 53 | H30: 620 | I30: 692 | J30: 705 | L30: 0.373 | M30: 0.315 | N30: 1.174 | O30: 0.145 | P30: 0.221 | Q30: 0.12 | R30: 0.518 | S30: 0.536 | T30: 1.294
A31: 50 Zaragoza | B31: 20776 | C31: 30873 | D31: 27697.5 | E31: 14891 | F31: 13101 | G31: 13336.11 | H31: 35667 | I31: 43974 | J31: 41033.61 | L31: 16.309 | M31: 31.182 | N31: 60.934 | O31: 75.646 | P31: 66.553 | Q31: 60.012 | R31: 91.955 | S31: 97.735 | T31: 120.947
A32: ARAGON | B32: 22127 | C32: 32251 | D32: 29006.14 | E32: 15676 | F32: 13885 | G32: 13839.17 | H32: 37803 | I32: 46136 | J32: 42845.31 | L32: 17.392 | M32: 33.318 | N32: 64.59 | O32: 79.659 | P32: 69.839 | Q32: 62.171 | R32: 97.051 | S32: 103.157 | T32: 126.762
A34: 08 Barcelona | B34: 8 | C34: 11 | D34: 36 | G34: 2 | H34: 8 | I34: 11 | J34: 38 | L34: 0.008 | M34: 0.025 | N34: 0.174 | Q34: 0.014 | R34: 0.008 | S34: 0.025 | T34: 0.188
A35: 17 Girona | B35: 14 | C35: 8 | D35: 16 | E35: 9 | F35: 12 | G35: 14 | H35: 23 | I35: 20 | J35: 30 | L35: 0.019 | M35: 0.015 | N35: 0.064 | O35: 0.032 | P35: 0.035 | Q35: 0.06 | R35: 0.051 | S35: 0.05 | T35: 0.124
A36: 25 Lleida | B36: 108 | C36: 28 | D36: 23 | E36: 58 | F36: 30 | G36: 18 | H36: 166 | I36: 58 | J36: 41 | L36: 0.035 | M36: 0.047 | N36: 0.087 | O36: 0.253 | P36: 0.148 | Q36: 0.139 | R36: 0.288 | S36: 0.195 | T36: 0.226
A37: 43 Tarragona | B37: 6 | C37: 7 | D37: 13 | F37: 1 | G37: 1 | H37: 6 | I37: 8 | J37: 14 | L37: 0.003 | M37: 0.003 | N37: 0.032 | P37: 0.004 | Q37: 0.005 | R37: 0.003 | S37: 0.007 | T37: 0.037
A38: CATALUÑA | B38: 136 | C38: 54 | D38: 88 | E38: 67 | F38: 43 | G38: 35 | H38: 203 | I38: 97 | J38: 123 | L38: 0.065 | M38: 0.09 | N38: 0.357 | O38: 0.285 | P38: 0.187 | Q38: 0.218 | R38: 0.35 | S38: 0.277 | T38: 0.575
A40: 07 BALEARES | B40: 6 | C40: 39 | D40: 37 | H40: 6 | I40: 39 | J40: 37 | L40: 0.011 | M40: 0.054 | N40: 0.052 | R40: 0.011 | S40: 0.054 | T40: 0.052
A42: 05 Avila | B42: 13 | C42: 17 | D42: 33 | H42: 13 | I42: 17 | J42: 33 | L42: 0.012 | M42: 0.015 | N42: 0.077 | R42: 0.012 | S42: 0.015 | T42: 0.077
A43: 09 Burgos | B43: 256 | C43: 329 | D43: 300.97 | E43: 112 | F43: 117 | G43: 55.79 | H43: 368 | I43: 446 | J43: 356.76 | L43: 0.548 | M43: 1.394 | N43: 1.239 | O43: 0.527 | P43: 0.759 | Q43: 0.363 | R43: 1.074 | S43: 2.153 | T43: 1.602
A44: 24 León | B44: 8 | C44: 2 | D44: 3 | E44: 19 | F44: 9 | G44: 23 | H44: 27 | I44: 11 | J44: 26 | L44: 0.008 | M44: 0.006 | N44: 0.009 | O44: 0.114 | P44: 0.05 | Q44: 0.092 | R44: 0.122 | S44: 0.056 | T44: 0.101
A45: 34 Palencia | B45: 50 | C45: 25 | D45: 5 | E45: 43 | F45: 5 | G45: 15 | H45: 93 | I45: 30 | J45: 20 | L45: 0.07 | M45: 0.082 | N45: 0.025 | O45: 0.163 | P45: 0.033 | Q45: 0.075 | R45: 0.233 | S45: 0.115 | T45: 0.1
A46: 37 Salamanca | B46: 56 | C46: 54 | D46: 25 | E46: 5 | F46: 1 | G46: 11 | H46: 61 | I46: 55 | J46: 36 | L46: 0.123 | M46: 0.173 | N46: 0.09 | O46: 0.028 | P46: 0.005 | Q46: 0.057 | R46: 0.151 | S46: 0.178 | T46: 0.147
A47: 40 Segovia | B47: 39 | C47: 52 | D47: 43 | E47: 17 | F47: 9 | G47: 9 | H47: 56 | I47: 61 | J47: 52 | L47: 0.04 | M47: 0.136 | N47: 0.148 | O47: 0.051 | P47: 0.032 | Q47: 0.032 | R47: 0.091 | S47: 0.168 | T47: 0.18
A48: 42 Soria | B48: 3 | C48: 15 | D48: 1 | F48: 23 | G48: 23 | H48: 3 | I48: 38 | J48: 24 | L48: 0.002 | M48: 0.047 | N48: 0.003 | P48: 0.106 | Q48: 0.106 | R48: 0.002 | S48: 0.153 | T48: 0.109
A49: 47 Valladolid | B49: 127 | C49: 17 | D49: 27 | E49: 169 | F49: 188 | G49: 62 | H49: 296 | I49: 205 | J49: 89 | L49: 0.169 | M49: 0.066 | N49: 0.127 | O49: 0.727 | P49: 0.949 | Q49: 0.427 | R49: 0.895 | S49: 1.015 | T49: 0.554
A50: 49 Zamora | B50: 29 | C50: 32 | D50: 42 | E50: 27 | F50: 7 | G50: 5 | H50: 56 | I50: 39 | J50: 47 | L50: 0.039 | M50: 0.098 | N50: 0.147 | O50: 0.12 | P50: 0.033 | Q50: 0.035 | R50: 0.159 | S50: 0.131 | T50: 0.182
A51: CASTILLA Y LEON | B51: 581 | C51: 543 | D51: 479.97 | E51: 392 | F51: 359 | G51: 203.79 | H51: 973 | I51: 902 | J51: 683.76 | L51: 1.011 | M51: 2.017 | N51: 1.865 | O51: 1.73 | P51: 1.967 | Q51: 1.187 | R51: 2.739 | S51: 3.984 | T51: 3.052
A53: 28 MADRID | B53: 24 | C53: 69 | D53: 18 | E53: 249 | F53: 127 | G53: 76 | H53: 273 | I53: 196 | J53: 94 | L53: 0.021 | M53: 0.079 | N53: 0.053 | O53: 0.395 | P53: 0.508 | Q53: 0.401 | R53: 0.416 | S53: 0.587 | T53: 0.454
A55: 02 Albacete | B55: 44 | C55: 220 | D55: 162 | E55: 1790 | F55: 1221 | G55: 619 | H55: 1834 | I55: 1441 | J55: 781 | L55: 0.013 | M55: 0.22 | N55: 0.36 | O55: 12.351 | P55: 8.73 | Q55: 4.7 | R55: 12.364 | S55: 8.95 | T55: 5.06
A56: 13 Ciudad Real | B56: 139 | C56: 73 | D56: 93 | E56: 254 | F56: 141 | G56: 97 | H56: 393 | I56: 214 | J56: 190 | L56: 0.085 | M56: 0.08 | N56: 0.205 | O56: 0.749 | P56: 0.564 | Q56: 0.446 | R56: 0.835 | S56: 0.644 | T56: 0.651
A57: 16 Cuenca | B57: 275 | C57: 315 | D57: 366 | E57: 101 | F57: 62 | G57: 80 | H57: 376 | I57: 377 | J57: 446 | L57: 0.22 | M57: 0.788 | N57: 1.06 | O57: 0.404 | P57: 0.31 | Q57: 0.377 | R57: 0.624 | S57: 1.098 | T57: 1.437
A58: 19 Guadalajara | B58: 162 | C58: 180 | D58: 180 | E58: 47 | F58: 26 | G58: 26 | H58: 209 | I58: 206 | J58: 206 | L58: 0.243 | M58: 0.27 | N58: 0.576 | O58: 0.212 | P58: 0.117 | Q58: 0.13 | R58: 0.455 | S58: 0.387 | T58: 0.706
A59: 45 Toledo | B59: 1188 | C59: 877 | D59: 900 | E59: 152 | F59: 115 | G59: 154 | H59: 1340 | I59: 992 | J59: 1054 | L59: 0.404 | M59: 1.929 | N59: 3.15 | O59: 0.638 | P59: 0.483 | Q59: 0.739 | R59: 1.042 | S59: 2.412 | T59: 3.889
A60: CASTILLA-MANCHA | B60: 1808 | C60: 1665 | D60: 1701 | E60: 2344 | F60: 1565 | G60: 976 | H60: 4152 | I60: 3230 | J60: 2677 | L60: 0.965 | M60: 3.287 | N60: 5.351 | O60: 14.354 | P60: 10.204 | Q60: 6.392 | R60: 15.32 | S60: 13.491 | T60: 11.743
A62: 03 Alicante | B62: 55 | C62: 65 | D62: 78 | E62: 69 | F62: 40 | G62: 25 | H62: 124 | I62: 105 | J62: 103 | L62: 0.016 | M62: 0.017 | N62: 0.165 | O62: 0.194 | P62: 0.082 | Q62: 0.068 | R62: 0.209 | S62: 0.099 | T62: 0.233
A63: 12 Castellón | B63: 6 | C63: 24 | D63: 24 | H63: 6 | I63: 24 | J63: 24 | L63: 0.01 | M63: 0.003 | N63: 0.047 | R63: 0.01 | S63: 0.003 | T63: 0.047
A64: 46 Valencia | B64: 27 | C64: 12 | D64: 57 | E64: 1 | F64: 1 | G64: 1 | H64: 28 | I64: 13 | J64: 58 | L64: 0.023 | M64: 0.012 | N64: 0.165 | O64: 0.005 | P64: 0.005 | Q64: 0.004 | R64: 0.027 | S64: 0.017 | T64: 0.169
A65: C. VALENCIANA | B65: 88 | C65: 101 | D65: 159 | E65: 70 | F65: 41 | G65: 26 | H65: 158 | I65: 142 | J65: 185 | L65: 0.049 | M65: 0.032 | N65: 0.377 | O65: 0.199 | P65: 0.087 | Q65: 0.072 | R65: 0.246 | S65: 0.119 | T65: 0.449
A67: 30 R. DE MURCIA | B67: 180 | C67: 82 | D67: 101 | E67: 35 | F67: 95 | G67: 76 | H67: 215 | I67: 177 | J67: 177 | L67: 0.043 | M67: 0.019 | N67: 0.023 | O67: 0.114 | P67: 0.314 | Q67: 0.251 | R67: 0.157 | S67: 0.333 | T67: 0.274
A69: 06 Badajoz | B69: 2429 | C69: 2316 | D69: 2825 | E69: 960 | F69: 763 | G69: 759 | H69: 3389 | I69: 3079 | J69: 3584 | L69: 2.786 | M69: 6.557 | N69: 10.227 | O69: 2.866 | P69: 2.809 | Q69: 3.572 | R69: 5.652 | S69: 9.366 | T69: 13.799
A70: 10 Cáceres | B70: 192 | C70: 175 | E70: 31 | F70: 15 | G70: 17 | H70: 223 | I70: 190 | J70: 17 | L70: 0.169 | M70: 0.291 | O70: 0.071 | P70: 0.032 | Q70: 0.056 | R70: 0.24 | S70: 0.324 | T70: 0.056
A71: EXTREMADURA | B71: 2621 | C71: 2491 | D71: 2825 | E71: 991 | F71: 778 | G71: 776 | H71: 3612 | I71: 3269 | J71: 3601 | L71: 2.955 | M71: 6.848 | N71: 10.227 | O71: 2.937 | P71: 2.841 | Q71: 3.628 | R71: 5.892 | S71: 9.69 | T71: 13.855
A73: 04 Almería | B73: 10 | D73: 72 | E73: 8 | G73: 4 | H73: 18 | J73: 76 | L73: 0.001 | N73: 0.143 | O73: 0.009 | Q73: 0.012 | R73: 0.009 | T73: 0.155
A74: 11 Cádiz | B74: 39003 | C74: 41678 | D74: 37999 | E74: 4724 | F74: 4121 | G74: 3185.42 | H74: 43727 | I74: 45799 | J74: 41184.42 | L74: 52.849 | M74: 129.285 | N74: 94.998 | O74: 20.786 | P74: 14.222 | Q74: 7.964 | R74: 73.635 | S74: 143.507 | T74: 102.962
A75: 14 Córdoba | B75: 31120 | C75: 29065 | D75: 27750 | E75: 8740 | F75: 7873 | G75: 6400 | H75: 39860 | I75: 36938 | J75: 34150 | L75: 37.344 | M75: 101.728 | N75: 83.25 | O75: 32.338 | P75: 27.556 | Q75: 19.2 | R75: 69.682 | S75: 129.283 | T75: 102.45
A76: 18 Granada | B76: 1198 | C76: 847 | D76: 1344 | E76: 980 | F76: 675 | G76: 645 | H76: 2178 | I76: 1522 | J76: 1989 | L76: 0.655 | M76: 1.682 | N76: 3.099 | O76: 2.299 | P76: 3.302 | Q76: 3.077 | R76: 2.954 | S76: 4.984 | T76: 6.176
A77: 21 Huelva | B77: 9120 | C77: 8550 | D77: 8980 | E77: 902 | F77: 610 | G77: 610 | H77: 10022 | I77: 9160 | J77: 9590 | L77: 15.048 | M77: 29.925 | N77: 31.779 | O77: 1.672 | P77: 2.655 | Q77: 2.745 | R77: 16.72 | S77: 32.58 | T77: 34.524
A78: 23 Jaén | B78: 2640 | C78: 3293 | D78: 2796 | E78: 1883 | F78: 1675 | G78: 1901 | H78: 4523 | I78: 4968 | J78: 4697 | L78: 1.98 | M78: 10.538 | N78: 8.388 | O78: 2.26 | P78: 6.7 | Q78: 7.604 | R78: 4.24 | S78: 17.238 | T78: 15.992
A79: 29 Málaga | B79: 8255 | C79: 8844 | D79: 9123 | E79: 1657 | F79: 1362 | G79: 1281 | H79: 9912 | I79: 10206 | J79: 10404 | L79: 6.604 | M79: 22.11 | N79: 18.164 | O79: 5.634 | P79: 6.47 | Q79: 7.776 | R79: 12.238 | S79: 28.58 | T79: 25.94
A80: 41 Sevilla | B80: 61794 | C80: 53480 | D80: 50740 | E80: 14483 | F80: 12610 | G80: 9080 | H80: 76277 | I80: 66090 | J80: 59820 | L80: 67.973 | M80: 181.832 | N80: 162.368 | O80: 40.552 | P80: 47.918 | Q80: 34.504 | R80: 108.526 | S80: 229.75 | T80: 196.872
A81: ANDALUCIA | B81: 153140 | C81: 145757 | D81: 138804 | E81: 33377 | F81: 28926 | G81: 23106.42 | H81: 186517 | I81: 174683 | J81: 161910.42 | L81: 182.454 | M81: 477.1 | N81: 402.189 | O81: 105.55 | P81: 108.823 | Q81: 82.882 | R81: 288.004 | S81: 585.922 | T81: 485.071
A83: 35 Palmas (Las)
A84: 38 S. C. Tenerife
A85: CANARIAS
A88: ESPAÑA | B88: 362008 | C88: 183976 | D88: 174054.05 | E88: 53525 | F88: 46329 | G88: 39528.38 | H88: 234529 | I88: 230305 | J88: 213582.43 | L88: 205.474 | M88: 524.03 | N88: 487.459 | O88: 207.024 | P88: 198.169 | Q88: 159.453 | R88: 412.495 | S88: 722.199 | T88: 646.913
B96: 221 | C96: 231 | E96: 221 | F96: 231 | H96: 221 | I96: 231

Sheet Tri1rno
A1: AVANCES DE SUPERFICIE Y PRODUCCIÓN
A2: TRIGO DURO DE INVIERNO | J2: 2025 JULIO
A3: SUPERFICIE COSECHADA(*)
A4: PROVINCIAS | C4: SUPERFICIES (HA) | H4: PRODUCCIONES (1000 TM)
A5: Y
A6: CC-AA | C6: =E6-2 -> 2023 | D6: =E6-1 -> 2024 | E6: 2025 | F6: =E6 -> 2025 | H6: =J6-2 -> 2023 | I6: =J6-1 -> 2024 | J6: 2025 | K6: =J6 -> 2025
C7: DEFINITIVO | D7: DEFINITIVO | E7: PROVISIONAL | F7: =CONCATENATE(D6,"=100") -> 2024=100 | H7: DEFINITIVO | I7: DEFINITIVO | J7: PROVISIONAL | K7: =CONCATENATE(I6,"=100") -> 2024=100
A10: 15 A Coruña | C10: 5 | D10: 8 | E10: 8 | H10: 0.015 | I10: 0.018 | J10: 0.018
A11: 27 Lugo | C11: 135 | D11: 130 | H11: 0.335 | I11: 0.286 | J11: 0.286
A12: 32 Ourense | C12: 4 | D12: 8 | E12: 8 | H12: 0.013 | I12: 0.024 | J12: 0.024
A13: 36 Pontevedra | C13: 3 | D13: 3 | E13: 3 | H13: 0.007 | I13: 0.007 | J13: 0.007
A14: GALICIA | C14: 147 | D14: 149 | E14: 19 | F14: 12.75167785 | H14: 0.37 | I14: 0.335 | J14: 0.335 | K14: 100
A16: 33 P. DE ASTURIAS
A18: 39 CANTABRIA
A20: 1 Álava
A21: 20 Guipúzcoa
A22: 48 Vizcaya
A23: PAIS VASCO
A25: 31 NAVARRA | C25: 449 | D25: 1285 | E25: 1219.94 | F25: 94.93696498 | H25: 1.916 | I25: 4.25 | J25: 4.246 | K25: 99.90588235
A27: 26 LA RIOJA | C27: 21 | E27: 10 | H27: 0.023 | J27: 0.045
A29: 22 Huesca | C29: 1516 | D29: 1470 | E29: 1106.7 | H29: 4.578 | I29: 4.886 | J29: 4.521
A30: 44 Teruel | C30: 620 | D30: 692 | E30: 705 | H30: 0.518 | I30: 0.536 | J30: 1.294
A31: 50 Zaragoza | C31: 35667 | D31: 43974 | E31: 41033.61 | H31: 91.955 | I31: 97.735 | J31: 120.947
A32: ARAGÓN | C32: 37803 | D32: 46136 | E32: 42845.31 | F32: 92.86741373 | H32: 97.051 | I32: 103.157 | J32: 126.762 | K32: 122.8825964
A34: 8 Barcelona | C34: 8 | D34: 11 | E34: 38 | H34: 0.008 | I34: 0.025 | J34: 0.188
A35: 17 Girona | C35: 23 | D35: 20 | E35: 30 | H35: 0.051 | I35: 0.05 | J35: 0.124
A36: 25 Lleida | C36: 166 | D36: 58 | E36: 41 | H36: 0.288 | I36: 0.195 | J36: 0.226
A37: 43 Tarragona | C37: 6 | D37: 8 | E37: 14 | H37: 0.003 | I37: 0.007 | J37: 0.037
A38: CATALUÑA | C38: 203 | D38: 97 | E38: 123 | F38: 126.8041237 | H38: 0.35 | I38: 0.277 | J38: 0.575 | K38: 207.5812274
A40: 7 BALEARES | C40: 6 | D40: 39 | E40: 37 | F40: 94.87179487 | H40: 0.011 | I40: 0.054 | J40: 0.052 | K40: 96.2962963
A42: 5 Ávila | C42: 13 | D42: 17 | E42: 33 | H42: 0.012 | I42: 0.015 | J42: 0.077
A43: 9 Burgos | C43: 368 | D43: 446 | E43: 356.76 | H43: 1.074 | I43: 2.153 | J43: 1.602
A44: 24 León | C44: 27 | D44: 11 | E44: 26 | H44: 0.122 | I44: 0.056 | J44: 0.101
A45: 34 Palencia | C45: 93 | D45: 30 | E45: 20 | H45: 0.233 | I45: 0.115 | J45: 0.1
A46: 37 Salamanca | C46: 61 | D46: 55 | E46: 36 | H46: 0.151 | I46: 0.178 | J46: 0.147
A47: 40 Segovia | C47: 56 | D47: 61 | E47: 52 | H47: 0.091 | I47: 0.168 | J47: 0.18
A48: 42 Soria | C48: 3 | D48: 38 | E48: 24 | H48: 0.002 | I48: 0.153 | J48: 0.109
A49: 47 Valladolid | C49: 296 | D49: 205 | E49: 89 | H49: 0.895 | I49: 1.015 | J49: 0.554
A50: 49 Zamora | C50: 56 | D50: 39 | E50: 47 | H50: 0.159 | I50: 0.131 | J50: 0.182
A51: CASTILLA Y LEÓN | C51: 973 | D51: 902 | E51: 683.76 | F51: 75.80487805 | H51: 2.739 | I51: 3.984 | J51: 3.052 | K51: 76.6064257
A53: 28 MADRID | C53: 273 | D53: 196 | E53: 94 | F53: 47.95918367 | H53: 0.416 | I53: 0.587 | J53: 0.454 | K53: 77.34241908
A55: 2 Albacete | C55: 1834 | D55: 1441 | E55: 781 | H55: 12.364 | I55: 8.95 | J55: 5.06
A56: 13 Ciudad Real | C56: 393 | D56: 214 | E56: 190 | H56: 0.835 | I56: 0.644 | J56: 0.651
A57: 16 Cuenca | C57: 376 | D57: 377 | E57: 446 | H57: 0.624 | I57: 1.098 | J57: 1.437
A58: 19 Guadalajara | C58: 209 | D58: 206 | E58: 206 | H58: 0.455 | I58: 0.387 | J58: 0.706
A59: 45 Toledo | C59: 1340 | D59: 992 | E59: 1054 | H59: 1.042 | I59: 2.412 | J59: 3.889
A60: CASTILLA-MANCHA | C60: 4152 | D60: 3230 | E60: 2677 | F60: 82.87925697 | H60: 15.32 | I60: 13.491 | J60: 11.743 | K60: 87.04321399
A62: 3 Alicante | C62: 124 | D62: 105 | E62: 103 | H62: 0.209 | I62: 0.099 | J62: 0.233
A63: 12 Castellón | C63: 6 | D63: 24 | E63: 24 | H63: 0.01 | I63: 0.003 | J63: 0.047
A64: 46 Valencia | C64: 28 | D64: 13 | E64: 58 | H64: 0.027 | I64: 0.017 | J64: 0.169
A65: C. VALENCIANA | C65: 158 | D65: 142 | E65: 185 | F65: 130.2816901 | H65: 0.246 | I65: 0.119 | J65: 0.449 | K65: 377.3109244
A67: 30 R. DE MURCIA | C67: 215 | D67: 177 | E67: 177 | F67: 100 | H67: 0.157 | I67: 0.333 | J67: 0.274 | K67: 82.28228228
A69: 6 Badajoz | C69: 3389 | D69: 3079 | E69: 3584 | H69: 5.652 | I69: 9.366 | J69: 13.799
A70: 10 Cáceres | C70: 223 | D70: 190 | E70: 17 | H70: 0.24 | I70: 0.324 | J70: 0.056
A71: EXTREMADURA | C71: 3612 | D71: 3269 | E71: 3601 | F71: 110.156011 | H71: 5.892 | I71: 9.69 | J71: 13.855 | K71: 142.9824561
A73: 4 Almería | C73: 18 | E73: 76 | H73: 0.009 | J73: 0.155
A74: 11 Cádiz | C74: 43727 | D74: 45799 | E74: 41184.42 | H74: 73.635 | I74: 143.507 | J74: 102.962
A75: 14 Córdoba | C75: 39860 | D75: 36938 | E75: 34150 | H75: 69.682 | I75: 129.283 | J75: 102.45
A76: 18 Granada | C76: 2178 | D76: 1522 | E76: 1989 | H76: 2.954 | I76: 4.984 | J76: 6.176
A77: 21 Huelva | C77: 10022 | D77: 9160 | E77: 9590 | H77: 16.72 | I77: 32.58 | J77: 34.524
A78: 23 Jaén | C78: 4523 | D78: 4968 | E78: 4697 | H78: 4.24 | I78: 17.238 | J78: 15.992
A79: 29 Málaga | C79: 9912 | D79: 10206 | E79: 10404 | H79: 12.238 | I79: 28.58 | J79: 25.94
A80: 41 Sevilla | C80: 76277 | D80: 66090 | E80: 59820 | H80: 108.526 | I80: 229.75 | J80: 196.872
A81: ANDALUCÍA | C81: 186517 | D81: 174683 | E81: 161910.42 | F81: 92.68813794 | H81: 288.004 | I81: 585.922 | J81: 485.071 | K81: 82.78764068
A83: 35 Palmas (Las)
A84: 38 S. C. Tenerife
A85: CANARIAS
A88: ESPAÑA | C88: 234529 | D88: 230305 | E88: 213582.43 | F88: 92.73894618 | H88: 412.495 | I88: 722.199 | J88: 646.913 | K88: 89.57544943
A91: (*)Tipo de Superficie de mes/año solicitado

Sheet Tri2rno-SRT
A1: AVANCES DE SUPERFICIE Y PRODUCCIÓN
A2: TRIGO BLANDO Y SEMI DE INVIERNO S/R/T | K2: 2025 JULIO
A3: SUPERFICIE COSECHADA(*)
A4: PROVINCIAS | B4: SUPERFICIES (HA) | E4: SUPERFICIES (HA) | H4: SUPERFICIES (HA) | L4: PRODUCCIONES (1000 TM) | O4: PRODUCCIONES (1000 TM) | R4: PRODUCCIONES (1000 TM)
A5: Y | B5: SECANO | E5: REGADIO | H5: TOTAL | L5: SECANO | O5: REGADIO | R5: TOTAL
A6: CC-AA | B6: =J6-2 -> 2023 | C6: =J6-1 -> 2024 | D6: =J6 -> 2025 | E6: =J6-2 -> 2023 | F6: =J6-1 -> 2024 | G6: =J6 -> 2025 | H6: =J6-2 -> 2023 | I6: =J6-1 -> 2024 | J6: 2025 | L6: =T6-2 -> 2023 | M6: =T6-1 -> 2024 | N6: =T6 -> 2025 | O6: =T6-2 -> 2023 | P6: =T6-1 -> 2024 | Q6: =T6 -> 2025 | R6: =T6-2 -> 2023 | S6: =T6-1 -> 2024 | T6: 2025
B7: DEFINITIVO | C7: DEFINITIVO | D7: PROVISIONAL | E7: DEFINITIVO | F7: DEFINITIVO | G7: PROVISIONAL | H7: DEFINITIVO | I7: DEFINITIVO | J7: PROVISIONAL | L7: DEFINITIVO | M7: DEFINITIVO | N7: PROVISIONAL | O7: DEFINITIVO | P7: DEFINITIVO | Q7: PROVISIONAL | R7: DEFINITIVO | S7: DEFINITIVO | T7: PROVISIONAL
A10: 15 Coruña (La) | B10: 981 | C10: 1008 | D10: 1872.38 | H10: 981 | I10: 1008 | J10: 1872.38 | L10: 2.982 | M10: 2.318 | N10: 6.866 | R10: 2.982 | S10: 2.318 | T10: 6.866
A11: 27 Lugo | B11: 1922 | C11: 1832 | D11: 2785.36 | H11: 1922 | I11: 1832 | J11: 2785.36 | L11: 4.767 | M11: 4.03 | N11: 9.141 | R11: 4.767 | S11: 4.03 | T11: 9.141
A12: 32 Orense | B12: 4993 | C12: 5128 | D12: 5218.63 | H12: 4993 | I12: 5128 | J12: 5218.63 | L12: 15.478 | M12: 15.384 | N12: 17.369 | R12: 15.478 | S12: 15.384 | T12: 17.369
A13: 36 Pontevedra | B13: 186 | C13: 172 | D13: 331.79 | H13: 186 | I13: 172 | J13: 331.79 | L13: 0.409 | M13: 0.387 | N13: 1.182 | R13: 0.409 | S13: 0.387 | T13: 1.182
A14: GALICIA | B14: 8082 | C14: 8140 | D14: 10208.16 | H14: 8082 | I14: 8140 | J14: 10208.16 | L14: 23.636 | M14: 22.119 | N14: 34.558 | R14: 23.636 | S14: 22.119 | T14: 34.558
A16: 33 P. DE ASTURIAS | D16: 61 | J16: 61 | N16: 0.11 | T16: 0.11
A18: 39 CANTABRIA | B18: 692 | C18: 733 | D18: 742 | E18: 142 | F18: 115 | G18: 120 | H18: 834 | I18: 848 | J18: 862 | L18: 1.522 | M18: 1.613 | N18: 1.632 | O18: 0.639 | P18: 0.518 | Q18: 0.54 | R18: 2.161 | S18: 2.131 | T18: 2.172
A20: 01 Alava | B20: 19290 | C20: 19717 | D20: 17819 | H20: 19290 | I20: 19717 | J20: 17819 | L20: 106.095 | M20: 138.019 | N20: 106.914 | R20: 106.095 | S20: 138.019 | T20: 106.914
A21: 20 Guipúzcoa | B21: 1 | C21: 1 | H21: 1 | I21: 1 | L21: 0.005 | M21: 0.006 | R21: 0.005 | S21: 0.006
A22: 48 Vizcaya
A23: PAIS VASCO | B23: 19291 | C23: 19718 | D23: 17819 | H23: 19291 | I23: 19718 | J23: 17819 | L23: 106.1 | M23: 138.025 | N23: 106.914 | R23: 106.1 | S23: 138.025 | T23: 106.914
A25: 31 NAVARRA | B25: 59129 | C25: 61844 | D25: 65875.83 | E25: 15701 | F25: 14641 | G25: 13181.33 | H25: 74830 | I25: 76485 | J25: 79057.16 | L25: 231.135 | M25: 324.186 | N25: 335.967 | O25: 87.69 | P25: 104.566 | Q25: 77.77 | R25: 318.825 | S25: 428.752 | T25: 413.737
A27: 26 LA RIOJA | B27: 16153 | C27: 16289 | D27: 16200 | E27: 8295 | F27: 7444 | G27: 7100 | H27: 24448 | I27: 23733 | J27: 23300 | L27: 37.927 | M27: 46.717 | N27: 96.069 | O27: 40.646 | P27: 32.009 | Q27: 42.848 | R27: 78.573 | S27: 78.726 | T27: 138.917
A29: 22 Huesca | B29: 40347 | C29: 54991 | D29: 55466.53 | E29: 18518 | F29: 22889 | G29: 18601.89 | H29: 58865 | I29: 77880 | J29: 74068.42 | L29: 72.665 | M29: 204.567 | N29: 221.311 | O29: 94.442 | P29: 135.984 | Q29: 87.801 | R29: 167.107 | S29: 340.551 | T29: 309.112
A30: 44 Teruel | B30: 19748 | C30: 30001 | D30: 32985 | E30: 3732 | F30: 3980 | G30: 3249 | H30: 23480 | I30: 33981 | J30: 36234 | L30: 15.798 | M30: 30.061 | N30: 98.955 | O30: 11.663 | P30: 12.147 | Q30: 16.245 | R30: 27.461 | S30: 42.208 | T30: 115.2
A31: 50 Zaragoza | B31: 23839 | C31: 41175 | D31: 40513.5 | E31: 16608 | F31: 17887 | G31: 15858.9 | H31: 40447 | I31: 59062 | J31: 56372.4 | L31: 18.404 | M31: 58.674 | N31: 101.284 | O31: 84.701 | P31: 91.224 | Q31: 96.739 | R31: 103.105 | S31: 149.898 | T31: 198.023
A32: ARAGON | B32: 83934 | C32: 126167 | D32: 128965.03 | E32: 38858 | F32: 44756 | G32: 37709.79 | H32: 122792 | I32: 170923 | J32: 166674.82 | L32: 106.867 | M32: 293.302 | N32: 421.55 | O32: 190.806 | P32: 239.355 | Q32: 200.785 | R32: 297.673 | S32: 532.657 | T32: 622.335
A34: 08 Barcelona | B34: 13806 | C34: 21419 | D34: 20882 | E34: 720 | F34: 370 | G34: 556 | H34: 14526 | I34: 21789 | J34: 21438 | L34: 14.165 | M34: 48.236 | N34: 99.367 | O34: 3.891 | P34: 2.017 | Q34: 3.265 | R34: 18.056 | S34: 50.253 | T34: 102.632
A35: 17 Girona | B35: 8926 | C35: 10042 | D35: 9291 | E35: 2840 | F35: 2681 | G35: 4277 | H35: 11766 | I35: 12723 | J35: 13568 | L35: 20.146 | M35: 23.88 | N35: 40.863 | O35: 8.608 | P35: 9.952 | Q35: 20.503 | R35: 28.754 | S35: 33.832 | T35: 61.366
A36: 25 Lleida | B36: 31173 | C36: 41588 | D36: 32440 | E36: 18553 | F36: 20718 | G36: 15630 | H36: 49726 | I36: 62306 | J36: 48070 | L36: 18.953 | M36: 83.218 | N36: 123.272 | O36: 85.919 | P36: 123.293 | Q36: 121.914 | R36: 104.872 | S36: 206.511 | T36: 245.186
A37: 43 Tarragona | B37: 5875 | C37: 6821 | D37: 6418 | E37: 84 | F37: 55 | G37: 68 | H37: 5959 | I37: 6876 | J37: 6486 | L37: 7.45 | M37: 8.192 | N37: 27.943 | O37: 0.133 | P37: 0.115 | Q37: 0.326 | R37: 7.582 | S37: 8.307 | T37: 28.269
A38: CATALUÑA | B38: 59780 | C38: 79870 | D38: 69031 | E38: 22197 | F38: 23824 | G38: 20531 | H38: 81977 | I38: 103694 | J38: 89562 | L38: 60.714 | M38: 163.526 | N38: 291.445 | O38: 98.551 | P38: 135.377 | Q38: 146.008 | R38: 159.264 | S38: 298.903 | T38: 437.453
A40: 07 BALEARES | B40: 4212 | C40: 3694 | D40: 3670 | H40: 4212 | I40: 3694 | J40: 3670 | L40: 7.876 | M40: 5.135 | N40: 5.2 | R40: 7.876 | S40: 5.135 | T40: 5.2
A42: 05 Avila | B42: 26223 | C42: 28638 | D42: 34745 | E42: 2938 | F42: 2332 | G42: 1592 | H42: 29161 | I42: 30970 | J42: 36337 | L42: 23.915 | M42: 54.613 | N42: 124.804 | O42: 14.702 | P42: 8.37 | Q42: 8.075 | R42: 38.617 | S42: 62.983 | T42: 132.879
A43: 09 Burgos | B43: 179169 | C43: 179659 | D43: 191522.07 | E43: 6133 | F43: 5824 | G43: 6460.46 | H43: 185302 | I43: 185483 | J43: 197982.53 | L43: 472.648 | M43: 963.691 | N43: 1019.061 | O43: 31.15 | P43: 41.56 | Q43: 45.751 | R43: 503.797 | S43: 1005.251 | T43: 1064.812
A44: 24 León | B44: 29545 | C44: 24021 | D44: 34892 | E44: 15861 | F44: 12185 | G44: 17306 | H44: 45406 | I44: 36206 | J44: 52198 | L44: 36.193 | M44: 83.569 | N44: 130.845 | O44: 102.859 | P44: 79.775 | Q44: 114.22 | R44: 139.051 | S44: 163.344 | T44: 245.065
A45: 34 Palencia | B45: 95379 | C45: 97592 | D45: 113196 | E45: 21066 | F45: 22661 | G45: 23187 | H45: 116445 | I45: 120253 | J45: 136383 | L45: 241.213 | M45: 434.675 | N45: 575.602 | O45: 109.543 | P45: 141.359 | Q45: 142.832 | R45: 350.757 | S45: 576.034 | T45: 718.434
A46: 37 Salamanca | B46: 51527 | C46: 61003 | D46: 61985 | E46: 5948 | F46: 7311 | G46: 7978 | H46: 57475 | I46: 68314 | J46: 69963 | L46: 118.512 | M46: 207.41 | N46: 260.027 | O46: 35.688 | P46: 42.404 | Q46: 46.272 | R46: 154.2 | S46: 249.814 | T46: 306.299
A47: 40 Segovia | B47: 60607 | C47: 60157 | D47: 75566 | E47: 2997 | F47: 2873 | G47: 3748 | H47: 63604 | I47: 63030 | J47: 79314 | L47: 94.911 | M47: 169.101 | N47: 306.647 | O47: 8.991 | P47: 14.325 | Q47: 19.047 | R47: 103.902 | S47: 183.426 | T47: 325.694
A48: 42 Soria | B48: 88416 | C48: 83843 | D48: 101952 | E48: 4210 | F48: 3835 | G48: 4928 | H48: 92626 | I48: 87678 | J48: 106880 | L48: 84.703 | M48: 319.19 | N48: 378.548 | O48: 13.051 | P48: 19.175 | Q48: 25.626 | R48: 97.754 | S48: 338.365 | T48: 404.174
A49: 47 Valladolid | B49: 89124 | C49: 101383 | D49: 102076 | E49: 16491 | F49: 20125 | G49: 21521 | H49: 105615 | I49: 121508 | J49: 123597 | L49: 142.331 | M49: 414.555 | N49: 542.518 | O49: 81.235 | P49: 134.375 | Q49: 156.836 | R49: 223.566 | S49: 548.93 | T49: 699.354
A50: 49 Zamora | B50: 46627 | C50: 48737 | D50: 60533 | E50: 9015 | F50: 9020 | G50: 9534 | H50: 55642 | I50: 57757 | J50: 70067 | L50: 74.277 | M50: 160.247 | N50: 281.357 | O50: 40.036 | P50: 46.318 | Q50: 66.738 | R50: 114.312 | S50: 206.565 | T50: 348.095
A51: CASTILLA Y LEON | B51: 666617 | C51: 685033 | D51: 776467.07 | E51: 84659 | F51: 86166 | G51: 96254.46 | H51: 751276 | I51: 771199 | J51: 872721.53 | L51: 1288.703 | M51: 2807.051 | N51: 3619.409 | O51: 437.255 | P51: 527.661 | Q51: 625.397 | R51: 1725.956 | S51: 3334.712 | T51: 4244.806
A53: 28 MADRID | B53: 23424 | C53: 16960 | D53: 13104 | E53: 2729 | F53: 1893 | G53: 1950 | H53: 26153 | I53: 18853 | J53: 15054 | L53: 31.95 | M53: 49.337 | N53: 40.932 | O53: 12.109 | P53: 8.617 | Q53: 6.32 | R53: 44.059 | S53: 57.954 | T53: 47.252
A55: 02 Albacete | B55: 29300 | C55: 40500 | D55: 41397 | E55: 12905 | F55: 10650 | G55: 11953 | H55: 42205 | I55: 51150 | J55: 53350 | L55: 9.523 | M55: 41.918 | N55: 94.187 | O55: 91.626 | P55: 77.213 | Q55: 91.476 | R55: 101.148 | S55: 119.131 | T55: 185.663
A56: 13 Ciudad Real | B56: 35689 | C56: 41136 | D56: 39650 | E56: 9229 | F56: 7654 | G56: 8310 | H56: 44918 | I56: 48790 | J56: 47960 | L56: 17.845 | M56: 90.376 | N56: 134.81 | O56: 26.164 | P56: 39.801 | Q56: 45.705 | R56: 44.009 | S56: 130.177 | T56: 180.515
A57: 16 Cuenca | B57: 37676 | C57: 45373 | D57: 57309 | E57: 2670 | F57: 2989 | G57: 3320 | H57: 40346 | I57: 48362 | J57: 60629 | L57: 30.141 | M57: 131.582 | N57: 170.14 | O57: 10.68 | P57: 15.543 | Q57: 16.6 | R57: 40.821 | S57: 147.125 | T57: 186.74
A58: 19 Guadalajara | B58: 67934 | C58: 65772 | D58: 65772 | E58: 1857 | F58: 2011 | G58: 2011 | H58: 69791 | I58: 67783 | J58: 67783 | L58: 122.281 | M58: 230.202 | N58: 249.934 | O58: 9.285 | P58: 12.066 | Q58: 11.061 | R58: 131.566 | S58: 242.268 | T58: 260.995
A59: 45 Toledo | B59: 46399 | C59: 47675 | D59: 54305 | E59: 5135 | F59: 3955 | G59: 5574 | H59: 51534 | I59: 51630 | J59: 59879 | L59: 17.632 | M59: 119.188 | N59: 190.068 | O59: 24.135 | P59: 18.193 | Q59: 26.755 | R59: 41.766 | S59: 137.381 | T59: 216.823
A60: CASTILLA-MANCHA | B60: 216998 | C60: 240456 | D60: 258433 | E60: 31796 | F60: 27259 | G60: 31168 | H60: 248794 | I60: 267715 | J60: 289601 | L60: 197.422 | M60: 613.266 | N60: 839.139 | O60: 161.89 | P60: 162.816 | Q60: 191.597 | R60: 359.31 | S60: 776.082 | T60: 1030.736
A62: 03 Alicante | B62: 955 | C62: 672 | D62: 1093 | E62: 333 | F62: 311 | G62: 365 | H62: 1288 | I62: 983 | J62: 1458 | L62: 0.277 | M62: 0.188 | N62: 1.963 | O62: 1.012 | P62: 0.653 | Q62: 1.976 | R62: 1.289 | S62: 0.841 | T62: 3.939
A63: 12 Castellón | B63: 269 | C63: 555 | D63: 650 | E63: 18 | F63: 17 | G63: 17 | H63: 287 | I63: 572 | J63: 667 | L63: 0.428 | M63: 0.084 | N63: 1.398 | O63: 0.086 | P63: 0.082 | Q63: 0.082 | R63: 0.514 | S63: 0.166 | T63: 1.48
A64: 46 Valencia | B64: 1038 | C64: 1072 | D64: 2337 | E64: 246 | F64: 212 | G64: 244 | H64: 1284 | I64: 1284 | J64: 2581 | L64: 0.83 | M64: 1.06 | N64: 6.777 | O64: 0.984 | P64: 0.975 | Q64: 1.069 | R64: 1.814 | S64: 2.035 | T64: 7.846
A65: C. VALENCIANA | B65: 2262 | C65: 2299 | D65: 4080 | E65: 597 | F65: 540 | G65: 626 | H65: 2859 | I65: 2839 | J65: 4706 | L65: 1.535 | M65: 1.332 | N65: 10.138 | O65: 2.082 | P65: 1.71 | Q65: 3.127 | R65: 3.617 | S65: 3.042 | T65: 13.265
A67: 30 R. DE MURCIA | B67: 5600 | C67: 5936 | D67: 6324 | E67: 1210 | F67: 599 | G67: 526 | H67: 6810 | I67: 6535 | J67: 6850 | L67: 2.386 | M67: 2.434 | N67: 0.41 | O67: 4.183 | P67: 2.091 | Q67: 3.49 | R67: 6.569 | S67: 4.525 | T67: 3.9
A69: 06 Badajoz | B69: 46418 | C69: 62899 | D69: 62097 | E69: 18733 | F69: 10618 | G69: 10572 | H69: 65151 | I69: 73517 | J69: 72669 | L69: 51.106 | M69: 199.201 | N69: 168.159 | O69: 53.782 | P69: 43.714 | Q69: 37.218 | R69: 104.889 | S69: 242.915 | T69: 205.377
A70: 10 Cáceres | B70: 1429 | C70: 2306 | D70: 1830 | E70: 3757 | F70: 1215 | G70: 1529 | H70: 5186 | I70: 3521 | J70: 3359 | L70: 1.136 | M70: 4.953 | N70: 3.883 | O70: 7.788 | P70: 3.393 | Q70: 4.218 | R70: 8.924 | S70: 8.347 | T70: 8.101
A71: EXTREMADURA | B71: 47847 | C71: 65205 | D71: 63927 | E71: 22490 | F71: 11833 | G71: 12101 | H71: 70337 | I71: 77038 | J71: 76028 | L71: 52.242 | M71: 204.154 | N71: 172.042 | O71: 61.57 | P71: 47.107 | Q71: 41.436 | R71: 113.813 | S71: 251.262 | T71: 213.478
A73: 04 Almería | B73: 200 | C73: 52 | D73: 1554 | E73: 91 | F73: 65 | G73: 20 | H73: 291 | I73: 117 | J73: 1574 | L73: 0.016 | M73: 0.016 | N73: 3.984 | O73: 0.261 | P73: 0.083 | Q73: 0.064 | R73: 0.277 | S73: 0.099 | T73: 4.048
A74: 11 Cádiz | B74: 10300 | C74: 8973 | D74: 12216 | E74: 1260 | F74: 1627 | G74: 1336.97 | H74: 11560 | I74: 10600 | J74: 13552.97 | L74: 12.618 | M74: 15.855 | N74: 48.864 | O74: 1.657 | P74: 6.458 | Q74: 5.348 | R74: 14.274 | S74: 22.313 | T74: 54.212
A75: 14 Córdoba | B75: 20898 | C75: 21160 | D75: 20330 | E75: 1948 | F75: 2078 | G75: 2390 | H75: 22846 | I75: 23238 | J75: 22720 | L75: 20.898 | M75: 79.35 | N75: 60.99 | O75: 7.208 | P75: 7.793 | Q75: 7.17 | R75: 28.106 | S75: 87.143 | T75: 68.16
A76: 18 Granada | B76: 7312 | C76: 4442 | D76: 7510 | E76: 1094 | F76: 743 | G76: 847 | H76: 8406 | I76: 5185 | J76: 8357 | L76: 3.298 | M76: 9.803 | N76: 15.443 | O76: 2.141 | P76: 2.504 | Q76: 4.039 | R76: 5.439 | S76: 12.308 | T76: 19.481
A77: 21 Huelva | B77: 3650 | C77: 4160 | D77: 4105 | E77: 500 | F77: 340 | G77: 275 | H77: 4150 | I77: 4500 | J77: 4380 | L77: 6.57 | M77: 15.392 | N77: 15.023 | O77: 1.08 | P77: 1.328 | Q77: 1.183 | R77: 7.65 | S77: 16.72 | T77: 16.206
A78: 23 Jaén | B78: 1822 | C78: 2302 | D78: 1969 | E78: 150 | F78: 202 | G78: 156 | H78: 1972 | I78: 2504 | J78: 2125 | L78: 1.458 | M78: 6.906 | N78: 5.513 | O78: 0.196 | P78: 0.808 | Q78: 0.562 | R78: 1.653 | S78: 7.714 | T78: 6.075
A79: 29 Málaga | B79: 3289 | C79: 4459 | D79: 5432 | E79: 377 | F79: 313 | G79: 389 | H79: 3666 | I79: 4772 | J79: 5821 | L79: 2.631 | M79: 9.792 | N79: 14.123 | O79: 1.282 | P79: 1.33 | Q79: 1.906 | R79: 3.913 | S79: 11.122 | T79: 16.029
A80: 41 Sevilla | B80: 50105 | C80: 52650 | D80: 54310 | E80: 12777 | F80: 10820 | G80: 9310 | H80: 62882 | I80: 63470 | J80: 63620 | L80: 70.147 | M80: 189.54 | N80: 195.516 | O80: 40.886 | P80: 45.444 | Q80: 39.102 | R80: 111.033 | S80: 234.984 | T80: 234.618
A81: ANDALUCIA | B81: 97576 | C81: 98198 | D81: 107426 | E81: 18197 | F81: 16188 | G81: 14723.97 | H81: 115773 | I81: 114386 | J81: 122149.97 | L81: 117.636 | M81: 326.654 | N81: 359.456 | O81: 54.711 | P81: 65.748 | Q81: 59.374 | R81: 172.345 | S81: 392.403 | T81: 418.829
A83: 35 Palmas (Las) | B83: 93 | C83: 88 | D83: 88 | F83: 1 | G83: 1 | H83: 93 | I83: 89 | J83: 89 | L83: 0.093 | M83: 0.088 | N83: 0.088 | P83: 0.001 | Q83: 0.001 | R83: 0.093 | S83: 0.089 | T83: 0.089
A84: 38 S. C. Tenerife | B84: 113 | C84: 114 | D84: 114 | E84: 24 | F84: 23 | G84: 23 | H84: 137 | I84: 137 | J84: 137 | L84: 0.109 | M84: 0.108 | N84: 0.108 | O84: 0.036 | P84: 0.035 | Q84: 0.035 | R84: 0.145 | S84: 0.143 | T84: 0.143
A85: CANARIAS | B85: 206 | C85: 202 | D85: 202 | E85: 24 | F85: 24 | G85: 24 | H85: 230 | I85: 226 | J85: 226 | L85: 0.202 | M85: 0.196 | N85: 0.196 | O85: 0.036 | P85: 0.036 | Q85: 0.036 | R85: 0.238 | S85: 0.232 | T85: 0.232
A88: ESPAÑA | B88: 2623606 | C88: 1430744 | D88: 1542535.09 | E88: 246895 | F88: 235282 | G88: 236015.55 | H88: 1558698 | I88: 1666026 | J88: 1778550.64 | L88: 2267.853 | M88: 4999.047 | N88: 6335.167 | O88: 1152.168 | P88: 1327.611 | Q88: 1398.728 | R88: 3420.015 | S88: 6326.66 | T88: 7733.894
B96: 221 | C96: 231 | E96: 221 | F96: 231 | H96: 221 | I96: 231

Sheet Tri2rno
A1: AVANCES DE SUPERFICIE Y PRODUCCIÓN
A2: TRIGO BLANDO Y SEMI DE INVIERNO | J2: 2025 JULIO
A3: SUPERFICIE COSECHADA(*)
A4: PROVINCIAS | C4: SUPERFICIES (HA) | H4: PRODUCCIONES (1000 TM)
A5: Y
A6: CC-AA | C6: =E6-2 -> 2023 | D6: =E6-1 -> 2024 | E6: 2025 | F6: =E6 -> 2025 | H6: =J6-2 -> 2023 | I6: =J6-1 -> 2024 | J6: 2025 | K6: =J6 -> 2025
C7: DEFINITIVO | D7: DEFINITIVO | E7: PROVISIONAL | F7: =CONCATENATE(D6,"=100") -> 2024=100 | H7: DEFINITIVO | I7: DEFINITIVO | J7: PROVISIONAL | K7: =CONCATENATE(I6,"=100") -> 2024=100
A10: 15 A Coruña | C10: 981 | D10: 1008 | E10: 1872.38 | H10: 2.982 | I10: 2.318 | J10: 6.866
A11: 27 Lugo | C11: 1922 | D11: 1832 | E11: 2785.36 | H11: 4.767 | I11: 4.03 | J11: 9.141
A12: 32 Ourense | C12: 4993 | D12: 5128 | E12: 5218.63 | H12: 15.478 | I12: 15.384 | J12: 17.369
A13: 36 Pontevedra | C13: 186 | D13: 172 | E13: 331.79 | H13: 0.409 | I13: 0.387 | J13: 1.182
A14: GALICIA | C14: 8082 | D14: 8140 | E14: 10208.16 | F14: 125.407371 | H14: 23.636 | I14: 22.119 | J14: 34.558 | K14: 156.2367196
A16: 33 P. DE ASTURIAS | E16: 61 | J16: 0.11
A18: 39 CANTABRIA | C18: 834 | D18: 848 | E18: 862 | F18: 101.6509434 | H18: 2.161 | I18: 2.131 | J18: 2.172 | K18: 101.9239794
A20: 1 Álava | C20: 19290 | D20: 19717 | E20: 17819 | H20: 106.095 | I20: 138.019 | J20: 106.914
A21: 20 Guipúzcoa | C21: 1 | D21: 1 | H21: 0.005 | I21: 0.006
A22: 48 Vizcaya
A23: PAIS VASCO | C23: 19291 | D23: 19718 | E23: 17819 | F23: 90.3692058 | H23: 106.1 | I23: 138.025 | J23: 106.914 | K23: 77.45988046
A25: 31 NAVARRA | C25: 74830 | D25: 76485 | E25: 79057.16 | F25: 103.3629601 | H25: 318.825 | I25: 428.752 | J25: 413.737 | K25: 96.49797552
A27: 26 LA RIOJA | C27: 24448 | D27: 23733 | E27: 23300 | F27: 98.17553617 | H27: 78.573 | I27: 78.726 | J27: 138.917 | K27: 176.4563168
A29: 22 Huesca | C29: 58865 | D29: 77880 | E29: 74068.42 | H29: 167.107 | I29: 340.551 | J29: 309.112
A30: 44 Teruel | C30: 23480 | D30: 33981 | E30: 36234 | H30: 27.461 | I30: 42.208 | J30: 115.2
A31: 50 Zaragoza | C31: 40447 | D31: 59062 | E31: 56372.4 | H31: 103.105 | I31: 149.898 | J31: 198.023
A32: ARAGÓN | C32: 122792 | D32: 170923 | E32: 166674.82 | F32: 97.51456504 | H32: 297.673 | I32: 532.657 | J32: 622.335 | K32: 116.8359751
A34: 8 Barcelona | C34: 14526 | D34: 21789 | E34: 21438 | H34: 18.056 | I34: 50.253 | J34: 102.632
A35: 17 Girona | C35: 11766 | D35: 12723 | E35: 13568 | H35: 28.754 | I35: 33.832 | J35: 61.366
A36: 25 Lleida | C36: 49726 | D36: 62306 | E36: 48070 | H36: 104.872 | I36: 206.511 | J36: 245.186
A37: 43 Tarragona | C37: 5959 | D37: 6876 | E37: 6486 | H37: 7.582 | I37: 8.307 | J37: 28.269
A38: CATALUÑA | C38: 81977 | D38: 103694 | E38: 89562 | F38: 86.37143904 | H38: 159.264 | I38: 298.903 | J38: 437.453 | K38: 146.3528302
A40: 7 BALEARES | C40: 4212 | D40: 3694 | E40: 3670 | F40: 99.35029778 | H40: 7.876 | I40: 5.135 | J40: 5.2 | K40: 101.2658228
A42: 5 Ávila | C42: 29161 | D42: 30970 | E42: 36337 | H42: 38.617 | I42: 62.983 | J42: 132.879
A43: 9 Burgos | C43: 185302 | D43: 185483 | E43: 197982.53 | H43: 503.797 | I43: 1005.251 | J43: 1064.812
A44: 24 León | C44: 45406 | D44: 36206 | E44: 52198 | H44: 139.051 | I44: 163.344 | J44: 245.065
A45: 34 Palencia | C45: 116445 | D45: 120253 | E45: 136383 | H45: 350.757 | I45: 576.034 | J45: 718.434
A46: 37 Salamanca | C46: 57475 | D46: 68314 | E46: 69963 | H46: 154.2 | I46: 249.814 | J46: 306.299
A47: 40 Segovia | C47: 63604 | D47: 63030 | E47: 79314 | H47: 103.902 | I47: 183.426 | J47: 325.694
A48: 42 Soria | C48: 92626 | D48: 87678 | E48: 106880 | H48: 97.754 | I48: 338.365 | J48: 404.174
A49: 47 Valladolid | C49: 105615 | D49: 121508 | E49: 123597 | H49: 223.566 | I49: 548.93 | J49: 699.354
A50: 49 Zamora | C50: 55642 | D50: 57757 | E50: 70067 | H50: 114.312 | I50: 206.565 | J50: 348.095
A51: CASTILLA Y LEÓN | C51: 751276 | D51: 771199 | E51: 872721.53 | F51: 113.1642455 | H51: 1725.956 | I51: 3334.712 | J51: 4244.806 | K51: 127.2915322
A53: 28 MADRID | C53: 26153 | D53: 18853 | E53: 15054 | F53: 79.84936084 | H53: 44.059 | I53: 57.954 | J53: 47.252 | K53: 81.53363012
A55: 2 Albacete | C55: 42205 | D55: 51150 | E55: 53350 | H55: 101.148 | I55: 119.131 | J55: 185.663
A56: 13 Ciudad Real | C56: 44918 | D56: 48790 | E56: 47960 | H56: 44.009 | I56: 130.177 | J56: 180.515
A57: 16 Cuenca | C57: 40346 | D57: 48362 | E57: 60629 | H57: 40.821 | I57: 147.125 | J57: 186.74
A58: 19 Guadalajara | C58: 69791 | D58: 67783 | E58: 67783 | H58: 131.566 | I58: 242.268 | J58: 260.995
A59: 45 Toledo | C59: 51534 | D59: 51630 | E59: 59879 | H59: 41.766 | I59: 137.381 | J59: 216.823
A60: CASTILLA-MANCHA | C60: 248794 | D60: 267715 | E60: 289601 | F60: 108.1751116 | H60: 359.31 | I60: 776.082 | J60: 1030.736 | K60: 132.8127698
A62: 3 Alicante | C62: 1288 | D62: 983 | E62: 1458 | H62: 1.289 | I62: 0.841 | J62: 3.939
A63: 12 Castellón | C63: 287 | D63: 572 | E63: 667 | H63: 0.514 | I63: 0.166 | J63: 1.48
A64: 46 Valencia | C64: 1284 | D64: 1284 | E64: 2581 | H64: 1.814 | I64: 2.035 | J64: 7.846
A65: C. VALENCIANA | C65: 2859 | D65: 2839 | E65: 4706 | F65: 165.7625925 | H65: 3.617 | I65: 3.042 | J65: 13.265 | K65: 436.0618014
A67: 30 R. DE MURCIA | C67: 6810 | D67: 6535 | E67: 6850 | F67: 104.8201989 | H67: 6.569 | I67: 4.525 | J67: 3.9 | K67: 86.1878453
A69: 6 Badajoz | C69: 65151 | D69: 73517 | E69: 72669 | H69: 104.889 | I69: 242.915 | J69: 205.377
A70: 10 Cáceres | C70: 5186 | D70: 3521 | E70: 3359 | H70: 8.924 | I70: 8.347 | J70: 8.101
A71: EXTREMADURA | C71: 70337 | D71: 77038 | E71: 76028 | F71: 98.6889587 | H71: 113.813 | I71: 251.262 | J71: 213.478 | K71: 84.96231026
A73: 4 Almería | C73: 291 | D73: 117 | E73: 1574 | H73: 0.277 | I73: 0.099 | J73: 4.048
A74: 11 Cádiz | C74: 11560 | D74: 10600 | E74: 13552.97 | H74: 14.274 | I74: 22.313 | J74: 54.212
A75: 14 Córdoba | C75: 22846 | D75: 23238 | E75: 22720 | H75: 28.106 | I75: 87.143 | J75: 68.16
A76: 18 Granada | C76: 8406 | D76: 5185 | E76: 8357 | H76: 5.439 | I76: 12.308 | J76: 19.481
A77: 21 Huelva | C77: 4150 | D77: 4500 | E77: 4380 | H77: 7.65 | I77: 16.72 | J77: 16.206
A78: 23 Jaén | C78: 1972 | D78: 2504 | E78: 2125 | H78: 1.653 | I78: 7.714 | J78: 6.075
A79: 29 Málaga | C79: 3666 | D79: 4772 | E79: 5821 | H79: 3.913 | I79: 11.122 | J79: 16.029
A80: 41 Sevilla | C80: 62882 | D80: 63470 | E80: 63620 | H80: 111.033 | I80: 234.984 | J80: 234.618
A81: ANDALUCÍA | C81: 115773 | D81: 114386 | E81: 122149.97 | F81: 106.7875177 | H81: 172.345 | I81: 392.403 | J81: 418.829 | K81: 106.7344032
A83: 35 Palmas (Las) | C83: 93 | D83: 89 | E83: 89 | H83: 0.093 | I83: 0.089 | J83: 0.089
A84: 38 S. C. Tenerife | C84: 137 | D84: 137 | E84: 137 | H84: 0.145 | I84: 0.143 | J84: 0.143
A85: CANARIAS | C85: 230 | D85: 226 | E85: 226 | F85: 100 | H85: 0.238 | I85: 0.232 | J85: 0.232 | K85: 100
A88: ESPAÑA | C88: 1558698 | D88: 1666026 | E88: 1778550.64 | F88: 106.7540747 | H88: 3420.015 | I88: 6326.66 | J88: 7733.894 | K88: 122.2429212
A91: (*)Tipo de Superficie de mes/año solicitado

Sheet Tri3era-SRT
A1: AVANCES DE SUPERFICIE Y PRODUCCIÓN
A2: TRIGO DE PRIMAVERA S/R/T | K2: 2025 JULIO
A3: SUPERFICIE COSECHADA(*)
A4: PROVINCIAS | B4: SUPERFICIES (HA) | E4: SUPERFICIES (HA) | H4: SUPERFICIES (HA) | L4: PRODUCCIONES (1000 TM) | O4: PRODUCCIONES (1000 TM) | R4: PRODUCCIONES (1000 TM)
A5: Y | B5: SECANO | E5: REGADIO | H5: TOTAL | L5: SECANO | O5: REGADIO | R5: TOTAL
A6: CC-AA | B6: =J6-2 -> 2023 | C6: =J6-1 -> 2024 | D6: =J6 -> 2025 | E6: =J6-2 -> 2023 | F6: =J6-1 -> 2024 | G6: =J6 -> 2025 | H6: =J6-2 -> 2023 | I6: =J6-1 -> 2024 | J6: 2025 | L6: =T6-2 -> 2023 | M6: =T6-1 -> 2024 | N6: =T6 -> 2025 | O6: =T6-2 -> 2023 | P6: =T6-1 -> 2024 | Q6: =T6 -> 2025 | R6: =T6-2 -> 2023 | S6: =T6-1 -> 2024 | T6: 2025
B7: DEFINITIVO | C7: DEFINITIVO | D7: PROVISIONAL | E7: DEFINITIVO | F7: DEFINITIVO | G7: PROVISIONAL | H7: DEFINITIVO | I7: DEFINITIVO | J7: PROVISIONAL | L7: DEFINITIVO | M7: DEFINITIVO | N7: PROVISIONAL | O7: DEFINITIVO | P7: DEFINITIVO | Q7: PROVISIONAL | R7: DEFINITIVO | S7: DEFINITIVO | T7: PROVISIONAL
A10: 15 Coruña (La) | B10: 657 | C10: 733 | D10: 263.14 | H10: 657 | I10: 733 | J10: 263.14 | L10: 1.997 | M10: 1.686 | N10: 0.952 | R10: 1.997 | S10: 1.686 | T10: 0.952
A11: 27 Lugo | B11: 1372 | C11: 1308 | D11: 450.16 | H11: 1372 | I11: 1308 | J11: 450.16 | L11: 3.403 | M11: 2.878 | N11: 1.403 | R11: 3.402 | S11: 2.877 | T11: 1.403
A12: 32 Orense | B12: 3328 | C12: 3404 | D12: 736.47 | H12: 3328 | I12: 3404 | J12: 736.47 | L12: 10.317 | M12: 9.872 | N12: 2.42 | R12: 10.317 | S12: 9.872 | T12: 2.42
A13: 36 Pontevedra | B13: 124 | C13: 113 | D13: 50.42 | H13: 124 | I13: 113 | J13: 50.42 | L13: 0.273 | M13: 0.254 | N13: 0.17 | R13: 0.273 | S13: 0.254 | T13: 0.17
A14: GALICIA | B14: 5481 | C14: 5558 | D14: 1500.19 | H14: 5481 | I14: 5558 | J14: 1500.19 | L14: 15.99 | M14: 14.69 | N14: 4.945 | R14: 15.989 | S14: 14.689 | T14: 4.945
A16: 33 P. DE ASTURIAS
A18: 39 CANTABRIA
A20: 01 Alava
A21: 20 Guipúzcoa
A22: 48 Vizcaya
A23: PAIS VASCO
A25: 31 NAVARRA
A27: 26 LA RIOJA
A29: 22 Huesca | B29: 865 | C29: 1162 | D29: 1169.08 | E29: 416 | F29: 504 | G29: 403.94 | H29: 1281 | I29: 1666 | J29: 1573.02 | L29: 0.843 | M29: 4.08 | N29: 4.657 | O29: 2.048 | P29: 2.807 | Q29: 1.902 | R29: 2.89 | S29: 6.886 | T29: 6.559
A30: 44 Teruel | B30: 414 | D30: 686 | E30: 77 | G30: 68 | H30: 491 | J30: 754 | L30: 0.33 | N30: 2.043 | O30: 0.24 | Q30: 0.258 | R30: 0.569 | T30: 2.301
A31: 50 Zaragoza | B31: 1580 | C31: 2465 | D31: 2284.57 | E31: 1123 | F31: 1054 | G31: 1216.65 | H31: 2703 | I31: 3519 | J31: 3501.22 | L31: 0.702 | M31: 2.497 | N31: 5.191 | O31: 5.111 | P31: 4.825 | Q31: 6.466 | R31: 5.812 | S31: 7.323 | T31: 11.658
A32: ARAGON | B32: 2859 | C32: 3627 | D32: 4139.65 | E32: 1616 | F32: 1558 | G32: 1688.59 | H32: 4475 | I32: 5185 | J32: 5828.24 | L32: 1.875 | M32: 6.577 | N32: 11.891 | O32: 7.399 | P32: 7.632 | Q32: 8.626 | R32: 9.271 | S32: 14.209 | T32: 20.518
A34: 08 Barcelona
A35: 17 Girona
A36: 25 Lleida
A37: 43 Tarragona
A38: CATALUÑA
A40: 07 BALEARES | B40: 1406 | C40: 1244 | D40: 1243 | H40: 1406 | I40: 1244 | J40: 1243 | L40: 2.629 | M40: 1.729 | N40: 1.718 | R40: 2.629 | S40: 1.729 | T40: 1.718
A42: 05 Avila
A43: 09 Burgos
A44: 24 León
A45: 34 Palencia
A46: 37 Salamanca
A47: 40 Segovia
A48: 42 Soria
A49: 47 Valladolid | E49: 865 | H49: 865 | O49: 4.261 | R49: 4.261
A50: 49 Zamora
A51: CASTILLA Y LEON | E51: 865 | H51: 865 | O51: 4.261 | R51: 4.261
A53: 28 MADRID | B53: 1283 | C53: 911 | D53: 691 | E53: 157 | F53: 107 | G53: 107 | H53: 1440 | I53: 1018 | J53: 798 | L53: 1.747 | M53: 2.643 | N53: 2.158 | O53: 0.66 | P53: 0.483 | Q53: 0.355 | R53: 2.407 | S53: 3.127 | T53: 2.513
A55: 02 Albacete | E55: 2595 | F55: 2095 | G55: 2200 | H55: 2595 | I55: 2095 | J55: 2200 | O55: 18.087 | P55: 14.854 | Q55: 16.83 | R55: 18.086 | S55: 14.853 | T55: 16.83
A56: 13 Ciudad Real
A57: 16 Cuenca
A58: 19 Guadalajara
A59: 45 Toledo
A60: CASTILLA-MANCHA | E60: 2595 | F60: 2095 | G60: 2200 | H60: 2595 | I60: 2095 | J60: 2200 | O60: 18.087 | P60: 14.854 | Q60: 16.83 | R60: 18.086 | S60: 14.853 | T60: 16.83
A62: 03 Alicante
A63: 12 Castellón | B63: 69 | C63: 145 | D63: 145 | E63: 5 | F63: 4 | G63: 4 | H63: 74 | I63: 149 | J63: 149 | L63: 0.11 | M63: 0.022 | N63: 0.311 | O63: 0.024 | P63: 0.019 | R63: 0.134 | S63: 0.041 | T63: 0.311
A64: 46 Valencia
A65: C. VALENCIANA | B65: 69 | C65: 145 | D65: 145 | E65: 5 | F65: 4 | G65: 4 | H65: 74 | I65: 149 | J65: 149 | L65: 0.11 | M65: 0.022 | N65: 0.311 | O65: 0.024 | P65: 0.019 | R65: 0.134 | S65: 0.041 | T65: 0.311
A67: 30 R. DE MURCIA
A69: 06 Badajoz
A70: 10 Cáceres
A71: EXTREMADURA
A73: 04 Almería
A74: 11 Cádiz
A75: 14 Córdoba
A76: 18 Granada
A77: 21 Huelva
A78: 23 Jaén
A79: 29 Málaga
A80: 41 Sevilla
A81: ANDALUCIA
A83: 35 Palmas (Las)
A84: 38 S. C. Tenerife
A85: CANARIAS
A88: ESPAÑA | B88: 22196 | C88: 11485 | D88: 7718.84 | E88: 5238 | F88: 3764 | G88: 3999.59 | H88: 16336 | I88: 15249 | J88: 11718.43 | L88: 22.351 | M88: 25.661 | N88: 21.023 | O88: 30.431 | P88: 22.988 | Q88: 25.811 | R88: 52.777 | S88: 48.648 | T88: 46.835
B96: 221 | C96: 231 | E96: 221 | F96: 231 | H96: 221 | I96: 231

Sheet Tri3era
A1: AVANCES DE SUPERFICIE Y PRODUCCIÓN
A2: TRIGO DE PRIMAVERA | J2: 2025 JULIO
A3: SUPERFICIE COSECHADA(*)
A4: PROVINCIAS | C4: SUPERFICIES (HA) | H4: PRODUCCIONES (1000 TM)
A5: Y
A6: CC-AA | C6: =E6-2 -> 2023 | D6: =E6-1 -> 2024 | E6: 2025 | F6: =E6 -> 2025 | H6: =J6-2 -> 2023 | I6: =J6-1 -> 2024 | J6: 2025 | K6: =J6 -> 2025
C7: DEFINITIVO | D7: DEFINITIVO | E7: PROVISIONAL | F7: =CONCATENATE(D6,"=100") -> 2024=100 | H7: DEFINITIVO | I7: DEFINITIVO | J7: PROVISIONAL | K7: =CONCATENATE(I6,"=100") -> 2024=100
A10: 15 A Coruña | C10: 657 | D10: 733 | E10: 263.14 | H10: 1.997 | I10: 1.686 | J10: 0.952
A11: 27 Lugo | C11: 1372 | D11: 1308 | E11: 450.16 | H11: 3.402 | I11: 2.877 | J11: 1.403
A12: 32 Ourense | C12: 3328 | D12: 3404 | E12: 736.47 | H12: 10.317 | I12: 9.872 | J12: 2.42
A13: 36 Pontevedra | C13: 124 | D13: 113 | E13: 50.42 | H13: 0.273 | I13: 0.254 | J13: 0.17
A14: GALICIA | C14: 5481 | D14: 5558 | E14: 1500.19 | F14: 26.99154372 | H14: 15.989 | I14: 14.689 | J14: 4.945 | K14: 33.66464701
A16: 33 P. DE ASTURIAS
A18: 39 CANTABRIA
A20: 1 Álava
A21: 20 Guipúzcoa
A22: 48 Vizcaya
A23: PAIS VASCO
A25: 31 NAVARRA
A27: 26 LA RIOJA
A29: 22 Huesca | C29: 1281 | D29: 1666 | E29: 1573.02 | H29: 2.89 | I29: 6.886 | J29: 6.559
A30: 44 Teruel | C30: 491 | E30: 754 | H30: 0.569 | J30: 2.301
A31: 50 Zaragoza | C31: 2703 | D31: 3519 | E31: 3501.22 | H31: 5.812 | I31: 7.323 | J31: 11.658
A32: ARAGÓN | C32: 4475 | D32: 5185 | E32: 5828.24 | F32: 112.4057859 | H32: 9.271 | I32: 14.209 | J32: 20.518 | K32: 144.4014357
A34: 8 Barcelona
A35: 17 Girona
A36: 25 Lleida
A37: 43 Tarragona
A38: CATALUÑA
A40: 7 BALEARES | C40: 1406 | D40: 1244 | E40: 1243 | F40: 99.91961415 | H40: 2.629 | I40: 1.729 | J40: 1.718 | K40: 99.3637941
A42: 5 Ávila
A43: 9 Burgos
A44: 24 León
A45: 34 Palencia
A46: 37 Salamanca
A47: 40 Segovia
A48: 42 Soria
A49: 47 Valladolid | C49: 865 | H49: 4.261
A50: 49 Zamora
A51: CASTILLA Y LEÓN | C51: 865 | H51: 4.261
A53: 28 MADRID | C53: 1440 | D53: 1018 | E53: 798 | F53: 78.38899804 | H53: 2.407 | I53: 3.127 | J53: 2.513 | K53: 80.36456668
A55: 2 Albacete | C55: 2595 | D55: 2095 | E55: 2200 | H55: 18.086 | I55: 14.853 | J55: 16.83
A56: 13 Ciudad Real
A57: 16 Cuenca
A58: 19 Guadalajara
A59: 45 Toledo
A60: CASTILLA-MANCHA | C60: 2595 | D60: 2095 | E60: 2200 | F60: 105.0119332 | H60: 18.086 | I60: 14.853 | J60: 16.83 | K60: 113.3104423
A62: 3 Alicante
A63: 12 Castellón | C63: 74 | D63: 149 | E63: 149 | H63: 0.134 | I63: 0.041 | J63: 0.311
A64: 46 Valencia
A65: C. VALENCIANA | C65: 74 | D65: 149 | E65: 149 | F65: 100 | H65: 0.134 | I65: 0.041 | J65: 0.311 | K65: 758.5365854
A67: 30 R. DE MURCIA
A69: 6 Badajoz
A70: 10 Cáceres
A71: EXTREMADURA
A73: 4 Almería
A74: 11 Cádiz
A75: 14 Córdoba
A76: 18 Granada
A77: 21 Huelva
A78: 23 Jaén
A79: 29 Málaga
A80: 41 Sevilla
A81: ANDALUCÍA
A83: 35 Palmas (Las)
A84: 38 S. C. Tenerife
A85: CANARIAS
A88: ESPAÑA | C88: 16336 | D88: 15249 | E88: 11718.43 | F88: 76.8472031 | H88: 52.777 | I88: 48.648 | J88: 46.835 | K88: 96.27322809
A91: (*)Tipo de Superficie de mes/año solicitado

Sheet Tri4era-SRT
A1: AVANCES DE SUPERFICIE Y PRODUCCIÓN
A2: TRIGO DURO DE PRIMAVERA S/R/T | K2: 2025 JULIO
A3: SUPERFICIE COSECHADA(*)
A4: PROVINCIAS | B4: SUPERFICIES (HA) | E4: SUPERFICIES (HA) | H4: SUPERFICIES (HA) | L4: PRODUCCIONES (1000 TM) | O4: PRODUCCIONES (1000 TM) | R4: PRODUCCIONES (1000 TM)
A5: Y | B5: SECANO | E5: REGADIO | H5: TOTAL | L5: SECANO | O5: REGADIO | R5: TOTAL
A6: CC-AA | B6: =J6-2 -> 2023 | C6: =J6-1 -> 2024 | D6: =J6 -> 2025 | E6: =J6-2 -> 2023 | F6: =J6-1 -> 2024 | G6: =J6 -> 2025 | H6: =J6-2 -> 2023 | I6: =J6-1 -> 2024 | J6: 2025 | L6: =T6-2 -> 2023 | M6: =T6-1 -> 2024 | N6: =T6 -> 2025 | O6: =T6-2 -> 2023 | P6: =T6-1 -> 2024 | Q6: =T6 -> 2025 | R6: =T6-2 -> 2023 | S6: =T6-1 -> 2024 | T6: 2025
B7: DEFINITIVO | C7: DEFINITIVO | D7: PROVISIONAL | E7: DEFINITIVO | F7: DEFINITIVO | G7: PROVISIONAL | H7: DEFINITIVO | I7: DEFINITIVO | J7: PROVISIONAL | L7: DEFINITIVO | M7: DEFINITIVO | N7: PROVISIONAL | O7: DEFINITIVO | P7: DEFINITIVO | Q7: PROVISIONAL | R7: DEFINITIVO | S7: DEFINITIVO | T7: PROVISIONAL
A10: 15 Coruña (La) | B10: 3 | C10: 4 | D10: 7.8 | H10: 3 | I10: 4 | J10: 7.8 | L10: 0.009 | M10: 0.009 | N10: 0.016 | R10: 0.009 | S10: 0.009 | T10: 0.016
A11: 27 Lugo | B11: 90 | C11: 86 | D11: 70.34 | H11: 90 | I11: 86 | J11: 70.34 | L11: 0.223 | M11: 0.189 | N11: 0.156 | R11: 0.223 | S11: 0.189 | T11: 0.156
A12: 32 Orense | D12: 24.85 | J12: 24.85 | N12: 0.052 | T12: 0.052
A13: 36 Pontevedra | D13: 5.18 | J13: 5.18 | N13: 0.008 | T13: 0.008
A14: GALICIA | B14: 93 | C14: 90 | D14: 108.17 | H14: 93 | I14: 90 | J14: 108.17 | L14: 0.232 | M14: 0.198 | N14: 0.232 | R14: 0.232 | S14: 0.198 | T14: 0.232
A16: 33 P. DE ASTURIAS
A18: 39 CANTABRIA
A20: 01 Alava
A21: 20 Guipúzcoa
A22: 48 Vizcaya
A23: PAIS VASCO
A25: 31 NAVARRA
A27: 26 LA RIOJA
A29: 22 Huesca | B29: 41 | C29: 40 | D29: 34.96 | E29: 37 | F29: 36 | G29: 23.3 | H29: 78 | I29: 76 | J29: 58.26 | L29: 0.018 | M29: 0.085 | N29: 0.132 | O29: 0.162 | P29: 0.134 | Q29: 0.106 | R29: 0.18 | S29: 0.219 | T29: 0.238
A30: 44 Teruel | B30: 12 | D30: 13 | E30: 1 | G30: 2 | H30: 13 | J30: 15 | L30: 0.008 | N30: 0.024 | O30: 0.003 | Q30: 0.005 | R30: 0.01 | T30: 0.029
A31: 50 Zaragoza | B31: 1093 | C31: 1624 | D31: 1457.76 | E31: 784 | F31: 689 | G31: 555.67 | H31: 1877 | I31: 2313 | J31: 2013.43 | L31: 0.492 | M31: 1.437 | N31: 3.207 | O31: 3.422 | P31: 3.007 | Q31: 2.501 | R31: 3.914 | S31: 4.445 | T31: 5.708
A32: ARAGON | B32: 1146 | C32: 1664 | D32: 1505.72 | E32: 822 | F32: 725 | G32: 580.97 | H32: 1968 | I32: 2389 | J32: 2086.69 | L32: 0.518 | M32: 1.522 | N32: 3.363 | O32: 3.587 | P32: 3.141 | Q32: 2.612 | R32: 4.104 | S32: 4.664 | T32: 5.975
A34: 08 Barcelona
A35: 17 Girona
A36: 25 Lleida
A37: 43 Tarragona
A38: CATALUÑA
A40: 07 BALEARES | B40: 2 | C40: 13 | D40: 13 | H40: 2 | I40: 13 | J40: 13 | L40: 0.004 | M40: 0.018 | N40: 0.018 | R40: 0.004 | S40: 0.018 | T40: 0.018
A42: 05 Avila
A43: 09 Burgos
A44: 24 León
A45: 34 Palencia
A46: 37 Salamanca
A47: 40 Segovia
A48: 42 Soria
A49: 47 Valladolid
A50: 49 Zamora
A51: CASTILLA Y LEON
A53: 28 MADRID | B53: 5 | C53: 4 | D53: 1 | E53: 13 | F53: 7 | G53: 4 | H53: 18 | I53: 11 | J53: 5 | L53: 0.004 | M53: 0.005 | N53: 0.003 | O53: 0.021 | P53: 0.028 | Q53: 0.021 | R53: 0.025 | S53: 0.033 | T53: 0.024
A55: 02 Albacete | E55: 315 | F55: 215 | H55: 315 | I55: 215 | O55: 2.126 | P55: 1.505 | R55: 2.126 | S55: 1.505
A56: 13 Ciudad Real
A57: 16 Cuenca
A58: 19 Guadalajara
A59: 45 Toledo
A60: CASTILLA-MANCHA | E60: 315 | F60: 215 | H60: 315 | I60: 215 | O60: 2.126 | P60: 1.505 | R60: 2.126 | S60: 1.505
A62: 03 Alicante
A63: 12 Castellón | B63: 2 | C63: 6 | D63: 6 | H63: 2 | I63: 6 | J63: 6 | L63: 0.003 | M63: 0.001 | N63: 0.012 | R63: 0.003 | S63: 0.001 | T63: 0.012
A64: 46 Valencia
A65: C. VALENCIANA | B65: 2 | C65: 6 | D65: 6 | H65: 2 | I65: 6 | J65: 6 | L65: 0.003 | M65: 0.001 | N65: 0.012 | R65: 0.003 | S65: 0.001 | T65: 0.012
A67: 30 R. DE MURCIA
A69: 06 Badajoz
A70: 10 Cáceres
A71: EXTREMADURA
A73: 04 Almería
A74: 11 Cádiz
A75: 14 Córdoba
A76: 18 Granada
A77: 21 Huelva
A78: 23 Jaén
A79: 29 Málaga
A80: 41 Sevilla
A81: ANDALUCIA
A83: 35 Palmas (Las)
A84: 38 S. C. Tenerife
A85: CANARIAS
A88: ESPAÑA | B88: 2496 | C88: 1777 | D88: 1633.89 | E88: 1150 | F88: 947 | G88: 584.97 | H88: 2398 | I88: 2724 | J88: 2218.86 | L88: 0.761 | M88: 1.744 | N88: 3.628 | O88: 5.734 | P88: 4.674 | Q88: 2.633 | R88: 6.494 | S88: 6.419 | T88: 6.261
B96: 221 | C96: 231 | E96: 221 | F96: 231 | H96: 221 | I96: 231

Sheet Tri4era
A1: AVANCES DE SUPERFICIE Y PRODUCCIÓN
A2: TRIGO DURO DE PRIMAVERA | J2: 2025 JULIO
A3: SUPERFICIE COSECHADA(*)
A4: PROVINCIAS | C4: SUPERFICIES (HA) | H4: PRODUCCIONES (1000 TM)
A5: Y
A6: CC-AA | C6: =E6-2 -> 2023 | D6: =E6-1 -> 2024 | E6: 2025 | F6: =E6 -> 2025 | H6: =J6-2 -> 2023 | I6: =J6-1 -> 2024 | J6: 2025 | K6: =J6 -> 2025
C7: DEFINITIVO | D7: DEFINITIVO | E7: PROVISIONAL | F7: =CONCATENATE(D6,"=100") -> 2024=100 | H7: DEFINITIVO | I7: DEFINITIVO | J7: PROVISIONAL | K7: =CONCATENATE(I6,"=100") -> 2024=100
A10: 15 A Coruña | C10: 3 | D10: 4 | E10: 7.8 | H10: 0.009 | I10: 0.009 | J10: 0.016
A11: 27 Lugo | C11: 90 | D11: 86 | E11: 70.34 | H11: 0.223 | I11: 0.189 | J11: 0.156
A12: 32 Ourense | E12: 24.85 | J12: 0.052
A13: 36 Pontevedra | E13: 5.18 | J13: 0.008
A14: GALICIA | C14: 93 | D14: 90 | E14: 108.17 | F14: 120.1888889 | H14: 0.232 | I14: 0.198 | J14: 0.232 | K14: 117.1717172
A16: 33 P. DE ASTURIAS
A18: 39 CANTABRIA
A20: 1 Álava
A21: 20 Guipúzcoa
A22: 48 Vizcaya
A23: PAIS VASCO
A25: 31 NAVARRA
A27: 26 LA RIOJA
A29: 22 Huesca | C29: 78 | D29: 76 | E29: 58.26 | H29: 0.18 | I29: 0.219 | J29: 0.238
A30: 44 Teruel | C30: 13 | E30: 15 | H30: 0.01 | J30: 0.029
A31: 50 Zaragoza | C31: 1877 | D31: 2313 | E31: 2013.43 | H31: 3.914 | I31: 4.445 | J31: 5.708
A32: ARAGÓN | C32: 1968 | D32: 2389 | E32: 2086.69 | F32: 87.34575136 | H32: 4.104 | I32: 4.664 | J32: 5.975 | K32: 128.1089194
A34: 8 Barcelona
A35: 17 Girona
A36: 25 Lleida
A37: 43 Tarragona
A38: CATALUÑA
A40: 7 BALEARES | C40: 2 | D40: 13 | E40: 13 | F40: 100 | H40: 0.004 | I40: 0.018 | J40: 0.018 | K40: 100
A42: 5 Ávila
A43: 9 Burgos
A44: 24 León
A45: 34 Palencia
A46: 37 Salamanca
A47: 40 Segovia
A48: 42 Soria
A49: 47 Valladolid
A50: 49 Zamora
A51: CASTILLA Y LEÓN
A53: 28 MADRID | C53: 18 | D53: 11 | E53: 5 | F53: 45.45454545 | H53: 0.025 | I53: 0.033 | J53: 0.024 | K53: 72.72727273
A55: 2 Albacete | C55: 315 | D55: 215 | H55: 2.126 | I55: 1.505
A56: 13 Ciudad Real
A57: 16 Cuenca
A58: 19 Guadalajara
A59: 45 Toledo
A60: CASTILLA-MANCHA | C60: 315 | D60: 215 | H60: 2.126 | I60: 1.505
A62: 3 Alicante
A63: 12 Castellón | C63: 2 | D63: 6 | E63: 6 | H63: 0.003 | I63: 0.001 | J63: 0.012
A64: 46 Valencia
A65: C. VALENCIANA | C65: 2 | D65: 6 | E65: 6 | F65: 100 | H65: 0.003 | I65: 0.001 | J65: 0.012 | K65: 1200
A67: 30 R. DE MURCIA
A69: 6 Badajoz
A70: 10 Cáceres
A71: EXTREMADURA
A73: 4 Almería
A74: 11 Cádiz
A75: 14 Córdoba
A76: 18 Granada
A77: 21 Huelva
A78: 23 Jaén
A79: 29 Málaga
A80: 41 Sevilla
A81: ANDALUCÍA
A83: 35 Palmas (Las)
A84: 38 S. C. Tenerife
A85: CANARIAS
A88: ESPAÑA | C88: 2398 | D88: 2724 | E88: 2218.86 | F88: 81.45594714 | H88: 6.494 | I88: 6.419 | J88: 6.261 | K88: 97.53855741
A91: (*)Tipo de Superficie de mes/año solicitado

Sheet Tri5era-SRT
A1: AVANCES DE SUPERFICIE Y PRODUCCIÓN
A2: TRIGO BLANDO Y SEMI DE PRIMAVERA S/R/T | K2: 2025 JULIO
A3: SUPERFICIE COSECHADA(*)
A4: PROVINCIAS | B4: SUPERFICIES (HA) | E4: SUPERFICIES (HA) | H4: SUPERFICIES (HA) | L4: PRODUCCIONES (1000 TM) | O4: PRODUCCIONES (1000 TM) | R4: PRODUCCIONES (1000 TM)
A5: Y | B5: SECANO | E5: REGADIO | H5: TOTAL | L5: SECANO | O5: REGADIO | R5: TOTAL
A6: CC-AA | B6: =J6-2 -> 2023 | C6: =J6-1 -> 2024 | D6: =J6 -> 2025 | E6: =J6-2 -> 2023 | F6: =J6-1 -> 2024 | G6: =J6 -> 2025 | H6: =J6-2 -> 2023 | I6: =J6-1 -> 2024 | J6: 2025 | L6: =T6-2 -> 2023 | M6: =T6-1 -> 2024 | N6: =T6 -> 2025 | O6: =T6-2 -> 2023 | P6: =T6-1 -> 2024 | Q6: =T6 -> 2025 | R6: =T6-2 -> 2023 | S6: =T6-1 -> 2024 | T6: 2025
B7: DEFINITIVO | C7: DEFINITIVO | D7: PROVISIONAL | E7: DEFINITIVO | F7: DEFINITIVO | G7: PROVISIONAL | H7: DEFINITIVO | I7: DEFINITIVO | J7: PROVISIONAL | L7: DEFINITIVO | M7: DEFINITIVO | N7: PROVISIONAL | O7: DEFINITIVO | P7: DEFINITIVO | Q7: PROVISIONAL | R7: DEFINITIVO | S7: DEFINITIVO | T7: PROVISIONAL
A10: 15 Coruña (La) | B10: 654 | C10: 729 | D10: 255.34 | H10: 654 | I10: 729 | J10: 255.34 | L10: 1.988 | M10: 1.677 | N10: 0.936 | R10: 1.988 | S10: 1.677 | T10: 0.936
A11: 27 Lugo | B11: 1282 | C11: 1222 | D11: 379.82 | H11: 1282 | I11: 1222 | J11: 379.82 | L11: 3.179 | M11: 2.688 | N11: 1.246 | R11: 3.179 | S11: 2.688 | T11: 1.246
A12: 32 Orense | B12: 3328 | C12: 3404 | D12: 711.62 | H12: 3328 | I12: 3404 | J12: 711.62 | L12: 10.317 | M12: 9.872 | N12: 2.369 | R12: 10.317 | S12: 9.872 | T12: 2.369
A13: 36 Pontevedra | B13: 124 | C13: 113 | D13: 45.24 | H13: 124 | I13: 113 | J13: 45.24 | L13: 0.273 | M13: 0.254 | N13: 0.161 | R13: 0.273 | S13: 0.254 | T13: 0.161
A14: GALICIA | B14: 5388 | C14: 5468 | D14: 1392.02 | H14: 5388 | I14: 5468 | J14: 1392.02 | L14: 15.757 | M14: 14.491 | N14: 4.712 | R14: 15.757 | S14: 14.491 | T14: 4.712
A16: 33 P. DE ASTURIAS
A18: 39 CANTABRIA
A20: 01 Alava
A21: 20 Guipúzcoa
A22: 48 Vizcaya
A23: PAIS VASCO
A25: 31 NAVARRA
A27: 26 LA RIOJA
A29: 22 Huesca | B29: 824 | C29: 1122 | D29: 1134.13 | E29: 379 | F29: 468 | G29: 380.63 | H29: 1203 | I29: 1590 | J29: 1514.76 | L29: 0.824 | M29: 3.994 | N29: 4.525 | O29: 1.886 | P29: 2.673 | Q29: 1.797 | R29: 2.71 | S29: 6.667 | T29: 6.322
A30: 44 Teruel | B30: 402 | D30: 673 | E30: 76 | G30: 66 | H30: 478 | J30: 739 | L30: 0.322 | N30: 2.019 | O30: 0.238 | Q30: 0.253 | R30: 0.559 | T30: 2.272
A31: 50 Zaragoza | B31: 487 | C31: 841 | D31: 826.81 | E31: 339 | F31: 365 | G31: 660.98 | H31: 826 | I31: 1206 | J31: 1487.79 | L31: 0.209 | M31: 1.06 | N31: 1.984 | O31: 1.688 | P31: 1.818 | Q31: 3.966 | R31: 1.898 | S31: 2.878 | T31: 5.95
A32: ARAGON | B32: 1713 | C32: 1963 | D32: 2633.94 | E32: 794 | F32: 833 | G32: 1107.61 | H32: 2507 | I32: 2796 | J32: 3741.55 | L32: 1.355 | M32: 5.054 | N32: 8.528 | O32: 3.812 | P32: 4.491 | Q32: 6.016 | R32: 5.167 | S32: 9.545 | T32: 14.544
A34: 08 Barcelona
A35: 17 Girona
A36: 25 Lleida
A37: 43 Tarragona
A38: CATALUÑA
A40: 07 BALEARES | B40: 1404 | C40: 1231 | D40: 1230 | H40: 1404 | I40: 1231 | J40: 1230 | L40: 2.625 | M40: 1.711 | N40: 1.7 | R40: 2.625 | S40: 1.711 | T40: 1.7
A42: 05 Avila
A43: 09 Burgos
A44: 24 León
A45: 34 Palencia
A46: 37 Salamanca
A47: 40 Segovia
A48: 42 Soria
A49: 47 Valladolid | E49: 865 | H49: 865 | O49: 4.261 | R49: 4.261
A50: 49 Zamora
A51: CASTILLA Y LEON | E51: 865 | H51: 865 | O51: 4.261 | R51: 4.261
A53: 28 MADRID | B53: 1278 | C53: 907 | D53: 690 | E53: 144 | F53: 100 | G53: 103 | H53: 1422 | I53: 1007 | J53: 793 | L53: 1.743 | M53: 2.638 | N53: 2.155 | O53: 0.639 | P53: 0.455 | Q53: 0.334 | R53: 2.382 | S53: 3.094 | T53: 2.489
A55: 02 Albacete | E55: 2280 | F55: 1880 | G55: 2200 | H55: 2280 | I55: 1880 | J55: 2200 | O55: 15.96 | P55: 13.348 | Q55: 16.83 | R55: 15.96 | S55: 13.348 | T55: 16.83
A56: 13 Ciudad Real
A57: 16 Cuenca
A58: 19 Guadalajara
A59: 45 Toledo
A60: CASTILLA-MANCHA | E60: 2280 | F60: 1880 | G60: 2200 | H60: 2280 | I60: 1880 | J60: 2200 | O60: 15.96 | P60: 13.348 | Q60: 16.83 | R60: 15.96 | S60: 13.348 | T60: 16.83
A62: 03 Alicante
A63: 12 Castellón | B63: 67 | C63: 139 | D63: 139 | E63: 5 | F63: 4 | G63: 4 | H63: 72 | I63: 143 | J63: 143 | L63: 0.107 | M63: 0.021 | N63: 0.299 | O63: 0.024 | P63: 0.019 | Q63: 0.019 | R63: 0.131 | S63: 0.04 | T63: 0.318
A64: 46 Valencia
A65: C. VALENCIANA | B65: 67 | C65: 139 | D65: 139 | E65: 5 | F65: 4 | G65: 4 | H65: 72 | I65: 143 | J65: 143 | L65: 0.107 | M65: 0.021 | N65: 0.299 | O65: 0.024 | P65: 0.019 | Q65: 0.019 | R65: 0.131 | S65: 0.04 | T65: 0.318
A67: 30 R. DE MURCIA
A69: 06 Badajoz
A70: 10 Cáceres
A71: EXTREMADURA
A73: 04 Almería
A74: 11 Cádiz
A75: 14 Córdoba
A76: 18 Granada
A77: 21 Huelva
A78: 23 Jaén
A79: 29 Málaga
A80: 41 Sevilla
A81: ANDALUCIA
A83: 35 Palmas (Las)
A84: 38 S. C. Tenerife
A85: CANARIAS
A88: ESPAÑA | B88: 19700 | C88: 9708 | D88: 6084.96 | E88: 4088 | F88: 2817 | G88: 3414.61 | H88: 13938 | I88: 12525 | J88: 9499.57 | L88: 21.587 | M88: 23.915 | N88: 17.394 | O88: 24.696 | P88: 18.313 | Q88: 23.199 | R88: 46.283 | S88: 42.229 | T88: 40.593
B96: 221 | C96: 231 | E96: 221 | F96: 231 | H96: 221 | I96: 231

Sheet Tri5era
A1: AVANCES DE SUPERFICIE Y PRODUCCIÓN
A2: TRIGO BLANDO Y SEMI DE PRIMAVERA | J2: 2025 JULIO
A3: SUPERFICIE COSECHADA(*)
A4: PROVINCIAS | C4: SUPERFICIES (HA) | H4: PRODUCCIONES (1000 TM)
A5: Y
A6: CC-AA | C6: =E6-2 -> 2023 | D6: =E6-1 -> 2024 | E6: 2025 | F6: =E6 -> 2025 | H6: =J6-2 -> 2023 | I6: =J6-1 -> 2024 | J6: 2025 | K6: =J6 -> 2025
C7: DEFINITIVO | D7: DEFINITIVO | E7: PROVISIONAL | F7: =CONCATENATE(D6,"=100") -> 2024=100 | H7: DEFINITIVO | I7: DEFINITIVO | J7: PROVISIONAL | K7: =CONCATENATE(I6,"=100") -> 2024=100
A10: 15 A Coruña | C10: 654 | D10: 729 | E10: 255.34 | H10: 1.988 | I10: 1.677 | J10: 0.936
A11: 27 Lugo | C11: 1282 | D11: 1222 | E11: 379.82 | H11: 3.179 | I11: 2.688 | J11: 1.246
A12: 32 Ourense | C12: 3328 | D12: 3404 | E12: 711.62 | H12: 10.317 | I12: 9.872 | J12: 2.369
A13: 36 Pontevedra | C13: 124 | D13: 113 | E13: 45.24 | H13: 0.273 | I13: 0.254 | J13: 0.161
A14: GALICIA | C14: 5388 | D14: 5468 | E14: 1392.02 | F14: 25.45757132 | H14: 15.757 | I14: 14.491 | J14: 4.712 | K14: 32.51673452
A16: 33 P. DE ASTURIAS
A18: 39 CANTABRIA
A20: 1 Álava
A21: 20 Guipúzcoa
A22: 48 Vizcaya
A23: PAIS VASCO
A25: 31 NAVARRA
A27: 26 LA RIOJA
A29: 22 Huesca | C29: 1203 | D29: 1590 | E29: 1514.76 | H29: 2.71 | I29: 6.667 | J29: 6.322
A30: 44 Teruel | C30: 478 | E30: 739 | H30: 0.559 | J30: 2.272
A31: 50 Zaragoza | C31: 826 | D31: 1206 | E31: 1487.79 | H31: 1.898 | I31: 2.878 | J31: 5.95
A32: ARAGÓN | C32: 2507 | D32: 2796 | E32: 3741.55 | F32: 133.8179542 | H32: 5.167 | I32: 9.545 | J32: 14.544 | K32: 152.3729701
A34: 8 Barcelona
A35: 17 Girona
A36: 25 Lleida
A37: 43 Tarragona
A38: CATALUÑA
A40: 7 BALEARES | C40: 1404 | D40: 1231 | E40: 1230 | F40: 99.91876523 | H40: 2.625 | I40: 1.711 | J40: 1.7 | K40: 99.35710111
A42: 5 Ávila
A43: 9 Burgos
A44: 24 León
A45: 34 Palencia
A46: 37 Salamanca
A47: 40 Segovia
A48: 42 Soria
A49: 47 Valladolid | C49: 865 | H49: 4.261
A50: 49 Zamora
A51: CASTILLA Y LEÓN | C51: 865 | H51: 4.261
A53: 28 MADRID | C53: 1422 | D53: 1007 | E53: 793 | F53: 78.74875869 | H53: 2.382 | I53: 3.094 | J53: 2.489 | K53: 80.44602456
A55: 2 Albacete | C55: 2280 | D55: 1880 | E55: 2200 | H55: 15.96 | I55: 13.348 | J55: 16.83
A56: 13 Ciudad Real
A57: 16 Cuenca
A58: 19 Guadalajara
A59: 45 Toledo
A60: CASTILLA-MANCHA | C60: 2280 | D60: 1880 | E60: 2200 | F60: 117.0212766 | H60: 15.96 | I60: 13.348 | J60: 16.83 | K60: 126.0863051
A62: 3 Alicante
A63: 12 Castellón | C63: 72 | D63: 143 | E63: 143 | H63: 0.131 | I63: 0.04 | J63: 0.318
A64: 46 Valencia
A65: C. VALENCIANA | C65: 72 | D65: 143 | E65: 143 | F65: 100 | H65: 0.131 | I65: 0.04 | J65: 0.318 | K65: 795
A67: 30 R. DE MURCIA
A69: 6 Badajoz
A70: 10 Cáceres
A71: EXTREMADURA
A73: 4 Almería
A74: 11 Cádiz
A75: 14 Córdoba
A76: 18 Granada
A77: 21 Huelva
A78: 23 Jaén
A79: 29 Málaga
A80: 41 Sevilla
A81: ANDALUCÍA
A83: 35 Palmas (Las)
A84: 38 S. C. Tenerife
A85: CANARIAS
A88: ESPAÑA | C88: 13938 | D88: 12525 | E88: 9499.57 | F88: 75.84487026 | H88: 46.283 | I88: 42.229 | J88: 40.593 | K88: 96.12588506
A91: (*)Tipo de Superficie de mes/año solicitado

Sheet Tri6ral-SRT
A1: AVANCES DE SUPERFICIE Y PRODUCCIÓN
A2: TRIGO. RESUMEN GENERAL S/R/T | K2: 2025 JULIO
A3: SUPERFICIE COSECHADA(*)
A4: PROVINCIAS | B4: SUPERFICIES (HA) | E4: SUPERFICIES (HA) | H4: SUPERFICIES (HA) | L4: PRODUCCIONES (1000 TM) | O4: PRODUCCIONES (1000 TM) | R4: PRODUCCIONES (1000 TM)
A5: Y | B5: SECANO | E5: REGADIO | H5: TOTAL | L5: SECANO | O5: REGADIO | R5: TOTAL
A6: CC-AA | B6: =J6-2 -> 2023 | C6: =J6-1 -> 2024 | D6: =J6 -> 2025 | E6: =J6-2 -> 2023 | F6: =J6-1 -> 2024 | G6: =J6 -> 2025 | H6: =J6-2 -> 2023 | I6: =J6-1 -> 2024 | J6: 2025 | L6: =T6-2 -> 2023 | M6: =T6-1 -> 2024 | N6: =T6 -> 2025 | O6: =T6-2 -> 2023 | P6: =T6-1 -> 2024 | Q6: =T6 -> 2025 | R6: =T6-2 -> 2023 | S6: =T6-1 -> 2024 | T6: 2025
B7: DEFINITIVO | C7: DEFINITIVO | D7: PROVISIONAL | E7: DEFINITIVO | F7: DEFINITIVO | G7: PROVISIONAL | H7: DEFINITIVO | I7: DEFINITIVO | J7: PROVISIONAL | L7: DEFINITIVO | M7: DEFINITIVO | N7: PROVISIONAL | O7: DEFINITIVO | P7: DEFINITIVO | Q7: PROVISIONAL | R7: DEFINITIVO | S7: DEFINITIVO | T7: PROVISIONAL
A10: 15 Coruña (La) | B10: 1643 | C10: 1749 | D10: 2135.52 | H10: 1643 | I10: 1749 | J10: 2135.52 | L10: 4.995 | M10: 4.023 | N10: 7.818 | R10: 4.994 | S10: 4.022 | T10: 7.818
A11: 27 Lugo | B11: 3429 | C11: 3270 | D11: 3365.52 | H11: 3429 | I11: 3270 | J11: 3235.53 | L11: 8.504 | M11: 7.194 | N11: 10.829 | R11: 8.504 | S11: 7.193 | T11: 10.829
A12: 32 Orense | B12: 8325 | C12: 8540 | D12: 5963.1 | H12: 8325 | I12: 8540 | J12: 5963.1 | L12: 25.808 | M12: 25.278 | N12: 19.813 | R12: 25.808 | S12: 25.28 | T12: 19.813
A13: 36 Pontevedra | B13: 313 | C13: 288 | D13: 385.21 | H13: 313 | I13: 288 | J13: 385.21 | L13: 0.689 | M13: 0.648 | N13: 1.359 | R13: 0.689 | S13: 0.648 | T13: 1.359
A14: GALICIA | B14: 13710 | C14: 13847 | D14: 11849.35 | H14: 13710 | I14: 13847 | J14: 11719.36 | L14: 39.996 | M14: 37.143 | N14: 39.819 | R14: 39.995 | S14: 37.143 | T14: 39.819
A16: 33 P. DE ASTURIAS | D16: 61 | J16: 61 | N16: 0.11 | T16: 0.11
A18: 39 CANTABRIA | B18: 692 | C18: 733 | D18: 742 | E18: 142 | F18: 115 | G18: 120 | H18: 834 | I18: 848 | J18: 862 | L18: 1.522 | M18: 1.613 | N18: 1.632 | O18: 0.639 | P18: 0.518 | Q18: 0.54 | R18: 2.161 | S18: 2.131 | T18: 2.172
A20: 01 Alava | B20: 19290 | C20: 19717 | D20: 17819 | H20: 19290 | I20: 19717 | J20: 17819 | L20: 106.095 | M20: 138.019 | N20: 106.914 | R20: 106.095 | S20: 138.019 | T20: 106.914
A21: 20 Guipúzcoa | B21: 1 | C21: 1 | H21: 1 | I21: 1 | L21: 0.005 | M21: 0.006 | R21: 0.005 | S21: 0.006
A22: 48 Vizcaya
A23: PAIS VASCO | B23: 19291 | C23: 19718 | D23: 17819 | H23: 19291 | I23: 19718 | J23: 17819 | L23: 106.1 | M23: 138.025 | N23: 106.914 | R23: 106.1 | S23: 138.025 | T23: 106.914
A25: 31 NAVARRA | B25: 59254 | C25: 62619 | D25: 66691.77 | E25: 16025 | F25: 15151 | G25: 13585.33 | H25: 75279 | I25: 77770 | J25: 80277.1 | L25: 231.268 | M25: 325.055 | N25: 338.007 | O25: 89.484 | P25: 107.966 | Q25: 79.976 | R25: 320.741 | S25: 433.002 | T25: 417.982
A27: 26 LA RIOJA | B27: 16174 | C27: 16289 | D27: 16200 | E27: 8295 | F27: 7444 | G27: 7110 | H27: 24469 | I27: 23733 | J27: 23310 | L27: 37.944 | M27: 46.717 | N27: 96.069 | O27: 40.646 | P27: 32.009 | Q27: 42.893 | R27: 78.596 | S27: 78.726 | T27: 138.962
A29: 22 Huesca | B29: 42001 | C29: 56931 | D29: 57292.25 | E29: 19661 | F29: 24085 | G29: 19455.89 | H29: 61662 | I29: 81016 | J29: 76748.14 | L29: 74.174 | M29: 210.474 | N29: 228.451 | O29: 100.369 | P29: 141.861 | Q29: 91.742 | R29: 174.575 | S29: 352.323 | T29: 320.193
A30: 44 Teruel | B30: 20724 | C30: 30601 | D30: 34323 | E30: 3867 | F30: 4072 | G30: 3370 | H30: 24591 | I30: 34673 | J30: 37693 | L30: 16.496 | M30: 30.387 | N30: 102.172 | O30: 12.046 | P30: 12.367 | Q30: 16.623 | R30: 28.548 | S30: 42.744 | T30: 118.795
A31: 50 Zaragoza | B31: 46195 | C31: 74513 | D31: 70495.57 | E31: 32622 | F31: 32042 | G31: 30411.66 | H31: 78817 | I31: 106555 | J31: 100907.23 | L31: 35.432 | M31: 92.322 | N31: 167.41 | O31: 165.459 | P31: 162.613 | Q31: 163.218 | R31: 200.872 | S31: 254.956 | T31: 330.628
A32: ARAGON | B32: 108920 | C32: 162045 | D32: 162110.82 | E32: 56150 | F32: 60199 | G32: 53237.55 | H32: 165070 | I32: 222244 | J32: 215348.37 | L32: 126.102 | M32: 333.183 | N32: 498.033 | O32: 277.874 | P32: 316.841 | Q32: 271.583 | R32: 403.995 | S32: 650.023 | T32: 769.616
A34: 08 Barcelona | B34: 13814 | C34: 21430 | D34: 20918 | E34: 720 | F34: 370 | G34: 558 | H34: 14534 | I34: 21800 | J34: 21476 | L34: 14.173 | M34: 48.26 | N34: 99.541 | O34: 3.891 | P34: 2.017 | Q34: 3.279 | R34: 18.064 | S34: 50.278 | T34: 102.82
A35: 17 Girona | B35: 8940 | C35: 10050 | D35: 9307 | E35: 2849 | F35: 2693 | G35: 4291 | H35: 11789 | I35: 12743 | J35: 13598 | L35: 20.169 | M35: 23.899 | N35: 40.927 | O35: 8.638 | P35: 9.986 | Q35: 20.563 | R35: 28.805 | S35: 33.882 | T35: 61.49
A36: 25 Lleida | B36: 31281 | C36: 41616 | D36: 32463 | E36: 18611 | F36: 20748 | G36: 15648 | H36: 49892 | I36: 62364 | J36: 48111 | L36: 18.988 | M36: 83.274 | N36: 123.359 | O36: 86.169 | P36: 123.451 | Q36: 122.053 | R36: 105.16 | S36: 206.706 | T36: 245.412
A37: 43 Tarragona | B37: 5881 | C37: 6828 | D37: 6432 | E37: 84 | F37: 56 | G37: 69 | H37: 5965 | I37: 6884 | J37: 6501 | L37: 7.451 | M37: 8.194 | N37: 27.975 | O37: 0.133 | P37: 0.12 | Q37: 0.331 | R37: 7.585 | S37: 8.314 | T37: 28.306
A38: CATALUÑA | B38: 59916 | C38: 79924 | D38: 69120 | E38: 22264 | F38: 23867 | G38: 20566 | H38: 82180 | I38: 103791 | J38: 89686 | L38: 60.781 | M38: 163.627 | N38: 291.802 | O38: 98.831 | P38: 135.574 | Q38: 146.226 | R38: 159.614 | S38: 299.18 | T38: 438.028
A40: 07 BALEARES | B40: 5624 | C40: 4977 | D40: 4950 | H40: 5624 | I40: 4977 | J40: 4950 | L40: 10.517 | M40: 6.918 | N40: 6.97 | R40: 10.516 | S40: 6.918 | T40: 6.97
A42: 05 Avila | B42: 26236 | C42: 28655 | D42: 34778 | E42: 2938 | F42: 2332 | G42: 1592 | H42: 29174 | I42: 30987 | J42: 36370 | L42: 23.927 | M42: 54.616 | N42: 124.881 | O42: 14.702 | P42: 8.37 | Q42: 8.075 | R42: 38.629 | S42: 62.998 | T42: 132.956
A43: 09 Burgos | B43: 179425 | C43: 179988 | D43: 191823.04 | E43: 6245 | F43: 5941 | G43: 6516.25 | H43: 185670 | I43: 185929 | J43: 198339.29 | L43: 473.144 | M43: 965.096 | N43: 1020.3 | O43: 31.675 | P43: 42.318 | Q43: 46.114 | R43: 504.871 | S43: 1007.404 | T43: 1066.414
A44: 24 León | B44: 29553 | C44: 24023 | D44: 34895 | E44: 15880 | F44: 12194 | G44: 17329 | H44: 45433 | I44: 36217 | J44: 52224 | L44: 36.202 | M44: 83.576 | N44: 130.854 | O44: 102.966 | P44: 79.822 | Q44: 114.312 | R44: 139.173 | S44: 163.4 | T44: 245.166
A45: 34 Palencia | B45: 95429 | C45: 97617 | D45: 113201 | E45: 21109 | F45: 22666 | G45: 23202 | H45: 116538 | I45: 120283 | J45: 136403 | L45: 241.245 | M45: 434.786 | N45: 575.627 | O45: 109.703 | P45: 141.391 | Q45: 142.907 | R45: 350.99 | S45: 576.149 | T45: 718.534
A46: 37 Salamanca | B46: 51583 | C46: 61057 | D46: 62010 | E46: 5953 | F46: 7312 | G46: 7989 | H46: 57536 | I46: 68369 | J46: 69999 | L46: 118.641 | M46: 207.594 | N46: 260.117 | O46: 35.718 | P46: 42.41 | Q46: 46.329 | R46: 154.351 | S46: 249.992 | T46: 306.446
A47: 40 Segovia | B47: 60646 | C47: 60209 | D47: 75609 | E47: 3014 | F47: 2882 | G47: 3757 | H47: 63660 | I47: 63091 | J47: 79366 | L47: 94.972 | M47: 169.247 | N47: 306.795 | O47: 9.042 | P47: 14.355 | Q47: 19.078 | R47: 103.993 | S47: 183.594 | T47: 325.874
A48: 42 Soria | B48: 88419 | C48: 83858 | D48: 101953 | E48: 4210 | F48: 3858 | G48: 4951 | H48: 92629 | I48: 87716 | J48: 106904 | L48: 84.705 | M48: 319.247 | N48: 378.551 | O48: 13.051 | P48: 19.282 | Q48: 25.732 | R48: 97.756 | S48: 338.518 | T48: 404.283
A49: 47 Valladolid | B49: 89251 | C49: 101400 | D49: 102103 | E49: 17525 | F49: 20313 | G49: 21583 | H49: 106776 | I49: 121713 | J49: 123686 | L49: 142.534 | M49: 414.625 | N49: 542.645 | O49: 86.223 | P49: 135.325 | Q49: 157.263 | R49: 228.722 | S49: 549.945 | T49: 699.908
A50: 49 Zamora | B50: 46656 | C50: 48769 | D50: 60575 | E50: 9042 | F50: 9027 | G50: 9539 | H50: 55698 | I50: 57796 | J50: 70114 | L50: 74.323 | M50: 160.352 | N50: 281.504 | O50: 40.156 | P50: 46.354 | Q50: 66.773 | R50: 114.471 | S50: 206.696 | T50: 348.277
A51: CASTILLA Y LEON | B51: 667198 | C51: 685576 | D51: 776947.04 | E51: 85916 | F51: 86525 | G51: 96458.25 | H51: 753114 | I51: 772101 | J51: 873405.29 | L51: 1289.693 | M51: 2809.139 | N51: 3621.274 | O51: 443.236 | P51: 529.627 | Q51: 626.583 | R51: 1732.956 | S51: 3338.696 | T51: 4247.858
A53: 28 MADRID | B53: 24731 | C53: 17940 | D53: 13813 | E53: 3135 | F53: 2127 | G53: 2133 | H53: 27866 | I53: 20067 | J53: 15946 | L53: 33.708 | M53: 52.062 | N53: 43.143 | O53: 13.164 | P53: 9.608 | Q53: 7.076 | R53: 46.882 | S53: 61.668 | T53: 50.219
A55: 02 Albacete | B55: 29344 | C55: 40720 | D55: 41559 | E55: 17290 | F55: 13966 | G55: 14772 | H55: 46634 | I55: 54686 | J55: 56331 | L55: 9.537 | M55: 42.145 | N55: 94.547 | O55: 122.067 | P55: 100.807 | Q55: 113.006 | R55: 131.598 | S55: 142.934 | T55: 207.553
A56: 13 Ciudad Real | B56: 35828 | C56: 41209 | D56: 39743 | E56: 9483 | F56: 7795 | G56: 8407 | H56: 45311 | I56: 49004 | J56: 48150 | L56: 17.914 | M56: 90.454 | N56: 135.015 | O56: 26.913 | P56: 40.363 | Q56: 46.151 | R56: 44.844 | S56: 130.821 | T56: 181.166
A57: 16 Cuenca | B57: 37951 | C57: 45688 | D57: 57675 | E57: 2771 | F57: 3051 | G57: 3400 | H57: 40722 | I57: 48739 | J57: 61075 | L57: 30.361 | M57: 132.358 | N57: 171.2 | O57: 11.084 | P57: 15.853 | Q57: 16.977 | R57: 41.445 | S57: 148.223 | T57: 188.177
A58: 19 Guadalajara | B58: 68096 | C58: 65952 | D58: 65952 | E58: 1904 | F58: 2037 | G58: 2037 | H58: 70000 | I58: 67989 | J58: 67989 | L58: 122.505 | M58: 230.502 | N58: 250.51 | O58: 9.497 | P58: 12.183 | Q58: 11.191 | R58: 132.021 | S58: 242.655 | T58: 261.701
A59: 45 Toledo | B59: 47587 | C59: 48552 | D59: 55205 | E59: 5287 | F59: 4070 | G59: 5728 | H59: 52874 | I59: 52622 | J59: 60933 | L59: 18.035 | M59: 121.137 | N59: 193.218 | O59: 24.775 | P59: 18.677 | Q59: 27.494 | R59: 42.808 | S59: 139.793 | T59: 220.712
A60: CASTILLA-MANCHA | B60: 218806 | C60: 242121 | D60: 260134 | E60: 36735 | F60: 30919 | G60: 34344 | H60: 255541 | I60: 273040 | J60: 294478 | L60: 198.352 | M60: 616.596 | N60: 844.49 | O60: 194.336 | P60: 187.883 | Q60: 214.819 | R60: 392.716 | S60: 804.426 | T60: 1059.309
A62: 03 Alicante | B62: 1010 | C62: 737 | D62: 1171 | E62: 402 | F62: 351 | G62: 390 | H62: 1412 | I62: 1088 | J62: 1561 | L62: 0.293 | M62: 0.205 | N62: 2.128 | O62: 1.205 | P62: 0.735 | Q62: 2.044 | R62: 1.498 | S62: 0.94 | T62: 4.172
A63: 12 Castellón | B63: 344 | C63: 724 | D63: 819 | E63: 23 | F63: 21 | G63: 21 | H63: 367 | I63: 745 | J63: 840 | L63: 0.547 | M63: 0.109 | N63: 1.756 | O63: 0.11 | P63: 0.101 | Q63: 0.101 | R63: 0.658 | S63: 0.21 | T63: 1.857
A64: 46 Valencia | B64: 1065 | C64: 1084 | D64: 2394 | E64: 247 | F64: 213 | G64: 245 | H64: 1312 | I64: 1297 | J64: 2639 | L64: 0.853 | M64: 1.072 | N64: 6.943 | O64: 0.988 | P64: 0.98 | Q64: 1.073 | R64: 1.841 | S64: 2.052 | T64: 8.016
A65: C. VALENCIANA | B65: 2419 | C65: 2545 | D65: 4384 | E65: 672 | F65: 585 | G65: 656 | H65: 3091 | I65: 3130 | J65: 5040 | L65: 1.693 | M65: 1.386 | N65: 10.827 | O65: 2.303 | P65: 1.816 | Q65: 3.218 | R65: 3.997 | S65: 3.202 | T65: 14.045
A67: 30 R. DE MURCIA | B67: 5780 | C67: 6018 | D67: 6425 | E67: 1245 | F67: 694 | G67: 602 | H67: 7025 | I67: 6712 | J67: 7027 | L67: 2.428 | M67: 2.455 | N67: 0.433 | O67: 4.296 | P67: 2.404 | Q67: 3.741 | R67: 6.726 | S67: 4.858 | T67: 4.174
A69: 06 Badajoz | B69: 48847 | C69: 65215 | D69: 64922 | E69: 19693 | F69: 11381 | G69: 11331 | H69: 68540 | I69: 76596 | J69: 76253 | L69: 53.878 | M69: 205.753 | N69: 178.386 | O69: 56.657 | P69: 46.526 | Q69: 40.79 | R69: 110.541 | S69: 252.281 | T69: 219.176
A70: 10 Cáceres | B70: 1621 | C70: 2481 | D70: 1830 | E70: 3788 | F70: 1230 | G70: 1546 | H70: 5409 | I70: 3711 | J70: 3376 | L70: 1.305 | M70: 5.245 | N70: 3.883 | O70: 7.86 | P70: 3.426 | Q70: 4.274 | R70: 9.164 | S70: 8.671 | T70: 8.157
A71: EXTREMADURA | B71: 50468 | C71: 67696 | D71: 66752 | E71: 23481 | F71: 12611 | G71: 12877 | H71: 73949 | I71: 80307 | J71: 79629 | L71: 55.183 | M71: 210.998 | N71: 182.269 | O71: 64.517 | P71: 49.952 | Q71: 45.064 | R71: 119.705 | S71: 260.952 | T71: 227.333
A73: 04 Almería | B73: 210 | C73: 52 | D73: 1626 | E73: 99 | F73: 65 | G73: 24 | H73: 309 | I73: 117 | J73: 1650 | L73: 0.017 | M73: 0.016 | N73: 4.127 | O73: 0.269 | P73: 0.083 | Q73: 0.076 | R73: 0.286 | S73: 0.099 | T73: 4.203
A74: 11 Cádiz | B74: 49303 | C74: 50651 | D74: 50215 | E74: 5984 | F74: 5748 | G74: 4522.39 | H74: 55287 | I74: 56399 | J74: 54737.39 | L74: 65.474 | M74: 145.166 | N74: 143.862 | O74: 22.44 | P74: 20.681 | Q74: 13.312 | R74: 87.909 | S74: 165.82 | T74: 157.174
A75: 14 Córdoba | B75: 52018 | C75: 50225 | D75: 48080 | E75: 10688 | F75: 9951 | G75: 8790 | H75: 62706 | I75: 60176 | J75: 56870 | L75: 58.26 | M75: 181.061 | N75: 144.24 | O75: 39.546 | P75: 35.346 | Q75: 26.37 | R75: 97.788 | S75: 216.426 | T75: 170.61
A76: 18 Granada | B76: 8510 | C76: 5289 | D76: 8854 | E76: 2074 | F76: 1418 | G76: 1492 | H76: 10584 | I76: 6707 | J76: 10346 | L76: 3.957 | M76: 11.488 | N76: 18.542 | O76: 4.44 | P76: 5.807 | Q76: 7.115 | R76: 8.393 | S76: 17.292 | T76: 25.657
A77: 21 Huelva | B77: 12770 | C77: 12710 | D77: 13085 | E77: 1402 | F77: 950 | G77: 885 | H77: 14172 | I77: 13660 | J77: 13970 | L77: 21.62 | M77: 45.324 | N77: 46.802 | O77: 2.752 | P77: 3.982 | Q77: 3.928 | R77: 24.37 | S77: 49.3 | T77: 50.73
A78: 23 Jaén | B78: 4462 | C78: 5595 | D78: 4765 | E78: 2033 | F78: 1877 | G78: 2057 | H78: 6495 | I78: 7472 | J78: 6822 | L78: 3.436 | M78: 17.445 | N78: 13.901 | O78: 2.456 | P78: 7.508 | Q78: 8.166 | R78: 5.893 | S78: 24.952 | T78: 22.067
A79: 29 Málaga | B79: 11544 | C79: 13303 | D79: 14555 | E79: 2034 | F79: 1675 | G79: 1670 | H79: 13578 | I79: 14978 | J79: 16225 | L79: 9.235 | M79: 31.901 | N79: 32.287 | O79: 6.916 | P79: 7.8 | Q79: 9.682 | R79: 16.151 | S79: 39.702 | T79: 41.969
A80: 41 Sevilla | B80: 111899 | C80: 106130 | D80: 105050 | E80: 27260 | F80: 23430 | G80: 18390 | H80: 139159 | I80: 129560 | J80: 123440 | L80: 138.083 | M80: 371.349 | N80: 357.884 | O80: 81.426 | P80: 93.369 | Q80: 73.606 | R80: 219.559 | S80: 464.734 | T80: 431.49
A81: ANDALUCIA | B81: 250716 | C81: 243955 | D81: 246230 | E81: 51574 | F81: 45114 | G81: 37830.39 | H81: 302290 | I81: 289069 | J81: 284060.39 | L81: 300.082 | M81: 803.75 | N81: 761.645 | O81: 160.245 | P81: 174.576 | Q81: 142.255 | R81: 460.349 | S81: 978.325 | T81: 903.9
A83: 35 Palmas (Las) | B83: 93 | C83: 88 | D83: 88 | F83: 1 | G83: 1 | H83: 93 | I83: 89 | J83: 89 | L83: 0.093 | M83: 0.088 | N83: 0.088 | P83: 0.001 | Q83: 0.001 | R83: 0.093 | S83: 0.089 | T83: 0.089
A84: 38 S. C. Tenerife | B84: 113 | C84: 114 | D84: 114 | E84: 24 | F84: 23 | G84: 23 | H84: 137 | I84: 137 | J84: 137 | L84: 0.109 | M84: 0.108 | N84: 0.108 | O84: 0.036 | P84: 0.035 | Q84: 0.035 | R84: 0.145 | S84: 0.143 | T84: 0.143
A85: CANARIAS | B85: 206 | C85: 202 | D85: 202 | E85: 24 | F85: 24 | G85: 24 | H85: 230 | I85: 226 | J85: 226 | L85: 0.202 | M85: 0.196 | N85: 0.196 | O85: 0.036 | P85: 0.036 | Q85: 0.036 | R85: 0.238 | S85: 0.232 | T85: 0.232
A88: ESPAÑA | B88: 3007810 | C88: 1626205 | D88: 1724430.98 | E88: 305658 | F88: 285375 | G88: 279543.52 | H88: 1809563 | I88: 1911580 | J88: 2003844.51 | L88: 2495.571 | M88: 5548.863 | N88: 6843.633 | O88: 1389.607 | P88: 1548.81 | Q88: 1584.01 | R88: 3885.287 | S88: 7097.507 | T88: 8427.643
B96: 221 | C96: 231 | E96: 221 | F96: 231 | H96: 221 | I96: 231

Sheet Tri6ral
A1: AVANCES DE SUPERFICIE Y PRODUCCIÓN
A2: TRIGO. RESUMEN GENERAL | J2: 2025 JULIO
A3: SUPERFICIE COSECHADA(*)
A4: PROVINCIAS | C4: SUPERFICIES (HA) | H4: PRODUCCIONES (1000 TM)
A5: Y
A6: CC-AA | C6: =E6-2 -> 2023 | D6: =E6-1 -> 2024 | E6: 2025 | F6: =E6 -> 2025 | H6: =J6-2 -> 2023 | I6: =J6-1 -> 2024 | J6: 2025 | K6: =J6 -> 2025
C7: DEFINITIVO | D7: DEFINITIVO | E7: PROVISIONAL | F7: =CONCATENATE(D6,"=100") -> 2024=100 | H7: DEFINITIVO | I7: DEFINITIVO | J7: PROVISIONAL | K7: =CONCATENATE(I6,"=100") -> 2024=100
A10: 15 A Coruña | C10: 1643 | D10: 1749 | E10: 2135.52 | H10: 4.994 | I10: 4.022 | J10: 7.818
A11: 27 Lugo | C11: 3429 | D11: 3270 | E11: 3235.53 | H11: 8.504 | I11: 7.193 | J11: 10.829
A12: 32 Ourense | C12: 8325 | D12: 8540 | E12: 5963.1 | H12: 25.808 | I12: 25.28 | J12: 19.813
A13: 36 Pontevedra | C13: 313 | D13: 288 | E13: 385.21 | H13: 0.689 | I13: 0.648 | J13: 1.359
A14: GALICIA | C14: 13710 | D14: 13847 | E14: 11719.36 | F14: 84.6346501 | H14: 39.995 | I14: 37.143 | J14: 39.819 | K14: 107.2045877
A16: 33 P. DE ASTURIAS | E16: 61 | J16: 0.11
A18: 39 CANTABRIA | C18: 834 | D18: 848 | E18: 862 | F18: 101.6509434 | H18: 2.161 | I18: 2.131 | J18: 2.172 | K18: 101.9239794
A20: 1 Álava | C20: 19290 | D20: 19717 | E20: 17819 | H20: 106.095 | I20: 138.019 | J20: 106.914
A21: 20 Guipúzcoa | C21: 1 | D21: 1 | H21: 0.005 | I21: 0.006
A22: 48 Vizcaya
A23: PAIS VASCO | C23: 19291 | D23: 19718 | E23: 17819 | F23: 90.3692058 | H23: 106.1 | I23: 138.025 | J23: 106.914 | K23: 77.45988046
A25: 31 NAVARRA | C25: 75279 | D25: 77770 | E25: 80277.1 | F25: 103.2237367 | H25: 320.741 | I25: 433.002 | J25: 417.982 | K25: 96.53119385
A27: 26 LA RIOJA | C27: 24469 | D27: 23733 | E27: 23310 | F27: 98.2176716 | H27: 78.596 | I27: 78.726 | J27: 138.962 | K27: 176.5134771
A29: 22 Huesca | C29: 61662 | D29: 81016 | E29: 76748.14 | H29: 174.575 | I29: 352.323 | J29: 320.193
A30: 44 Teruel | C30: 24591 | D30: 34673 | E30: 37693 | H30: 28.548 | I30: 42.744 | J30: 118.795
A31: 50 Zaragoza | C31: 78817 | D31: 106555 | E31: 100907.23 | H31: 200.872 | I31: 254.956 | J31: 330.628
A32: ARAGÓN | C32: 165070 | D32: 222244 | E32: 215348.37 | F32: 96.89727057 | H32: 403.995 | I32: 650.023 | J32: 769.616 | K32: 118.3982721
A34: 8 Barcelona | C34: 14534 | D34: 21800 | E34: 21476 | H34: 18.064 | I34: 50.278 | J34: 102.82
A35: 17 Girona | C35: 11789 | D35: 12743 | E35: 13598 | H35: 28.805 | I35: 33.882 | J35: 61.49
A36: 25 Lleida | C36: 49892 | D36: 62364 | E36: 48111 | H36: 105.16 | I36: 206.706 | J36: 245.412
A37: 43 Tarragona | C37: 5965 | D37: 6884 | E37: 6501 | H37: 7.585 | I37: 8.314 | J37: 28.306
A38: CATALUÑA | C38: 82180 | D38: 103791 | E38: 89686 | F38: 86.41018971 | H38: 159.614 | I38: 299.18 | J38: 438.028 | K38: 146.4095194
A40: 7 BALEARES | C40: 5624 | D40: 4977 | E40: 4950 | F40: 99.45750452 | H40: 10.516 | I40: 6.918 | J40: 6.97 | K40: 100.7516623
A42: 5 Ávila | C42: 29174 | D42: 30987 | E42: 36370 | H42: 38.629 | I42: 62.998 | J42: 132.956
A43: 9 Burgos | C43: 185670 | D43: 185929 | E43: 198339.29 | H43: 504.871 | I43: 1007.404 | J43: 1066.414
A44: 24 León | C44: 45433 | D44: 36217 | E44: 52224 | H44: 139.173 | I44: 163.4 | J44: 245.166
A45: 34 Palencia | C45: 116538 | D45: 120283 | E45: 136403 | H45: 350.99 | I45: 576.149 | J45: 718.534
A46: 37 Salamanca | C46: 57536 | D46: 68369 | E46: 69999 | H46: 154.351 | I46: 249.992 | J46: 306.446
A47: 40 Segovia | C47: 63660 | D47: 63091 | E47: 79366 | H47: 103.993 | I47: 183.594 | J47: 325.874
A48: 42 Soria | C48: 92629 | D48: 87716 | E48: 106904 | H48: 97.756 | I48: 338.518 | J48: 404.283
A49: 47 Valladolid | C49: 106776 | D49: 121713 | E49: 123686 | H49: 228.722 | I49: 549.945 | J49: 699.908
A50: 49 Zamora | C50: 55698 | D50: 57796 | E50: 70114 | H50: 114.471 | I50: 206.696 | J50: 348.277
A51: CASTILLA Y LEÓN | C51: 753114 | D51: 772101 | E51: 873405.29 | F51: 113.1206008 | H51: 1732.956 | I51: 3338.696 | J51: 4247.858 | K51: 127.2310507
A53: 28 MADRID | C53: 27866 | D53: 20067 | E53: 15946 | F53: 79.46379628 | H53: 46.882 | I53: 61.668 | J53: 50.219 | K53: 81.43445547
A55: 2 Albacete | C55: 46634 | D55: 54686 | E55: 56331 | H55: 131.598 | I55: 142.934 | J55: 207.553
A56: 13 Ciudad Real | C56: 45311 | D56: 49004 | E56: 48150 | H56: 44.844 | I56: 130.821 | J56: 181.166
A57: 16 Cuenca | C57: 40722 | D57: 48739 | E57: 61075 | H57: 41.445 | I57: 148.223 | J57: 188.177
A58: 19 Guadalajara | C58: 70000 | D58: 67989 | E58: 67989 | H58: 132.021 | I58: 242.655 | J58: 261.701
A59: 45 Toledo | C59: 52874 | D59: 52622 | E59: 60933 | H59: 42.808 | I59: 139.793 | J59: 220.712
A60: CASTILLA-MANCHA | C60: 255541 | D60: 273040 | E60: 294478 | F60: 107.8515968 | H60: 392.716 | I60: 804.426 | J60: 1059.309 | K60: 131.6850773
A62: 3 Alicante | C62: 1412 | D62: 1088 | E62: 1561 | H62: 1.498 | I62: 0.94 | J62: 4.172
A63: 12 Castellón | C63: 367 | D63: 745 | E63: 840 | H63: 0.658 | I63: 0.21 | J63: 1.857
A64: 46 Valencia | C64: 1312 | D64: 1297 | E64: 2639 | H64: 1.841 | I64: 2.052 | J64: 8.016
A65: C. VALENCIANA | C65: 3091 | D65: 3130 | E65: 5040 | F65: 161.0223642 | H65: 3.997 | I65: 3.202 | J65: 14.045 | K65: 438.6321049
A67: 30 R. DE MURCIA | C67: 7025 | D67: 6712 | E67: 7027 | F67: 104.693087 | H67: 6.726 | I67: 4.858 | J67: 4.174 | K67: 85.92013174
A69: 6 Badajoz | C69: 68540 | D69: 76596 | E69: 76253 | H69: 110.541 | I69: 252.281 | J69: 219.176
A70: 10 Cáceres | C70: 5409 | D70: 3711 | E70: 3376 | H70: 9.164 | I70: 8.671 | J70: 8.157
A71: EXTREMADURA | C71: 73949 | D71: 80307 | E71: 79629 | F71: 99.15573985 | H71: 119.705 | I71: 260.952 | J71: 227.333 | K71: 87.11678776
A73: 4 Almería | C73: 309 | D73: 117 | E73: 1650 | H73: 0.286 | I73: 0.099 | J73: 4.203
A74: 11 Cádiz | C74: 55287 | D74: 56399 | E74: 54737.39 | H74: 87.909 | I74: 165.82 | J74: 157.174
A75: 14 Córdoba | C75: 62706 | D75: 60176 | E75: 56870 | H75: 97.788 | I75: 216.426 | J75: 170.61
A76: 18 Granada | C76: 10584 | D76: 6707 | E76: 10346 | H76: 8.393 | I76: 17.292 | J76: 25.657
A77: 21 Huelva | C77: 14172 | D77: 13660 | E77: 13970 | H77: 24.37 | I77: 49.3 | J77: 50.73
A78: 23 Jaén | C78: 6495 | D78: 7472 | E78: 6822 | H78: 5.893 | I78: 24.952 | J78: 22.067
A79: 29 Málaga | C79: 13578 | D79: 14978 | E79: 16225 | H79: 16.151 | I79: 39.702 | J79: 41.969
A80: 41 Sevilla | C80: 139159 | D80: 129560 | E80: 123440 | H80: 219.559 | I80: 464.734 | J80: 431.49
A81: ANDALUCÍA | C81: 302290 | D81: 289069 | E81: 284060.39 | F81: 98.26733064 | H81: 460.349 | I81: 978.325 | J81: 903.9 | K81: 92.39260982
A83: 35 Palmas (Las) | C83: 93 | D83: 89 | E83: 89 | H83: 0.093 | I83: 0.089 | J83: 0.089
A84: 38 S. C. Tenerife | C84: 137 | D84: 137 | E84: 137 | H84: 0.145 | I84: 0.143 | J84: 0.143
A85: CANARIAS | C85: 230 | D85: 226 | E85: 226 | F85: 100 | H85: 0.238 | I85: 0.232 | J85: 0.232 | K85: 100
A88: ESPAÑA | C88: 1809563 | D88: 1911580 | E88: 2003844.51 | F88: 104.8266099 | H88: 3885.287 | I88: 7097.507 | J88: 8427.643 | K88: 118.7408903
A91: (*)Tipo de Superficie de mes/año solicitado

Sheet Tri7uro-SRT
A1: AVANCES DE SUPERFICIE Y PRODUCCIÓN
A2: TRIGO DURO S/R/T | K2: 2025 JULIO
A3: SUPERFICIE COSECHADA(*)
A4: PROVINCIAS | B4: SUPERFICIES (HA) | E4: SUPERFICIES (HA) | H4: SUPERFICIES (HA) | L4: PRODUCCIONES (1000 TM) | O4: PRODUCCIONES (1000 TM) | R4: PRODUCCIONES (1000 TM)
A5: Y | B5: SECANO | E5: REGADIO | H5: TOTAL | L5: SECANO | O5: REGADIO | R5: TOTAL
A6: CC-AA | B6: =J6-2 -> 2023 | C6: =J6-1 -> 2024 | D6: =J6 -> 2025 | E6: =J6-2 -> 2023 | F6: =J6-1 -> 2024 | G6: =J6 -> 2025 | H6: =J6-2 -> 2023 | I6: =J6-1 -> 2024 | J6: 2025 | L6: =T6-2 -> 2023 | M6: =T6-1 -> 2024 | N6: =T6 -> 2025 | O6: =T6-2 -> 2023 | P6: =T6-1 -> 2024 | Q6: =T6 -> 2025 | R6: =T6-2 -> 2023 | S6: =T6-1 -> 2024 | T6: 2025
B7: DEFINITIVO | C7: DEFINITIVO | D7: PROVISIONAL | E7: DEFINITIVO | F7: DEFINITIVO | G7: PROVISIONAL | H7: DEFINITIVO | I7: DEFINITIVO | J7: PROVISIONAL | L7: DEFINITIVO | M7: DEFINITIVO | N7: PROVISIONAL | O7: DEFINITIVO | P7: DEFINITIVO | Q7: PROVISIONAL | R7: DEFINITIVO | S7: DEFINITIVO | T7: PROVISIONAL
A10: 15 Coruña (La) | B10: 8 | C10: 12 | D10: 7.8 | H10: 8 | I10: 12 | J10: 7.8 | L10: 0.024 | M10: 0.028 | N10: 0.016 | R10: 0.024 | S10: 0.027 | T10: 0.016
A11: 27 Lugo | B11: 225 | C11: 216 | D11: 200.34 | H11: 225 | I11: 216 | J11: 70.34 | L11: 0.558 | M11: 0.475 | N11: 0.442 | R11: 0.558 | S11: 0.475 | T11: 0.442
A12: 32 Orense | B12: 4 | C12: 8 | D12: 32.85 | H12: 4 | I12: 8 | J12: 32.85 | L12: 0.013 | M12: 0.024 | N12: 0.076 | R12: 0.013 | S12: 0.024 | T12: 0.076
A13: 36 Pontevedra | B13: 3 | C13: 3 | D13: 8.18 | H13: 3 | I13: 3 | J13: 8.18 | L13: 0.007 | M13: 0.007 | N13: 0.015 | R13: 0.007 | S13: 0.007 | T13: 0.015
A14: GALICIA | B14: 240 | C14: 239 | D14: 249.17 | H14: 240 | I14: 239 | J14: 119.17 | L14: 0.602 | M14: 0.534 | N14: 0.549 | R14: 0.602 | S14: 0.533 | T14: 0.549
A16: 33 P. DE ASTURIAS
A18: 39 CANTABRIA
A20: 01 Alava
A21: 20 Guipúzcoa
A22: 48 Vizcaya
A23: PAIS VASCO
A25: 31 NAVARRA | B25: 125 | C25: 775 | D25: 815.94 | E25: 324 | F25: 510 | G25: 404 | H25: 449 | I25: 1285 | J25: 1219.94 | L25: 0.115 | M25: 0.851 | N25: 2.04 | O25: 1.801 | P25: 3.399 | Q25: 2.206 | R25: 1.916 | S25: 4.25 | T25: 4.246
A27: 26 LA RIOJA | B27: 21 | G27: 10 | H27: 21 | J27: 10 | L27: 0.023 | Q27: 0.045 | R27: 0.023 | T27: 0.045
A29: 22 Huesca | B29: 830 | C29: 818 | D29: 691.6 | E29: 764 | F29: 728 | G29: 473.37 | H29: 1594 | I29: 1546 | J29: 1164.96 | L29: 0.729 | M29: 1.906 | N29: 2.614 | O29: 4.029 | P29: 3.199 | Q29: 2.821 | R29: 4.758 | S29: 5.105 | T29: 5.435
A30: 44 Teruel | B30: 574 | C30: 600 | D30: 665 | E30: 59 | F30: 92 | G30: 55 | H30: 633 | I30: 692 | J30: 720 | L30: 0.381 | M30: 0.315 | N30: 1.198 | O30: 0.148 | P30: 0.221 | Q30: 0.125 | R30: 0.528 | S30: 0.536 | T30: 1.323
A31: 50 Zaragoza | B31: 21869 | C31: 32497 | D31: 29155.26 | E31: 15675 | F31: 13790 | G31: 13891.78 | H31: 37544 | I31: 46287 | J31: 43047.04 | L31: 16.795 | M31: 32.627 | N31: 64.142 | O31: 79.065 | P31: 69.557 | Q31: 62.513 | R31: 95.869 | S31: 102.18 | T31: 126.655
A32: ARAGON | B32: 23273 | C32: 33915 | D32: 30511.86 | E32: 16498 | F32: 14610 | G32: 14420.15 | H32: 39771 | I32: 48525 | J32: 44932 | L32: 17.905 | M32: 34.848 | N32: 67.954 | O32: 83.242 | P32: 72.977 | Q32: 65.459 | R32: 101.155 | S32: 107.821 | T32: 133.413
A34: 08 Barcelona | B34: 8 | C34: 11 | D34: 36 | G34: 2 | H34: 8 | I34: 11 | J34: 38 | L34: 0.008 | M34: 0.025 | N34: 0.174 | Q34: 0.014 | R34: 0.008 | S34: 0.025 | T34: 0.188
A35: 17 Girona | B35: 14 | C35: 8 | D35: 16 | E35: 9 | F35: 12 | G35: 14 | H35: 23 | I35: 20 | J35: 30 | L35: 0.019 | M35: 0.015 | N35: 0.064 | O35: 0.032 | P35: 0.035 | Q35: 0.06 | R35: 0.051 | S35: 0.05 | T35: 0.124
A36: 25 Lleida | B36: 108 | C36: 28 | D36: 23 | E36: 58 | F36: 30 | G36: 18 | H36: 166 | I36: 58 | J36: 41 | L36: 0.035 | M36: 0.047 | N36: 0.087 | O36: 0.253 | P36: 0.148 | Q36: 0.139 | R36: 0.288 | S36: 0.195 | T36: 0.226
A37: 43 Tarragona | B37: 6 | C37: 7 | D37: 13 | F37: 1 | G37: 1 | H37: 6 | I37: 8 | J37: 14 | L37: 0.003 | M37: 0.003 | N37: 0.032 | P37: 0.004 | Q37: 0.005 | R37: 0.003 | S37: 0.007 | T37: 0.037
A38: CATALUÑA | B38: 136 | C38: 54 | D38: 88 | E38: 67 | F38: 43 | G38: 35 | H38: 203 | I38: 97 | J38: 123 | L38: 0.065 | M38: 0.09 | N38: 0.357 | O38: 0.285 | P38: 0.187 | Q38: 0.218 | R38: 0.35 | S38: 0.277 | T38: 0.575
A40: 07 BALEARES | B40: 8 | C40: 52 | D40: 50 | H40: 8 | I40: 52 | J40: 50 | L40: 0.015 | M40: 0.072 | N40: 0.07 | R40: 0.015 | S40: 0.072 | T40: 0.07
A42: 05 Avila | B42: 13 | C42: 17 | D42: 33 | H42: 13 | I42: 17 | J42: 33 | L42: 0.012 | M42: 0.015 | N42: 0.077 | R42: 0.012 | S42: 0.015 | T42: 0.077
A43: 09 Burgos | B43: 256 | C43: 329 | D43: 300.97 | E43: 112 | F43: 117 | G43: 55.79 | H43: 368 | I43: 446 | J43: 356.76 | L43: 0.548 | M43: 1.394 | N43: 1.239 | O43: 0.527 | P43: 0.759 | Q43: 0.363 | R43: 1.074 | S43: 2.153 | T43: 1.602
A44: 24 León | B44: 8 | C44: 2 | D44: 3 | E44: 19 | F44: 9 | G44: 23 | H44: 27 | I44: 11 | J44: 26 | L44: 0.008 | M44: 0.006 | N44: 0.009 | O44: 0.114 | P44: 0.05 | Q44: 0.092 | R44: 0.122 | S44: 0.056 | T44: 0.101
A45: 34 Palencia | B45: 50 | C45: 25 | D45: 5 | E45: 43 | F45: 5 | G45: 15 | H45: 93 | I45: 30 | J45: 20 | L45: 0.07 | M45: 0.082 | N45: 0.025 | O45: 0.163 | P45: 0.033 | Q45: 0.075 | R45: 0.233 | S45: 0.115 | T45: 0.1
A46: 37 Salamanca | B46: 56 | C46: 54 | D46: 25 | E46: 5 | F46: 1 | G46: 11 | H46: 61 | I46: 55 | J46: 36 | L46: 0.123 | M46: 0.173 | N46: 0.09 | O46: 0.028 | P46: 0.005 | Q46: 0.057 | R46: 0.151 | S46: 0.178 | T46: 0.147
A47: 40 Segovia | B47: 39 | C47: 52 | D47: 43 | E47: 17 | F47: 9 | G47: 9 | H47: 56 | I47: 61 | J47: 52 | L47: 0.04 | M47: 0.136 | N47: 0.148 | O47: 0.051 | P47: 0.032 | Q47: 0.032 | R47: 0.091 | S47: 0.168 | T47: 0.18
A48: 42 Soria | B48: 3 | C48: 15 | D48: 1 | F48: 23 | G48: 23 | H48: 3 | I48: 38 | J48: 24 | L48: 0.002 | M48: 0.047 | N48: 0.003 | P48: 0.106 | Q48: 0.106 | R48: 0.002 | S48: 0.153 | T48: 0.109
A49: 47 Valladolid | B49: 127 | C49: 17 | D49: 27 | E49: 169 | F49: 188 | G49: 62 | H49: 296 | I49: 205 | J49: 89 | L49: 0.169 | M49: 0.066 | N49: 0.127 | O49: 0.727 | P49: 0.949 | Q49: 0.427 | R49: 0.895 | S49: 1.015 | T49: 0.554
A50: 49 Zamora | B50: 29 | C50: 32 | D50: 42 | E50: 27 | F50: 7 | G50: 5 | H50: 56 | I50: 39 | J50: 47 | L50: 0.039 | M50: 0.098 | N50: 0.147 | O50: 0.12 | P50: 0.033 | Q50: 0.035 | R50: 0.159 | S50: 0.131 | T50: 0.182
A51: CASTILLA Y LEON | B51: 581 | C51: 543 | D51: 479.97 | E51: 392 | F51: 359 | G51: 203.79 | H51: 973 | I51: 902 | J51: 683.76 | L51: 1.011 | M51: 2.017 | N51: 1.865 | O51: 1.73 | P51: 1.967 | Q51: 1.187 | R51: 2.739 | S51: 3.984 | T51: 3.052
A53: 28 MADRID | B53: 29 | C53: 73 | D53: 19 | E53: 262 | F53: 134 | G53: 80 | H53: 291 | I53: 207 | J53: 99 | L53: 0.026 | M53: 0.084 | N53: 0.056 | O53: 0.416 | P53: 0.536 | Q53: 0.422 | R53: 0.441 | S53: 0.62 | T53: 0.478
A55: 02 Albacete | B55: 44 | C55: 220 | D55: 162 | E55: 2105 | F55: 1436 | G55: 619 | H55: 2149 | I55: 1656 | J55: 781 | L55: 0.013 | M55: 0.22 | N55: 0.36 | O55: 14.478 | P55: 10.236 | Q55: 4.7 | R55: 14.49 | S55: 10.455 | T55: 5.06
A56: 13 Ciudad Real | B56: 139 | C56: 73 | D56: 93 | E56: 254 | F56: 141 | G56: 97 | H56: 393 | I56: 214 | J56: 190 | L56: 0.085 | M56: 0.08 | N56: 0.205 | O56: 0.749 | P56: 0.564 | Q56: 0.446 | R56: 0.835 | S56: 0.644 | T56: 0.651
A57: 16 Cuenca | B57: 275 | C57: 315 | D57: 366 | E57: 101 | F57: 62 | G57: 80 | H57: 376 | I57: 377 | J57: 446 | L57: 0.22 | M57: 0.788 | N57: 1.06 | O57: 0.404 | P57: 0.31 | Q57: 0.377 | R57: 0.624 | S57: 1.098 | T57: 1.437
A58: 19 Guadalajara | B58: 162 | C58: 180 | D58: 180 | E58: 47 | F58: 26 | G58: 26 | H58: 209 | I58: 206 | J58: 206 | L58: 0.243 | M58: 0.27 | N58: 0.576 | O58: 0.212 | P58: 0.117 | Q58: 0.13 | R58: 0.455 | S58: 0.387 | T58: 0.706
A59: 45 Toledo | B59: 1188 | C59: 877 | D59: 900 | E59: 152 | F59: 115 | G59: 154 | H59: 1340 | I59: 992 | J59: 1054 | L59: 0.404 | M59: 1.929 | N59: 3.15 | O59: 0.638 | P59: 0.483 | Q59: 0.739 | R59: 1.042 | S59: 2.412 | T59: 3.889
A60: CASTILLA-MANCHA | B60: 1808 | C60: 1665 | D60: 1701 | E60: 2659 | F60: 1780 | G60: 976 | H60: 4467 | I60: 3445 | J60: 2677 | L60: 0.965 | M60: 3.287 | N60: 5.351 | O60: 16.481 | P60: 11.71 | Q60: 6.392 | R60: 17.446 | S60: 14.996 | T60: 11.743
A62: 03 Alicante | B62: 55 | C62: 65 | D62: 78 | E62: 69 | F62: 40 | G62: 25 | H62: 124 | I62: 105 | J62: 103 | L62: 0.016 | M62: 0.017 | N62: 0.165 | O62: 0.194 | P62: 0.082 | Q62: 0.068 | R62: 0.209 | S62: 0.099 | T62: 0.233
A63: 12 Castellón | B63: 8 | C63: 30 | D63: 30 | H63: 8 | I63: 30 | J63: 30 | L63: 0.013 | M63: 0.004 | N63: 0.059 | R63: 0.013 | S63: 0.004 | T63: 0.059
A64: 46 Valencia | B64: 27 | C64: 12 | D64: 57 | E64: 1 | F64: 1 | G64: 1 | H64: 28 | I64: 13 | J64: 58 | L64: 0.023 | M64: 0.012 | N64: 0.165 | O64: 0.005 | P64: 0.005 | Q64: 0.004 | R64: 0.027 | S64: 0.017 | T64: 0.169
A65: C. VALENCIANA | B65: 90 | C65: 107 | D65: 165 | E65: 70 | F65: 41 | G65: 26 | H65: 160 | I65: 148 | J65: 191 | L65: 0.052 | M65: 0.033 | N65: 0.389 | O65: 0.199 | P65: 0.087 | Q65: 0.072 | R65: 0.249 | S65: 0.12 | T65: 0.461
A67: 30 R. DE MURCIA | B67: 180 | C67: 82 | D67: 101 | E67: 35 | F67: 95 | G67: 76 | H67: 215 | I67: 177 | J67: 177 | L67: 0.043 | M67: 0.019 | N67: 0.023 | O67: 0.114 | P67: 0.314 | Q67: 0.251 | R67: 0.157 | S67: 0.333 | T67: 0.274
A69: 06 Badajoz | B69: 2429 | C69: 2316 | D69: 2825 | E69: 960 | F69: 763 | G69: 759 | H69: 3389 | I69: 3079 | J69: 3584 | L69: 2.786 | M69: 6.557 | N69: 10.227 | O69: 2.866 | P69: 2.809 | Q69: 3.572 | R69: 5.652 | S69: 9.366 | T69: 13.799
A70: 10 Cáceres | B70: 192 | C70: 175 | E70: 31 | F70: 15 | G70: 17 | H70: 223 | I70: 190 | J70: 17 | L70: 0.169 | M70: 0.291 | O70: 0.071 | P70: 0.032 | Q70: 0.056 | R70: 0.24 | S70: 0.324 | T70: 0.056
A71: EXTREMADURA | B71: 2621 | C71: 2491 | D71: 2825 | E71: 991 | F71: 778 | G71: 776 | H71: 3612 | I71: 3269 | J71: 3601 | L71: 2.955 | M71: 6.848 | N71: 10.227 | O71: 2.937 | P71: 2.841 | Q71: 3.628 | R71: 5.892 | S71: 9.69 | T71: 13.855
A73: 04 Almería | B73: 10 | D73: 72 | E73: 8 | G73: 4 | H73: 18 | J73: 76 | L73: 0.001 | N73: 0.143 | O73: 0.009 | Q73: 0.012 | R73: 0.009 | T73: 0.155
A74: 11 Cádiz | B74: 39003 | C74: 41678 | D74: 37999 | E74: 4724 | F74: 4121 | G74: 3185.42 | H74: 43727 | I74: 45799 | J74: 41184.42 | L74: 52.849 | M74: 129.285 | N74: 94.998 | O74: 20.786 | P74: 14.222 | Q74: 7.964 | R74: 73.635 | S74: 143.507 | T74: 102.962
A75: 14 Córdoba | B75: 31120 | C75: 29065 | D75: 27750 | E75: 8740 | F75: 7873 | G75: 6400 | H75: 39860 | I75: 36938 | J75: 34150 | L75: 37.344 | M75: 101.728 | N75: 83.25 | O75: 32.338 | P75: 27.556 | Q75: 19.2 | R75: 69.682 | S75: 129.283 | T75: 102.45
A76: 18 Granada | B76: 1198 | C76: 847 | D76: 1344 | E76: 980 | F76: 675 | G76: 645 | H76: 2178 | I76: 1522 | J76: 1989 | L76: 0.655 | M76: 1.682 | N76: 3.099 | O76: 2.299 | P76: 3.302 | Q76: 3.077 | R76: 2.954 | S76: 4.984 | T76: 6.176
A77: 21 Huelva | B77: 9120 | C77: 8550 | D77: 8980 | E77: 902 | F77: 610 | G77: 610 | H77: 10022 | I77: 9160 | J77: 9590 | L77: 15.048 | M77: 29.925 | N77: 31.779 | O77: 1.672 | P77: 2.655 | Q77: 2.745 | R77: 16.72 | S77: 32.58 | T77: 34.524
A78: 23 Jaén | B78: 2640 | C78: 3293 | D78: 2796 | E78: 1883 | F78: 1675 | G78: 1901 | H78: 4523 | I78: 4968 | J78: 4697 | L78: 1.98 | M78: 10.538 | N78: 8.388 | O78: 2.26 | P78: 6.7 | Q78: 7.604 | R78: 4.24 | S78: 17.238 | T78: 15.992
A79: 29 Málaga | B79: 8255 | C79: 8844 | D79: 9123 | E79: 1657 | F79: 1362 | G79: 1281 | H79: 9912 | I79: 10206 | J79: 10404 | L79: 6.604 | M79: 22.11 | N79: 18.164 | O79: 5.634 | P79: 6.47 | Q79: 7.776 | R79: 12.238 | S79: 28.58 | T79: 25.94
A80: 41 Sevilla | B80: 61794 | C80: 53480 | D80: 50740 | E80: 14483 | F80: 12610 | G80: 9080 | H80: 76277 | I80: 66090 | J80: 59820 | L80: 67.973 | M80: 181.832 | N80: 162.368 | O80: 40.552 | P80: 47.918 | Q80: 34.504 | R80: 108.526 | S80: 229.75 | T80: 196.872
A81: ANDALUCIA | B81: 153140 | C81: 145757 | D81: 138804 | E81: 33377 | F81: 28926 | G81: 23106.42 | H81: 186517 | I81: 174683 | J81: 161910.42 | L81: 182.454 | M81: 477.1 | N81: 402.189 | O81: 105.55 | P81: 108.823 | Q81: 82.882 | R81: 288.004 | S81: 585.922 | T81: 485.071
A83: 35 Palmas (Las)
A84: 38 S. C. Tenerife
A85: CANARIAS
A88: ESPAÑA | B88: 364504 | C88: 185753 | D88: 175809.94 | E88: 54675 | F88: 47276 | G88: 40113.36 | H88: 236927 | I88: 233029 | J88: 215793.29 | L88: 206.231 | M88: 525.783 | N88: 491.07 | O88: 212.755 | P88: 202.841 | Q88: 162.762 | R88: 418.989 | S88: 728.618 | T88: 653.832
B96: 221 | C96: 231 | E96: 221 | F96: 231 | H96: 221 | I96: 231

Sheet Tri7uro
A1: AVANCES DE SUPERFICIE Y PRODUCCIÓN
A2: TRIGO DURO | J2: 2025 JULIO
A3: SUPERFICIE COSECHADA(*)
A4: PROVINCIAS | C4: SUPERFICIES (HA) | H4: PRODUCCIONES (1000 TM)
A5: Y
A6: CC-AA | C6: =E6-2 -> 2023 | D6: =E6-1 -> 2024 | E6: 2025 | F6: =E6 -> 2025 | H6: =J6-2 -> 2023 | I6: =J6-1 -> 2024 | J6: 2025 | K6: =J6 -> 2025
C7: DEFINITIVO | D7: DEFINITIVO | E7: PROVISIONAL | F7: =CONCATENATE(D6,"=100") -> 2024=100 | H7: DEFINITIVO | I7: DEFINITIVO | J7: PROVISIONAL | K7: =CONCATENATE(I6,"=100") -> 2024=100
A10: 15 A Coruña | C10: 8 | D10: 12 | E10: 7.8 | H10: 0.024 | I10: 0.027 | J10: 0.016
A11: 27 Lugo | C11: 225 | D11: 216 | E11: 70.34 | H11: 0.558 | I11: 0.475 | J11: 0.442
A12: 32 Ourense | C12: 4 | D12: 8 | E12: 32.85 | H12: 0.013 | I12: 0.024 | J12: 0.076
A13: 36 Pontevedra | C13: 3 | D13: 3 | E13: 8.18 | H13: 0.007 | I13: 0.007 | J13: 0.015
A14: GALICIA | C14: 240 | D14: 239 | E14: 119.17 | F14: 49.86192469 | H14: 0.602 | I14: 0.533 | J14: 0.549 | K14: 103.0018762
A16: 33 P. DE ASTURIAS
A18: 39 CANTABRIA
A20: 1 Álava
A21: 20 Guipúzcoa
A22: 48 Vizcaya
A23: PAIS VASCO
A25: 31 NAVARRA | C25: 449 | D25: 1285 | E25: 1219.94 | F25: 94.93696498 | H25: 1.916 | I25: 4.25 | J25: 4.246 | K25: 99.90588235
A27: 26 LA RIOJA | C27: 21 | E27: 10 | H27: 0.023 | J27: 0.045
A29: 22 Huesca | C29: 1594 | D29: 1546 | E29: 1164.96 | H29: 4.758 | I29: 5.105 | J29: 5.435
A30: 44 Teruel | C30: 633 | D30: 692 | E30: 720 | H30: 0.528 | I30: 0.536 | J30: 1.323
A31: 50 Zaragoza | C31: 37544 | D31: 46287 | E31: 43047.04 | H31: 95.869 | I31: 102.18 | J31: 126.655
A32: ARAGÓN | C32: 39771 | D32: 48525 | E32: 44932 | F32: 92.59556929 | H32: 101.155 | I32: 107.821 | J32: 133.413 | K32: 123.7356359
A34: 8 Barcelona | C34: 8 | D34: 11 | E34: 38 | H34: 0.008 | I34: 0.025 | J34: 0.188
A35: 17 Girona | C35: 23 | D35: 20 | E35: 30 | H35: 0.051 | I35: 0.05 | J35: 0.124
A36: 25 Lleida | C36: 166 | D36: 58 | E36: 41 | H36: 0.288 | I36: 0.195 | J36: 0.226
A37: 43 Tarragona | C37: 6 | D37: 8 | E37: 14 | H37: 0.003 | I37: 0.007 | J37: 0.037
A38: CATALUÑA | C38: 203 | D38: 97 | E38: 123 | F38: 126.8041237 | H38: 0.35 | I38: 0.277 | J38: 0.575 | K38: 207.5812274
A40: 7 BALEARES | C40: 8 | D40: 52 | E40: 50 | F40: 96.15384615 | H40: 0.015 | I40: 0.072 | J40: 0.07 | K40: 97.22222222
A42: 5 Ávila | C42: 13 | D42: 17 | E42: 33 | H42: 0.012 | I42: 0.015 | J42: 0.077
A43: 9 Burgos | C43: 368 | D43: 446 | E43: 356.76 | H43: 1.074 | I43: 2.153 | J43: 1.602
A44: 24 León | C44: 27 | D44: 11 | E44: 26 | H44: 0.122 | I44: 0.056 | J44: 0.101
A45: 34 Palencia | C45: 93 | D45: 30 | E45: 20 | H45: 0.233 | I45: 0.115 | J45: 0.1
A46: 37 Salamanca | C46: 61 | D46: 55 | E46: 36 | H46: 0.151 | I46: 0.178 | J46: 0.147
A47: 40 Segovia | C47: 56 | D47: 61 | E47: 52 | H47: 0.091 | I47: 0.168 | J47: 0.18
A48: 42 Soria | C48: 3 | D48: 38 | E48: 24 | H48: 0.002 | I48: 0.153 | J48: 0.109
A49: 47 Valladolid | C49: 296 | D49: 205 | E49: 89 | H49: 0.895 | I49: 1.015 | J49: 0.554
A50: 49 Zamora | C50: 56 | D50: 39 | E50: 47 | H50: 0.159 | I50: 0.131 | J50: 0.182
A51: CASTILLA Y LEÓN | C51: 973 | D51: 902 | E51: 683.76 | F51: 75.80487805 | H51: 2.739 | I51: 3.984 | J51: 3.052 | K51: 76.6064257
A53: 28 MADRID | C53: 291 | D53: 207 | E53: 99 | F53: 47.82608696 | H53: 0.441 | I53: 0.62 | J53: 0.478 | K53: 77.09677419
A55: 2 Albacete | C55: 2149 | D55: 1656 | E55: 781 | H55: 14.49 | I55: 10.455 | J55: 5.06
A56: 13 Ciudad Real | C56: 393 | D56: 214 | E56: 190 | H56: 0.835 | I56: 0.644 | J56: 0.651
A57: 16 Cuenca | C57: 376 | D57: 377 | E57: 446 | H57: 0.624 | I57: 1.098 | J57: 1.437
A58: 19 Guadalajara | C58: 209 | D58: 206 | E58: 206 | H58: 0.455 | I58: 0.387 | J58: 0.706
A59: 45 Toledo | C59: 1340 | D59: 992 | E59: 1054 | H59: 1.042 | I59: 2.412 | J59: 3.889
A60: CASTILLA-MANCHA | C60: 4467 | D60: 3445 | E60: 2677 | F60: 77.70682148 | H60: 17.446 | I60: 14.996 | J60: 11.743 | K60: 78.30754868
A62: 3 Alicante | C62: 124 | D62: 105 | E62: 103 | H62: 0.209 | I62: 0.099 | J62: 0.233
A63: 12 Castellón | C63: 8 | D63: 30 | E63: 30 | H63: 0.013 | I63: 0.004 | J63: 0.059
A64: 46 Valencia | C64: 28 | D64: 13 | E64: 58 | H64: 0.027 | I64: 0.017 | J64: 0.169
A65: C. VALENCIANA | C65: 160 | D65: 148 | E65: 191 | F65: 129.0540541 | H65: 0.249 | I65: 0.12 | J65: 0.461 | K65: 384.1666667
A67: 30 R. DE MURCIA | C67: 215 | D67: 177 | E67: 177 | F67: 100 | H67: 0.157 | I67: 0.333 | J67: 0.274 | K67: 82.28228228
A69: 6 Badajoz | C69: 3389 | D69: 3079 | E69: 3584 | H69: 5.652 | I69: 9.366 | J69: 13.799
A70: 10 Cáceres | C70: 223 | D70: 190 | E70: 17 | H70: 0.24 | I70: 0.324 | J70: 0.056
A71: EXTREMADURA | C71: 3612 | D71: 3269 | E71: 3601 | F71: 110.156011 | H71: 5.892 | I71: 9.69 | J71: 13.855 | K71: 142.9824561
A73: 4 Almería | C73: 18 | E73: 76 | H73: 0.009 | J73: 0.155
A74: 11 Cádiz | C74: 43727 | D74: 45799 | E74: 41184.42 | H74: 73.635 | I74: 143.507 | J74: 102.962
A75: 14 Córdoba | C75: 39860 | D75: 36938 | E75: 34150 | H75: 69.682 | I75: 129.283 | J75: 102.45
A76: 18 Granada | C76: 2178 | D76: 1522 | E76: 1989 | H76: 2.954 | I76: 4.984 | J76: 6.176
A77: 21 Huelva | C77: 10022 | D77: 9160 | E77: 9590 | H77: 16.72 | I77: 32.58 | J77: 34.524
A78: 23 Jaén | C78: 4523 | D78: 4968 | E78: 4697 | H78: 4.24 | I78: 17.238 | J78: 15.992
A79: 29 Málaga | C79: 9912 | D79: 10206 | E79: 10404 | H79: 12.238 | I79: 28.58 | J79: 25.94
A80: 41 Sevilla | C80: 76277 | D80: 66090 | E80: 59820 | H80: 108.526 | I80: 229.75 | J80: 196.872
A81: ANDALUCÍA | C81: 186517 | D81: 174683 | E81: 161910.42 | F81: 92.68813794 | H81: 288.004 | I81: 585.922 | J81: 485.071 | K81: 82.78764068
A83: 35 Palmas (Las)
A84: 38 S. C. Tenerife
A85: CANARIAS
A88: ESPAÑA | C88: 236927 | D88: 233029 | E88: 215793.29 | F88: 92.60362015 | H88: 418.989 | I88: 728.618 | J88: 653.832 | K88: 89.735911
A91: (*)Tipo de Superficie de mes/año solicitado

Sheet Tri8ndo-SRT
A1: AVANCES DE SUPERFICIE Y PRODUCCIÓN
A2: TRIGO SEMIDURO Y BLANDO S/R/T | K2: 2025 JULIO
A3: SUPERFICIE COSECHADA(*)
A4: PROVINCIAS | B4: SUPERFICIES (HA) | E4: SUPERFICIES (HA) | H4: SUPERFICIES (HA) | L4: PRODUCCIONES (1000 TM) | O4: PRODUCCIONES (1000 TM) | R4: PRODUCCIONES (1000 TM)
A5: Y | B5: SECANO | E5: REGADIO | H5: TOTAL | L5: SECANO | O5: REGADIO | R5: TOTAL
A6: CC-AA | B6: =J6-2 -> 2023 | C6: =J6-1 -> 2024 | D6: =J6 -> 2025 | E6: =J6-2 -> 2023 | F6: =J6-1 -> 2024 | G6: =J6 -> 2025 | H6: =J6-2 -> 2023 | I6: =J6-1 -> 2024 | J6: 2025 | L6: =T6-2 -> 2023 | M6: =T6-1 -> 2024 | N6: =T6 -> 2025 | O6: =T6-2 -> 2023 | P6: =T6-1 -> 2024 | Q6: =T6 -> 2025 | R6: =T6-2 -> 2023 | S6: =T6-1 -> 2024 | T6: 2025
B7: DEFINITIVO | C7: DEFINITIVO | D7: PROVISIONAL | E7: DEFINITIVO | F7: DEFINITIVO | G7: PROVISIONAL | H7: DEFINITIVO | I7: DEFINITIVO | J7: PROVISIONAL | L7: DEFINITIVO | M7: DEFINITIVO | N7: PROVISIONAL | O7: DEFINITIVO | P7: DEFINITIVO | Q7: PROVISIONAL | R7: DEFINITIVO | S7: DEFINITIVO | T7: PROVISIONAL
A10: 15 Coruña (La) | B10: 1635 | C10: 1737 | D10: 2127.72 | H10: 1635 | I10: 1737 | J10: 2127.72 | L10: 4.97 | M10: 3.995 | N10: 7.802 | R10: 4.97 | S10: 3.995 | T10: 7.802
A11: 27 Lugo | B11: 3204 | C11: 3054 | D11: 3165.18 | H11: 3204 | I11: 3054 | J11: 3165.19 | L11: 7.946 | M11: 6.719 | N11: 10.387 | R11: 7.946 | S11: 6.718 | T11: 6.718
A12: 32 Orense | B12: 8321 | C12: 8532 | D12: 5930.25 | H12: 8321 | I12: 8532 | J12: 5930.25 | L12: 25.795 | M12: 25.255 | N12: 19.738 | R12: 25.795 | S12: 25.256 | T12: 19.738
A13: 36 Pontevedra | B13: 310 | C13: 285 | D13: 377.03 | H13: 310 | I13: 285 | J13: 377.03 | L13: 0.682 | M13: 0.641 | N13: 1.344 | R13: 0.682 | S13: 0.641 | T13: 1.344
A14: GALICIA | B14: 13470 | C14: 13608 | D14: 11600.18 | H14: 13470 | I14: 13608 | J14: 11600.19 | L14: 39.393 | M14: 36.61 | N14: 39.271 | R14: 39.393 | S14: 36.61 | T14: 35.602
A16: 33 P. DE ASTURIAS | D16: 61 | J16: 61 | N16: 0.11 | T16: 0.11
A18: 39 CANTABRIA | B18: 692 | C18: 733 | D18: 742 | E18: 142 | F18: 115 | G18: 120 | H18: 834 | I18: 848 | J18: 862 | L18: 1.522 | M18: 1.613 | N18: 1.632 | O18: 0.639 | P18: 0.518 | Q18: 0.54 | R18: 2.161 | S18: 2.131 | T18: 2.172
A20: 01 Alava | B20: 19290 | C20: 19717 | D20: 17819 | H20: 19290 | I20: 19717 | J20: 17819 | L20: 106.095 | M20: 138.019 | N20: 106.914 | R20: 106.095 | S20: 138.019 | T20: 106.914
A21: 20 Guipúzcoa | B21: 1 | C21: 1 | H21: 1 | I21: 1 | L21: 0.005 | M21: 0.006 | R21: 0.005 | S21: 0.006
A22: 48 Vizcaya
A23: PAIS VASCO | B23: 19291 | C23: 19718 | D23: 17819 | H23: 19291 | I23: 19718 | J23: 17819 | L23: 106.1 | M23: 138.025 | N23: 106.914 | R23: 106.1 | S23: 138.025 | T23: 106.914
A25: 31 NAVARRA | B25: 59129 | C25: 61844 | D25: 65875.83 | E25: 15701 | F25: 14641 | G25: 13181.33 | H25: 74830 | I25: 76485 | J25: 79057.16 | L25: 231.135 | M25: 324.186 | N25: 335.967 | O25: 87.69 | P25: 104.566 | Q25: 77.77 | R25: 318.825 | S25: 428.752 | T25: 413.737
A27: 26 LA RIOJA | B27: 16153 | C27: 16289 | D27: 16200 | E27: 8295 | F27: 7444 | G27: 7100 | H27: 24448 | I27: 23733 | J27: 23300 | L27: 37.927 | M27: 46.717 | N27: 96.069 | O27: 40.646 | P27: 32.009 | Q27: 42.893 | R27: 78.573 | S27: 78.726 | T27: 138.962
A29: 22 Huesca | B29: 41171 | C29: 56113 | D29: 56600.66 | E29: 18897 | F29: 23357 | G29: 18982.53 | H29: 60068 | I29: 79470 | J29: 75583.18 | L29: 73.49 | M29: 208.572 | N29: 244.171 | O29: 96.337 | P29: 138.647 | Q29: 106.302 | R29: 169.817 | S29: 347.218 | T29: 350.473
A30: 44 Teruel | B30: 20150 | C30: 30001 | D30: 33658 | E30: 3808 | F30: 3980 | G30: 3315 | H30: 23958 | I30: 33981 | J30: 36973 | L30: 16.12 | M30: 30.061 | N30: 100.974 | O30: 11.9 | P30: 12.147 | Q30: 16.498 | R30: 28.02 | S30: 42.208 | T30: 117.472
A31: 50 Zaragoza | B31: 24326 | C31: 42016 | D31: 41340.31 | E31: 16947 | F31: 18252 | G31: 16519.88 | H31: 41273 | I31: 60268 | J31: 57860.19 | L31: 18.609 | M31: 59.747 | N31: 103.268 | O31: 86.396 | P31: 93.049 | Q31: 100.705 | R31: 105.003 | S31: 152.776 | T31: 203.973
A32: ARAGON | B32: 85647 | C32: 128130 | D32: 131598.97 | E32: 39652 | F32: 45589 | G32: 38817.41 | H32: 125299 | I32: 173719 | J32: 170416.37 | L32: 108.219 | M32: 298.38 | N32: 448.413 | O32: 194.633 | P32: 243.843 | Q32: 223.505 | R32: 302.84 | S32: 542.202 | T32: 671.918
A34: 08 Barcelona | B34: 13806 | C34: 21419 | D34: 20882 | E34: 720 | F34: 370 | G34: 556 | H34: 14526 | I34: 21789 | J34: 21438 | L34: 14.165 | M34: 48.236 | N34: 99.367 | O34: 3.891 | P34: 2.017 | Q34: 3.265 | R34: 18.056 | S34: 50.253 | T34: 102.632
A35: 17 Girona | B35: 8926 | C35: 10042 | D35: 9291 | E35: 2840 | F35: 2681 | G35: 4277 | H35: 11766 | I35: 12723 | J35: 13568 | L35: 20.146 | M35: 23.88 | N35: 41.137 | O35: 8.608 | P35: 9.952 | Q35: 21.086 | R35: 28.754 | S35: 33.832 | T35: 62.223
A36: 25 Lleida | B36: 31173 | C36: 41588 | D36: 32440 | E36: 18553 | F36: 20718 | G36: 15630 | H36: 49726 | I36: 62306 | J36: 48070 | L36: 18.953 | M36: 83.218 | N36: 123.272 | O36: 85.919 | P36: 123.293 | Q36: 121.914 | R36: 104.872 | S36: 206.511 | T36: 245.186
A37: 43 Tarragona | B37: 5875 | C37: 6821 | D37: 6418 | E37: 84 | F37: 55 | G37: 68 | H37: 5959 | I37: 6876 | J37: 6486 | L37: 7.45 | M37: 8.192 | N37: 27.943 | O37: 0.133 | P37: 0.115 | Q37: 0.326 | R37: 7.582 | S37: 8.307 | T37: 28.269
A38: CATALUÑA | B38: 59780 | C38: 79870 | D38: 69031 | E38: 22197 | F38: 23824 | G38: 20531 | H38: 81977 | I38: 103694 | J38: 89562 | L38: 60.714 | M38: 163.526 | N38: 291.719 | O38: 98.551 | P38: 135.377 | Q38: 146.591 | R38: 159.264 | S38: 298.903 | T38: 438.31
A40: 07 BALEARES | B40: 5616 | C40: 4925 | D40: 4900 | H40: 5616 | I40: 4925 | J40: 4900 | L40: 10.502 | M40: 6.846 | N40: 6.9 | R40: 10.501 | S40: 6.846 | T40: 6.9
A42: 05 Avila | B42: 26223 | C42: 28638 | D42: 34745 | E42: 2938 | F42: 2332 | G42: 1592 | H42: 29161 | I42: 30970 | J42: 36337 | L42: 23.915 | M42: 54.613 | N42: 124.804 | O42: 14.702 | P42: 8.37 | Q42: 8.075 | R42: 38.617 | S42: 62.983 | T42: 132.879
A43: 09 Burgos | B43: 179169 | C43: 179659 | D43: 191522.07 | E43: 6133 | F43: 5824 | G43: 6460.46 | H43: 185302 | I43: 185483 | J43: 197982.53 | L43: 472.648 | M43: 963.691 | N43: 1019.061 | O43: 31.15 | P43: 41.56 | Q43: 45.751 | R43: 503.797 | S43: 1005.251 | T43: 1064.812
A44: 24 León | B44: 29545 | C44: 24021 | D44: 34892 | E44: 15861 | F44: 12185 | G44: 17306 | H44: 45406 | I44: 36206 | J44: 52198 | L44: 36.193 | M44: 83.569 | N44: 130.845 | O44: 102.859 | P44: 79.775 | Q44: 114.22 | R44: 139.051 | S44: 163.344 | T44: 245.065
A45: 34 Palencia | B45: 95379 | C45: 97592 | D45: 113196 | E45: 21066 | F45: 22661 | G45: 23187 | H45: 116445 | I45: 120253 | J45: 136383 | L45: 241.213 | M45: 434.675 | N45: 575.602 | O45: 109.543 | P45: 141.359 | Q45: 142.832 | R45: 350.757 | S45: 576.034 | T45: 718.434
A46: 37 Salamanca | B46: 51527 | C46: 61003 | D46: 61985 | E46: 5948 | F46: 7311 | G46: 7978 | H46: 57475 | I46: 68314 | J46: 69963 | L46: 118.512 | M46: 207.41 | N46: 260.027 | O46: 35.688 | P46: 42.404 | Q46: 46.272 | R46: 154.2 | S46: 249.814 | T46: 306.299
A47: 40 Segovia | B47: 60607 | C47: 60157 | D47: 75566 | E47: 2997 | F47: 2873 | G47: 3748 | H47: 63604 | I47: 63030 | J47: 79314 | L47: 94.911 | M47: 169.101 | N47: 306.647 | O47: 8.991 | P47: 14.325 | Q47: 19.047 | R47: 103.902 | S47: 183.426 | T47: 325.694
A48: 42 Soria | B48: 88416 | C48: 83843 | D48: 101952 | E48: 4210 | F48: 3835 | G48: 4928 | H48: 92626 | I48: 87678 | J48: 106880 | L48: 84.703 | M48: 319.19 | N48: 378.548 | O48: 13.051 | P48: 19.175 | Q48: 25.626 | R48: 97.754 | S48: 338.365 | T48: 404.174
A49: 47 Valladolid | B49: 89124 | C49: 101383 | D49: 102076 | E49: 17356 | F49: 20125 | G49: 21521 | H49: 106480 | I49: 121508 | J49: 123597 | L49: 142.331 | M49: 414.555 | N49: 542.518 | O49: 85.496 | P49: 134.375 | Q49: 156.836 | R49: 227.827 | S49: 548.93 | T49: 699.354
A50: 49 Zamora | B50: 46627 | C50: 48737 | D50: 60533 | E50: 9015 | F50: 9020 | G50: 9534 | H50: 55642 | I50: 57757 | J50: 70067 | L50: 74.277 | M50: 160.247 | N50: 281.357 | O50: 40.036 | P50: 46.318 | Q50: 66.738 | R50: 114.312 | S50: 206.565 | T50: 348.095
A51: CASTILLA Y LEON | B51: 666617 | C51: 685033 | D51: 776467.07 | E51: 85524 | F51: 86166 | G51: 96254.46 | H51: 752141 | I51: 771199 | J51: 872721.53 | L51: 1288.703 | M51: 2807.051 | N51: 3619.409 | O51: 441.516 | P51: 527.661 | Q51: 625.397 | R51: 1730.217 | S51: 3334.712 | T51: 4244.806
A53: 28 MADRID | B53: 24702 | C53: 17867 | D53: 13794 | E53: 2873 | F53: 1993 | G53: 2053 | H53: 27575 | I53: 19860 | J53: 15847 | L53: 33.694 | M53: 51.975 | N53: 43.087 | O53: 12.748 | P53: 9.072 | Q53: 6.654 | R53: 46.441 | S53: 61.048 | T53: 49.741
A55: 02 Albacete | B55: 29300 | C55: 40500 | D55: 41397 | E55: 15185 | F55: 12530 | G55: 14153 | H55: 44485 | I55: 53030 | J55: 55550 | L55: 9.523 | M55: 41.918 | N55: 94.187 | O55: 107.586 | P55: 90.567 | Q55: 108.306 | R55: 117.108 | S55: 132.479 | T55: 202.493
A56: 13 Ciudad Real | B56: 35689 | C56: 41136 | D56: 39650 | E56: 9229 | F56: 7654 | G56: 8310 | H56: 44918 | I56: 48790 | J56: 47960 | L56: 17.845 | M56: 90.376 | N56: 134.81 | O56: 26.164 | P56: 39.801 | Q56: 45.705 | R56: 44.009 | S56: 130.177 | T56: 180.515
A57: 16 Cuenca | B57: 37676 | C57: 45373 | D57: 57309 | E57: 2670 | F57: 2989 | G57: 3320 | H57: 40346 | I57: 48362 | J57: 60629 | L57: 30.141 | M57: 131.582 | N57: 170.14 | O57: 10.68 | P57: 15.543 | Q57: 16.6 | R57: 40.821 | S57: 147.125 | T57: 186.74
A58: 19 Guadalajara | B58: 67934 | C58: 65772 | D58: 65772 | E58: 1857 | F58: 2011 | G58: 2011 | H58: 69791 | I58: 67783 | J58: 67783 | L58: 122.281 | M58: 230.202 | N58: 249.934 | O58: 9.285 | P58: 12.066 | Q58: 11.061 | R58: 131.566 | S58: 242.268 | T58: 260.995
A59: 45 Toledo | B59: 46399 | C59: 47675 | D59: 54305 | E59: 5135 | F59: 3955 | G59: 5574 | H59: 51534 | I59: 51630 | J59: 59879 | L59: 17.632 | M59: 119.188 | N59: 190.068 | O59: 24.135 | P59: 18.193 | Q59: 26.775 | R59: 41.766 | S59: 137.381 | T59: 216.843
A60: CASTILLA-MANCHA | B60: 216998 | C60: 240456 | D60: 258433 | E60: 34076 | F60: 29139 | G60: 33368 | H60: 251074 | I60: 269595 | J60: 291801 | L60: 197.422 | M60: 613.266 | N60: 839.139 | O60: 177.85 | P60: 176.17 | Q60: 208.447 | R60: 375.27 | S60: 789.43 | T60: 1047.586
A62: 03 Alicante | B62: 955 | C62: 672 | D62: 1093 | E62: 333 | F62: 311 | G62: 365 | H62: 1288 | I62: 983 | J62: 1458 | L62: 0.277 | M62: 0.188 | N62: 1.963 | O62: 1.012 | P62: 0.653 | Q62: 1.976 | R62: 1.289 | S62: 0.841 | T62: 3.939
A63: 12 Castellón | B63: 336 | C63: 694 | D63: 789 | E63: 23 | F63: 21 | G63: 21 | H63: 359 | I63: 715 | J63: 810 | L63: 0.534 | M63: 0.105 | N63: 1.697 | O63: 0.11 | P63: 0.101 | Q63: 0.101 | R63: 0.645 | S63: 0.206 | T63: 1.798
A64: 46 Valencia | B64: 1038 | C64: 1072 | D64: 2337 | E64: 246 | F64: 212 | G64: 244 | H64: 1284 | I64: 1284 | J64: 2581 | L64: 0.83 | M64: 1.06 | N64: 6.777 | O64: 0.984 | P64: 0.975 | Q64: 1.069 | R64: 1.814 | S64: 2.035 | T64: 7.846
A65: C. VALENCIANA | B65: 2329 | C65: 2438 | D65: 4219 | E65: 602 | F65: 544 | G65: 630 | H65: 2931 | I65: 2982 | J65: 4849 | L65: 1.641 | M65: 1.353 | N65: 10.437 | O65: 2.106 | P65: 1.729 | Q65: 3.146 | R65: 3.748 | S65: 3.082 | T65: 13.583
A67: 30 R. DE MURCIA | B67: 5600 | C67: 5936 | D67: 6324 | E67: 1210 | F67: 599 | G67: 526 | H67: 6810 | I67: 6535 | J67: 6850 | L67: 2.386 | M67: 2.434 | N67: 0.41 | O67: 4.183 | P67: 2.091 | Q67: 3.49 | R67: 6.569 | S67: 4.525 | T67: 3.9
A69: 06 Badajoz | B69: 46418 | C69: 62899 | D69: 62097 | E69: 18733 | F69: 10618 | G69: 10572 | H69: 65151 | I69: 73517 | J69: 72669 | L69: 51.106 | M69: 199.201 | N69: 168.159 | O69: 53.782 | P69: 43.714 | Q69: 37.218 | R69: 104.889 | S69: 242.915 | T69: 205.377
A70: 10 Cáceres | B70: 1429 | C70: 2306 | D70: 1830 | E70: 3757 | F70: 1215 | G70: 1529 | H70: 5186 | I70: 3521 | J70: 3359 | L70: 1.136 | M70: 4.953 | N70: 3.883 | O70: 7.788 | P70: 3.393 | Q70: 4.218 | R70: 8.924 | S70: 8.347 | T70: 8.101
A71: EXTREMADURA | B71: 47847 | C71: 65205 | D71: 63927 | E71: 22490 | F71: 11833 | G71: 12101 | H71: 70337 | I71: 77038 | J71: 76028 | L71: 52.242 | M71: 204.154 | N71: 172.042 | O71: 61.57 | P71: 47.107 | Q71: 41.436 | R71: 113.813 | S71: 251.262 | T71: 213.478
A73: 04 Almería | B73: 200 | C73: 52 | D73: 1554 | E73: 91 | F73: 65 | G73: 20 | H73: 291 | I73: 117 | J73: 1574 | L73: 0.016 | M73: 0.016 | N73: 3.984 | O73: 0.261 | P73: 0.083 | Q73: 0.064 | R73: 0.277 | S73: 0.099 | T73: 4.048
A74: 11 Cádiz | B74: 10300 | C74: 8973 | D74: 12216 | E74: 1260 | F74: 1627 | G74: 1336.97 | H74: 11560 | I74: 10600 | J74: 13552.97 | L74: 12.618 | M74: 15.855 | N74: 48.864 | O74: 1.657 | P74: 6.458 | Q74: 5.348 | R74: 14.274 | S74: 22.313 | T74: 54.212
A75: 14 Córdoba | B75: 20898 | C75: 21160 | D75: 20330 | E75: 1948 | F75: 2078 | G75: 2390 | H75: 22846 | I75: 23238 | J75: 22720 | L75: 20.898 | M75: 79.35 | N75: 60.99 | O75: 7.208 | P75: 7.793 | Q75: 7.17 | R75: 28.106 | S75: 87.143 | T75: 68.16
A76: 18 Granada | B76: 7312 | C76: 4442 | D76: 7510 | E76: 1094 | F76: 743 | G76: 847 | H76: 8406 | I76: 5185 | J76: 8357 | L76: 3.298 | M76: 9.803 | N76: 15.443 | O76: 2.141 | P76: 2.504 | Q76: 4.039 | R76: 5.439 | S76: 12.308 | T76: 19.481
A77: 21 Huelva | B77: 3650 | C77: 4160 | D77: 4105 | E77: 500 | F77: 340 | G77: 275 | H77: 4150 | I77: 4500 | J77: 4380 | L77: 6.57 | M77: 15.392 | N77: 15.023 | O77: 1.08 | P77: 1.328 | Q77: 1.183 | R77: 7.65 | S77: 16.72 | T77: 16.206
A78: 23 Jaén | B78: 1822 | C78: 2302 | D78: 1969 | E78: 150 | F78: 202 | G78: 156 | H78: 1972 | I78: 2504 | J78: 2125 | L78: 1.458 | M78: 6.906 | N78: 5.513 | O78: 0.196 | P78: 0.808 | Q78: 0.562 | R78: 1.653 | S78: 7.714 | T78: 6.075
A79: 29 Málaga | B79: 3289 | C79: 4459 | D79: 5432 | E79: 377 | F79: 313 | G79: 389 | H79: 3666 | I79: 4772 | J79: 5821 | L79: 2.631 | M79: 9.792 | N79: 14.123 | O79: 1.282 | P79: 1.33 | Q79: 1.906 | R79: 3.913 | S79: 11.122 | T79: 16.029
A80: 41 Sevilla | B80: 50105 | C80: 52650 | D80: 54310 | E80: 12777 | F80: 10820 | G80: 9310 | H80: 62882 | I80: 63470 | J80: 63620 | L80: 70.147 | M80: 189.54 | N80: 195.516 | O80: 40.886 | P80: 45.444 | Q80: 39.102 | R80: 111.033 | S80: 234.984 | T80: 234.618
A81: ANDALUCIA | B81: 97576 | C81: 98198 | D81: 107426 | E81: 18197 | F81: 16188 | G81: 14723.97 | H81: 115773 | I81: 114386 | J81: 122149.97 | L81: 117.636 | M81: 326.654 | N81: 359.456 | O81: 54.711 | P81: 65.748 | Q81: 59.374 | R81: 172.345 | S81: 392.403 | T81: 418.829
A83: 35 Palmas (Las) | B83: 93 | C83: 88 | D83: 88 | F83: 1 | G83: 1 | H83: 93 | I83: 89 | J83: 89 | L83: 0.093 | M83: 0.088 | N83: 0.088 | P83: 0.001 | Q83: 0.001 | R83: 0.093 | S83: 0.089 | T83: 0.089
A84: 38 S. C. Tenerife | B84: 113 | C84: 114 | D84: 114 | E84: 24 | F84: 23 | G84: 23 | H84: 137 | I84: 137 | J84: 137 | L84: 0.109 | M84: 0.108 | N84: 0.108 | O84: 0.036 | P84: 0.035 | Q84: 0.035 | R84: 0.145 | S84: 0.143 | T84: 0.143
A85: CANARIAS | B85: 206 | C85: 202 | D85: 202 | E85: 24 | F85: 24 | G85: 24 | H85: 230 | I85: 226 | J85: 226 | L85: 0.202 | M85: 0.196 | N85: 0.196 | O85: 0.036 | P85: 0.036 | Q85: 0.036 | R85: 0.238 | S85: 0.232 | T85: 0.232
A88: ESPAÑA | B88: 2643306 | C88: 1440452 | D88: 1548620.05 | E88: 250983 | F88: 238099 | G88: 239430.17 | H88: 1572636 | I88: 1678551 | J88: 1788050.22 | L88: 2289.438 | M88: 5022.986 | N88: 6371.171 | O88: 1176.879 | P88: 1345.927 | Q88: 1439.279 | R88: 3466.298 | S88: 6368.889 | T88: 7806.78
B96: 221 | C96: 231 | E96: 221 | F96: 231 | H96: 221 | I96: 231

Sheet Tri8ndo
A1: AVANCES DE SUPERFICIE Y PRODUCCIÓN
A2: TRIGO SEMIDURO Y BLANDO | J2: 2025 JULIO
A3: SUPERFICIE COSECHADA(*)
A4: PROVINCIAS | C4: SUPERFICIES (HA) | H4: PRODUCCIONES (1000 TM)
A5: Y
A6: CC-AA | C6: =E6-2 -> 2023 | D6: =E6-1 -> 2024 | E6: 2025 | F6: =E6 -> 2025 | H6: =J6-2 -> 2023 | I6: =J6-1 -> 2024 | J6: 2025 | K6: =J6 -> 2025
C7: DEFINITIVO | D7: DEFINITIVO | E7: PROVISIONAL | F7: =CONCATENATE(D6,"=100") -> 2024=100 | H7: DEFINITIVO | I7: DEFINITIVO | J7: PROVISIONAL | K7: =CONCATENATE(I6,"=100") -> 2024=100
A10: 15 A Coruña | C10: 1635 | D10: 1737 | E10: 2127.72 | H10: 4.97 | I10: 3.995 | J10: 7.802
A11: 27 Lugo | C11: 3204 | D11: 3054 | E11: 3165.19 | H11: 7.946 | I11: 6.718 | J11: 6.718
A12: 32 Ourense | C12: 8321 | D12: 8532 | E12: 5930.25 | H12: 25.795 | I12: 25.256 | J12: 19.738
A13: 36 Pontevedra | C13: 310 | D13: 285 | E13: 377.03 | H13: 0.682 | I13: 0.641 | J13: 1.344
A14: GALICIA | C14: 13470 | D14: 13608 | E14: 11600.19 | F14: 85.24537037 | H14: 39.393 | I14: 36.61 | J14: 35.602 | K14: 97.24665392
A16: 33 P. DE ASTURIAS | E16: 61 | J16: 0.11
A18: 39 CANTABRIA | C18: 834 | D18: 848 | E18: 862 | F18: 101.6509434 | H18: 2.161 | I18: 2.131 | J18: 2.172 | K18: 101.9239794
A20: 1 Álava | C20: 19290 | D20: 19717 | E20: 17819 | H20: 106.095 | I20: 138.019 | J20: 106.914
A21: 20 Guipúzcoa | C21: 1 | D21: 1 | H21: 0.005 | I21: 0.006
A22: 48 Vizcaya
A23: PAIS VASCO | C23: 19291 | D23: 19718 | E23: 17819 | F23: 90.3692058 | H23: 106.1 | I23: 138.025 | J23: 106.914 | K23: 77.45988046
A25: 31 NAVARRA | C25: 74830 | D25: 76485 | E25: 79057.16 | F25: 103.3629601 | H25: 318.825 | I25: 428.752 | J25: 413.737 | K25: 96.49797552
A27: 26 LA RIOJA | C27: 24448 | D27: 23733 | E27: 23300 | F27: 98.17553617 | H27: 78.573 | I27: 78.726 | J27: 138.962 | K27: 176.5134771
A29: 22 Huesca | C29: 60068 | D29: 79470 | E29: 75583.18 | H29: 169.817 | I29: 347.218 | J29: 350.473
A30: 44 Teruel | C30: 23958 | D30: 33981 | E30: 36973 | H30: 28.02 | I30: 42.208 | J30: 117.472
A31: 50 Zaragoza | C31: 41273 | D31: 60268 | E31: 57860.19 | H31: 105.003 | I31: 152.776 | J31: 203.973
A32: ARAGÓN | C32: 125299 | D32: 173719 | E32: 170416.37 | F32: 98.09886656 | H32: 302.84 | I32: 542.202 | J32: 671.918 | K32: 123.923925
A34: 8 Barcelona | C34: 14526 | D34: 21789 | E34: 21438 | H34: 18.056 | I34: 50.253 | J34: 102.632
A35: 17 Girona | C35: 11766 | D35: 12723 | E35: 13568 | H35: 28.754 | I35: 33.832 | J35: 62.223
A36: 25 Lleida | C36: 49726 | D36: 62306 | E36: 48070 | H36: 104.872 | I36: 206.511 | J36: 245.186
A37: 43 Tarragona | C37: 5959 | D37: 6876 | E37: 6486 | H37: 7.582 | I37: 8.307 | J37: 28.269
A38: CATALUÑA | C38: 81977 | D38: 103694 | E38: 89562 | F38: 86.37143904 | H38: 159.264 | I38: 298.903 | J38: 438.31 | K38: 146.6395453
A40: 7 BALEARES | C40: 5616 | D40: 4925 | E40: 4900 | F40: 99.49238579 | H40: 10.501 | I40: 6.846 | J40: 6.9 | K40: 100.7887818
A42: 5 Ávila | C42: 29161 | D42: 30970 | E42: 36337 | H42: 38.617 | I42: 62.983 | J42: 132.879
A43: 9 Burgos | C43: 185302 | D43: 185483 | E43: 197982.53 | H43: 503.797 | I43: 1005.251 | J43: 1064.812
A44: 24 León | C44: 45406 | D44: 36206 | E44: 52198 | H44: 139.051 | I44: 163.344 | J44: 245.065
A45: 34 Palencia | C45: 116445 | D45: 120253 | E45: 136383 | H45: 350.757 | I45: 576.034 | J45: 718.434
A46: 37 Salamanca | C46: 57475 | D46: 68314 | E46: 69963 | H46: 154.2 | I46: 249.814 | J46: 306.299
A47: 40 Segovia | C47: 63604 | D47: 63030 | E47: 79314 | H47: 103.902 | I47: 183.426 | J47: 325.694
A48: 42 Soria | C48: 92626 | D48: 87678 | E48: 106880 | H48: 97.754 | I48: 338.365 | J48: 404.174
A49: 47 Valladolid | C49: 106480 | D49: 121508 | E49: 123597 | H49: 227.827 | I49: 548.93 | J49: 699.354
A50: 49 Zamora | C50: 55642 | D50: 57757 | E50: 70067 | H50: 114.312 | I50: 206.565 | J50: 348.095
A51: CASTILLA Y LEÓN | C51: 752141 | D51: 771199 | E51: 872721.53 | F51: 113.1642455 | H51: 1730.217 | I51: 3334.712 | J51: 4244.806 | K51: 127.2915322
A53: 28 MADRID | C53: 27575 | D53: 19860 | E53: 15847 | F53: 79.79355488 | H53: 46.441 | I53: 61.048 | J53: 49.741 | K53: 81.47850871
A55: 2 Albacete | C55: 44485 | D55: 53030 | E55: 55550 | H55: 117.108 | I55: 132.479 | J55: 202.493
A56: 13 Ciudad Real | C56: 44918 | D56: 48790 | E56: 47960 | H56: 44.009 | I56: 130.177 | J56: 180.515
A57: 16 Cuenca | C57: 40346 | D57: 48362 | E57: 60629 | H57: 40.821 | I57: 147.125 | J57: 186.74
A58: 19 Guadalajara | C58: 69791 | D58: 67783 | E58: 67783 | H58: 131.566 | I58: 242.268 | J58: 260.995
A59: 45 Toledo | C59: 51534 | D59: 51630 | E59: 59879 | H59: 41.766 | I59: 137.381 | J59: 216.843
A60: CASTILLA-MANCHA | C60: 251074 | D60: 269595 | E60: 291801 | F60: 108.2367996 | H60: 375.27 | I60: 789.43 | J60: 1047.586 | K60: 132.7015695
A62: 3 Alicante | C62: 1288 | D62: 983 | E62: 1458 | H62: 1.289 | I62: 0.841 | J62: 3.939
A63: 12 Castellón | C63: 359 | D63: 715 | E63: 810 | H63: 0.645 | I63: 0.206 | J63: 1.798
A64: 46 Valencia | C64: 1284 | D64: 1284 | E64: 2581 | H64: 1.814 | I64: 2.035 | J64: 7.846
A65: C. VALENCIANA | C65: 2931 | D65: 2982 | E65: 4849 | F65: 162.6089873 | H65: 3.748 | I65: 3.082 | J65: 13.583 | K65: 440.7203115
A67: 30 R. DE MURCIA | C67: 6810 | D67: 6535 | E67: 6850 | F67: 104.8201989 | H67: 6.569 | I67: 4.525 | J67: 3.9 | K67: 86.1878453
A69: 6 Badajoz | C69: 65151 | D69: 73517 | E69: 72669 | H69: 104.889 | I69: 242.915 | J69: 205.377
A70: 10 Cáceres | C70: 5186 | D70: 3521 | E70: 3359 | H70: 8.924 | I70: 8.347 | J70: 8.101
A71: EXTREMADURA | C71: 70337 | D71: 77038 | E71: 76028 | F71: 98.6889587 | H71: 113.813 | I71: 251.262 | J71: 213.478 | K71: 84.96231026
A73: 4 Almería | C73: 291 | D73: 117 | E73: 1574 | H73: 0.277 | I73: 0.099 | J73: 4.048
A74: 11 Cádiz | C74: 11560 | D74: 10600 | E74: 13552.97 | H74: 14.274 | I74: 22.313 | J74: 54.212
A75: 14 Córdoba | C75: 22846 | D75: 23238 | E75: 22720 | H75: 28.106 | I75: 87.143 | J75: 68.16
A76: 18 Granada | C76: 8406 | D76: 5185 | E76: 8357 | H76: 5.439 | I76: 12.308 | J76: 19.481
A77: 21 Huelva | C77: 4150 | D77: 4500 | E77: 4380 | H77: 7.65 | I77: 16.72 | J77: 16.206
A78: 23 Jaén | C78: 1972 | D78: 2504 | E78: 2125 | H78: 1.653 | I78: 7.714 | J78: 6.075
A79: 29 Málaga | C79: 3666 | D79: 4772 | E79: 5821 | H79: 3.913 | I79: 11.122 | J79: 16.029
A80: 41 Sevilla | C80: 62882 | D80: 63470 | E80: 63620 | H80: 111.033 | I80: 234.984 | J80: 234.618
A81: ANDALUCÍA | C81: 115773 | D81: 114386 | E81: 122149.97 | F81: 106.7875177 | H81: 172.345 | I81: 392.403 | J81: 418.829 | K81: 106.7344032
A83: 35 Palmas (Las) | C83: 93 | D83: 89 | E83: 89 | H83: 0.093 | I83: 0.089 | J83: 0.089
A84: 38 S. C. Tenerife | C84: 137 | D84: 137 | E84: 137 | H84: 0.145 | I84: 0.143 | J84: 0.143
A85: CANARIAS | C85: 230 | D85: 226 | E85: 226 | F85: 100 | H85: 0.238 | I85: 0.232 | J85: 0.232 | K85: 100
A88: ESPAÑA | C88: 1572636 | D88: 1678551 | E88: 1788050.22 | F88: 106.5234372 | H88: 3466.298 | I88: 6368.889 | J88: 7806.78 | K88: 122.5767948
A91: (*)Tipo de Superficie de mes/año solicitado

Sheet Cen9eno-SRT
A1: AVANCES DE SUPERFICIE Y PRODUCCIÓN
A2: CENTENO S/R/T | K2: 2025 JULIO
A3: SUPERFICIE COSECHADA(*)
A4: PROVINCIAS | B4: SUPERFICIES (HA) | E4: SUPERFICIES (HA) | H4: SUPERFICIES (HA) | L4: PRODUCCIONES (1000 TM) | O4: PRODUCCIONES (1000 TM) | R4: PRODUCCIONES (1000 TM)
A5: Y | B5: SECANO | E5: REGADIO | H5: TOTAL | L5: SECANO | O5: REGADIO | R5: TOTAL
A6: CC-AA | B6: =J6-2 -> 2023 | C6: =J6-1 -> 2024 | D6: =J6 -> 2025 | E6: =J6-2 -> 2023 | F6: =J6-1 -> 2024 | G6: =J6 -> 2025 | H6: =J6-2 -> 2023 | I6: =J6-1 -> 2024 | J6: 2025 | L6: =T6-2 -> 2023 | M6: =T6-1 -> 2024 | N6: =T6 -> 2025 | O6: =T6-2 -> 2023 | P6: =T6-1 -> 2024 | Q6: =T6 -> 2025 | R6: =T6-2 -> 2023 | S6: =T6-1 -> 2024 | T6: 2025
B7: DEFINITIVO | C7: DEFINITIVO | D7: PROVISIONAL | E7: DEFINITIVO | F7: DEFINITIVO | G7: PROVISIONAL | H7: DEFINITIVO | I7: DEFINITIVO | J7: PROVISIONAL | L7: DEFINITIVO | M7: DEFINITIVO | N7: PROVISIONAL | O7: DEFINITIVO | P7: DEFINITIVO | Q7: PROVISIONAL | R7: DEFINITIVO | S7: DEFINITIVO | T7: PROVISIONAL
A10: 15 Coruña (La) | B10: 24 | C10: 112 | D10: 101.12 | H10: 24 | I10: 112 | J10: 101.12 | L10: 0.098 | M10: 0.367 | N10: 0.222 | R10: 0.098 | S10: 0.367 | T10: 0.222
A11: 27 Lugo | B11: 429 | C11: 417 | D11: 463.06 | H11: 429 | I11: 417 | J11: 463.06 | L11: 1.586 | M11: 1.422 | N11: 1.381 | R11: 1.587 | S11: 1.423 | T11: 1.381
A12: 32 Orense | B12: 3589 | C12: 3585 | D12: 2945.19 | H12: 3589 | I12: 3585 | J12: 2945.19 | L12: 12.526 | M12: 13.766 | N12: 8.748 | R12: 12.526 | S12: 13.767 | T12: 8.748
A13: 36 Pontevedra | B13: 30 | C13: 40 | D13: 15.24 | H13: 30 | I13: 40 | J13: 15.24 | L13: 0.098 | M13: 0.176 | N13: 0.056 | R13: 0.098 | S13: 0.176 | T13: 0.056
A14: GALICIA | B14: 4072 | C14: 4154 | D14: 3524.61 | H14: 4072 | I14: 4154 | J14: 3524.61 | L14: 14.308 | M14: 15.731 | N14: 10.407 | R14: 14.309 | S14: 15.733 | T14: 10.407
A16: 33 P. DE ASTURIAS
A18: 39 CANTABRIA | B18: 30 | C18: 30 | D18: 35 | H18: 30 | I18: 30 | J18: 35 | L18: 0.028 | M18: 0.028 | N18: 0.032 | R18: 0.028 | S18: 0.028 | T18: 0.032
A20: 01 Alava | B20: 318 | C20: 271 | D20: 248 | H20: 318 | I20: 271 | J20: 248 | L20: 1.526 | M20: 1.626 | N20: 1.24 | R20: 1.526 | S20: 1.626 | T20: 1.24
A21: 20 Guipúzcoa
A22: 48 Vizcaya
A23: PAIS VASCO | B23: 318 | C23: 271 | D23: 248 | H23: 318 | I23: 271 | J23: 248 | L23: 1.526 | M23: 1.626 | N23: 1.24 | R23: 1.526 | S23: 1.626 | T23: 1.24
A25: 31 NAVARRA | B25: 52 | C25: 159 | D25: 199 | E25: 16 | F25: 33 | G25: 45 | H25: 68 | I25: 192 | J25: 244 | L25: 0.126 | M25: 0.21 | N25: 0.388 | O25: 0.052 | P25: 0.072 | Q25: 0.14 | R25: 0.178 | S25: 0.282 | T25: 0.528
A27: 26 LA RIOJA | B27: 48 | C27: 126 | D27: 145 | F27: 69 | G27: 35 | H27: 48 | I27: 195 | J27: 180 | L27: 0.07 | M27: 0.176 | N27: 0.363 | P27: 0.214 | Q27: 0.088 | R27: 0.07 | S27: 0.39 | T27: 0.451
A29: 22 Huesca | B29: 247 | C29: 262 | D29: 115.9 | E29: 76 | F29: 40 | G29: 155.8 | H29: 323 | I29: 302 | J29: 271.7 | L29: 0.317 | M29: 0.339 | N29: 0.424 | O29: 0.319 | P29: 0.129 | Q29: 0.653 | R29: 0.636 | S29: 0.468 | T29: 1.077
A30: 44 Teruel | B30: 1708 | C30: 2947 | D30: 3629 | E30: 115 | F30: 165 | G30: 203 | H30: 1823 | I30: 3112 | J30: 3832 | L30: 1.366 | M30: 2.652 | N30: 8.731 | O30: 0.288 | P30: 0.449 | Q30: 0.647 | R30: 1.654 | S30: 3.101 | T30: 9.378
A31: 50 Zaragoza | B31: 2711 | C31: 3908 | D31: 2817.71 | E31: 29 | F31: 115 | G31: 63.44 | H31: 2740 | I31: 4023 | J31: 2881.15 | L31: 3.473 | M31: 5.745 | N31: 6.199 | O31: 0.116 | P31: 0.494 | Q31: 0.19 | R31: 3.588 | S31: 6.238 | T31: 6.389
A32: ARAGON | B32: 4666 | C32: 7117 | D32: 6562.61 | E32: 220 | F32: 320 | G32: 422.24 | H32: 4886 | I32: 7437 | J32: 6984.85 | L32: 5.156 | M32: 8.736 | N32: 15.354 | O32: 0.723 | P32: 1.072 | Q32: 1.49 | R32: 5.878 | S32: 9.807 | T32: 16.844
A34: 08 Barcelona | B34: 31 | C34: 146 | D34: 209 | E34: 4 | G34: 1 | H34: 35 | I34: 146 | J34: 210 | L34: 0.026 | M34: 0.199 | N34: 0.69 | O34: 0.017 | Q34: 0.004 | R34: 0.043 | S34: 0.199 | T34: 0.694
A35: 17 Girona | B35: 219 | C35: 209 | D35: 166 | E35: 82 | F35: 49 | G35: 78 | H35: 301 | I35: 258 | J35: 244 | L35: 0.247 | M35: 0.561 | N35: 0.364 | O35: 0.095 | P35: 0.186 | Q35: 0.255 | R35: 0.342 | S35: 0.747 | T35: 0.619
A36: 25 Lleida | B36: 470 | C36: 375 | D36: 610 | E36: 227 | F36: 270 | G36: 235 | H36: 697 | I36: 645 | J36: 845 | L36: 0.325 | M36: 0.785 | N36: 2.44 | O36: 0.733 | P36: 1.279 | Q36: 1.645 | R36: 1.058 | S36: 2.064 | T36: 4.085
A37: 43 Tarragona | B37: 7 | C37: 38 | D37: 96 | E37: 4 | F37: 11 | G37: 15 | H37: 11 | I37: 49 | J37: 111 | L37: 0.003 | M37: 0.019 | N37: 0.192 | O37: 0.008 | P37: 0.01 | Q37: 0.04 | R37: 0.011 | S37: 0.029 | T37: 0.232
A38: CATALUÑA | B38: 727 | C38: 768 | D38: 1081 | E38: 317 | F38: 330 | G38: 329 | H38: 1044 | I38: 1098 | J38: 1410 | L38: 0.601 | M38: 1.564 | N38: 3.686 | O38: 0.853 | P38: 1.475 | Q38: 1.944 | R38: 1.454 | S38: 3.039 | T38: 5.63
A40: 07 BALEARES | B40: 4 | C40: 3 | D40: 3 | H40: 4 | I40: 3 | J40: 3 | L40: 0.004 | M40: 0.002 | N40: 0.003 | R40: 0.004 | S40: 0.002 | T40: 0.003
A42: 05 Avila | B42: 6381 | C42: 8183 | D42: 8989 | E42: 26 | F42: 76 | G42: 37 | H42: 6407 | I42: 8259 | J42: 9026 | L42: 5.079 | M42: 10.139 | N42: 20.18 | O42: 0.08 | P42: 0.187 | Q42: 0.147 | R42: 5.159 | S42: 10.326 | T42: 20.327
A43: 09 Burgos | B43: 2895 | C43: 3535 | D43: 2920.86 | E43: 213 | F43: 322 | G43: 331.61 | H43: 3108 | I43: 3857 | J43: 3252.47 | L43: 4.675 | M43: 11.425 | N43: 10.95 | O43: 0.874 | P43: 1.55 | Q43: 1.581 | R43: 5.55 | S43: 12.975 | T43: 12.531
A44: 24 León | B44: 9406 | C44: 8647 | D44: 8839 | E44: 1085 | F44: 1376 | G44: 1270 | H44: 10491 | I44: 10023 | J44: 10109 | L44: 12.228 | M44: 23.347 | N44: 24.042 | O44: 3.364 | P44: 4.266 | Q44: 4.115 | R44: 15.591 | S44: 27.613 | T44: 28.157
A45: 34 Palencia | B45: 12311 | C45: 14049 | D45: 12786 | E45: 518 | F45: 532 | G45: 670 | H45: 12829 | I45: 14581 | J45: 13456 | L45: 28.709 | M45: 42.793 | N45: 28.628 | O45: 1.698 | P45: 2.169 | Q45: 2.074 | R45: 30.407 | S45: 44.962 | T45: 30.702
A46: 37 Salamanca | B46: 3335 | C46: 4444 | D46: 5090 | E46: 258 | F46: 257 | G46: 294 | H46: 3593 | I46: 4701 | J46: 5384 | L46: 4.536 | M46: 11.554 | N46: 15.27 | O46: 0.98 | P46: 0.977 | Q46: 1.117 | R46: 5.516 | S46: 12.531 | T46: 16.387
A47: 40 Segovia | B47: 3922 | C47: 5751 | D47: 8616 | E47: 178 | F47: 361 | G47: 357 | H47: 4100 | I47: 6112 | J47: 8973 | L47: 6.052 | M47: 8.627 | N47: 29.829 | O47: 0.534 | P47: 1.372 | Q47: 1.607 | R47: 6.586 | S47: 9.999 | T47: 31.436
A48: 42 Soria | B48: 8164 | C48: 11502 | D48: 9499 | E48: 114 | F48: 221 | G48: 187 | H48: 8278 | I48: 11723 | J48: 9686 | L48: 5.796 | M48: 23.004 | N48: 23.748 | O48: 0.342 | P48: 0.774 | Q48: 0.655 | R48: 6.138 | S48: 23.778 | T48: 24.403
A49: 47 Valladolid | B49: 5108 | C49: 6126 | D49: 5945 | E49: 896 | F49: 1033 | G49: 1017 | H49: 6004 | I49: 7159 | J49: 6962 | L49: 5.552 | M49: 16.902 | N49: 19.982 | O49: 3.584 | P49: 4.713 | Q49: 4.729 | R49: 9.136 | S49: 21.615 | T49: 24.711
A50: 49 Zamora | B50: 2441 | C50: 2359 | D50: 7964 | E50: 290 | F50: 481 | G50: 329 | H50: 2731 | I50: 2840 | J50: 8293 | L50: 2.346 | M50: 5.499 | N50: 15.339 | O50: 0.817 | P50: 1.84 | Q50: 1.155 | R50: 3.163 | S50: 7.339 | T50: 16.494
A51: CASTILLA Y LEON | B51: 53963 | C51: 64596 | D51: 70648.86 | E51: 3578 | F51: 4659 | G51: 4492.61 | H51: 57541 | I51: 69255 | J51: 75141.47 | L51: 74.973 | M51: 153.29 | N51: 187.968 | O51: 12.273 | P51: 17.848 | Q51: 17.18 | R51: 87.246 | S51: 171.138 | T51: 205.148
A53: 28 MADRID | B53: 660 | C53: 463 | D53: 461 | E53: 29 | F53: 28 | G53: 18 | H53: 689 | I53: 491 | J53: 479 | L53: 0.223 | M53: 0.561 | N53: 0.564 | O53: 0.018 | P53: 0.091 | Q53: 0.074 | R53: 0.241 | S53: 0.653 | T53: 0.638
A55: 02 Albacete | B55: 835 | C55: 950 | D55: 1020 | E55: 54 | F55: 37 | G55: 92 | H55: 889 | I55: 987 | J55: 1112 | L55: 0.292 | M55: 0.751 | N55: 1.428 | O55: 0.275 | P55: 0.189 | Q55: 0.483 | R55: 0.568 | S55: 0.94 | T55: 1.911
A56: 13 Ciudad Real | B56: 1040 | C56: 1259 | D56: 1100 | E56: 144 | F56: 166 | G56: 100 | H56: 1184 | I56: 1425 | J56: 1200 | L56: 0.104 | M56: 2.014 | N56: 1.87 | O56: 0.127 | P56: 0.481 | Q56: 0.3 | R56: 0.231 | S56: 2.495 | T56: 2.17
A57: 16 Cuenca | B57: 275 | C57: 396 | D57: 358 | E57: 9 | F57: 17 | G57: 23 | H57: 284 | I57: 413 | J57: 381 | L57: 0.193 | M57: 0.95 | N57: 0.896 | O57: 0.027 | P57: 0.065 | Q57: 0.1 | R57: 0.22 | S57: 1.015 | T57: 0.996
A58: 19 Guadalajara | B58: 1500 | C58: 2108 | D58: 2108 | F58: 15 | G58: 15 | H58: 1500 | I58: 2123 | J58: 2123 | L58: 1.95 | M58: 5.902 | N58: 5.902 | P58: 0.053 | Q58: 0.057 | R58: 1.95 | S58: 5.955 | T58: 5.959
A59: 45 Toledo | B59: 6950 | C59: 6810 | D59: 5837 | E59: 187 | F59: 122 | G59: 110 | H59: 7137 | I59: 6932 | J59: 5947 | L59: 1.807 | M59: 8.853 | N59: 16.927 | O59: 0.636 | P59: 0.403 | Q59: 0.363 | R59: 2.443 | S59: 9.256 | T59: 17.29
A60: CASTILLA-MANCHA | B60: 10600 | C60: 11523 | D60: 10423 | E60: 394 | F60: 357 | G60: 340 | H60: 10994 | I60: 11880 | J60: 10763 | L60: 4.346 | M60: 18.47 | N60: 27.023 | O60: 1.065 | P60: 1.191 | Q60: 1.303 | R60: 5.412 | S60: 19.661 | T60: 28.326
A62: 03 Alicante | B62: 3 | C62: 9 | D62: 10 | E62: 2 | F62: 2 | G62: 2 | H62: 5 | I62: 11 | J62: 12 | M62: 0.001 | N62: 0.007 | O62: 0.003 | P62: 0.003 | Q62: 0.003 | R62: 0.003 | S62: 0.004 | T62: 0.01
A63: 12 Castellón | B63: 190 | C63: 290 | D63: 350 | H63: 190 | I63: 290 | J63: 350 | L63: 0.157 | M63: 0.036 | N63: 0.438 | R63: 0.156 | S63: 0.036 | T63: 0.438
A64: 46 Valencia | B64: 13 | C64: 34 | D64: 54 | E64: 10 | F64: 1 | G64: 1 | H64: 23 | I64: 35 | J64: 55 | L64: 0.008 | M64: 0.045 | N64: 0.133 | O64: 0.03 | P64: 0.005 | Q64: 0.004 | R64: 0.038 | S64: 0.05 | T64: 0.137
A65: C. VALENCIANA | B65: 206 | C65: 333 | D65: 414 | E65: 12 | F65: 3 | G65: 3 | H65: 218 | I65: 336 | J65: 417 | L65: 0.165 | M65: 0.082 | N65: 0.578 | O65: 0.033 | P65: 0.008 | Q65: 0.007 | R65: 0.197 | S65: 0.09 | T65: 0.585
A67: 30 R. DE MURCIA | B67: 49 | C67: 48 | D67: 51 | E67: 11 | F67: 1 | G67: 1 | H67: 60 | I67: 49 | J67: 52 | L67: 0.049 | M67: 0.046 | N67: 0.049 | O67: 0.025 | P67: 0.002 | Q67: 0.001 | R67: 0.074 | S67: 0.048 | T67: 0.05
A69: 06 Badajoz | B69: 37 | C69: 33 | D69: 33 | E69: 7 | F69: 13 | H69: 44 | I69: 46 | J69: 33 | L69: 0.019 | M69: 0.042 | N69: 0.04 | O69: 0.009 | P69: 0.022 | R69: 0.027 | S69: 0.064 | T69: 0.04
A70: 10 Cáceres | B70: 24 | C70: 26 | D70: 10 | E70: 20 | F70: 21 | G70: 32 | H70: 44 | I70: 47 | J70: 42 | L70: 0.012 | M70: 0.031 | N70: 0.01 | O70: 0.024 | P70: 0.032 | Q70: 0.04 | R70: 0.036 | S70: 0.063 | T70: 0.05
A71: EXTREMADURA | B71: 61 | C71: 59 | D71: 43 | E71: 27 | F71: 34 | G71: 32 | H71: 88 | I71: 93 | J71: 75 | L71: 0.031 | M71: 0.073 | N71: 0.05 | O71: 0.033 | P71: 0.054 | Q71: 0.04 | R71: 0.063 | S71: 0.127 | T71: 0.09
A73: 04 Almería | D73: 117 | E73: 2 | H73: 2 | J73: 117 | N73: 0.295 | O73: 0.005 | R73: 0.005 | T73: 0.295
A74: 11 Cádiz | B74: 1 | C74: 5 | D74: 28.23 | H74: 1 | I74: 5 | J74: 28.23 | L74: 0.001 | M74: 0.01 | N74: 0.011 | R74: 0.001 | S74: 0.01 | T74: 0.011
A75: 14 Córdoba | B75: 302 | C75: 265 | D75: 292 | G75: 13 | H75: 302 | I75: 265 | J75: 305 | L75: 0.242 | M75: 0.53 | N75: 0.73 | Q75: 0.033 | R75: 0.242 | S75: 0.53 | T75: 0.763
A76: 18 Granada | B76: 584 | C76: 87 | D76: 302 | E76: 17 | F76: 7 | G76: 8 | H76: 601 | I76: 94 | J76: 310 | L76: 0.102 | M76: 0.036 | N76: 0.57 | O76: 0.029 | P76: 0.016 | Q76: 0.02 | R76: 0.131 | S76: 0.052 | T76: 0.59
A77: 21 Huelva | B77: 9 | C77: 2 | D77: 2 | H77: 9 | I77: 2 | J77: 2 | L77: 0.011 | M77: 0.003 | N77: 0.003 | R77: 0.011 | S77: 0.003 | T77: 0.003
A78: 23 Jaén | B78: 1 | H78: 1 | L78: 0.001 | R78: 0.001
A79: 29 Málaga | B79: 27 | D79: 1 | E79: 16 | H79: 43 | J79: 1 | L79: 0.022 | N79: 0.003 | O79: 0.048 | R79: 0.07 | T79: 0.003
A80: 41 Sevilla | C80: 11 | D80: 53 | F80: 2 | G80: 7 | I80: 13 | J80: 60 | M80: 0.029 | N80: 0.138 | P80: 0.006 | Q80: 0.022 | S80: 0.035 | T80: 0.16
A81: ANDALUCIA | B81: 924 | C81: 370 | D81: 795.23 | E81: 35 | F81: 9 | G81: 28 | H81: 959 | I81: 379 | J81: 823.23 | L81: 0.379 | M81: 0.608 | N81: 1.75 | O81: 0.082 | P81: 0.022 | Q81: 0.075 | R81: 0.461 | S81: 0.63 | T81: 1.825
A83: 35 Palmas (Las) | B83: 16 | C83: 16 | D83: 16 | E83: 1 | F83: 1 | G83: 1 | H83: 17 | I83: 17 | J83: 17 | L83: 0.008 | M83: 0.009 | N83: 0.009 | O83: 0.003 | P83: 0.003 | Q83: 0.003 | R83: 0.011 | S83: 0.012 | T83: 0.012
A84: 38 S. C. Tenerife | B84: 66 | C84: 63 | E84: 1 | F84: 2 | H84: 67 | I84: 65 | L84: 0.045 | M84: 0.041 | O84: 0.002 | P84: 0.002 | R84: 0.046 | S84: 0.043
A85: CANARIAS | B85: 82 | C85: 79 | D85: 16 | E85: 2 | F85: 3 | G85: 1 | H85: 84 | I85: 82 | J85: 17 | L85: 0.053 | M85: 0.05 | N85: 0.009 | O85: 0.005 | P85: 0.005 | Q85: 0.003 | R85: 0.057 | S85: 0.055 | T85: 0.012
A88: ESPAÑA | B88: 152924 | C88: 90099 | D88: 94650.31 | E88: 4641 | F88: 5846 | G88: 5746.85 | H88: 81103 | I88: 95945 | J88: 100397.16 | L88: 102.038 | M88: 201.253 | N88: 249.464 | O88: 15.162 | P88: 22.054 | Q88: 22.345 | R88: 117.198 | S88: 223.309 | T88: 271.809
B96: 221 | C96: 231 | E96: 221 | F96: 231 | H96: 221 | I96: 231

Sheet Cen9eno
A1: AVANCES DE SUPERFICIE Y PRODUCCIÓN
A2: CENTENO | J2: 2025 JULIO
A3: SUPERFICIE COSECHADA(*)
A4: PROVINCIAS | C4: SUPERFICIES (HA) | H4: PRODUCCIONES (1000 TM)
A5: Y
A6: CC-AA | C6: =E6-2 -> 2023 | D6: =E6-1 -> 2024 | E6: 2025 | F6: =E6 -> 2025 | H6: =J6-2 -> 2023 | I6: =J6-1 -> 2024 | J6: 2025 | K6: =J6 -> 2025
C7: DEFINITIVO | D7: DEFINITIVO | E7: PROVISIONAL | F7: =CONCATENATE(D6,"=100") -> 2024=100 | H7: DEFINITIVO | I7: DEFINITIVO | J7: PROVISIONAL | K7: =CONCATENATE(I6,"=100") -> 2024=100
A10: 15 A Coruña | C10: 24 | D10: 112 | E10: 101.12 | H10: 0.098 | I10: 0.367 | J10: 0.222
A11: 27 Lugo | C11: 429 | D11: 417 | E11: 463.06 | H11: 1.587 | I11: 1.423 | J11: 1.381
A12: 32 Ourense | C12: 3589 | D12: 3585 | E12: 2945.19 | H12: 12.526 | I12: 13.767 | J12: 8.748
A13: 36 Pontevedra | C13: 30 | D13: 40 | E13: 15.24 | H13: 0.098 | I13: 0.176 | J13: 0.056
A14: GALICIA | C14: 4072 | D14: 4154 | E14: 3524.61 | F14: 84.84857968 | H14: 14.309 | I14: 15.733 | J14: 10.407 | K14: 66.14758787
A16: 33 P. DE ASTURIAS
A18: 39 CANTABRIA | C18: 30 | D18: 30 | E18: 35 | F18: 116.6666667 | H18: 0.028 | I18: 0.028 | J18: 0.032 | K18: 114.2857143
A20: 1 Álava | C20: 318 | D20: 271 | E20: 248 | H20: 1.526 | I20: 1.626 | J20: 1.24
A21: 20 Guipúzcoa
A22: 48 Vizcaya
A23: PAIS VASCO | C23: 318 | D23: 271 | E23: 248 | F23: 91.51291513 | H23: 1.526 | I23: 1.626 | J23: 1.24 | K23: 76.26076261
A25: 31 NAVARRA | C25: 68 | D25: 192 | E25: 244 | F25: 127.0833333 | H25: 0.178 | I25: 0.282 | J25: 0.528 | K25: 187.2340426
A27: 26 LA RIOJA | C27: 48 | D27: 195 | E27: 180 | F27: 92.30769231 | H27: 0.07 | I27: 0.39 | J27: 0.451 | K27: 115.6410256
A29: 22 Huesca | C29: 323 | D29: 302 | E29: 271.7 | H29: 0.636 | I29: 0.468 | J29: 1.077
A30: 44 Teruel | C30: 1823 | D30: 3112 | E30: 3832 | H30: 1.654 | I30: 3.101 | J30: 9.378
A31: 50 Zaragoza | C31: 2740 | D31: 4023 | E31: 2881.15 | H31: 3.588 | I31: 6.238 | J31: 6.389
A32: ARAGÓN | C32: 4886 | D32: 7437 | E32: 6984.85 | F32: 93.92026355 | H32: 5.878 | I32: 9.807 | J32: 16.844 | K32: 171.754869
A34: 8 Barcelona | C34: 35 | D34: 146 | E34: 210 | H34: 0.043 | I34: 0.199 | J34: 0.694
A35: 17 Girona | C35: 301 | D35: 258 | E35: 244 | H35: 0.342 | I35: 0.747 | J35: 0.619
A36: 25 Lleida | C36: 697 | D36: 645 | E36: 845 | H36: 1.058 | I36: 2.064 | J36: 4.085
A37: 43 Tarragona | C37: 11 | D37: 49 | E37: 111 | H37: 0.011 | I37: 0.029 | J37: 0.232
A38: CATALUÑA | C38: 1044 | D38: 1098 | E38: 1410 | F38: 128.4153005 | H38: 1.454 | I38: 3.039 | J38: 5.63 | K38: 185.2583087
A40: 7 BALEARES | C40: 4 | D40: 3 | E40: 3 | F40: 100 | H40: 0.004 | I40: 0.002 | J40: 0.003 | K40: 150
A42: 5 Ávila | C42: 6407 | D42: 8259 | E42: 9026 | H42: 5.159 | I42: 10.326 | J42: 20.327
A43: 9 Burgos | C43: 3108 | D43: 3857 | E43: 3252.47 | H43: 5.55 | I43: 12.975 | J43: 12.531
A44: 24 León | C44: 10491 | D44: 10023 | E44: 10109 | H44: 15.591 | I44: 27.613 | J44: 28.157
A45: 34 Palencia | C45: 12829 | D45: 14581 | E45: 13456 | H45: 30.407 | I45: 44.962 | J45: 30.702
A46: 37 Salamanca | C46: 3593 | D46: 4701 | E46: 5384 | H46: 5.516 | I46: 12.531 | J46: 16.387
A47: 40 Segovia | C47: 4100 | D47: 6112 | E47: 8973 | H47: 6.586 | I47: 9.999 | J47: 31.436
A48: 42 Soria | C48: 8278 | D48: 11723 | E48: 9686 | H48: 6.138 | I48: 23.778 | J48: 24.403
A49: 47 Valladolid | C49: 6004 | D49: 7159 | E49: 6962 | H49: 9.136 | I49: 21.615 | J49: 24.711
A50: 49 Zamora | C50: 2731 | D50: 2840 | E50: 8293 | H50: 3.163 | I50: 7.339 | J50: 16.494
A51: CASTILLA Y LEÓN | C51: 57541 | D51: 69255 | E51: 75141.47 | F51: 108.499704 | H51: 87.246 | I51: 171.138 | J51: 205.148 | K51: 119.8728511
A53: 28 MADRID | C53: 689 | D53: 491 | E53: 479 | F53: 97.55600815 | H53: 0.241 | I53: 0.653 | J53: 0.638 | K53: 97.70290965
A55: 2 Albacete | C55: 889 | D55: 987 | E55: 1112 | H55: 0.568 | I55: 0.94 | J55: 1.911
A56: 13 Ciudad Real | C56: 1184 | D56: 1425 | E56: 1200 | H56: 0.231 | I56: 2.495 | J56: 2.17
A57: 16 Cuenca | C57: 284 | D57: 413 | E57: 381 | H57: 0.22 | I57: 1.015 | J57: 0.996
A58: 19 Guadalajara | C58: 1500 | D58: 2123 | E58: 2123 | H58: 1.95 | I58: 5.955 | J58: 5.959
A59: 45 Toledo | C59: 7137 | D59: 6932 | E59: 5947 | H59: 2.443 | I59: 9.256 | J59: 17.29
A60: CASTILLA-MANCHA | C60: 10994 | D60: 11880 | E60: 10763 | F60: 90.5976431 | H60: 5.412 | I60: 19.661 | J60: 28.326 | K60: 144.0720208
A62: 3 Alicante | C62: 5 | D62: 11 | E62: 12 | H62: 0.003 | I62: 0.004 | J62: 0.01
A63: 12 Castellón | C63: 190 | D63: 290 | E63: 350 | H63: 0.156 | I63: 0.036 | J63: 0.438
A64: 46 Valencia | C64: 23 | D64: 35 | E64: 55 | H64: 0.038 | I64: 0.05 | J64: 0.137
A65: C. VALENCIANA | C65: 218 | D65: 336 | E65: 417 | F65: 124.1071429 | H65: 0.197 | I65: 0.09 | J65: 0.585 | K65: 650
A67: 30 R. DE MURCIA | C67: 60 | D67: 49 | E67: 52 | F67: 106.122449 | H67: 0.074 | I67: 0.048 | J67: 0.05 | K67: 104.1666667
A69: 6 Badajoz | C69: 44 | D69: 46 | E69: 33 | H69: 0.027 | I69: 0.064 | J69: 0.04
A70: 10 Cáceres | C70: 44 | D70: 47 | E70: 42 | H70: 0.036 | I70: 0.063 | J70: 0.05
A71: EXTREMADURA | C71: 88 | D71: 93 | E71: 75 | F71: 80.64516129 | H71: 0.063 | I71: 0.127 | J71: 0.09 | K71: 70.86614173
A73: 4 Almería | C73: 2 | E73: 117 | H73: 0.005 | J73: 0.295
A74: 11 Cádiz | C74: 1 | D74: 5 | E74: 28.23 | H74: 0.001 | I74: 0.01 | J74: 0.011
A75: 14 Córdoba | C75: 302 | D75: 265 | E75: 305 | H75: 0.242 | I75: 0.53 | J75: 0.763
A76: 18 Granada | C76: 601 | D76: 94 | E76: 310 | H76: 0.131 | I76: 0.052 | J76: 0.59
A77: 21 Huelva | C77: 9 | D77: 2 | E77: 2 | H77: 0.011 | I77: 0.003 | J77: 0.003
A78: 23 Jaén | C78: 1 | H78: 0.001
A79: 29 Málaga | C79: 43 | E79: 1 | H79: 0.07 | J79: 0.003
A80: 41 Sevilla | D80: 13 | E80: 60 | I80: 0.035 | J80: 0.16
A81: ANDALUCÍA | C81: 959 | D81: 379 | E81: 823.23 | F81: 217.2110818 | H81: 0.461 | I81: 0.63 | J81: 1.825 | K81: 289.6825397
A83: 35 Palmas (Las) | C83: 17 | D83: 17 | E83: 17 | H83: 0.011 | I83: 0.012 | J83: 0.012
A84: 38 S. C. Tenerife | C84: 67 | D84: 65 | H84: 0.046 | I84: 0.043
A85: CANARIAS | C85: 84 | D85: 82 | E85: 17 | F85: 20.73170732 | H85: 0.057 | I85: 0.055 | J85: 0.012 | K85: 21.81818182
A88: ESPAÑA | C88: 81103 | D88: 95945 | E88: 100397.16 | F88: 104.6403252 | H88: 117.198 | I88: 223.309 | J88: 271.809 | K88: 121.7187843
A91: (*)Tipo de Superficie de mes/año solicitado

Sheet Tra10no)-SRT
A1: AVANCES DE SUPERFICIE Y PRODUCCIÓN
A2: TRANQUILLÓN (MEZCLA DE TRIGO Y CENTENO) S/R/T | K2: 2025 JULIO
A3: SUPERFICIE COSECHADA(*)
A4: PROVINCIAS | B4: SUPERFICIES (HA) | E4: SUPERFICIES (HA) | H4: SUPERFICIES (HA) | L4: PRODUCCIONES (1000 TM) | O4: PRODUCCIONES (1000 TM) | R4: PRODUCCIONES (1000 TM)
A5: Y | B5: SECANO | E5: REGADIO | H5: TOTAL | L5: SECANO | O5: REGADIO | R5: TOTAL
A6: CC-AA | B6: =J6-2 -> 2023 | C6: =J6-1 -> 2024 | D6: =J6 -> 2025 | E6: =J6-2 -> 2023 | F6: =J6-1 -> 2024 | G6: =J6 -> 2025 | H6: =J6-2 -> 2023 | I6: =J6-1 -> 2024 | J6: 2025 | L6: =T6-2 -> 2023 | M6: =T6-1 -> 2024 | N6: =T6 -> 2025 | O6: =T6-2 -> 2023 | P6: =T6-1 -> 2024 | Q6: =T6 -> 2025 | R6: =T6-2 -> 2023 | S6: =T6-1 -> 2024 | T6: 2025
B7: DEFINITIVO | C7: DEFINITIVO | D7: PROVISIONAL | E7: DEFINITIVO | F7: DEFINITIVO | G7: PROVISIONAL | H7: DEFINITIVO | I7: DEFINITIVO | J7: PROVISIONAL | L7: DEFINITIVO | M7: DEFINITIVO | N7: PROVISIONAL | O7: DEFINITIVO | P7: DEFINITIVO | Q7: PROVISIONAL | R7: DEFINITIVO | S7: DEFINITIVO | T7: PROVISIONAL
A10: 15 Coruña (La)
A11: 27 Lugo
A12: 32 Orense
A13: 36 Pontevedra
A14: GALICIA
A16: 33 P. DE ASTURIAS
A18: 39 CANTABRIA
A20: 01 Alava
A21: 20 Guipúzcoa
A22: 48 Vizcaya
A23: PAIS VASCO
A25: 31 NAVARRA
A27: 26 LA RIOJA
A29: 22 Huesca | F29: 10 | I29: 10 | P29: 0.028 | S29: 0.028
A30: 44 Teruel | C30: 5 | D30: 19 | I30: 5 | J30: 19 | M30: 0.005 | N30: 0.049 | S30: 0.005 | T30: 0.049
A31: 50 Zaragoza
A32: ARAGON | C32: 5 | D32: 19 | F32: 10 | I32: 15 | J32: 19 | M32: 0.005 | N32: 0.049 | P32: 0.028 | S32: 0.033 | T32: 0.049
A34: 08 Barcelona | D34: 1 | J34: 1 | N34: 0.001 | T34: 0.001
A35: 17 Girona | C35: 55 | F35: 14 | I35: 69 | M35: 0.165 | P35: 0.049 | S35: 0.214
A36: 25 Lleida
A37: 43 Tarragona
A38: CATALUÑA | C38: 55 | D38: 1 | F38: 14 | I38: 69 | J38: 1 | M38: 0.165 | N38: 0.001 | P38: 0.049 | S38: 0.214 | T38: 0.001
A40: 07 BALEARES | C40: 3 | D40: 2 | I40: 3 | J40: 2 | M40: 0.003 | N40: 0.002 | S40: 0.003 | T40: 0.002
A42: 05 Avila
A43: 09 Burgos
A44: 24 León
A45: 34 Palencia
A46: 37 Salamanca
A47: 40 Segovia
A48: 42 Soria
A49: 47 Valladolid
A50: 49 Zamora | B50: 3 | E50: 21 | H50: 24 | L50: 0.003 | O50: 0.059 | R50: 0.062
A51: CASTILLA Y LEON | B51: 3 | E51: 21 | H51: 24 | L51: 0.003 | O51: 0.059 | R51: 0.062
A53: 28 MADRID | C53: 16 | D53: 6 | I53: 16 | J53: 6 | M53: 0.021 | N53: 0.008 | S53: 0.021 | T53: 0.008
A55: 02 Albacete | B55: 60 | C55: 275 | D55: 315 | E55: 111 | F55: 70 | H55: 171 | I55: 345 | J55: 315 | L55: 0.02 | M55: 0.193 | N55: 0.394 | O55: 0.555 | P55: 0.336 | R55: 0.575 | S55: 0.529 | T55: 0.394
A56: 13 Ciudad Real | B56: 4756 | C56: 5469 | D56: 5223 | E56: 326 | F56: 415 | G56: 353 | H56: 5082 | I56: 5884 | J56: 5576 | L56: 1.665 | M56: 10.938 | N56: 11.491 | O56: 0.652 | P56: 1.919 | Q56: 1.659 | R56: 2.317 | S56: 12.857 | T56: 13.15
A57: 16 Cuenca | B57: 33 | C57: 21 | D57: 17 | H57: 33 | I57: 21 | J57: 17 | L57: 0.023 | M57: 0.053 | N57: 0.042 | R57: 0.023 | S57: 0.053 | T57: 0.042
A58: 19 Guadalajara | B58: 14 | C58: 2 | D58: 2 | E58: 3 | H58: 17 | I58: 2 | J58: 2 | L58: 0.018 | M58: 0.002 | N58: 0.006 | O58: 0.012 | R58: 0.03 | S58: 0.002 | T58: 0.006
A59: 45 Toledo | B59: 1619 | C59: 921 | D59: 760 | E59: 42 | F59: 35 | G59: 46 | H59: 1661 | I59: 956 | J59: 806 | L59: 0.486 | M59: 1.013 | N59: 2.204 | O59: 0.151 | P59: 0.126 | Q59: 0.166 | R59: 0.637 | S59: 1.139 | T59: 2.37
A60: CASTILLA-MANCHA | B60: 6482 | C60: 6688 | D60: 6317 | E60: 482 | F60: 520 | G60: 399 | H60: 6964 | I60: 7208 | J60: 6716 | L60: 2.212 | M60: 12.199 | N60: 14.137 | O60: 1.37 | P60: 2.381 | Q60: 1.825 | R60: 3.582 | S60: 14.58 | T60: 15.962
A62: 03 Alicante
A63: 12 Castellón
A64: 46 Valencia
A65: C. VALENCIANA
A67: 30 R. DE MURCIA
A69: 06 Badajoz | B69: 1010 | C69: 3482 | D69: 3697 | E69: 6 | F69: 55 | G69: 53 | H69: 1016 | I69: 3537 | J69: 3750 | L69: 0.809 | M69: 7.128 | N69: 7.394 | O69: 0.012 | P69: 0.146 | Q69: 0.138 | R69: 0.821 | S69: 7.274 | T69: 7.532
A70: 10 Cáceres | B70: 33 | C70: 77 | D70: 130 | E70: 6 | F70: 44 | G70: 46 | H70: 39 | I70: 121 | J70: 176 | L70: 0.021 | M70: 0.121 | N70: 0.195 | O70: 0.01 | P70: 0.09 | Q70: 0.092 | R70: 0.031 | S70: 0.211 | T70: 0.287
A71: EXTREMADURA | B71: 1043 | C71: 3559 | D71: 3827 | E71: 12 | F71: 99 | G71: 99 | H71: 1055 | I71: 3658 | J71: 3926 | L71: 0.83 | M71: 7.249 | N71: 7.589 | O71: 0.022 | P71: 0.236 | Q71: 0.23 | R71: 0.852 | S71: 7.485 | T71: 7.819
A73: 04 Almería
A74: 11 Cádiz | B74: 1294 | C74: 2636 | D74: 1642.46 | E74: 207 | F74: 233 | G74: 213.89 | H74: 1501 | I74: 2869 | J74: 1856.35 | L74: 1.294 | M74: 2.636 | N74: 1.642 | O74: 0.269 | P74: 0.303 | Q74: 0.278 | R74: 1.563 | S74: 2.939 | T74: 1.921
A75: 14 Córdoba | B75: 19544 | C75: 21928 | D75: 18300 | E75: 604 | F75: 552 | G75: 600 | H75: 20148 | I75: 22480 | J75: 18900 | L75: 19.544 | M75: 76.748 | N75: 54.9 | O75: 0.785 | P75: 1.932 | Q75: 1.8 | R75: 20.329 | S75: 78.68 | T75: 56.7
A76: 18 Granada
A77: 21 Huelva | B77: 440 | C77: 130 | D77: 140 | H77: 440 | I77: 130 | J77: 140 | L77: 0.704 | M77: 0.436 | N77: 0.476 | R77: 0.704 | S77: 0.436 | T77: 0.476
A78: 23 Jaén | B78: 51 | C78: 71 | D78: 176 | E78: 3 | H78: 54 | I78: 71 | J78: 176 | L78: 0.041 | M78: 0.128 | N78: 0.317 | O78: 0.003 | R78: 0.044 | S78: 0.128 | T78: 0.317
A79: 29 Málaga | B79: 36 | C79: 50 | D79: 73 | E79: 22 | F79: 13 | G79: 21 | H79: 58 | I79: 63 | J79: 94 | L79: 0.029 | M79: 0.1 | N79: 0.161 | O79: 0.066 | P79: 0.046 | Q79: 0.074 | R79: 0.095 | S79: 0.146 | T79: 0.235
A80: 41 Sevilla | B80: 535 | C80: 830 | D80: 225 | E80: 11 | F80: 60 | G80: 30 | H80: 546 | I80: 890 | J80: 255 | L80: 0.642 | M80: 2.988 | N80: 0.675 | O80: 0.031 | P80: 0.234 | Q80: 0.102 | R80: 0.673 | S80: 3.222 | T80: 0.777
A81: ANDALUCIA | B81: 21900 | C81: 25645 | D81: 20556.46 | E81: 847 | F81: 858 | G81: 864.89 | H81: 22747 | I81: 26503 | J81: 21421.35 | L81: 22.254 | M81: 83.036 | N81: 58.171 | O81: 1.154 | P81: 2.515 | Q81: 2.254 | R81: 23.408 | S81: 85.551 | T81: 60.426
A83: 35 Palmas (Las) | B83: 1 | C83: 1 | D83: 1 | H83: 1 | I83: 1 | J83: 1 | M83: 0.001 | N83: 0.001 | R83: 0.001 | S83: 0.001 | T83: 0.001
A84: 38 S. C. Tenerife | B84: 1 | C84: 1 | H84: 1 | I84: 1 | L84: 0.001 | M84: 0.001 | R84: 0.001 | S84: 0.001
A85: CANARIAS | B85: 2 | C85: 2 | D85: 1 | H85: 2 | I85: 2 | J85: 1 | L85: 0.001 | M85: 0.002 | N85: 0.001 | R85: 0.002 | S85: 0.002 | T85: 0.001
A88: ESPAÑA | B88: 58860 | C88: 35973 | D88: 30729.46 | E88: 1362 | F88: 1501 | G88: 1362.89 | H88: 30792 | I88: 37474 | J88: 32092.35 | L88: 25.3 | M88: 102.68 | N88: 79.958 | O88: 2.605 | P88: 5.209 | Q88: 4.309 | R88: 27.906 | S88: 107.889 | T88: 84.268
B96: 221 | C96: 231 | E96: 221 | F96: 231 | H96: 221 | I96: 231

Sheet Tra10no)
A1: AVANCES DE SUPERFICIE Y PRODUCCIÓN
A2: TRANQUILLÓN (MEZCLA DE TRIGO Y CENTENO) | J2: 2025 JULIO
A3: SUPERFICIE COSECHADA(*)
A4: PROVINCIAS | C4: SUPERFICIES (HA) | H4: PRODUCCIONES (1000 TM)
A5: Y
A6: CC-AA | C6: =E6-2 -> 2023 | D6: =E6-1 -> 2024 | E6: 2025 | F6: =E6 -> 2025 | H6: =J6-2 -> 2023 | I6: =J6-1 -> 2024 | J6: 2025 | K6: =J6 -> 2025
C7: DEFINITIVO | D7: DEFINITIVO | E7: PROVISIONAL | F7: =CONCATENATE(D6,"=100") -> 2024=100 | H7: DEFINITIVO | I7: DEFINITIVO | J7: PROVISIONAL | K7: =CONCATENATE(I6,"=100") -> 2024=100
A10: 15 A Coruña
A11: 27 Lugo
A12: 32 Ourense
A13: 36 Pontevedra
A14: GALICIA
A16: 33 P. DE ASTURIAS
A18: 39 CANTABRIA
A20: 1 Álava
A21: 20 Guipúzcoa
A22: 48 Vizcaya
A23: PAIS VASCO
A25: 31 NAVARRA
A27: 26 LA RIOJA
A29: 22 Huesca | D29: 10 | I29: 0.028
A30: 44 Teruel | D30: 5 | E30: 19 | I30: 0.005 | J30: 0.049
A31: 50 Zaragoza
A32: ARAGÓN | D32: 15 | E32: 19 | F32: 126.6666667 | I32: 0.033 | J32: 0.049 | K32: 148.4848485
A34: 8 Barcelona | E34: 1 | J34: 0.001
A35: 17 Girona | D35: 69 | I35: 0.214
A36: 25 Lleida
A37: 43 Tarragona
A38: CATALUÑA | D38: 69 | E38: 1 | F38: 1.449275362 | I38: 0.214 | J38: 0.001 | K38: 0.4672897196
A40: 7 BALEARES | D40: 3 | E40: 2 | F40: 66.66666667 | I40: 0.003 | J40: 0.002 | K40: 66.66666667
A42: 5 Ávila
A43: 9 Burgos
A44: 24 León
A45: 34 Palencia
A46: 37 Salamanca
A47: 40 Segovia
A48: 42 Soria
A49: 47 Valladolid
A50: 49 Zamora | C50: 24 | H50: 0.062
A51: CASTILLA Y LEÓN | C51: 24 | H51: 0.062
A53: 28 MADRID | D53: 16 | E53: 6 | F53: 37.5 | I53: 0.021 | J53: 0.008 | K53: 38.0952381
A55: 2 Albacete | C55: 171 | D55: 345 | E55: 315 | H55: 0.575 | I55: 0.529 | J55: 0.394
A56: 13 Ciudad Real | C56: 5082 | D56: 5884 | E56: 5576 | H56: 2.317 | I56: 12.857 | J56: 13.15
A57: 16 Cuenca | C57: 33 | D57: 21 | E57: 17 | H57: 0.023 | I57: 0.053 | J57: 0.042
A58: 19 Guadalajara | C58: 17 | D58: 2 | E58: 2 | H58: 0.03 | I58: 0.002 | J58: 0.006
A59: 45 Toledo | C59: 1661 | D59: 956 | E59: 806 | H59: 0.637 | I59: 1.139 | J59: 2.37
A60: CASTILLA-MANCHA | C60: 6964 | D60: 7208 | E60: 6716 | F60: 93.17425083 | H60: 3.582 | I60: 14.58 | J60: 15.962 | K60: 109.478738
A62: 3 Alicante
A63: 12 Castellón
A64: 46 Valencia
A65: C. VALENCIANA
A67: 30 R. DE MURCIA
A69: 6 Badajoz | C69: 1016 | D69: 3537 | E69: 3750 | H69: 0.821 | I69: 7.274 | J69: 7.532
A70: 10 Cáceres | C70: 39 | D70: 121 | E70: 176 | H70: 0.031 | I70: 0.211 | J70: 0.287
A71: EXTREMADURA | C71: 1055 | D71: 3658 | E71: 3926 | F71: 107.3264079 | H71: 0.852 | I71: 7.485 | J71: 7.819 | K71: 104.4622578
A73: 4 Almería
A74: 11 Cádiz | C74: 1501 | D74: 2869 | E74: 1856.35 | H74: 1.563 | I74: 2.939 | J74: 1.921
A75: 14 Córdoba | C75: 20148 | D75: 22480 | E75: 18900 | H75: 20.329 | I75: 78.68 | J75: 56.7
A76: 18 Granada
A77: 21 Huelva | C77: 440 | D77: 130 | E77: 140 | H77: 0.704 | I77: 0.436 | J77: 0.476
A78: 23 Jaén | C78: 54 | D78: 71 | E78: 176 | H78: 0.044 | I78: 0.128 | J78: 0.317
A79: 29 Málaga | C79: 58 | D79: 63 | E79: 94 | H79: 0.095 | I79: 0.146 | J79: 0.235
A80: 41 Sevilla | C80: 546 | D80: 890 | E80: 255 | H80: 0.673 | I80: 3.222 | J80: 0.777
A81: ANDALUCÍA | C81: 22747 | D81: 26503 | E81: 21421.35 | F81: 80.82613289 | H81: 23.408 | I81: 85.551 | J81: 60.426 | K81: 70.63155311
A83: 35 Palmas (Las) | C83: 1 | D83: 1 | E83: 1 | H83: 0.001 | I83: 0.001 | J83: 0.001
A84: 38 S. C. Tenerife | C84: 1 | D84: 1 | H84: 0.001 | I84: 0.001
A85: CANARIAS | C85: 2 | D85: 2 | E85: 1 | F85: 50 | H85: 0.002 | I85: 0.002 | J85: 0.001 | K85: 50
A88: ESPAÑA | C88: 30792 | D88: 37474 | E88: 32092.35 | F88: 85.63897636 | H88: 27.906 | I88: 107.889 | J88: 84.268 | K88: 78.10620174
A91: (*)Tipo de Superficie de mes/año solicitado

Sheet Cen11lón-SRT
A1: AVANCES DE SUPERFICIE Y PRODUCCIÓN
A2: CENTENO Y TRANQUILLÓN S/R/T | K2: 2025 JULIO
A3: SUPERFICIE COSECHADA(*)
A4: PROVINCIAS | B4: SUPERFICIES (HA) | E4: SUPERFICIES (HA) | H4: SUPERFICIES (HA) | L4: PRODUCCIONES (1000 TM) | O4: PRODUCCIONES (1000 TM) | R4: PRODUCCIONES (1000 TM)
A5: Y | B5: SECANO | E5: REGADIO | H5: TOTAL | L5: SECANO | O5: REGADIO | R5: TOTAL
A6: CC-AA | B6: =J6-2 -> 2023 | C6: =J6-1 -> 2024 | D6: =J6 -> 2025 | E6: =J6-2 -> 2023 | F6: =J6-1 -> 2024 | G6: =J6 -> 2025 | H6: =J6-2 -> 2023 | I6: =J6-1 -> 2024 | J6: 2025 | L6: =T6-2 -> 2023 | M6: =T6-1 -> 2024 | N6: =T6 -> 2025 | O6: =T6-2 -> 2023 | P6: =T6-1 -> 2024 | Q6: =T6 -> 2025 | R6: =T6-2 -> 2023 | S6: =T6-1 -> 2024 | T6: 2025
B7: DEFINITIVO | C7: DEFINITIVO | D7: PROVISIONAL | E7: DEFINITIVO | F7: DEFINITIVO | G7: PROVISIONAL | H7: DEFINITIVO | I7: DEFINITIVO | J7: PROVISIONAL | L7: DEFINITIVO | M7: DEFINITIVO | N7: PROVISIONAL | O7: DEFINITIVO | P7: DEFINITIVO | Q7: PROVISIONAL | R7: DEFINITIVO | S7: DEFINITIVO | T7: PROVISIONAL
A10: 15 Coruña (La) | B10: 24 | C10: 112 | D10: 101.12 | H10: 24 | I10: 112 | J10: 101.12 | L10: 0.098 | M10: 0.367 | N10: 0.222 | R10: 0.098 | S10: 0.367 | T10: 0.222
A11: 27 Lugo | B11: 429 | C11: 417 | D11: 463.06 | H11: 429 | I11: 417 | J11: 463.06 | L11: 1.586 | M11: 1.422 | N11: 1.381 | R11: 1.587 | S11: 1.423 | T11: 1.381
A12: 32 Orense | B12: 3589 | C12: 3585 | D12: 2945.19 | H12: 3589 | I12: 3585 | J12: 2945.19 | L12: 12.526 | M12: 13.766 | N12: 8.748 | R12: 12.526 | S12: 13.767 | T12: 8.748
A13: 36 Pontevedra | B13: 30 | C13: 40 | D13: 15.24 | H13: 30 | I13: 40 | J13: 15.24 | L13: 0.098 | M13: 0.176 | N13: 0.056 | R13: 0.098 | S13: 0.176 | T13: 0.056
A14: GALICIA | B14: 4072 | C14: 4154 | D14: 3524.61 | H14: 4072 | I14: 4154 | J14: 3524.61 | L14: 14.308 | M14: 15.731 | N14: 10.407 | R14: 14.309 | S14: 15.733 | T14: 10.407
A16: 33 P. DE ASTURIAS
A18: 39 CANTABRIA | B18: 30 | C18: 30 | D18: 35 | H18: 30 | I18: 30 | J18: 35 | L18: 0.028 | M18: 0.028 | N18: 0.032 | R18: 0.028 | S18: 0.028 | T18: 0.032
A20: 01 Alava | B20: 318 | C20: 271 | D20: 248 | H20: 318 | I20: 271 | J20: 248 | L20: 1.526 | M20: 1.626 | N20: 1.24 | R20: 1.526 | S20: 1.626 | T20: 1.24
A21: 20 Guipúzcoa
A22: 48 Vizcaya
A23: PAIS VASCO | B23: 318 | C23: 271 | D23: 248 | H23: 318 | I23: 271 | J23: 248 | L23: 1.526 | M23: 1.626 | N23: 1.24 | R23: 1.526 | S23: 1.626 | T23: 1.24
A25: 31 NAVARRA | B25: 52 | C25: 159 | D25: 199 | E25: 16 | F25: 33 | G25: 45 | H25: 68 | I25: 192 | J25: 244 | L25: 0.126 | M25: 0.21 | N25: 0.388 | O25: 0.052 | P25: 0.072 | Q25: 0.14 | R25: 0.178 | S25: 0.282 | T25: 0.528
A27: 26 LA RIOJA | B27: 48 | C27: 126 | D27: 145 | F27: 69 | G27: 35 | H27: 48 | I27: 195 | J27: 180 | L27: 0.07 | M27: 0.176 | N27: 0.363 | P27: 0.214 | Q27: 0.088 | R27: 0.07 | S27: 0.39 | T27: 0.451
A29: 22 Huesca | B29: 247 | C29: 262 | D29: 115.9 | E29: 76 | F29: 50 | G29: 155.8 | H29: 323 | I29: 312 | J29: 271.7 | L29: 0.317 | M29: 0.339 | N29: 0.424 | O29: 0.319 | P29: 0.157 | Q29: 0.653 | R29: 0.636 | S29: 0.496 | T29: 1.077
A30: 44 Teruel | B30: 1708 | C30: 2952 | D30: 3648 | E30: 115 | F30: 165 | G30: 203 | H30: 1823 | I30: 3117 | J30: 3851 | L30: 1.366 | M30: 2.657 | N30: 8.78 | O30: 0.288 | P30: 0.449 | Q30: 0.647 | R30: 1.654 | S30: 3.106 | T30: 9.427
A31: 50 Zaragoza | B31: 2711 | C31: 3908 | D31: 2817.71 | E31: 29 | F31: 115 | G31: 63.44 | H31: 2740 | I31: 4023 | J31: 2881.15 | L31: 3.473 | M31: 5.745 | N31: 6.199 | O31: 0.116 | P31: 0.494 | Q31: 0.19 | R31: 3.588 | S31: 6.238 | T31: 6.389
A32: ARAGON | B32: 4666 | C32: 7122 | D32: 6581.61 | E32: 220 | F32: 330 | G32: 422.24 | H32: 4886 | I32: 7452 | J32: 7003.85 | L32: 5.156 | M32: 8.741 | N32: 15.403 | O32: 0.723 | P32: 1.1 | Q32: 1.49 | R32: 5.878 | S32: 9.84 | T32: 16.893
A34: 08 Barcelona | B34: 31 | C34: 146 | D34: 210 | E34: 4 | G34: 1 | H34: 35 | I34: 146 | J34: 211 | L34: 0.026 | M34: 0.199 | N34: 0.691 | O34: 0.017 | Q34: 0.004 | R34: 0.043 | S34: 0.199 | T34: 0.695
A35: 17 Girona | B35: 219 | C35: 264 | D35: 166 | E35: 82 | F35: 63 | G35: 78 | H35: 301 | I35: 327 | J35: 244 | L35: 0.247 | M35: 0.726 | N35: 0.364 | O35: 0.095 | P35: 0.235 | Q35: 0.255 | R35: 0.342 | S35: 0.961 | T35: 0.619
A36: 25 Lleida | B36: 470 | C36: 375 | D36: 610 | E36: 227 | F36: 270 | G36: 235 | H36: 697 | I36: 645 | J36: 845 | L36: 0.325 | M36: 0.785 | N36: 2.44 | O36: 0.733 | P36: 1.279 | Q36: 1.645 | R36: 1.058 | S36: 2.064 | T36: 4.085
A37: 43 Tarragona | B37: 7 | C37: 38 | D37: 96 | E37: 4 | F37: 11 | G37: 15 | H37: 11 | I37: 49 | J37: 111 | L37: 0.003 | M37: 0.019 | N37: 0.192 | O37: 0.008 | P37: 0.01 | Q37: 0.04 | R37: 0.011 | S37: 0.029 | T37: 0.232
A38: CATALUÑA | B38: 727 | C38: 823 | D38: 1082 | E38: 317 | F38: 344 | G38: 329 | H38: 1044 | I38: 1167 | J38: 1411 | L38: 0.601 | M38: 1.729 | N38: 3.687 | O38: 0.853 | P38: 1.524 | Q38: 1.944 | R38: 1.454 | S38: 3.253 | T38: 5.631
A40: 07 BALEARES | B40: 4 | C40: 6 | D40: 5 | H40: 4 | I40: 6 | J40: 5 | L40: 0.004 | M40: 0.005 | N40: 0.005 | R40: 0.004 | S40: 0.005 | T40: 0.005
A42: 05 Avila | B42: 6381 | C42: 8183 | D42: 8989 | E42: 26 | F42: 76 | G42: 37 | H42: 6407 | I42: 8259 | J42: 9026 | L42: 5.079 | M42: 10.139 | N42: 20.18 | O42: 0.08 | P42: 0.187 | Q42: 0.147 | R42: 5.159 | S42: 10.326 | T42: 20.327
A43: 09 Burgos | B43: 2895 | C43: 3535 | D43: 2920.86 | E43: 213 | F43: 322 | G43: 331.61 | H43: 3108 | I43: 3857 | J43: 3252.47 | L43: 4.675 | M43: 11.425 | N43: 10.95 | O43: 0.874 | P43: 1.55 | Q43: 1.581 | R43: 5.55 | S43: 12.975 | T43: 12.531
A44: 24 León | B44: 9406 | C44: 8647 | D44: 8839 | E44: 1085 | F44: 1376 | G44: 1270 | H44: 10491 | I44: 10023 | J44: 10109 | L44: 12.228 | M44: 23.347 | N44: 24.042 | O44: 3.364 | P44: 4.266 | Q44: 4.115 | R44: 15.591 | S44: 27.613 | T44: 28.157
A45: 34 Palencia | B45: 12311 | C45: 14049 | D45: 12786 | E45: 518 | F45: 532 | G45: 670 | H45: 12829 | I45: 14581 | J45: 13456 | L45: 28.709 | M45: 42.793 | N45: 28.628 | O45: 1.698 | P45: 2.169 | Q45: 2.074 | R45: 30.407 | S45: 44.962 | T45: 30.702
A46: 37 Salamanca | B46: 3335 | C46: 4444 | D46: 5090 | E46: 258 | F46: 257 | G46: 294 | H46: 3593 | I46: 4701 | J46: 5384 | L46: 4.536 | M46: 11.554 | N46: 15.27 | O46: 0.98 | P46: 0.977 | Q46: 1.117 | R46: 5.516 | S46: 12.531 | T46: 16.387
A47: 40 Segovia | B47: 3922 | C47: 5751 | D47: 8616 | E47: 178 | F47: 361 | G47: 357 | H47: 4100 | I47: 6112 | J47: 8973 | L47: 6.052 | M47: 8.627 | N47: 29.829 | O47: 0.534 | P47: 1.372 | Q47: 1.607 | R47: 6.586 | S47: 9.999 | T47: 31.436
A48: 42 Soria | B48: 8164 | C48: 11502 | D48: 9499 | E48: 114 | F48: 221 | G48: 187 | H48: 8278 | I48: 11723 | J48: 9686 | L48: 5.796 | M48: 23.004 | N48: 23.748 | O48: 0.342 | P48: 0.774 | Q48: 0.655 | R48: 6.138 | S48: 23.778 | T48: 24.403
A49: 47 Valladolid | B49: 5108 | C49: 6126 | D49: 5945 | E49: 896 | F49: 1033 | G49: 1017 | H49: 6004 | I49: 7159 | J49: 6962 | L49: 5.552 | M49: 16.902 | N49: 19.982 | O49: 3.584 | P49: 4.713 | Q49: 4.729 | R49: 9.136 | S49: 21.615 | T49: 24.711
A50: 49 Zamora | B50: 2444 | C50: 2359 | D50: 7964 | E50: 311 | F50: 481 | G50: 329 | H50: 2755 | I50: 2840 | J50: 8293 | L50: 2.349 | M50: 5.499 | N50: 15.339 | O50: 0.876 | P50: 1.84 | Q50: 1.155 | R50: 3.225 | S50: 7.339 | T50: 16.494
A51: CASTILLA Y LEON | B51: 53966 | C51: 64596 | D51: 70648.86 | E51: 3599 | F51: 4659 | G51: 4492.61 | H51: 57565 | I51: 69255 | J51: 75141.47 | L51: 74.976 | M51: 153.29 | N51: 187.968 | O51: 12.332 | P51: 17.848 | Q51: 17.18 | R51: 87.308 | S51: 171.138 | T51: 205.148
A53: 28 MADRID | B53: 660 | C53: 479 | D53: 467 | E53: 29 | F53: 28 | G53: 18 | H53: 689 | I53: 507 | J53: 485 | L53: 0.223 | M53: 0.582 | N53: 0.572 | O53: 0.018 | P53: 0.091 | Q53: 0.074 | R53: 0.241 | S53: 0.674 | T53: 0.646
A55: 02 Albacete | B55: 895 | C55: 1225 | D55: 1335 | E55: 165 | F55: 107 | G55: 92 | H55: 1060 | I55: 1332 | J55: 1427 | L55: 0.311 | M55: 0.943 | N55: 1.822 | O55: 0.83 | P55: 0.525 | Q55: 0.483 | R55: 1.143 | S55: 1.469 | T55: 2.305
A56: 13 Ciudad Real | B56: 5796 | C56: 6728 | D56: 6323 | E56: 470 | F56: 581 | G56: 453 | H56: 6266 | I56: 7309 | J56: 6776 | L56: 1.605 | M56: 12.951 | N56: 13.361 | O56: 0.942 | P56: 2.401 | Q56: 1.959 | R56: 2.548 | S56: 15.352 | T56: 15.32
A57: 16 Cuenca | B57: 308 | C57: 417 | D57: 375 | E57: 9 | F57: 17 | G57: 23 | H57: 317 | I57: 434 | J57: 398 | L57: 0.216 | M57: 1.003 | N57: 0.938 | O57: 0.027 | P57: 0.065 | Q57: 0.1 | R57: 0.243 | S57: 1.068 | T57: 1.038
A58: 19 Guadalajara | B58: 1514 | C58: 2110 | D58: 2110 | E58: 3 | F58: 15 | G58: 15 | H58: 1517 | I58: 2125 | J58: 2125 | L58: 1.968 | M58: 5.906 | N58: 5.908 | O58: 0.012 | P58: 0.053 | Q58: 0.057 | R58: 1.98 | S58: 5.957 | T58: 5.965
A59: 45 Toledo | B59: 8569 | C59: 7731 | D59: 6597 | E59: 229 | F59: 157 | G59: 156 | H59: 8798 | I59: 7888 | J59: 6753 | L59: 2.296 | M59: 9.865 | N59: 19.131 | O59: 0.787 | P59: 0.529 | Q59: 0.529 | R59: 3.08 | S59: 10.395 | T59: 19.66
A60: CASTILLA-MANCHA | B60: 17082 | C60: 18211 | D60: 16740 | E60: 876 | F60: 877 | G60: 739 | H60: 17958 | I60: 19088 | J60: 17479 | L60: 6.396 | M60: 30.668 | N60: 41.16 | O60: 2.598 | P60: 3.573 | Q60: 3.128 | R60: 8.994 | S60: 34.241 | T60: 44.288
A62: 03 Alicante | B62: 3 | C62: 9 | D62: 10 | E62: 2 | F62: 2 | G62: 2 | H62: 5 | I62: 11 | J62: 12 | M62: 0.001 | N62: 0.007 | O62: 0.003 | P62: 0.003 | Q62: 0.003 | R62: 0.003 | S62: 0.004 | T62: 0.01
A63: 12 Castellón | B63: 190 | C63: 290 | D63: 350 | H63: 190 | I63: 290 | J63: 350 | L63: 0.157 | M63: 0.036 | N63: 0.438 | R63: 0.156 | S63: 0.036 | T63: 0.438
A64: 46 Valencia | B64: 13 | C64: 34 | D64: 54 | E64: 10 | F64: 1 | G64: 1 | H64: 23 | I64: 35 | J64: 55 | L64: 0.008 | M64: 0.045 | N64: 0.133 | O64: 0.03 | P64: 0.005 | Q64: 0.004 | R64: 0.038 | S64: 0.05 | T64: 0.137
A65: C. VALENCIANA | B65: 206 | C65: 333 | D65: 414 | E65: 12 | F65: 3 | G65: 3 | H65: 218 | I65: 336 | J65: 417 | L65: 0.165 | M65: 0.082 | N65: 0.578 | O65: 0.033 | P65: 0.008 | Q65: 0.007 | R65: 0.197 | S65: 0.09 | T65: 0.585
A67: 30 R. DE MURCIA | B67: 49 | C67: 48 | D67: 51 | E67: 11 | F67: 1 | G67: 1 | H67: 60 | I67: 49 | J67: 52 | L67: 0.049 | M67: 0.046 | N67: 0.049 | O67: 0.025 | P67: 0.002 | Q67: 0.001 | R67: 0.074 | S67: 0.048 | T67: 0.05
A69: 06 Badajoz | B69: 1047 | C69: 3515 | D69: 3730 | E69: 13 | F69: 68 | G69: 53 | H69: 1060 | I69: 3583 | J69: 3783 | L69: 0.827 | M69: 7.171 | N69: 7.434 | O69: 0.021 | P69: 0.168 | Q69: 0.138 | R69: 0.848 | S69: 7.338 | T69: 7.572
A70: 10 Cáceres | B70: 57 | C70: 103 | D70: 140 | E70: 26 | F70: 65 | G70: 78 | H70: 83 | I70: 168 | J70: 218 | L70: 0.033 | M70: 0.152 | N70: 0.205 | O70: 0.034 | P70: 0.122 | Q70: 0.132 | R70: 0.067 | S70: 0.274 | T70: 0.337
A71: EXTREMADURA | B71: 1104 | C71: 3618 | D71: 3870 | E71: 39 | F71: 133 | G71: 131 | H71: 1143 | I71: 3751 | J71: 4001 | L71: 0.86 | M71: 7.323 | N71: 7.639 | O71: 0.055 | P71: 0.29 | Q71: 0.27 | R71: 0.915 | S71: 7.612 | T71: 7.909
A73: 04 Almería | D73: 117 | E73: 2 | H73: 2 | J73: 117 | N73: 0.295 | O73: 0.005 | R73: 0.005 | T73: 0.295
A74: 11 Cádiz | B74: 1295 | C74: 2641 | D74: 1670.69 | E74: 207 | F74: 233 | G74: 213.89 | H74: 1502 | I74: 2874 | J74: 1884.58 | L74: 1.295 | M74: 2.646 | N74: 1.654 | O74: 0.269 | P74: 0.303 | Q74: 0.278 | R74: 1.564 | S74: 2.949 | T74: 1.932
A75: 14 Córdoba | B75: 19846 | C75: 22193 | D75: 18592 | E75: 604 | F75: 552 | G75: 613 | H75: 20450 | I75: 22745 | J75: 19205 | L75: 19.786 | M75: 77.276 | N75: 55.63 | O75: 0.785 | P75: 1.932 | Q75: 1.833 | R75: 20.571 | S75: 79.21 | T75: 57.463
A76: 18 Granada | B76: 584 | C76: 87 | D76: 302 | E76: 17 | F76: 7 | G76: 8 | H76: 601 | I76: 94 | J76: 310 | L76: 0.102 | M76: 0.036 | N76: 0.57 | O76: 0.029 | P76: 0.016 | Q76: 0.02 | R76: 0.131 | S76: 0.052 | T76: 0.59
A77: 21 Huelva | B77: 449 | C77: 132 | D77: 142 | H77: 449 | I77: 132 | J77: 142 | L77: 0.715 | M77: 0.439 | N77: 0.479 | R77: 0.715 | S77: 0.439 | T77: 0.479
A78: 23 Jaén | B78: 52 | C78: 71 | D78: 176 | E78: 3 | H78: 55 | I78: 71 | J78: 176 | L78: 0.042 | M78: 0.128 | N78: 0.317 | O78: 0.003 | R78: 0.045 | S78: 0.128 | T78: 0.317
A79: 29 Málaga | B79: 63 | C79: 50 | D79: 74 | E79: 38 | F79: 13 | G79: 21 | H79: 101 | I79: 63 | J79: 95 | L79: 0.05 | M79: 0.1 | N79: 0.164 | O79: 0.114 | P79: 0.046 | Q79: 0.074 | R79: 0.165 | S79: 0.146 | T79: 0.238
A80: 41 Sevilla | B80: 535 | C80: 841 | D80: 278 | E80: 11 | F80: 62 | G80: 37 | H80: 546 | I80: 903 | J80: 315 | L80: 0.642 | M80: 3.017 | N80: 0.813 | O80: 0.031 | P80: 0.24 | Q80: 0.124 | R80: 0.673 | S80: 3.257 | T80: 0.937
A81: ANDALUCIA | B81: 22824 | C81: 26015 | D81: 21351.69 | E81: 882 | F81: 867 | G81: 892.89 | H81: 23706 | I81: 26882 | J81: 22244.58 | L81: 22.632 | M81: 83.642 | N81: 59.922 | O81: 1.236 | P81: 2.537 | Q81: 2.329 | R81: 23.869 | S81: 86.181 | T81: 62.251
A83: 35 Palmas (Las) | B83: 17 | C83: 17 | D83: 17 | E83: 1 | F83: 1 | G83: 1 | H83: 18 | I83: 18 | J83: 18 | L83: 0.008 | M83: 0.01 | N83: 0.01 | O83: 0.003 | P83: 0.003 | Q83: 0.003 | R83: 0.012 | S83: 0.013 | T83: 0.013
A84: 38 S. C. Tenerife | B84: 67 | C84: 64 | E84: 1 | F84: 2 | H84: 68 | I84: 66 | L84: 0.045 | M84: 0.042 | O84: 0.002 | P84: 0.002 | R84: 0.047 | S84: 0.044
A85: CANARIAS | B85: 84 | C85: 81 | D85: 17 | E85: 2 | F85: 3 | G85: 1 | H85: 86 | I85: 84 | J85: 18 | L85: 0.053 | M85: 0.052 | N85: 0.01 | O85: 0.005 | P85: 0.005 | Q85: 0.003 | R85: 0.059 | S85: 0.057 | T85: 0.013
A88: ESPAÑA | B88: 211784 | C88: 126072 | D88: 125379.77 | E88: 6003 | F88: 7347 | G88: 7109.74 | H88: 111895 | I88: 133419 | J88: 132489.51 | L88: 127.173 | M88: 303.931 | N88: 329.423 | O88: 17.93 | P88: 27.264 | Q88: 26.654 | R88: 145.104 | S88: 331.198 | T88: 356.077
B96: 221 | C96: 231 | E96: 221 | F96: 231 | H96: 221 | I96: 231

Sheet Cen11lón
A1: AVANCES DE SUPERFICIE Y PRODUCCIÓN
A2: CENTENO Y TRANQUILLÓN | J2: 2025 JULIO
A3: SUPERFICIE COSECHADA(*)
A4: PROVINCIAS | C4: SUPERFICIES (HA) | H4: PRODUCCIONES (1000 TM)
A5: Y
A6: CC-AA | C6: =E6-2 -> 2023 | D6: =E6-1 -> 2024 | E6: 2025 | F6: =E6 -> 2025 | H6: =J6-2 -> 2023 | I6: =J6-1 -> 2024 | J6: 2025 | K6: =J6 -> 2025
C7: DEFINITIVO | D7: DEFINITIVO | E7: PROVISIONAL | F7: =CONCATENATE(D6,"=100") -> 2024=100 | H7: DEFINITIVO | I7: DEFINITIVO | J7: PROVISIONAL | K7: =CONCATENATE(I6,"=100") -> 2024=100
A10: 15 A Coruña | C10: 24 | D10: 112 | E10: 101.12 | H10: 0.098 | I10: 0.367 | J10: 0.222
A11: 27 Lugo | C11: 429 | D11: 417 | E11: 463.06 | H11: 1.587 | I11: 1.423 | J11: 1.381
A12: 32 Ourense | C12: 3589 | D12: 3585 | E12: 2945.19 | H12: 12.526 | I12: 13.767 | J12: 8.748
A13: 36 Pontevedra | C13: 30 | D13: 40 | E13: 15.24 | H13: 0.098 | I13: 0.176 | J13: 0.056
A14: GALICIA | C14: 4072 | D14: 4154 | E14: 3524.61 | F14: 84.84857968 | H14: 14.309 | I14: 15.733 | J14: 10.407 | K14: 66.14758787
A16: 33 P. DE ASTURIAS
A18: 39 CANTABRIA | C18: 30 | D18: 30 | E18: 35 | F18: 116.6666667 | H18: 0.028 | I18: 0.028 | J18: 0.032 | K18: 114.2857143
A20: 1 Álava | C20: 318 | D20: 271 | E20: 248 | H20: 1.526 | I20: 1.626 | J20: 1.24
A21: 20 Guipúzcoa
A22: 48 Vizcaya
A23: PAIS VASCO | C23: 318 | D23: 271 | E23: 248 | F23: 91.51291513 | H23: 1.526 | I23: 1.626 | J23: 1.24 | K23: 76.26076261
A25: 31 NAVARRA | C25: 68 | D25: 192 | E25: 244 | F25: 127.0833333 | H25: 0.178 | I25: 0.282 | J25: 0.528 | K25: 187.2340426
A27: 26 LA RIOJA | C27: 48 | D27: 195 | E27: 180 | F27: 92.30769231 | H27: 0.07 | I27: 0.39 | J27: 0.451 | K27: 115.6410256
A29: 22 Huesca | C29: 323 | D29: 312 | E29: 271.7 | H29: 0.636 | I29: 0.496 | J29: 1.077
A30: 44 Teruel | C30: 1823 | D30: 3117 | E30: 3851 | H30: 1.654 | I30: 3.106 | J30: 9.427
A31: 50 Zaragoza | C31: 2740 | D31: 4023 | E31: 2881.15 | H31: 3.588 | I31: 6.238 | J31: 6.389
A32: ARAGÓN | C32: 4886 | D32: 7452 | E32: 7003.85 | F32: 93.98617821 | H32: 5.878 | I32: 9.84 | J32: 16.893 | K32: 171.6768293
A34: 8 Barcelona | C34: 35 | D34: 146 | E34: 211 | H34: 0.043 | I34: 0.199 | J34: 0.695
A35: 17 Girona | C35: 301 | D35: 327 | E35: 244 | H35: 0.342 | I35: 0.961 | J35: 0.619
A36: 25 Lleida | C36: 697 | D36: 645 | E36: 845 | H36: 1.058 | I36: 2.064 | J36: 4.085
A37: 43 Tarragona | C37: 11 | D37: 49 | E37: 111 | H37: 0.011 | I37: 0.029 | J37: 0.232
A38: CATALUÑA | C38: 1044 | D38: 1167 | E38: 1411 | F38: 120.9083119 | H38: 1.454 | I38: 3.253 | J38: 5.631 | K38: 173.1017522
A40: 7 BALEARES | C40: 4 | D40: 6 | E40: 5 | F40: 83.33333333 | H40: 0.004 | I40: 0.005 | J40: 0.005 | K40: 100
A42: 5 Ávila | C42: 6407 | D42: 8259 | E42: 9026 | H42: 5.159 | I42: 10.326 | J42: 20.327
A43: 9 Burgos | C43: 3108 | D43: 3857 | E43: 3252.47 | H43: 5.55 | I43: 12.975 | J43: 12.531
A44: 24 León | C44: 10491 | D44: 10023 | E44: 10109 | H44: 15.591 | I44: 27.613 | J44: 28.157
A45: 34 Palencia | C45: 12829 | D45: 14581 | E45: 13456 | H45: 30.407 | I45: 44.962 | J45: 30.702
A46: 37 Salamanca | C46: 3593 | D46: 4701 | E46: 5384 | H46: 5.516 | I46: 12.531 | J46: 16.387
A47: 40 Segovia | C47: 4100 | D47: 6112 | E47: 8973 | H47: 6.586 | I47: 9.999 | J47: 31.436
A48: 42 Soria | C48: 8278 | D48: 11723 | E48: 9686 | H48: 6.138 | I48: 23.778 | J48: 24.403
A49: 47 Valladolid | C49: 6004 | D49: 7159 | E49: 6962 | H49: 9.136 | I49: 21.615 | J49: 24.711
A50: 49 Zamora | C50: 2755 | D50: 2840 | E50: 8293 | H50: 3.225 | I50: 7.339 | J50: 16.494
A51: CASTILLA Y LEÓN | C51: 57565 | D51: 69255 | E51: 75141.47 | F51: 108.499704 | H51: 87.308 | I51: 171.138 | J51: 205.148 | K51: 119.8728511
A53: 28 MADRID | C53: 689 | D53: 507 | E53: 485 | F53: 95.66074951 | H53: 0.241 | I53: 0.674 | J53: 0.646 | K53: 95.84569733
A55: 2 Albacete | C55: 1060 | D55: 1332 | E55: 1427 | H55: 1.143 | I55: 1.469 | J55: 2.305
A56: 13 Ciudad Real | C56: 6266 | D56: 7309 | E56: 6776 | H56: 2.548 | I56: 15.352 | J56: 15.32
A57: 16 Cuenca | C57: 317 | D57: 434 | E57: 398 | H57: 0.243 | I57: 1.068 | J57: 1.038
A58: 19 Guadalajara | C58: 1517 | D58: 2125 | E58: 2125 | H58: 1.98 | I58: 5.957 | J58: 5.965
A59: 45 Toledo | C59: 8798 | D59: 7888 | E59: 6753 | H59: 3.08 | I59: 10.395 | J59: 19.66
A60: CASTILLA-MANCHA | C60: 17958 | D60: 19088 | E60: 17479 | F60: 91.57062028 | H60: 8.994 | I60: 34.241 | J60: 44.288 | K60: 129.3420169
A62: 3 Alicante | C62: 5 | D62: 11 | E62: 12 | H62: 0.003 | I62: 0.004 | J62: 0.01
A63: 12 Castellón | C63: 190 | D63: 290 | E63: 350 | H63: 0.156 | I63: 0.036 | J63: 0.438
A64: 46 Valencia | C64: 23 | D64: 35 | E64: 55 | H64: 0.038 | I64: 0.05 | J64: 0.137
A65: C. VALENCIANA | C65: 218 | D65: 336 | E65: 417 | F65: 124.1071429 | H65: 0.197 | I65: 0.09 | J65: 0.585 | K65: 650
A67: 30 R. DE MURCIA | C67: 60 | D67: 49 | E67: 52 | F67: 106.122449 | H67: 0.074 | I67: 0.048 | J67: 0.05 | K67: 104.1666667
A69: 6 Badajoz | C69: 1060 | D69: 3583 | E69: 3783 | H69: 0.848 | I69: 7.338 | J69: 7.572
A70: 10 Cáceres | C70: 83 | D70: 168 | E70: 218 | H70: 0.067 | I70: 0.274 | J70: 0.337
A71: EXTREMADURA | C71: 1143 | D71: 3751 | E71: 4001 | F71: 106.6648894 | H71: 0.915 | I71: 7.612 | J71: 7.909 | K71: 103.9017341
A73: 4 Almería | C73: 2 | E73: 117 | H73: 0.005 | J73: 0.295
A74: 11 Cádiz | C74: 1502 | D74: 2874 | E74: 1884.58 | H74: 1.564 | I74: 2.949 | J74: 1.932
A75: 14 Córdoba | C75: 20450 | D75: 22745 | E75: 19205 | H75: 20.571 | I75: 79.21 | J75: 57.463
A76: 18 Granada | C76: 601 | D76: 94 | E76: 310 | H76: 0.131 | I76: 0.052 | J76: 0.59
A77: 21 Huelva | C77: 449 | D77: 132 | E77: 142 | H77: 0.715 | I77: 0.439 | J77: 0.479
A78: 23 Jaén | C78: 55 | D78: 71 | E78: 176 | H78: 0.045 | I78: 0.128 | J78: 0.317
A79: 29 Málaga | C79: 101 | D79: 63 | E79: 95 | H79: 0.165 | I79: 0.146 | J79: 0.238
A80: 41 Sevilla | C80: 546 | D80: 903 | E80: 315 | H80: 0.673 | I80: 3.257 | J80: 0.937
A81: ANDALUCÍA | C81: 23706 | D81: 26882 | E81: 22244.58 | F81: 82.74897701 | H81: 23.869 | I81: 86.181 | J81: 62.251 | K81: 72.23285875
A83: 35 Palmas (Las) | C83: 18 | D83: 18 | E83: 18 | H83: 0.012 | I83: 0.013 | J83: 0.013
A84: 38 S. C. Tenerife | C84: 68 | D84: 66 | H84: 0.047 | I84: 0.044
A85: CANARIAS | C85: 86 | D85: 84 | E85: 18 | F85: 21.42857143 | H85: 0.059 | I85: 0.057 | J85: 0.013 | K85: 22.80701754
A88: ESPAÑA | C88: 111895 | D88: 133419 | E88: 132489.51 | F88: 99.30333011 | H88: 145.104 | I88: 331.198 | J88: 356.077 | K88: 107.5118207
A91: (*)Tipo de Superficie de mes/año solicitado

Sheet Ceb12rno-SRT
A1: AVANCES DE SUPERFICIE Y PRODUCCIÓN
A2: CEBADA DE INVIERNO S/R/T | K2: 2025 JULIO
A3: SUPERFICIE COSECHADA(*)
A4: PROVINCIAS | B4: SUPERFICIES (HA) | E4: SUPERFICIES (HA) | H4: SUPERFICIES (HA) | L4: PRODUCCIONES (1000 TM) | O4: PRODUCCIONES (1000 TM) | R4: PRODUCCIONES (1000 TM)
A5: Y | B5: SECANO | E5: REGADIO | H5: TOTAL | L5: SECANO | O5: REGADIO | R5: TOTAL
A6: CC-AA | B6: =J6-2 -> 2023 | C6: =J6-1 -> 2024 | D6: =J6 -> 2025 | E6: =J6-2 -> 2023 | F6: =J6-1 -> 2024 | G6: =J6 -> 2025 | H6: =J6-2 -> 2023 | I6: =J6-1 -> 2024 | J6: 2025 | L6: =T6-2 -> 2023 | M6: =T6-1 -> 2024 | N6: =T6 -> 2025 | O6: =T6-2 -> 2023 | P6: =T6-1 -> 2024 | Q6: =T6 -> 2025 | R6: =T6-2 -> 2023 | S6: =T6-1 -> 2024 | T6: 2025
B7: DEFINITIVO | C7: DEFINITIVO | D7: PROVISIONAL | E7: DEFINITIVO | F7: DEFINITIVO | G7: PROVISIONAL | H7: DEFINITIVO | I7: DEFINITIVO | J7: PROVISIONAL | L7: DEFINITIVO | M7: DEFINITIVO | N7: PROVISIONAL | O7: DEFINITIVO | P7: DEFINITIVO | Q7: PROVISIONAL | R7: DEFINITIVO | S7: DEFINITIVO | T7: PROVISIONAL
A10: 15 Coruña (La) | B10: 147 | C10: 110 | D10: 32.87 | H10: 147 | I10: 110 | J10: 32.87 | L10: 0.303 | M10: 0.275 | N10: 0.243 | R10: 0.303 | S10: 0.275 | T10: 0.243
A11: 27 Lugo | B11: 49 | C11: 47 | D11: 73.86 | H11: 49 | I11: 47 | J11: 73.86 | L11: 0.105 | M11: 0.118 | N11: 0.26 | R11: 0.105 | S11: 0.118 | T11: 0.26
A12: 32 Orense | B12: 547 | C12: 588 | D12: 982.12 | H12: 547 | I12: 588 | J12: 982.12 | L12: 1.641 | M12: 2.593 | N12: 2.814 | R12: 1.641 | S12: 2.593 | T12: 2.814
A13: 36 Pontevedra | B13: 19 | C13: 27 | D13: 77.48 | H13: 19 | I13: 27 | J13: 77.48 | L13: 0.041 | M13: 0.119 | N13: 0.265 | R13: 0.041 | S13: 0.119 | T13: 0.265
A14: GALICIA | B14: 762 | C14: 772 | D14: 1166.33 | H14: 762 | I14: 772 | J14: 1166.33 | L14: 2.09 | M14: 3.105 | N14: 3.582 | R14: 2.09 | S14: 3.105 | T14: 3.582
A16: 33 P. DE ASTURIAS
A18: 39 CANTABRIA
A20: 01 Alava | B20: 5143 | C20: 5462 | D20: 4329 | H20: 5143 | I20: 5462 | J20: 4329 | L20: 28.287 | M20: 38.78 | N20: 25.974 | R20: 28.287 | S20: 38.78 | T20: 25.974
A21: 20 Guipúzcoa
A22: 48 Vizcaya
A23: PAIS VASCO | B23: 5143 | C23: 5462 | D23: 4329 | H23: 5143 | I23: 5462 | J23: 4329 | L23: 28.287 | M23: 38.78 | N23: 25.974 | R23: 28.287 | S23: 38.78 | T23: 25.974
A25: 31 NAVARRA | B25: 53276 | C25: 59005 | D25: 57002.15 | E25: 12420 | F25: 11852 | G25: 11651.19 | H25: 65696 | I25: 70857 | J25: 68653.34 | L25: 181.511 | M25: 276.91 | N25: 258.824 | O25: 57.989 | P25: 77.571 | Q25: 65.826 | R25: 239.5 | S25: 354.501 | T25: 324.65
A27: 26 LA RIOJA | B27: 5490 | C27: 4887 | D27: 4900 | G27: 1700 | H27: 5490 | I27: 4887 | J27: 6600 | L27: 7.466 | M27: 15.013 | N27: 25.989 | Q27: 9.602 | R27: 7.466 | S27: 15.013 | T27: 35.591
A29: 22 Huesca | B29: 65950 | C29: 75801 | D29: 92321.37 | E29: 61522 | F29: 52544 | G29: 55751.23 | H29: 127472 | I29: 128345 | J29: 148072.6 | L29: 56.849 | M29: 295.093 | N29: 360.053 | O29: 249.164 | P29: 311.586 | Q29: 362.383 | R29: 306.062 | S29: 606.694 | T29: 722.436
A30: 44 Teruel | B30: 45554 | C30: 51901 | D30: 78423 | E30: 7901 | F30: 8101 | G30: 8292 | H30: 53455 | I30: 60002 | J30: 86715 | L30: 31.888 | M30: 49.202 | N30: 227.191 | O30: 19.753 | P30: 22.237 | Q30: 40.638 | R30: 51.641 | S30: 71.44 | T30: 267.829
A31: 50 Zaragoza | B31: 64651 | C31: 126625 | D31: 124258.32 | E31: 28442 | F31: 29264 | G31: 21422.3 | H31: 93093 | I31: 155889 | J31: 145680.62 | L31: 55.729 | M31: 208.931 | N31: 298.22 | O31: 143.518 | P31: 147.9 | Q31: 113.538 | R31: 199.246 | S31: 356.874 | T31: 411.758
A32: ARAGON | B32: 176155 | C32: 254327 | D32: 295002.69 | E32: 97865 | F32: 89909 | G32: 85465.53 | H32: 274020 | I32: 344236 | J32: 380468.22 | L32: 144.466 | M32: 553.226 | N32: 885.464 | O32: 412.435 | P32: 481.723 | Q32: 516.559 | R32: 556.949 | S32: 1035.008 | T32: 1402.023
A34: 08 Barcelona | B34: 19993 | C34: 30703 | D34: 33243 | E34: 1088 | F34: 668 | G34: 1003 | H34: 21081 | I34: 31371 | J34: 34246 | L34: 15.734 | M34: 61.56 | N34: 138.732 | O34: 5.769 | P34: 3.403 | Q34: 5.665 | R34: 21.503 | S34: 64.968 | T34: 144.397
A35: 17 Girona | B35: 12517 | C35: 15825 | D35: 13274 | E35: 2122 | F35: 2499 | G35: 4451 | H35: 14639 | I35: 18324 | J35: 17725 | L35: 25.259 | M35: 32.22 | N35: 44.329 | O35: 6.491 | P35: 8.342 | Q35: 17.523 | R35: 31.752 | S35: 40.556 | T35: 61.852
A36: 25 Lleida | B36: 64168 | C36: 67284 | D36: 75977 | E36: 31049 | F36: 32385 | G36: 29817 | H36: 95217 | I36: 99669 | J36: 105794 | L36: 33.688 | M36: 145.67 | N36: 341.896 | O36: 159.592 | P36: 202.892 | Q36: 199.774 | R36: 193.28 | S36: 348.564 | T36: 541.67
A37: 43 Tarragona | B37: 12682 | C37: 10979 | D37: 12167 | E37: 261 | F37: 336 | G37: 288 | H37: 12943 | I37: 11315 | J37: 12455 | L37: 15.18 | M37: 13.801 | N37: 44.412 | O37: 0.392 | P37: 0.529 | Q37: 1.354 | R37: 15.572 | S37: 14.326 | T37: 45.766
A38: CATALUÑA | B38: 109360 | C38: 124791 | D38: 134661 | E38: 34520 | F38: 35888 | G38: 35559 | H38: 143880 | I38: 160679 | J38: 170220 | L38: 89.861 | M38: 253.251 | N38: 569.369 | O38: 172.244 | P38: 215.166 | Q38: 224.316 | R38: 262.107 | S38: 468.414 | T38: 793.685
A40: 07 BALEARES | B40: 12469 | C40: 8847 | D40: 10000 | H40: 12469 | I40: 8847 | J40: 10000 | L40: 21.484 | M40: 11.952 | N40: 13.2 | R40: 21.484 | S40: 11.953 | T40: 13.2
A42: 05 Avila | B42: 41652 | C42: 34444 | D42: 40197 | E42: 3770 | F42: 1765 | G42: 1448 | H42: 45422 | I42: 36209 | J42: 41645 | L42: 35.363 | M42: 63.067 | N42: 156.489 | O42: 15.559 | P42: 5.89 | Q42: 6.538 | R42: 50.923 | S42: 68.943 | T42: 163.027
A43: 09 Burgos | B43: 134254 | C43: 128146 | D43: 144045.86 | E43: 5318 | F43: 4790 | G43: 5206.75 | H43: 139572 | I43: 132936 | J43: 149252.61 | L43: 312.678 | M43: 662.13 | N43: 760.084 | O43: 28.276 | P43: 31.121 | Q43: 34.27 | R43: 340.954 | S43: 693.251 | T43: 794.354
A44: 24 León | B44: 16855 | C44: 13794 | D44: 18103 | E44: 4154 | F44: 3920 | G44: 4197 | H44: 21009 | I44: 17714 | J44: 22300 | L44: 25.788 | M44: 52.541 | N44: 75.308 | O44: 22.432 | P44: 20.384 | Q44: 22.244 | R44: 48.22 | S44: 72.925 | T44: 97.552
A45: 34 Palencia | B45: 96202 | C45: 89344 | D45: 96714 | E45: 10676 | F45: 8959 | G45: 10477 | H45: 106878 | I45: 98303 | J45: 107191 | L45: 200.581 | M45: 401.869 | N45: 493.531 | O45: 48.33 | P45: 52.374 | Q45: 60.63 | R45: 248.911 | S45: 454.244 | T45: 554.161
A46: 37 Salamanca | B46: 27186 | C46: 24112 | D46: 25248 | E46: 4337 | F46: 2958 | G46: 4601 | H46: 31523 | I46: 27070 | J46: 29849 | L46: 50.294 | M46: 78.364 | N46: 113.616 | O46: 22.869 | P46: 15.382 | Q46: 23.925 | R46: 73.164 | S46: 93.746 | T46: 137.541
A47: 40 Segovia | B47: 62054 | C47: 47414 | D47: 59677 | E47: 3442 | F47: 2883 | G47: 3853 | H47: 65496 | I47: 50297 | J47: 63530 | L47: 102.761 | M47: 122.802 | N47: 237.753 | O47: 10.326 | P47: 14.303 | Q47: 19.253 | R47: 113.087 | S47: 137.104 | T47: 257.006
A48: 42 Soria | B48: 72650 | C48: 69422 | D48: 74242 | E48: 3189 | F48: 2853 | G48: 3082 | H48: 75839 | I48: 72275 | J48: 77324 | L48: 66.184 | M48: 240.408 | N48: 289.692 | O48: 9.567 | P48: 13.694 | Q48: 16.643 | R48: 75.751 | S48: 254.102 | T48: 306.335
A49: 47 Valladolid | B49: 136678 | C49: 125443 | D49: 135485 | E49: 21103 | F49: 20779 | G49: 25471 | H49: 157781 | I49: 146222 | J49: 160956 | L49: 199.823 | M49: 513.062 | N49: 674.073 | O49: 95.66 | P49: 132.341 | Q49: 178.297 | R49: 295.483 | S49: 645.403 | T49: 852.37
A50: 49 Zamora | B50: 48738 | C50: 51957 | D50: 55469 | E50: 8691 | F50: 8433 | G50: 9437 | H50: 57429 | I50: 60390 | J50: 64906 | L50: 75.495 | M50: 192.085 | N50: 252.023 | O50: 38.353 | P50: 44.813 | Q50: 66.059 | R50: 113.848 | S50: 236.898 | T50: 318.082
A51: CASTILLA Y LEON | B51: 636269 | C51: 584076 | D51: 649180.86 | E51: 64680 | F51: 57340 | G51: 67772.75 | H51: 700949 | I51: 641416 | J51: 716953.61 | L51: 1068.967 | M51: 2326.328 | N51: 3052.569 | O51: 291.372 | P51: 330.302 | Q51: 427.859 | R51: 1360.341 | S51: 2656.616 | T51: 3480.428
A53: 28 MADRID | B53: 37418 | C53: 32376 | D53: 23262 | E53: 5030 | F53: 3699 | G53: 2395 | H53: 42448 | I53: 36075 | J53: 25657 | L53: 42.582 | M53: 85.894 | N53: 56.644 | O53: 10.548 | P53: 13.453 | Q53: 8.95 | R53: 53.13 | S53: 99.333 | T53: 65.594
A55: 02 Albacete | B55: 23568 | C55: 32600 | D55: 33895 | E55: 1046 | F55: 750 | G55: 750 | H55: 24614 | I55: 33350 | J55: 34645 | L55: 9.427 | M55: 37.034 | N55: 76 | O55: 6.799 | P55: 4.95 | Q55: 5.175 | R55: 16.226 | S55: 41.978 | T55: 81.175
A56: 13 Ciudad Real | B56: 95085 | C56: 103049 | D56: 94021 | E56: 41723 | F56: 33738 | G56: 35343 | H56: 136808 | I56: 136787 | J56: 129364 | L56: 33.185 | M56: 324.192 | N56: 306.508 | O56: 83.863 | P56: 170.714 | Q56: 195.447 | R56: 117.069 | S56: 494.907 | T56: 501.955
A57: 16 Cuenca | B57: 190770 | C57: 217103 | D57: 211147 | E57: 8616 | F57: 7299 | G57: 7550 | H57: 199386 | I57: 224402 | J57: 218697 | L57: 171.693 | M57: 680.401 | N57: 688.76 | O57: 37.48 | P57: 40.955 | Q57: 41.802 | R57: 209.173 | S57: 721.318 | T57: 730.562
A58: 19 Guadalajara | B58: 77907 | C58: 75548 | D58: 75548 | E58: 2983 | F58: 2893 | G58: 2893 | H58: 80890 | I58: 78441 | J58: 78441 | L58: 116.861 | M58: 241.754 | N58: 264.419 | O58: 13.424 | P58: 14.465 | Q58: 14.465 | R58: 130.284 | S58: 256.218 | T58: 278.884
A59: 45 Toledo | B59: 125914 | C59: 129600 | D59: 108648 | E59: 12374 | F59: 9704 | G59: 10876 | H59: 138288 | I59: 139304 | J59: 119524 | L59: 50.617 | M59: 339.293 | N59: 328.095 | O59: 57.935 | P59: 45.405 | Q59: 60.379 | R59: 108.527 | S59: 384.672 | T59: 388.474
A60: CASTILLA-MANCHA | B60: 513244 | C60: 557900 | D60: 523259 | E60: 66742 | F60: 54384 | G60: 57412 | H60: 579986 | I60: 612284 | J60: 580671 | L60: 381.783 | M60: 1622.674 | N60: 1663.782 | O60: 199.501 | P60: 276.489 | Q60: 317.268 | R60: 581.279 | S60: 1899.093 | T60: 1981.05
A62: 03 Alicante | B62: 1845 | C62: 1349 | D62: 1876 | E62: 552 | F62: 525 | G62: 402 | H62: 2397 | I62: 1874 | J62: 2278 | L62: 1.026 | M62: 0.216 | N62: 2.426 | O62: 1.471 | P62: 1.137 | Q62: 1.575 | R62: 2.497 | S62: 1.354 | T62: 4.001
A63: 12 Castellón | B63: 1147 | C63: 1432 | D63: 1714 | E63: 38 | F63: 47 | G63: 47 | H63: 1185 | I63: 1479 | J63: 1761 | L63: 2.122 | M63: 0.186 | N63: 3.17 | O63: 0.148 | P63: 0.183 | Q63: 0.183 | R63: 2.27 | S63: 0.369 | T63: 3.353
A64: 46 Valencia | B64: 2874 | C64: 2240 | D64: 6390 | E64: 326 | F64: 416 | G64: 404 | H64: 3200 | I64: 2656 | J64: 6794 | L64: 2.472 | M64: 2.24 | N64: 18.85 | O64: 1.304 | P64: 1.915 | Q64: 1.69 | R64: 3.776 | S64: 4.155 | T64: 20.54
A65: C. VALENCIANA | B65: 5866 | C65: 5021 | D65: 9980 | E65: 916 | F65: 988 | G65: 853 | H65: 6782 | I65: 6009 | J65: 10833 | L65: 5.62 | M65: 2.642 | N65: 24.446 | O65: 2.923 | P65: 3.235 | Q65: 3.448 | R65: 8.543 | S65: 5.878 | T65: 27.894
A67: 30 R. DE MURCIA | B67: 16906 | C67: 14284 | D67: 15344 | E67: 2507 | F67: 1462 | G67: 1239 | H67: 19413 | I67: 15746 | J67: 16583 | L67: 19.121 | M67: 15.812 | N67: 16.996 | O67: 9.474 | P67: 5.689 | Q67: 4.86 | R67: 28.598 | S67: 21.498 | T67: 21.856
A69: 06 Badajoz | B69: 24095 | C69: 47707 | D69: 46890 | E69: 3795 | F69: 2710 | G69: 2671 | H69: 27890 | I69: 50417 | J69: 49561 | L69: 28.649 | M69: 142.93 | N69: 114.505 | O69: 11.283 | P69: 10.558 | Q69: 8.479 | R69: 39.936 | S69: 153.487 | T69: 122.984
A70: 10 Cáceres | B70: 193 | C70: 305 | D70: 211 | E70: 896 | F70: 702 | G70: 357 | H70: 1089 | I70: 1007 | J70: 568 | L70: 0.143 | M70: 0.444 | N70: 0.375 | O70: 1.658 | P70: 1.328 | Q70: 0.825 | R70: 1.8 | S70: 1.772 | T70: 1.2
A71: EXTREMADURA | B71: 24288 | C71: 48012 | D71: 47101 | E71: 4691 | F71: 3412 | G71: 3028 | H71: 28979 | I71: 51424 | J71: 50129 | L71: 28.792 | M71: 143.374 | N71: 114.88 | O71: 12.941 | P71: 11.886 | Q71: 9.304 | R71: 41.736 | S71: 155.259 | T71: 124.184
A73: 04 Almería | B73: 1000 | C73: 374 | D73: 6776 | E73: 232 | F73: 206 | G73: 189 | H73: 1232 | I73: 580 | J73: 6965 | L73: 0.04 | M73: 0.299 | N73: 17.398 | O73: 0.667 | P73: 0.414 | Q73: 0.708 | R73: 0.707 | S73: 0.713 | T73: 18.106
A74: 11 Cádiz | B74: 6957 | C74: 8605 | D74: 10732 | E74: 497 | F74: 616 | G74: 599.13 | H74: 7454 | I74: 9221 | J74: 11331.13 | L74: 6.407 | M74: 13.037 | N74: 31.123 | O74: 1.722 | P74: 1.502 | Q74: 1.737 | R74: 8.131 | S74: 14.543 | T74: 32.86
A75: 14 Córdoba | B75: 14576 | C75: 18311 | D75: 18490 | E75: 1067 | F75: 1338 | G75: 780 | H75: 15643 | I75: 19649 | J75: 19270 | L75: 16.908 | M75: 61.159 | N75: 55.84 | O75: 1.459 | P75: 4.159 | Q75: 2.259 | R75: 18.366 | S75: 65.325 | T75: 58.099
A76: 18 Granada | B76: 15137 | C76: 16672 | D76: 29857 | E76: 3739 | F76: 3179 | G76: 3561 | H76: 18876 | I76: 19851 | J76: 33418 | L76: 7.569 | M76: 29.093 | N76: 55.767 | O76: 7.018 | P76: 9.121 | Q76: 10.944 | R76: 14.58 | S76: 38.206 | T76: 66.711
A77: 21 Huelva | B77: 1020 | C77: 1104 | D77: 718 | E77: 30 | F77: 83 | G77: 32 | H77: 1050 | I77: 1187 | J77: 750 | L77: 0.928 | M77: 3.312 | N77: 2.129 | O77: 0.04 | P77: 0.258 | Q77: 0.106 | R77: 0.968 | S77: 3.57 | T77: 2.235
A78: 23 Jaén | B78: 3574 | C78: 5158 | D78: 4949 | E78: 400 | F78: 551 | G78: 564 | H78: 3974 | I78: 5709 | J78: 5513 | L78: 2.362 | M78: 10.001 | N78: 9.596 | O78: 0.424 | P78: 1.399 | Q78: 1.41 | R78: 2.786 | S78: 11.4 | T78: 11.006
A79: 29 Málaga | B79: 7333 | C79: 8785 | D79: 9494 | E79: 894 | F79: 739 | G79: 968 | H79: 8227 | I79: 9524 | J79: 10462 | L79: 5.866 | M79: 26.32 | N79: 30.34 | O79: 2.682 | P79: 3.037 | Q79: 4.07 | R79: 8.548 | S79: 29.358 | T79: 34.41
A80: 41 Sevilla | B80: 17679 | C80: 17400 | D80: 16180 | E80: 3819 | F80: 2580 | G80: 1320 | H80: 21498 | I80: 19980 | J80: 17500 | L80: 19.093 | M80: 58.116 | N80: 44.98 | O80: 11.342 | P80: 9.727 | Q80: 4.196 | R80: 30.436 | S80: 67.842 | T80: 49.176
A81: ANDALUCIA | B81: 67276 | C81: 76409 | D81: 97196 | E81: 10678 | F81: 9292 | G81: 8013.13 | H81: 77954 | I81: 85701 | J81: 105209.13 | L81: 59.173 | M81: 201.337 | N81: 247.173 | O81: 25.354 | P81: 29.617 | Q81: 25.43 | R81: 84.522 | S81: 230.957 | T81: 272.603
A83: 35 Palmas (Las) | B83: 27 | C83: 22 | D83: 22 | E83: 24 | F83: 22 | G83: 22 | H83: 51 | I83: 44 | J83: 44 | L83: 0.028 | M83: 0.022 | N83: 0.022 | O83: 0.063 | P83: 0.057 | Q83: 0.057 | R83: 0.091 | S83: 0.079 | T83: 0.079
A84: 38 S. C. Tenerife | B84: 39 | C84: 47 | D84: 47 | E84: 1 | F84: 1 | G84: 1 | H84: 40 | I84: 48 | J84: 48 | L84: 0.038 | M84: 0.045 | N84: 0.045 | O84: 0.002 | P84: 0.001 | Q84: 0.001 | R84: 0.039 | S84: 0.046 | T84: 0.046
A85: CANARIAS | B85: 66 | C85: 69 | D85: 69 | E85: 25 | F85: 23 | G85: 23 | H85: 91 | I85: 92 | J85: 92 | L85: 0.066 | M85: 0.067 | N85: 0.067 | O85: 0.065 | P85: 0.058 | Q85: 0.058 | R85: 0.13 | S85: 0.125 | T85: 0.125
A88: ESPAÑA | B88: 3327976 | C88: 1776238 | D88: 1872453.03 | E88: 300074 | F88: 268249 | G88: 275111.6 | H88: 1964062 | I88: 2044487 | J88: 2147564.63 | L88: 2081.269 | M88: 5550.365 | N88: 6958.959 | O88: 1194.846 | P88: 1445.189 | Q88: 1613.48 | R88: 3276.162 | S88: 6995.533 | T88: 8572.439
B96: 221 | C96: 231 | E96: 221 | F96: 231 | H96: 221 | I96: 231

Sheet Ceb12rno
A1: AVANCES DE SUPERFICIE Y PRODUCCIÓN
A2: CEBADA DE INVIERNO | J2: 2025 JULIO
A3: SUPERFICIE COSECHADA(*)
A4: PROVINCIAS | C4: SUPERFICIES (HA) | H4: PRODUCCIONES (1000 TM)
A5: Y
A6: CC-AA | C6: =E6-2 -> 2023 | D6: =E6-1 -> 2024 | E6: 2025 | F6: =E6 -> 2025 | H6: =J6-2 -> 2023 | I6: =J6-1 -> 2024 | J6: 2025 | K6: =J6 -> 2025
C7: DEFINITIVO | D7: DEFINITIVO | E7: PROVISIONAL | F7: =CONCATENATE(D6,"=100") -> 2024=100 | H7: DEFINITIVO | I7: DEFINITIVO | J7: PROVISIONAL | K7: =CONCATENATE(I6,"=100") -> 2024=100
A10: 15 A Coruña | C10: 147 | D10: 110 | E10: 32.87 | H10: 0.303 | I10: 0.275 | J10: 0.243
A11: 27 Lugo | C11: 49 | D11: 47 | E11: 73.86 | H11: 0.105 | I11: 0.118 | J11: 0.26
A12: 32 Ourense | C12: 547 | D12: 588 | E12: 982.12 | H12: 1.641 | I12: 2.593 | J12: 2.814
A13: 36 Pontevedra | C13: 19 | D13: 27 | E13: 77.48 | H13: 0.041 | I13: 0.119 | J13: 0.265
A14: GALICIA | C14: 762 | D14: 772 | E14: 1166.33 | F14: 151.0790155 | H14: 2.09 | I14: 3.105 | J14: 3.582 | K14: 115.3623188
A16: 33 P. DE ASTURIAS
A18: 39 CANTABRIA
A20: 1 Álava | C20: 5143 | D20: 5462 | E20: 4329 | H20: 28.287 | I20: 38.78 | J20: 25.974
A21: 20 Guipúzcoa
A22: 48 Vizcaya
A23: PAIS VASCO | C23: 5143 | D23: 5462 | E23: 4329 | F23: 79.25668253 | H23: 28.287 | I23: 38.78 | J23: 25.974 | K23: 66.97782362
A25: 31 NAVARRA | C25: 65696 | D25: 70857 | E25: 68653.34 | F25: 96.8899897 | H25: 239.5 | I25: 354.501 | J25: 324.65 | K25: 91.57943137
A27: 26 LA RIOJA | C27: 5490 | D27: 4887 | E27: 6600 | F27: 135.0521793 | H27: 7.466 | I27: 15.013 | J27: 35.591 | K27: 237.0678745
A29: 22 Huesca | C29: 127472 | D29: 128345 | E29: 148072.6 | H29: 306.062 | I29: 606.694 | J29: 722.436
A30: 44 Teruel | C30: 53455 | D30: 60002 | E30: 86715 | H30: 51.641 | I30: 71.44 | J30: 267.829
A31: 50 Zaragoza | C31: 93093 | D31: 155889 | E31: 145680.62 | H31: 199.246 | I31: 356.874 | J31: 411.758
A32: ARAGÓN | C32: 274020 | D32: 344236 | E32: 380468.22 | F32: 110.5254012 | H32: 556.949 | I32: 1035.008 | J32: 1402.023 | K32: 135.4601124
A34: 8 Barcelona | C34: 21081 | D34: 31371 | E34: 34246 | H34: 21.503 | I34: 64.968 | J34: 144.397
A35: 17 Girona | C35: 14639 | D35: 18324 | E35: 17725 | H35: 31.752 | I35: 40.556 | J35: 61.852
A36: 25 Lleida | C36: 95217 | D36: 99669 | E36: 105794 | H36: 193.28 | I36: 348.564 | J36: 541.67
A37: 43 Tarragona | C37: 12943 | D37: 11315 | E37: 12455 | H37: 15.572 | I37: 14.326 | J37: 45.766
A38: CATALUÑA | C38: 143880 | D38: 160679 | E38: 170220 | F38: 105.9379259 | H38: 262.107 | I38: 468.414 | J38: 793.685 | K38: 169.4409219
A40: 7 BALEARES | C40: 12469 | D40: 8847 | E40: 10000 | F40: 113.0326664 | H40: 21.484 | I40: 11.953 | J40: 13.2 | K40: 110.4325274
A42: 5 Ávila | C42: 45422 | D42: 36209 | E42: 41645 | H42: 50.923 | I42: 68.943 | J42: 163.027
A43: 9 Burgos | C43: 139572 | D43: 132936 | E43: 149252.61 | H43: 340.954 | I43: 693.251 | J43: 794.354
A44: 24 León | C44: 21009 | D44: 17714 | E44: 22300 | H44: 48.22 | I44: 72.925 | J44: 97.552
A45: 34 Palencia | C45: 106878 | D45: 98303 | E45: 107191 | H45: 248.911 | I45: 454.244 | J45: 554.161
A46: 37 Salamanca | C46: 31523 | D46: 27070 | E46: 29849 | H46: 73.164 | I46: 93.746 | J46: 137.541
A47: 40 Segovia | C47: 65496 | D47: 50297 | E47: 63530 | H47: 113.087 | I47: 137.104 | J47: 257.006
A48: 42 Soria | C48: 75839 | D48: 72275 | E48: 77324 | H48: 75.751 | I48: 254.102 | J48: 306.335
A49: 47 Valladolid | C49: 157781 | D49: 146222 | E49: 160956 | H49: 295.483 | I49: 645.403 | J49: 852.37
A50: 49 Zamora | C50: 57429 | D50: 60390 | E50: 64906 | H50: 113.848 | I50: 236.898 | J50: 318.082
A51: CASTILLA Y LEÓN | C51: 700949 | D51: 641416 | E51: 716953.61 | F51: 111.7766956 | H51: 1360.341 | I51: 2656.616 | J51: 3480.428 | K51: 131.009826
A53: 28 MADRID | C53: 42448 | D53: 36075 | E53: 25657 | F53: 71.12127512 | H53: 53.13 | I53: 99.333 | J53: 65.594 | K53: 66.03444978
A55: 2 Albacete | C55: 24614 | D55: 33350 | E55: 34645 | H55: 16.226 | I55: 41.978 | J55: 81.175
A56: 13 Ciudad Real | C56: 136808 | D56: 136787 | E56: 129364 | H56: 117.069 | I56: 494.907 | J56: 501.955
A57: 16 Cuenca | C57: 199386 | D57: 224402 | E57: 218697 | H57: 209.173 | I57: 721.318 | J57: 730.562
A58: 19 Guadalajara | C58: 80890 | D58: 78441 | E58: 78441 | H58: 130.284 | I58: 256.218 | J58: 278.884
A59: 45 Toledo | C59: 138288 | D59: 139304 | E59: 119524 | H59: 108.527 | I59: 384.672 | J59: 388.474
A60: CASTILLA-MANCHA | C60: 579986 | D60: 612284 | E60: 580671 | F60: 94.83687309 | H60: 581.279 | I60: 1899.093 | J60: 1981.05 | K60: 104.3155864
A62: 3 Alicante | C62: 2397 | D62: 1874 | E62: 2278 | H62: 2.497 | I62: 1.354 | J62: 4.001
A63: 12 Castellón | C63: 1185 | D63: 1479 | E63: 1761 | H63: 2.27 | I63: 0.369 | J63: 3.353
A64: 46 Valencia | C64: 3200 | D64: 2656 | E64: 6794 | H64: 3.776 | I64: 4.155 | J64: 20.54
A65: C. VALENCIANA | C65: 6782 | D65: 6009 | E65: 10833 | F65: 180.2795806 | H65: 8.543 | I65: 5.878 | J65: 27.894 | K65: 474.5491664
A67: 30 R. DE MURCIA | C67: 19413 | D67: 15746 | E67: 16583 | F67: 105.3156357 | H67: 28.598 | I67: 21.498 | J67: 21.856 | K67: 101.6652712
A69: 6 Badajoz | C69: 27890 | D69: 50417 | E69: 49561 | H69: 39.936 | I69: 153.487 | J69: 122.984
A70: 10 Cáceres | C70: 1089 | D70: 1007 | E70: 568 | H70: 1.8 | I70: 1.772 | J70: 1.2
A71: EXTREMADURA | C71: 28979 | D71: 51424 | E71: 50129 | F71: 97.4817206 | H71: 41.736 | I71: 155.259 | J71: 124.184 | K71: 79.98505723
A73: 4 Almería | C73: 1232 | D73: 580 | E73: 6965 | H73: 0.707 | I73: 0.713 | J73: 18.106
A74: 11 Cádiz | C74: 7454 | D74: 9221 | E74: 11331.13 | H74: 8.131 | I74: 14.543 | J74: 32.86
A75: 14 Córdoba | C75: 15643 | D75: 19649 | E75: 19270 | H75: 18.366 | I75: 65.325 | J75: 58.099
A76: 18 Granada | C76: 18876 | D76: 19851 | E76: 33418 | H76: 14.58 | I76: 38.206 | J76: 66.711
A77: 21 Huelva | C77: 1050 | D77: 1187 | E77: 750 | H77: 0.968 | I77: 3.57 | J77: 2.235
A78: 23 Jaén | C78: 3974 | D78: 5709 | E78: 5513 | H78: 2.786 | I78: 11.4 | J78: 11.006
A79: 29 Málaga | C79: 8227 | D79: 9524 | E79: 10462 | H79: 8.548 | I79: 29.358 | J79: 34.41
A80: 41 Sevilla | C80: 21498 | D80: 19980 | E80: 17500 | H80: 30.436 | I80: 67.842 | J80: 49.176
A81: ANDALUCÍA | C81: 77954 | D81: 85701 | E81: 105209.13 | F81: 122.7630133 | H81: 84.522 | I81: 230.957 | J81: 272.603 | K81: 118.031928
A83: 35 Palmas (Las) | C83: 51 | D83: 44 | E83: 44 | H83: 0.091 | I83: 0.079 | J83: 0.079
A84: 38 S. C. Tenerife | C84: 40 | D84: 48 | E84: 48 | H84: 0.039 | I84: 0.046 | J84: 0.046
A85: CANARIAS | C85: 91 | D85: 92 | E85: 92 | F85: 100 | H85: 0.13 | I85: 0.125 | J85: 0.125 | K85: 100
A88: ESPAÑA | C88: 1964062 | D88: 2044487 | E88: 2147564.63 | F88: 105.0417357 | H88: 3276.162 | I88: 6995.533 | J88: 8572.439 | K88: 122.5416133
A91: (*)Tipo de Superficie de mes/año solicitado

Sheet Ceb13rno-SRT
A1: AVANCES DE SUPERFICIE Y PRODUCCIÓN
A2: CEBADA 2C DE INVIERNO S/R/T | K2: 2025 JULIO
A3: SUPERFICIE COSECHADA(*)
A4: PROVINCIAS | B4: SUPERFICIES (HA) | E4: SUPERFICIES (HA) | H4: SUPERFICIES (HA) | L4: PRODUCCIONES (1000 TM) | O4: PRODUCCIONES (1000 TM) | R4: PRODUCCIONES (1000 TM)
A5: Y | B5: SECANO | E5: REGADIO | H5: TOTAL | L5: SECANO | O5: REGADIO | R5: TOTAL
A6: CC-AA | B6: =J6-2 -> 2023 | C6: =J6-1 -> 2024 | D6: =J6 -> 2025 | E6: =J6-2 -> 2023 | F6: =J6-1 -> 2024 | G6: =J6 -> 2025 | H6: =J6-2 -> 2023 | I6: =J6-1 -> 2024 | J6: 2025 | L6: =T6-2 -> 2023 | M6: =T6-1 -> 2024 | N6: =T6 -> 2025 | O6: =T6-2 -> 2023 | P6: =T6-1 -> 2024 | Q6: =T6 -> 2025 | R6: =T6-2 -> 2023 | S6: =T6-1 -> 2024 | T6: 2025
B7: DEFINITIVO | C7: DEFINITIVO | D7: PROVISIONAL | E7: DEFINITIVO | F7: DEFINITIVO | G7: PROVISIONAL | H7: DEFINITIVO | I7: DEFINITIVO | J7: PROVISIONAL | L7: DEFINITIVO | M7: DEFINITIVO | N7: PROVISIONAL | O7: DEFINITIVO | P7: DEFINITIVO | Q7: PROVISIONAL | R7: DEFINITIVO | S7: DEFINITIVO | T7: PROVISIONAL
A10: 15 Coruña (La) | B10: 147 | C10: 110 | D10: 32.87 | H10: 147 | I10: 110 | J10: 32.87 | L10: 0.303 | M10: 0.275 | N10: 0.243 | R10: 0.303 | S10: 0.275 | T10: 0.243
A11: 27 Lugo | B11: 49 | C11: 47 | D11: 73.86 | H11: 49 | I11: 47 | J11: 73.86 | L11: 0.105 | M11: 0.118 | N11: 0.26 | R11: 0.105 | S11: 0.118 | T11: 0.26
A12: 32 Orense | B12: 547 | C12: 578 | D12: 972.12 | H12: 547 | I12: 578 | J12: 972.12 | L12: 1.641 | M12: 2.549 | N12: 2.77 | R12: 1.641 | S12: 2.549 | T12: 2.77
A13: 36 Pontevedra | B13: 19 | C13: 27 | D13: 77.48 | H13: 19 | I13: 27 | J13: 77.48 | L13: 0.041 | M13: 0.119 | N13: 0.265 | R13: 0.041 | S13: 0.119 | T13: 0.265
A14: GALICIA | B14: 762 | C14: 762 | D14: 1156.33 | H14: 762 | I14: 762 | J14: 1156.33 | L14: 2.09 | M14: 3.061 | N14: 3.538 | R14: 2.09 | S14: 3.061 | T14: 3.538
A16: 33 P. DE ASTURIAS
A18: 39 CANTABRIA
A20: 01 Alava | B20: 5143 | C20: 5462 | D20: 4329 | H20: 5143 | I20: 5462 | J20: 4329 | L20: 28.287 | M20: 38.78 | N20: 25.974 | R20: 28.287 | S20: 38.78 | T20: 25.974
A21: 20 Guipúzcoa
A22: 48 Vizcaya
A23: PAIS VASCO | B23: 5143 | C23: 5462 | D23: 4329 | H23: 5143 | I23: 5462 | J23: 4329 | L23: 28.287 | M23: 38.78 | N23: 25.974 | R23: 28.287 | S23: 38.78 | T23: 25.974
A25: 31 NAVARRA | B25: 53276 | C25: 58843 | D25: 56927.15 | E25: 12420 | F25: 11847 | G25: 11646.19 | H25: 65696 | I25: 70690 | J25: 68573.34 | L25: 181.511 | M25: 276.209 | N25: 258.449 | O25: 57.989 | P25: 77.539 | Q25: 65.801 | R25: 239.5 | S25: 353.748 | T25: 324.25
A27: 26 LA RIOJA | B27: 5490 | C27: 4887 | D27: 4900 | G27: 1700 | H27: 5490 | I27: 4887 | J27: 6600 | L27: 7.466 | M27: 15.013 | N27: 25.989 | Q27: 9.602 | R27: 7.466 | S27: 15.013 | T27: 35.591
A29: 22 Huesca | B29: 63367 | C29: 74170 | D29: 90471.55 | E29: 59113 | F29: 51413 | G29: 54635.91 | H29: 122480 | I29: 125583 | J29: 145107.46 | L29: 54.559 | M29: 289.04 | N29: 352.839 | O29: 239.526 | P29: 304.879 | Q29: 355.133 | R29: 294.085 | S29: 593.92 | T29: 707.972
A30: 44 Teruel | B30: 43770 | C30: 50001 | D30: 76855 | E30: 7591 | F30: 7900 | G30: 8126 | H30: 51361 | I30: 57901 | J30: 84981 | L30: 30.639 | M30: 47.401 | N30: 222.649 | O30: 18.978 | P30: 21.686 | Q30: 39.825 | R30: 49.617 | S30: 69.087 | T30: 262.474
A31: 50 Zaragoza | B31: 62119 | C31: 122038 | D31: 121825.35 | E31: 27329 | F31: 28204 | G31: 20876.94 | H31: 89448 | I31: 150242 | J31: 142702.29 | L31: 53.484 | M31: 203.803 | N31: 292.381 | O31: 138.011 | P31: 143.276 | Q31: 110.648 | R31: 191.496 | S31: 347.08 | T31: 403.029
A32: ARAGON | B32: 169256 | C32: 246209 | D32: 289151.9 | E32: 94033 | F32: 87517 | G32: 83638.85 | H32: 263289 | I32: 333726 | J32: 372790.75 | L32: 138.682 | M32: 540.244 | N32: 867.869 | O32: 396.515 | P32: 469.841 | Q32: 505.606 | R32: 535.198 | S32: 1010.087 | T32: 1373.475
A34: 08 Barcelona | B34: 19770 | C34: 30608 | D34: 33133 | E34: 1088 | F34: 655 | G34: 1003 | H34: 20858 | I34: 31263 | J34: 34136 | L34: 15.519 | M34: 61.338 | N34: 138.306 | O34: 5.769 | P34: 3.34 | Q34: 5.665 | R34: 21.288 | S34: 64.678 | T34: 143.971
A35: 17 Girona | B35: 12016 | C35: 15780 | D35: 13234 | E35: 2037 | F35: 2487 | G35: 4438 | H35: 14053 | I35: 18267 | J35: 17672 | L35: 24.248 | M35: 32.128 | N35: 44.209 | O35: 6.233 | P35: 8.302 | Q35: 17.481 | R35: 30.482 | S35: 40.43 | T35: 61.69
A36: 25 Lleida | B36: 63911 | C36: 67224 | D36: 75877 | E36: 30925 | F36: 32239 | G36: 29667 | H36: 94836 | I36: 99463 | J36: 105544 | L36: 33.553 | M36: 145.607 | N36: 341.446 | O36: 158.955 | P36: 201.881 | Q36: 198.769 | R36: 192.508 | S36: 347.488 | T36: 540.215
A37: 43 Tarragona | B37: 12682 | C37: 10945 | D37: 12129 | E37: 261 | F37: 335 | G37: 287 | H37: 12943 | I37: 11280 | J37: 12416 | L37: 15.18 | M37: 13.758 | N37: 44.27 | O37: 0.392 | P37: 0.524 | Q37: 1.349 | R37: 15.572 | S37: 14.282 | T37: 45.619
A38: CATALUÑA | B38: 108379 | C38: 124557 | D38: 134373 | E38: 34311 | F38: 35716 | G38: 35395 | H38: 142690 | I38: 160273 | J38: 169768 | L38: 88.5 | M38: 252.831 | N38: 568.231 | O38: 171.349 | P38: 214.047 | Q38: 223.264 | R38: 259.85 | S38: 466.878 | T38: 791.495
A40: 07 BALEARES | B40: 874 | C40: 350 | D40: 800 | H40: 874 | I40: 350 | J40: 800 | L40: 1.506 | M40: 0.473 | N40: 0.8 | R40: 1.506 | S40: 0.473 | T40: 0.8
A42: 05 Avila | B42: 39265 | C42: 32834 | D42: 38377 | E42: 3663 | F42: 1717 | G42: 1430 | H42: 42928 | I42: 34551 | J42: 39807 | L42: 33.493 | M42: 59.856 | N42: 149.977 | O42: 15.147 | P42: 5.726 | Q42: 6.464 | R42: 48.64 | S42: 65.582 | T42: 156.441
A43: 09 Burgos | B43: 130054 | C43: 123415 | D43: 139314.86 | E43: 5318 | F43: 4790 | G43: 5206.75 | H43: 135372 | I43: 128205 | J43: 144521.61 | L43: 302.896 | M43: 637.685 | N43: 735.639 | O43: 28.276 | P43: 31.121 | Q43: 34.27 | R43: 331.172 | S43: 668.806 | T43: 769.909
A44: 24 León | B44: 15855 | C44: 12794 | D44: 16903 | E44: 4154 | F44: 3920 | G44: 4197 | H44: 20009 | I44: 16714 | J44: 21100 | L44: 24.258 | M44: 48.732 | N44: 70.316 | O44: 22.432 | P44: 20.384 | Q44: 22.244 | R44: 46.69 | S44: 69.116 | T44: 92.56
A45: 34 Palencia | B45: 87202 | C45: 86264 | D45: 96176 | E45: 9676 | F45: 8685 | G45: 10472 | H45: 96878 | I45: 94949 | J45: 106648 | L45: 181.816 | M45: 388.015 | N45: 490.786 | O45: 43.803 | P45: 51.276 | Q45: 60.601 | R45: 225.619 | S45: 439.292 | T45: 551.387
A46: 37 Salamanca | B46: 26536 | C46: 23512 | D46: 24898 | E46: 4337 | F46: 2958 | G46: 4601 | H46: 30873 | I46: 26470 | J46: 29499 | L46: 49.092 | M46: 76.414 | N46: 112.041 | O46: 22.869 | P46: 15.382 | Q46: 23.925 | R46: 71.961 | S46: 91.796 | T46: 135.966
A47: 40 Segovia | B47: 54054 | C47: 42714 | D47: 55677 | E47: 2942 | F47: 2583 | G47: 3553 | H47: 56996 | I47: 45297 | J47: 59230 | L47: 89.513 | M47: 110.629 | N47: 221.817 | O47: 8.826 | P47: 12.814 | Q47: 17.765 | R47: 98.339 | S47: 123.443 | T47: 239.582
A48: 42 Soria | B48: 67650 | C48: 64422 | D48: 71242 | E48: 3139 | F48: 2803 | G48: 3062 | H48: 70789 | I48: 67225 | J48: 74304 | L48: 61.629 | M48: 223.093 | N48: 277.986 | O48: 9.417 | P48: 13.454 | Q48: 16.535 | R48: 71.046 | S48: 236.547 | T48: 294.521
A49: 47 Valladolid | B49: 135178 | C49: 123943 | D49: 134485 | E49: 20853 | F49: 20529 | G49: 25296 | H49: 156031 | I49: 144472 | J49: 159781 | L49: 197.63 | M49: 506.927 | N49: 669.098 | O49: 94.527 | P49: 130.749 | Q49: 177.072 | R49: 292.157 | S49: 637.676 | T49: 846.17
A50: 49 Zamora | B50: 46340 | C50: 49431 | D50: 52696 | E50: 8263 | F50: 8021 | G50: 8965 | H50: 54603 | I50: 57452 | J50: 61661 | L50: 71.781 | M50: 182.746 | N50: 239.398 | O50: 36.465 | P50: 42.624 | Q50: 62.755 | R50: 108.245 | S50: 225.37 | T50: 302.153
A51: CASTILLA Y LEON | B51: 602134 | C51: 559329 | D51: 629768.86 | E51: 62345 | F51: 56006 | G51: 66782.75 | H51: 664479 | I51: 615335 | J51: 696551.61 | L51: 1012.108 | M51: 2234.097 | N51: 2967.058 | O51: 281.762 | P51: 323.53 | Q51: 421.631 | R51: 1293.869 | S51: 2557.628 | T51: 3388.689
A53: 28 MADRID | B53: 37026 | C53: 31380 | D53: 23029 | E53: 4980 | F53: 3587 | G53: 2371 | H53: 42006 | I53: 34967 | J53: 25400 | L53: 42.136 | M53: 83.031 | N53: 55.997 | O53: 10.443 | P53: 13.05 | Q53: 8.842 | R53: 52.579 | S53: 96.082 | T53: 64.839
A55: 02 Albacete | B55: 10661 | C55: 15500 | D55: 16115 | E55: 546 | F55: 450 | G55: 450 | H55: 11207 | I55: 15950 | J55: 16565 | L55: 4.264 | M55: 16.508 | N55: 36.645 | O55: 3.549 | P55: 2.97 | Q55: 3.1 | R55: 7.813 | S55: 19.478 | T55: 39.745
A56: 13 Ciudad Real | B56: 66560 | C56: 72134 | D56: 65815 | E56: 29205 | F56: 23617 | G56: 24740 | H56: 95765 | I56: 95751 | J56: 90555 | L56: 21.632 | M56: 222.173 | N56: 210.608 | O56: 58.848 | P56: 118.085 | Q56: 136.07 | R56: 80.48 | S56: 340.258 | T56: 346.678
A57: 16 Cuenca | B57: 180755 | C57: 201757 | D57: 194279 | E57: 8244 | F57: 6780 | G57: 6948 | H57: 188999 | I57: 208537 | J57: 201227 | L57: 162.68 | M57: 630.491 | N57: 631.41 | O57: 35.861 | P57: 37.968 | Q57: 38.492 | R57: 198.541 | S57: 668.459 | T57: 669.902
A58: 19 Guadalajara | B58: 74757 | C58: 72517 | D58: 72517 | E58: 2873 | F58: 2787 | G58: 2787 | H58: 77630 | I58: 75304 | J58: 75304 | L58: 112.136 | M58: 232.054 | N58: 253.81 | O58: 12.929 | P58: 13.935 | Q58: 13.935 | R58: 125.064 | S58: 245.989 | T58: 267.745
A59: 45 Toledo | B59: 114582 | C59: 118055 | D59: 97891 | E59: 11260 | F59: 8671 | G59: 9681 | H59: 125842 | I59: 126726 | J59: 107572 | L59: 45.833 | M59: 306.943 | N59: 293.673 | O59: 52.922 | P59: 40.754 | Q59: 56.555 | R59: 98.755 | S59: 347.697 | T59: 350.228
A60: CASTILLA-MANCHA | B60: 447315 | C60: 479963 | D60: 446617 | E60: 52128 | F60: 42305 | G60: 44606 | H60: 499443 | I60: 522268 | J60: 491223 | L60: 346.545 | M60: 1408.169 | N60: 1426.146 | O60: 164.109 | P60: 213.712 | Q60: 248.152 | R60: 510.653 | S60: 1621.881 | T60: 1674.298
A62: 03 Alicante | B62: 1667 | C62: 1225 | D62: 1782 | E62: 496 | F62: 470 | G62: 382 | H62: 2163 | I62: 1695 | J62: 2164 | L62: 0.934 | M62: 0.196 | N62: 2.305 | O62: 1.324 | P62: 1.011 | Q62: 1.496 | R62: 2.258 | S62: 1.207 | T62: 3.801
A63: 12 Castellón | B63: 1128 | C63: 1408 | D63: 1690 | E63: 38 | F63: 47 | G63: 47 | H63: 1166 | I63: 1455 | J63: 1737 | L63: 2.087 | M63: 0.183 | N63: 3.127 | O63: 0.148 | P63: 0.183 | Q63: 0.183 | R63: 2.235 | S63: 0.366 | T63: 3.31
A64: 46 Valencia | B64: 2752 | C64: 2128 | D64: 6132 | E64: 312 | F64: 403 | G64: 391 | H64: 3064 | I64: 2531 | J64: 6523 | L64: 2.367 | M64: 2.128 | N64: 18.089 | O64: 1.248 | P64: 1.854 | Q64: 1.636 | R64: 3.615 | S64: 3.982 | T64: 19.725
A65: C. VALENCIANA | B65: 5547 | C65: 4761 | D65: 9604 | E65: 846 | F65: 920 | G65: 820 | H65: 6393 | I65: 5681 | J65: 10424 | L65: 5.388 | M65: 2.507 | N65: 23.521 | O65: 2.72 | P65: 3.048 | Q65: 3.315 | R65: 8.108 | S65: 5.555 | T65: 26.836
A67: 30 R. DE MURCIA | B67: 8155 | C67: 6631 | D67: 7084 | E67: 900 | F67: 516 | G67: 411 | H67: 9055 | I67: 7147 | J67: 7495 | L67: 7.747 | M67: 6.167 | N67: 6.588 | O67: 2.565 | P67: 1.507 | Q67: 1.2 | R67: 10.312 | S67: 7.674 | T67: 7.788
A69: 06 Badajoz | B69: 23999 | C69: 44967 | D69: 44090 | E69: 3795 | F69: 2710 | G69: 2671 | H69: 27794 | I69: 47677 | J69: 46761 | L69: 28.559 | M69: 135.89 | N69: 107.668 | O69: 11.283 | P69: 10.558 | Q69: 8.479 | R69: 39.841 | S69: 146.448 | T69: 116.147
A70: 10 Cáceres | B70: 119 | C70: 227 | D70: 131 | E70: 896 | F70: 702 | G70: 357 | H70: 1015 | I70: 929 | J70: 488 | L70: 0.094 | M70: 0.347 | N70: 0.233 | O70: 1.658 | P70: 1.328 | Q70: 0.825 | R70: 1.751 | S70: 1.675 | T70: 1.058
A71: EXTREMADURA | B71: 24118 | C71: 45194 | D71: 44221 | E71: 4691 | F71: 3412 | G71: 3028 | H71: 28809 | I71: 48606 | J71: 47249 | L71: 28.653 | M71: 136.237 | N71: 107.901 | O71: 12.941 | P71: 11.886 | Q71: 9.304 | R71: 41.592 | S71: 148.123 | T71: 117.205
A73: 04 Almería
A74: 11 Cádiz | B74: 6422 | C74: 8026 | D74: 9864 | E74: 462 | F74: 580 | G74: 551 | H74: 6884 | I74: 8606 | J74: 10415 | L74: 5.587 | M74: 12.151 | N74: 28.606 | O74: 1.601 | P74: 1.378 | Q74: 1.598 | R74: 7.188 | S74: 13.529 | T74: 30.204
A75: 14 Córdoba | B75: 2915 | C75: 5846 | D75: 4930 | E75: 711 | F75: 1048 | G75: 530 | H75: 3626 | I75: 6894 | J75: 5460 | L75: 2.915 | M75: 17.538 | N75: 13.804 | O75: 0.924 | P75: 3.144 | Q75: 1.484 | R75: 3.839 | S75: 20.682 | T75: 15.288
A76: 18 Granada | B76: 10698 | C76: 15372 | D76: 27004 | E76: 2558 | F76: 2950 | G76: 3534 | H76: 13256 | I76: 18322 | J76: 30538 | L76: 6.151 | M76: 26.547 | N76: 51.748 | O76: 4.835 | P76: 8.369 | Q76: 10.885 | R76: 10.986 | S76: 34.916 | T76: 62.633
A77: 21 Huelva | B77: 895 | C77: 994 | D77: 668 | E77: 20 | F77: 83 | G77: 32 | H77: 915 | I77: 1077 | J77: 700 | L77: 0.814 | M77: 2.982 | N77: 1.994 | O77: 0.028 | P77: 0.258 | Q77: 0.106 | R77: 0.842 | S77: 3.24 | T77: 2.1
A78: 23 Jaén | B78: 2180 | C78: 3146 | D78: 3019 | E78: 244 | F78: 336 | G78: 344 | H78: 2424 | I78: 3482 | J78: 3363 | L78: 1.526 | M78: 5.977 | N78: 5.736 | O78: 0.268 | P78: 0.84 | Q78: 0.86 | R78: 1.794 | S78: 6.817 | T78: 6.596
A79: 29 Málaga | B79: 6990 | C79: 8435 | D79: 9094 | E79: 774 | F79: 589 | G79: 818 | H79: 7764 | I79: 9024 | J79: 9912 | L79: 5.592 | M79: 25.305 | N79: 29.1 | O79: 2.322 | P79: 2.415 | Q79: 3.44 | R79: 7.914 | S79: 27.72 | T79: 32.54
A80: 41 Sevilla | B80: 15911 | C80: 15660 | D80: 14560 | E80: 3437 | F80: 2320 | G80: 1180 | H80: 19348 | I80: 17980 | J80: 15740 | L80: 17.502 | M80: 53.244 | N80: 40.768 | O80: 10.311 | P80: 8.816 | Q80: 3.776 | R80: 27.813 | S80: 62.06 | T80: 44.544
A81: ANDALUCIA | B81: 46011 | C81: 57479 | D81: 69139 | E81: 8206 | F81: 7906 | G81: 6989 | H81: 54217 | I81: 65385 | J81: 76128 | L81: 40.087 | M81: 143.744 | N81: 171.756 | O81: 20.289 | P81: 25.22 | Q81: 22.149 | R81: 60.376 | S81: 168.964 | T81: 193.905
A83: 35 Palmas (Las) | B83: 27 | C83: 22 | D83: 22 | E83: 24 | F83: 22 | G83: 22 | H83: 51 | I83: 44 | J83: 44 | L83: 0.028 | M83: 0.022 | N83: 0.022 | O83: 0.063 | P83: 0.057 | Q83: 0.057 | R83: 0.091 | S83: 0.079 | T83: 0.079
A84: 38 S. C. Tenerife | B84: 39 | C84: 47 | D84: 47 | E84: 1 | F84: 1 | G84: 1 | H84: 40 | I84: 48 | J84: 48 | L84: 0.038 | M84: 0.045 | N84: 0.045 | O84: 0.002 | P84: 0.001 | Q84: 0.001 | R84: 0.039 | S84: 0.046 | T84: 0.046
A85: CANARIAS | B85: 66 | C85: 69 | D85: 69 | E85: 25 | F85: 23 | G85: 23 | H85: 91 | I85: 92 | J85: 92 | L85: 0.066 | M85: 0.067 | N85: 0.067 | O85: 0.065 | P85: 0.058 | Q85: 0.058 | R85: 0.13 | S85: 0.125 | T85: 0.125
A88: ESPAÑA | B88: 3027104 | C88: 1625876 | D88: 1721169.24 | E88: 274885 | F88: 249755 | G88: 257410.79 | H88: 1788437 | I88: 1875631 | J88: 1978580.03 | L88: 1930.772 | M88: 5140.63 | N88: 6509.884 | O88: 1120.747 | P88: 1353.438 | Q88: 1518.924 | R88: 3051.516 | S88: 6494.072 | T88: 8028.808
B96: 221 | C96: 231 | E96: 221 | F96: 231 | H96: 221 | I96: 231

Sheet Ceb13rno
A1: AVANCES DE SUPERFICIE Y PRODUCCIÓN
A2: CEBADA 2C DE INVIERNO | J2: 2025 JULIO
A3: SUPERFICIE COSECHADA(*)
A4: PROVINCIAS | C4: SUPERFICIES (HA) | H4: PRODUCCIONES (1000 TM)
A5: Y
A6: CC-AA | C6: =E6-2 -> 2023 | D6: =E6-1 -> 2024 | E6: 2025 | F6: =E6 -> 2025 | H6: =J6-2 -> 2023 | I6: =J6-1 -> 2024 | J6: 2025 | K6: =J6 -> 2025
C7: DEFINITIVO | D7: DEFINITIVO | E7: PROVISIONAL | F7: =CONCATENATE(D6,"=100") -> 2024=100 | H7: DEFINITIVO | I7: DEFINITIVO | J7: PROVISIONAL | K7: =CONCATENATE(I6,"=100") -> 2024=100
A10: 15 A Coruña | C10: 147 | D10: 110 | E10: 32.87 | H10: 0.303 | I10: 0.275 | J10: 0.243
A11: 27 Lugo | C11: 49 | D11: 47 | E11: 73.86 | H11: 0.105 | I11: 0.118 | J11: 0.26
A12: 32 Ourense | C12: 547 | D12: 578 | E12: 972.12 | H12: 1.641 | I12: 2.549 | J12: 2.77
A13: 36 Pontevedra | C13: 19 | D13: 27 | E13: 77.48 | H13: 0.041 | I13: 0.119 | J13: 0.265
A14: GALICIA | C14: 762 | D14: 762 | E14: 1156.33 | F14: 151.7493438 | H14: 2.09 | I14: 3.061 | J14: 3.538 | K14: 115.5831428
A16: 33 P. DE ASTURIAS
A18: 39 CANTABRIA
A20: 1 Álava | C20: 5143 | D20: 5462 | E20: 4329 | H20: 28.287 | I20: 38.78 | J20: 25.974
A21: 20 Guipúzcoa
A22: 48 Vizcaya
A23: PAIS VASCO | C23: 5143 | D23: 5462 | E23: 4329 | F23: 79.25668253 | H23: 28.287 | I23: 38.78 | J23: 25.974 | K23: 66.97782362
A25: 31 NAVARRA | C25: 65696 | D25: 70690 | E25: 68573.34 | F25: 97.00571509 | H25: 239.5 | I25: 353.748 | J25: 324.25 | K25: 91.66129561
A27: 26 LA RIOJA | C27: 5490 | D27: 4887 | E27: 6600 | F27: 135.0521793 | H27: 7.466 | I27: 15.013 | J27: 35.591 | K27: 237.0678745
A29: 22 Huesca | C29: 122480 | D29: 125583 | E29: 145107.46 | H29: 294.085 | I29: 593.92 | J29: 707.972
A30: 44 Teruel | C30: 51361 | D30: 57901 | E30: 84981 | H30: 49.617 | I30: 69.087 | J30: 262.474
A31: 50 Zaragoza | C31: 89448 | D31: 150242 | E31: 142702.29 | H31: 191.496 | I31: 347.08 | J31: 403.029
A32: ARAGÓN | C32: 263289 | D32: 333726 | E32: 372790.75 | F32: 111.7056358 | H32: 535.198 | I32: 1010.087 | J32: 1373.475 | K32: 135.975911
A34: 8 Barcelona | C34: 20858 | D34: 31263 | E34: 34136 | H34: 21.288 | I34: 64.678 | J34: 143.971
A35: 17 Girona | C35: 14053 | D35: 18267 | E35: 17672 | H35: 30.482 | I35: 40.43 | J35: 61.69
A36: 25 Lleida | C36: 94836 | D36: 99463 | E36: 105544 | H36: 192.508 | I36: 347.488 | J36: 540.215
A37: 43 Tarragona | C37: 12943 | D37: 11280 | E37: 12416 | H37: 15.572 | I37: 14.282 | J37: 45.619
A38: CATALUÑA | C38: 142690 | D38: 160273 | E38: 169768 | F38: 105.9242667 | H38: 259.85 | I38: 466.878 | J38: 791.495 | K38: 169.5292989
A40: 7 BALEARES | C40: 874 | D40: 350 | E40: 800 | F40: 228.5714286 | H40: 1.506 | I40: 0.473 | J40: 0.8 | K40: 169.1331924
A42: 5 Ávila | C42: 42928 | D42: 34551 | E42: 39807 | H42: 48.64 | I42: 65.582 | J42: 156.441
A43: 9 Burgos | C43: 135372 | D43: 128205 | E43: 144521.61 | H43: 331.172 | I43: 668.806 | J43: 769.909
A44: 24 León | C44: 20009 | D44: 16714 | E44: 21100 | H44: 46.69 | I44: 69.116 | J44: 92.56
A45: 34 Palencia | C45: 96878 | D45: 94949 | E45: 106648 | H45: 225.619 | I45: 439.292 | J45: 551.387
A46: 37 Salamanca | C46: 30873 | D46: 26470 | E46: 29499 | H46: 71.961 | I46: 91.796 | J46: 135.966
A47: 40 Segovia | C47: 56996 | D47: 45297 | E47: 59230 | H47: 98.339 | I47: 123.443 | J47: 239.582
A48: 42 Soria | C48: 70789 | D48: 67225 | E48: 74304 | H48: 71.046 | I48: 236.547 | J48: 294.521
A49: 47 Valladolid | C49: 156031 | D49: 144472 | E49: 159781 | H49: 292.157 | I49: 637.676 | J49: 846.17
A50: 49 Zamora | C50: 54603 | D50: 57452 | E50: 61661 | H50: 108.245 | I50: 225.37 | J50: 302.153
A51: CASTILLA Y LEÓN | C51: 664479 | D51: 615335 | E51: 696551.61 | F51: 113.1987633 | H51: 1293.869 | I51: 2557.628 | J51: 3388.689 | K51: 132.4934275
A53: 28 MADRID | C53: 42006 | D53: 34967 | E53: 25400 | F53: 72.63991764 | H53: 52.579 | I53: 96.082 | J53: 64.839 | K53: 67.48298329
A55: 2 Albacete | C55: 11207 | D55: 15950 | E55: 16565 | H55: 7.813 | I55: 19.478 | J55: 39.745
A56: 13 Ciudad Real | C56: 95765 | D56: 95751 | E56: 90555 | H56: 80.48 | I56: 340.258 | J56: 346.678
A57: 16 Cuenca | C57: 188999 | D57: 208537 | E57: 201227 | H57: 198.541 | I57: 668.459 | J57: 669.902
A58: 19 Guadalajara | C58: 77630 | D58: 75304 | E58: 75304 | H58: 125.064 | I58: 245.989 | J58: 267.745
A59: 45 Toledo | C59: 125842 | D59: 126726 | E59: 107572 | H59: 98.755 | I59: 347.697 | J59: 350.228
A60: CASTILLA-MANCHA | C60: 499443 | D60: 522268 | E60: 491223 | F60: 94.05573384 | H60: 510.653 | I60: 1621.881 | J60: 1674.298 | K60: 103.2318647
A62: 3 Alicante | C62: 2163 | D62: 1695 | E62: 2164 | H62: 2.258 | I62: 1.207 | J62: 3.801
A63: 12 Castellón | C63: 1166 | D63: 1455 | E63: 1737 | H63: 2.235 | I63: 0.366 | J63: 3.31
A64: 46 Valencia | C64: 3064 | D64: 2531 | E64: 6523 | H64: 3.615 | I64: 3.982 | J64: 19.725
A65: C. VALENCIANA | C65: 6393 | D65: 5681 | E65: 10424 | F65: 183.4888224 | H65: 8.108 | I65: 5.555 | J65: 26.836 | K65: 483.0963096
A67: 30 R. DE MURCIA | C67: 9055 | D67: 7147 | E67: 7495 | F67: 104.8691759 | H67: 10.312 | I67: 7.674 | J67: 7.788 | K67: 101.4855356
A69: 6 Badajoz | C69: 27794 | D69: 47677 | E69: 46761 | H69: 39.841 | I69: 146.448 | J69: 116.147
A70: 10 Cáceres | C70: 1015 | D70: 929 | E70: 488 | H70: 1.751 | I70: 1.675 | J70: 1.058
A71: EXTREMADURA | C71: 28809 | D71: 48606 | E71: 47249 | F71: 97.2081636 | H71: 41.592 | I71: 148.123 | J71: 117.205 | K71: 79.12680678
A73: 4 Almería
A74: 11 Cádiz | C74: 6884 | D74: 8606 | E74: 10415 | H74: 7.188 | I74: 13.529 | J74: 30.204
A75: 14 Córdoba | C75: 3626 | D75: 6894 | E75: 5460 | H75: 3.839 | I75: 20.682 | J75: 15.288
A76: 18 Granada | C76: 13256 | D76: 18322 | E76: 30538 | H76: 10.986 | I76: 34.916 | J76: 62.633
A77: 21 Huelva | C77: 915 | D77: 1077 | E77: 700 | H77: 0.842 | I77: 3.24 | J77: 2.1
A78: 23 Jaén | C78: 2424 | D78: 3482 | E78: 3363 | H78: 1.794 | I78: 6.817 | J78: 6.596
A79: 29 Málaga | C79: 7764 | D79: 9024 | E79: 9912 | H79: 7.914 | I79: 27.72 | J79: 32.54
A80: 41 Sevilla | C80: 19348 | D80: 17980 | E80: 15740 | H80: 27.813 | I80: 62.06 | J80: 44.544
A81: ANDALUCÍA | C81: 54217 | D81: 65385 | E81: 76128 | F81: 116.4303739 | H81: 60.376 | I81: 168.964 | J81: 193.905 | K81: 114.7611325
A83: 35 Palmas (Las) | C83: 51 | D83: 44 | E83: 44 | H83: 0.091 | I83: 0.079 | J83: 0.079
A84: 38 S. C. Tenerife | C84: 40 | D84: 48 | E84: 48 | H84: 0.039 | I84: 0.046 | J84: 0.046
A85: CANARIAS | C85: 91 | D85: 92 | E85: 92 | F85: 100 | H85: 0.13 | I85: 0.125 | J85: 0.125 | K85: 100
A88: ESPAÑA | C88: 1788437 | D88: 1875631 | E88: 1978580.03 | F88: 105.4887678 | H88: 3051.516 | I88: 6494.072 | J88: 8028.808 | K88: 123.6328763
A91: (*)Tipo de Superficie de mes/año solicitado

Sheet Ceb14rno-SRT
A1: AVANCES DE SUPERFICIE Y PRODUCCIÓN
A2: CEBADA 6C DE INVIERNO S/R/T | K2: 2025 JULIO
A3: SUPERFICIE COSECHADA(*)
A4: PROVINCIAS | B4: SUPERFICIES (HA) | E4: SUPERFICIES (HA) | H4: SUPERFICIES (HA) | L4: PRODUCCIONES (1000 TM) | O4: PRODUCCIONES (1000 TM) | R4: PRODUCCIONES (1000 TM)
A5: Y | B5: SECANO | E5: REGADIO | H5: TOTAL | L5: SECANO | O5: REGADIO | R5: TOTAL
A6: CC-AA | B6: =J6-2 -> 2023 | C6: =J6-1 -> 2024 | D6: =J6 -> 2025 | E6: =J6-2 -> 2023 | F6: =J6-1 -> 2024 | G6: =J6 -> 2025 | H6: =J6-2 -> 2023 | I6: =J6-1 -> 2024 | J6: 2025 | L6: =T6-2 -> 2023 | M6: =T6-1 -> 2024 | N6: =T6 -> 2025 | O6: =T6-2 -> 2023 | P6: =T6-1 -> 2024 | Q6: =T6 -> 2025 | R6: =T6-2 -> 2023 | S6: =T6-1 -> 2024 | T6: 2025
B7: DEFINITIVO | C7: DEFINITIVO | D7: PROVISIONAL | E7: DEFINITIVO | F7: DEFINITIVO | G7: PROVISIONAL | H7: DEFINITIVO | I7: DEFINITIVO | J7: PROVISIONAL | L7: DEFINITIVO | M7: DEFINITIVO | N7: PROVISIONAL | O7: DEFINITIVO | P7: DEFINITIVO | Q7: PROVISIONAL | R7: DEFINITIVO | S7: DEFINITIVO | T7: PROVISIONAL
A10: 15 Coruña (La)
A11: 27 Lugo
A12: 32 Orense | C12: 10 | D12: 10 | I12: 10 | J12: 10 | M12: 0.044 | N12: 0.044 | S12: 0.044 | T12: 0.044
A13: 36 Pontevedra
A14: GALICIA | C14: 10 | D14: 10 | I14: 10 | J14: 10 | M14: 0.044 | N14: 0.044 | S14: 0.044 | T14: 0.044
A16: 33 P. DE ASTURIAS
A18: 39 CANTABRIA
A20: 01 Alava
A21: 20 Guipúzcoa
A22: 48 Vizcaya
A23: PAIS VASCO
A25: 31 NAVARRA | C25: 162 | D25: 75 | F25: 5 | G25: 5 | I25: 167 | J25: 80 | M25: 0.727 | N25: 0.375 | P25: 0.026 | Q25: 0.025 | S25: 0.753 | T25: 0.4
A27: 26 LA RIOJA
A29: 22 Huesca | B29: 2583 | C29: 1631 | D29: 1849.82 | E29: 2409 | F29: 1131 | G29: 1115.32 | H29: 4992 | I29: 2762 | J29: 2965.14 | L29: 2.286 | M29: 6.067 | N29: 7.214 | O29: 9.691 | P29: 6.707 | Q29: 7.25 | R29: 11.977 | S29: 12.774 | T29: 14.464
A30: 44 Teruel | B30: 1784 | C30: 1900 | D30: 1568 | E30: 310 | F30: 201 | G30: 166 | H30: 2094 | I30: 2101 | J30: 1734 | L30: 1.249 | M30: 1.801 | N30: 4.542 | O30: 0.775 | P30: 0.552 | Q30: 0.813 | R30: 2.024 | S30: 2.353 | T30: 5.355
A31: 50 Zaragoza | B31: 2532 | C31: 4587 | D31: 2432.97 | E31: 1113 | F31: 1060 | G31: 545.36 | H31: 3645 | I31: 5647 | J31: 2978.33 | L31: 2.241 | M31: 5.183 | N31: 5.839 | O31: 5.509 | P31: 4.611 | Q31: 2.89 | R31: 7.75 | S31: 9.794 | T31: 8.73
A32: ARAGON | B32: 6899 | C32: 8118 | D32: 5850.79 | E32: 3832 | F32: 2392 | G32: 1826.68 | H32: 10731 | I32: 10510 | J32: 7677.47 | L32: 5.776 | M32: 13.051 | N32: 17.595 | O32: 15.975 | P32: 11.87 | Q32: 10.953 | R32: 21.751 | S32: 24.921 | T32: 28.549
A34: 08 Barcelona | B34: 223 | C34: 95 | D34: 110 | F34: 13 | H34: 223 | I34: 108 | J34: 110 | L34: 0.215 | M34: 0.227 | N34: 0.426 | P34: 0.063 | R34: 0.215 | S34: 0.29 | T34: 0.426
A35: 17 Girona | B35: 501 | C35: 45 | D35: 40 | E35: 85 | F35: 12 | G35: 13 | H35: 586 | I35: 57 | J35: 53 | L35: 1.011 | M35: 0.086 | N35: 0.12 | O35: 0.26 | P35: 0.039 | Q35: 0.042 | R35: 1.27 | S35: 0.126 | T35: 0.162
A36: 25 Lleida | B36: 257 | C36: 60 | D36: 100 | E36: 124 | F36: 146 | G36: 150 | H36: 381 | I36: 206 | J36: 250 | L36: 0.135 | M36: 0.072 | N36: 0.45 | O36: 0.637 | P36: 1.004 | Q36: 1.005 | R36: 0.772 | S36: 1.076 | T36: 1.455
A37: 43 Tarragona | C37: 34 | D37: 38 | F37: 1 | G37: 1 | I37: 35 | J37: 39 | M37: 0.039 | N37: 0.142 | P37: 0.005 | Q37: 0.005 | S37: 0.044 | T37: 0.147
A38: CATALUÑA | B38: 981 | C38: 234 | D38: 288 | E38: 209 | F38: 172 | G38: 164 | H38: 1190 | I38: 406 | J38: 452 | L38: 1.361 | M38: 0.424 | N38: 1.138 | O38: 0.897 | P38: 1.111 | Q38: 1.052 | R38: 2.257 | S38: 1.536 | T38: 2.19
A40: 07 BALEARES | B40: 11595 | C40: 8497 | D40: 9200 | H40: 11595 | I40: 8497 | J40: 9200 | L40: 19.978 | M40: 11.479 | N40: 12.4 | R40: 19.978 | S40: 11.48 | T40: 12.4
A42: 05 Avila | B42: 2387 | C42: 1610 | D42: 1820 | E42: 107 | F42: 48 | G42: 18 | H42: 2494 | I42: 1658 | J42: 1838 | L42: 1.869 | M42: 3.197 | N42: 6.512 | O42: 0.414 | P42: 0.163 | Q42: 0.074 | R42: 2.283 | S42: 3.361 | T42: 6.586
A43: 09 Burgos | B43: 4200 | C43: 4731 | D43: 4731 | H43: 4200 | I43: 4731 | J43: 4731 | L43: 9.782 | M43: 24.445 | N43: 24.445 | R43: 9.782 | S43: 24.445 | T43: 24.445
A44: 24 León | B44: 1000 | C44: 1000 | D44: 1200 | H44: 1000 | I44: 1000 | J44: 1200 | L44: 1.53 | M44: 3.809 | N44: 4.992 | R44: 1.53 | S44: 3.809 | T44: 4.992
A45: 34 Palencia | B45: 9000 | C45: 3080 | D45: 538 | E45: 1000 | F45: 274 | G45: 5 | H45: 10000 | I45: 3354 | J45: 543 | L45: 18.765 | M45: 13.854 | N45: 2.745 | O45: 4.527 | P45: 1.098 | Q45: 0.029 | R45: 23.292 | S45: 14.952 | T45: 2.774
A46: 37 Salamanca | B46: 650 | C46: 600 | D46: 350 | H46: 650 | I46: 600 | J46: 350 | L46: 1.203 | M46: 1.95 | N46: 1.575 | R46: 1.203 | S46: 1.95 | T46: 1.575
A47: 40 Segovia | B47: 8000 | C47: 4700 | D47: 4000 | E47: 500 | F47: 300 | G47: 300 | H47: 8500 | I47: 5000 | J47: 4300 | L47: 13.248 | M47: 12.173 | N47: 15.936 | O47: 1.5 | P47: 1.488 | Q47: 1.488 | R47: 14.748 | S47: 13.661 | T47: 17.424
A48: 42 Soria | B48: 5000 | C48: 5000 | D48: 3000 | E48: 50 | F48: 50 | G48: 20 | H48: 5050 | I48: 5050 | J48: 3020 | L48: 4.555 | M48: 17.315 | N48: 11.706 | O48: 0.15 | P48: 0.24 | Q48: 0.108 | R48: 4.705 | S48: 17.555 | T48: 11.814
A49: 47 Valladolid | B49: 1500 | C49: 1500 | D49: 1000 | E49: 250 | F49: 250 | G49: 175 | H49: 1750 | I49: 1750 | J49: 1175 | L49: 2.193 | M49: 6.135 | N49: 4.975 | O49: 1.133 | P49: 1.592 | Q49: 1.225 | R49: 3.326 | S49: 7.727 | T49: 6.2
A50: 49 Zamora | B50: 2398 | C50: 2526 | D50: 2773 | E50: 428 | F50: 412 | G50: 472 | H50: 2826 | I50: 2938 | J50: 3245 | L50: 3.715 | M50: 9.339 | N50: 12.625 | O50: 1.889 | P50: 2.189 | Q50: 3.304 | R50: 5.603 | S50: 11.528 | T50: 15.929
A51: CASTILLA Y LEON | B51: 34135 | C51: 24747 | D51: 19412 | E51: 2335 | F51: 1334 | G51: 990 | H51: 36470 | I51: 26081 | J51: 20402 | L51: 56.86 | M51: 92.217 | N51: 85.511 | O51: 9.613 | P51: 6.77 | Q51: 6.228 | R51: 66.472 | S51: 98.988 | T51: 91.739
A53: 28 MADRID | B53: 392 | C53: 996 | D53: 233 | E53: 50 | F53: 112 | G53: 24 | H53: 442 | I53: 1108 | J53: 257 | L53: 0.446 | M53: 2.848 | N53: 0.647 | O53: 0.105 | P53: 0.403 | Q53: 0.108 | R53: 0.551 | S53: 3.251 | T53: 0.755
A55: 02 Albacete | B55: 12907 | C55: 17100 | D55: 17780 | E55: 500 | F55: 300 | G55: 300 | H55: 13407 | I55: 17400 | J55: 18080 | L55: 5.163 | M55: 20.52 | N55: 39.355 | O55: 3.25 | P55: 1.98 | Q55: 2.075 | R55: 8.413 | S55: 22.5 | T55: 41.43
A56: 13 Ciudad Real | B56: 28525 | C56: 30915 | D56: 28206 | E56: 12518 | F56: 10121 | G56: 10603 | H56: 41043 | I56: 41036 | J56: 38809 | L56: 11.553 | M56: 102.02 | N56: 95.9 | O56: 25.036 | P56: 52.629 | Q56: 59.377 | R56: 36.589 | S56: 154.649 | T56: 155.277
A57: 16 Cuenca | B57: 10015 | C57: 15346 | D57: 16868 | E57: 372 | F57: 519 | G57: 602 | H57: 10387 | I57: 15865 | J57: 17470 | L57: 9.014 | M57: 49.875 | N57: 57.35 | O57: 1.618 | P57: 2.984 | Q57: 3.31 | R57: 10.632 | S57: 52.859 | T57: 60.66
